Workbook

Sheet Kuntakortti
A1: Valtiovarainministeriö/Kunta- ja aluehallinto-osasto,4.6.2019
A2: KUNTAKONSERNIEN TP 2016 - 2018 (lyhennetty kaava) | G2: Valitse kunta valikosta:
A4: =INDEX(Luvut!$B$3:'Luvut'!$B$298,$A$7) -> KOKO MAA (Manner-Suomi) | D4: 2016 | G4: 2017 | J4: 2018
A6: Asukasluku | D6: =VLOOKUP($A$4,Luvut!$B$3:$AV$298,2) -> 5474085 | G6: =VLOOKUP($A$4,Luvut!$B$3:$EJ$298,48) -> 5483641 | I6: =((G6/D6)-1)*100 -> 0.1745679872 | J6: =VLOOKUP($A$4,Luvut!$B$3:$EJ$298,94) -> 5488130 | L6: =((J6/G6)-1)*100 -> 0.08186166819
A7: 96
A8: Tunnuslukuja
I9: muut.% | L9: muut.%
A10: Lainat, euro/as | D10: =E67 -> 6160.406716 | G10: =H67 -> 6314.227901 | I10: =((G10/D10)-1)*100 -> 2.496932288 | J10: =K67 -> 6557.643678 | L10: =((J10/G10)-1)*100 -> 3.855036298
A12: Lainanhoitokate* | D12: =VLOOKUP($A$4,Luvut!$B$3:$AV$298,4) -> 1.6 | G12: =VLOOKUP($A$4,Luvut!$B$3:$EJ$298,50) -> 1.885379184 | J12: =VLOOKUP($A$4,Luvut!$B$3:$EJ$298,96) -> 1.526367982
A13: Suhteellinen velkaantuneisuus, % | D13: =VLOOKUP($A$4,Luvut!$B$3:$AV$298,5) -> 77.6 | G13: =VLOOKUP($A$4,Luvut!$B$3:$EJ$298,51) -> 78.71552436 | J13: =VLOOKUP($A$4,Luvut!$B$3:$EJ$298,97) -> 80.75610324
A14: Rahoitusvarallisuus, euro/as | D14: =VLOOKUP($A$4,Luvut!$B$3:$AV$298,6) -> -5949 | G14: =VLOOKUP($A$4,Luvut!$B$3:$EJ$298,52) -> -6016.301578 | J14: =VLOOKUP($A$4,Luvut!$B$3:$EJ$298,98) -> -6400.727752
A15: Omavaraisuusaste, % | D15: =VLOOKUP($A$4,Luvut!$B$3:$AV$298,10) -> 42.9 | G15: =VLOOKUP($A$4,Luvut!$B$3:$EJ$298,56) -> 43.38546408 | J15: =VLOOKUP($A$4,Luvut!$B$3:$EJ$298,102) -> 42.44390773
A17: Rahavarat, euro/as | D17: =VLOOKUP($A$4,Luvut!$B$3:$AV$298,11) -> 1247 | G17: =VLOOKUP($A$4,Luvut!$B$3:$EJ$298,57) -> 1378.654803 | J17: =VLOOKUP($A$4,Luvut!$B$3:$EJ$298,103) -> 1343.538692
A18: Kassan riittävyys, pv | D18: =VLOOKUP($A$4,Luvut!$B$3:$AV$298,12) -> 41 | G18: =VLOOKUP($A$4,Luvut!$B$3:$EJ$298,58) -> 59 | J18: =VLOOKUP($A$4,Luvut!$B$3:$EJ$298,104) -> 41.77203475
A19: Kassastamaksut, euro/as | D19: =VLOOKUP($A$4,Luvut!$B$3:$AV$298,13) -> 11169 | G19: =VLOOKUP($A$4,Luvut!$B$3:$EJ$298,59) -> 8537.36377 | J19: =VLOOKUP($A$4,Luvut!$B$3:$EJ$298,105) -> 11739.71116
A20: Tuloslaskelma | D20: 1000 | E20: euro/as | G20: 1000 | H20: euro/as | I20: muut.% | J20: 1000 | K20: euro/as | L20: muut.% | N20: 2016 - 2017 | O20: 2017 - 2018
N21: €/as | O21: €/as
D22: =VLOOKUP($A$4,Luvut!$B$3:$AZ$298,14) -> 0
D23: =VLOOKUP($A$4,Luvut!$B$3:$EL$298,134) -> 1508183
A24: Toimintatuotot, sis. valmistus omaan käyt. | D24: =VLOOKUP($A$4,Luvut!$B$3:$AV$298,15) -> 23903762 | E24: =D24*1000/$D$6 -> 4366.713706 | G24: =VLOOKUP($A$4,Luvut!$B$3:$EJ$298,61) -> 24592758 | H24: =G24*1000/$G$6 -> 4484.749822 | I24: =((G24/D24)-1)*100 -> 2.882374749 | J24: =VLOOKUP($A$4,Luvut!$B$3:$EJ$298,107) -> 25941171 | K24: =J24*1000/$J$6 -> 4726.777791 | L24: =((J24/G24)-1)*100 -> 5.482967791 | N24: =((H24/E24)-1)*100 -> 2.703088036 | O24: =((K24/H24)-1)*100 -> 5.396688304
A25: Toimintakulut | D25: =VLOOKUP($A$4,Luvut!$B$3:$AV$298,16) -> 50418429 | E25: =D25*1000/$D$6 -> 9210.384749 | G25: =VLOOKUP($A$4,Luvut!$B$3:$EJ$298,62) -> 50642020 | H25: =G25*1000/$G$6 -> 9235.108571 | I25: 0.4434707793 | J25: =VLOOKUP($A$4,Luvut!$B$3:$EJ$298,108) -> 52925761 | K25: =J25*1000/$J$6 -> 9643.678448 | L25: 4.509577225 | N25: =((H25/E25)-1)*100 -> 0.268434192 | O25: =((K25/H25)-1)*100 -> 4.424093919
A26: Osuus osakkuusyhteisöjen voitosta/tappiosta | D26: =VLOOKUP($A$4,Luvut!$B$3:$AZ$298,17) -> 68081 | E26: 12.43696435 | G26: =VLOOKUP($A$4,Luvut!$B$3:$EJ$298,63) -> 81899 | H26: 14.93514984 | J26: =VLOOKUP($A$4,Luvut!$B$3:$EJ$298,109) -> 66298 | K26: =J26*1000/$J$6 -> 12.0802532
A27: Toimintakate | D27: =VLOOKUP($A$4,Luvut!$B$3:$AV$298,18) -> -26446586 | E27: -4831.234078 | G27: =VLOOKUP($A$4,Luvut!$B$3:$EJ$298,64) -> -25967363 | H27: -4735.423599 | I27: -1.81204107 | J27: =VLOOKUP($A$4,Luvut!$B$3:$EJ$298,110) -> -26918292 | K27: =J27*1000/$J$6 -> -4904.820403 | L27: 3.662016047 | N27: =((H27/E27)-1)*100 -> -1.983147117 | O27: =((K27/H27)-1)*100 -> 3.577226002
A29: Verotulot | D29: =VLOOKUP($A$4,Luvut!$B$3:$AV$298,19) -> 21942053 | E29: 4008.350802 | G29: =VLOOKUP($A$4,Luvut!$B$3:$EJ$298,65) -> 22391744 | H29: 4083.371614 | I29: 2.049448153 | J29: =VLOOKUP($A$4,Luvut!$B$3:$EJ$298,111) -> 22270468 | K29: =J29*1000/$J$6 -> 4057.933759 | L29: -0.5416103364 | N29: =((H29/E29)-1)*100 -> 1.871612929 | O29: =((K29/H29)-1)*100 -> -0.6229620375
A30: Valtionosuudet, | D30: =VLOOKUP($A$4,Luvut!$B$3:$AV$298,20) -> 10050212 | E30: 1835.961992 | G30: =VLOOKUP($A$4,Luvut!$B$3:$EJ$298,66) -> 9701332 | H30: 1769.140613 | I30: -3.471369559 | J30: =VLOOKUP($A$4,Luvut!$B$3:$EJ$298,112) -> 9617527 | K30: =J30*1000/$J$6 -> 1752.423321 | L30: -0.8638504486 | N30: =((H30/E30)-1)*100 -> -3.639583998 | O30: =((K30/H30)-1)*100 -> -0.9449385743
A32: Verorahoitus | D32: =SUM(D29:D30) -> 31992265 | E32: 5844.312794 | G32: =SUM(G29:G30) -> 32093076 | H32: 5852.512227 | I32: 0.3151105431 | J32: =SUM(J29:J30) -> 31887995 | K32: =J32*1000/$J$6 -> 5810.35708 | L32: -0.639019457 | N32: =((H32/E32)-1)*100 -> 0.1402976412 | O32: =((K32/H32)-1)*100 -> -0.7202914826
A33: Käyttökate | D33: =D32+D27 -> 5545679 | E33: 1013.078715 | G33: =G27+G32 -> 6125713 | H33: 1117.088628 | J33: =J27+J32 -> 4969703 | K33: =J33*1000/$J$6 -> 905.5366764
A35: Korkotuotot/-menot, netto | D35: =VLOOKUP($A$4,Luvut!$B$3:$AV$298,23) -> -384607 | E35: -70.2595959 | G35: =VLOOKUP($A$4,Luvut!$B$3:$EJ$298,69) -> -371567 | H35: -67.7591768 | J35: =VLOOKUP($A$4,Luvut!$B$3:$EJ$298,115) -> -334759 | K35: =J35*1000/$J$6 -> -60.99691516
A36: Muut rahoituskulut/-tuotot, netto | D36: =VLOOKUP($A$4,Luvut!$B$3:$AV$298,24) -> 116459 | E36: 21.27460571 | G36: =VLOOKUP($A$4,Luvut!$B$3:$EJ$298,70) -> 156115 | H36: 28.46922328 | J36: =VLOOKUP($A$4,Luvut!$B$3:$EJ$298,116) -> 102912 | K36: =J36*1000/$J$6 -> 18.7517424
A37: Vuosikate | D37: =VLOOKUP($A$4,Luvut!$B$3:$AV$298,25) -> 5294661 | E37: 967.2230154 | G37: =VLOOKUP($A$4,Luvut!$B$3:$EJ$298,71) -> 5910261 | H37: 1077.798674 | J37: =VLOOKUP($A$4,Luvut!$B$3:$EJ$298,117) -> 4737856 | K37: =J37*1000/$J$6 -> 863.2915037
A39: Suunnitelman mukaiset poistot ja arvonalen. | D39: =VLOOKUP($A$4,Luvut!$B$3:$AV$298,26) -> 3936462 | E39: 719.108673 | G39: =VLOOKUP($A$4,Luvut!$B$3:$EJ$298,72) -> 4145979 | H39: 756.0631704 | I39: 5.322469771 | J39: =VLOOKUP($A$4,Luvut!$B$3:$EJ$298,118) -> 4281238 | K39: =J39*1000/$J$6 -> 780.0904862 | L39: 3.262414016
A40: Satunnaiset erät | D40: =VLOOKUP($A$4,Luvut!$B$3:$AV$298,27) -> 322374 | E40: 58.89093794 | G40: =VLOOKUP($A$4,Luvut!$B$3:$EJ$298,73) -> 94051 | H40: 17.15119571 | J40: =VLOOKUP($A$4,Luvut!$B$3:$EJ$298,119) -> -9816 | K40: =J40*1000/$J$6 -> -1.788587369
A42: Tilikauden tulos | D42: =VLOOKUP($A$4,Luvut!$B$3:$AV$298,29) -> 1680573 | E42: 307.0052803 | G42: =VLOOKUP($A$4,Luvut!$B$3:$EJ$298,75) -> 1848434 | H42: 337.0815121 | J42: =VLOOKUP($A$4,Luvut!$B$3:$EJ$298,121) -> 446802 | K42: =J42*1000/$J$6 -> 81.4124301
A44: Tilinpäätössiirrot | D44: =VLOOKUP($A$4,Luvut!$B$3:$AV$298,31) -> -15533 | E44: =D44*1000/$D$6 -> -2.837551847 | G44: =VLOOKUP($A$4,Luvut!$B$3:$EJ$298,77) -> -9836 | H44: -1.793698749 | J44: =VLOOKUP($A$4,Luvut!$B$3:$EJ$298,123) -> 17985 | K44: =J44*1000/$J$6 -> 3.277072518
A45: Tilikauden verot | D45: =VLOOKUP($A$4,Luvut!$B$3:$EJ$298,32) -> -68562 | E45: -12.52483292 | G45: =VLOOKUP($A$4,Luvut!$B$3:$EJ$298,78) -> -78795 | H45: -14.36910257 | J45: =VLOOKUP($A$4,Luvut!$B$3:$EJ$298,124) -> -84766 | K45: =J45*1000/$J$6 -> -15.44533384
A46: Laskennalliset verot | D46: =VLOOKUP($A$4,Luvut!$B$3:$EJ$298,33) -> -43947 | E46: -8.028191013 | G46: =VLOOKUP($A$4,Luvut!$B$3:$EJ$298,79) -> -48094 | H46: -8.770450144 | J46: =VLOOKUP($A$4,Luvut!$B$3:$EJ$298,125) -> -64631 | K46: =J46*1000/$J$6 -> -11.77650675
A47: Vähemmistöosuudet | D47: =VLOOKUP($A$4,Luvut!$B$3:$AV$298,30) -> -32889 | E47: =D47*1000/$D$6 -> -6.008127386 | G47: =VLOOKUP($A$4,Luvut!$B$3:$EJ$298,76) -> -39026 | H47: =G47*1000/$G$6 -> -7.116804328 | J47: =VLOOKUP($A$4,Luvut!$B$3:$EJ$298,122) -> -26068 | K47: -4.749887484
A48: Tilikauden yli-/alijäämä | D48: =VLOOKUP($A$4,Luvut!$B$3:$AV$298,34) -> 1519612 | E48: 277.6010968 | G48: =VLOOKUP($A$4,Luvut!$B$3:$EJ$298,80) -> 1672683 | H48: 305.0314563 | J48: =VLOOKUP($A$4,Luvut!$B$3:$EJ$298,126) -> 289322 | K48: =J48*1000/$J$6 -> 52.71777454
A49: Kumulatiivinen yli-/alijäämä | D49: =VLOOKUP($A$4,Luvut!$B$3:$AW$298,35) -> 10807561 | E49: 1974.313698 | G49: =VLOOKUP($A$4,Luvut!$B$3:$EJ$298,81) -> 12313216 | H49: 2245.445316 | J49: =VLOOKUP($A$4,Luvut!$B$3:$EJ$298,127) -> 12554784 | K49: =J49*1000/$J$6 -> 2287.625111
A51: Rahoituslaskelma | D51: 1000 | E51: euro/as | G51: 1000 | H51: euro/as | J51: 1000 | K51: euro/as
A53: Toiminnan rahavirta | D53: =VLOOKUP($A$4,Luvut!$B$3:$AV$298,36) -> 4883308 | E53: 892.0774887 | G53: =VLOOKUP($A$4,Luvut!$B$3:$EJ$298,82) -> 5404397 | H53: =G53*1000/$G$6 -> 985.5490175 | J53: =VLOOKUP($A$4,Luvut!$B$3:$EJ$298,128) -> 4083856 | K53: =J53*1000/$J$6 -> 744.1252303
A54: Investoinnit, netto | D54: =D55+D56+D57 -> -5640611 | E54: -1030.420792 | G54: =G55+G56+G57 -> -5826620 | H54: -1062.545852 | I54: 3.297674667 | J54: =J55+J56+J57 -> -6240667 | K54: =J54*1000/$J$6 -> -1137.120841 | L54: 7.106126708
A55: - Investointimenot | D55: =VLOOKUP($A$4,Luvut!$B$3:$EV$298,146) -> -7001117 | E55: -1278.956574 | G55: =VLOOKUP($A$4,Luvut!$B$3:$EV$298,149) -> -7342003 | H55: -1338.891988 | I55: 4.869023043 | J55: =VLOOKUP($A$4,Luvut!$B$3:$FQ$298,152) -> -7992634 | K55: -1456.349248 | L55: 8.86176429
A56: + Rahoitusosuudet investointimenoihin | D56: =VLOOKUP($A$4,Luvut!$B$3:$EV$298,147) -> 173789 | E56: 31.74758887 | G56: =VLOOKUP($A$4,Luvut!$B$3:$EV$298,150) -> 215662 | H56: 39.32824924 | I56: =((G56/D56)-1)*100 -> 24.09416016 | J56: =VLOOKUP($A$4,Luvut!$B$3:$FQ$298,153) -> 167702 | K56: 30.55722077 | L56: -22.23850284
A57: + Investointihyödykkeiden luovutustulot | D57: =VLOOKUP($A$4,Luvut!$B$3:$EV$298,148) -> 1186717 | E57: 216.7881938 | G57: =VLOOKUP($A$4,Luvut!$B$3:$EV$298,151) -> 1299721 | H57: 237.0178865 | I57: =((G57/D57)-1)*100 -> 9.522405089 | J57: =VLOOKUP($A$4,Luvut!$B$3:$FQ$298,154) -> 1584265 | K57: 288.6711867 | L57: 21.89269851
A58: Saamisten muutos | D58: =VLOOKUP($A$4,Luvut!$B$3:$AV$298,38) -> -144906 | E58: -26.47127328 | G58: =VLOOKUP($A$4,Luvut!$B$3:$EJ$298,84) -> -72292 | H58: -13.18321167 | J58: =VLOOKUP($A$4,Luvut!$B$3:$EJ$298,130) -> -120148 | K58: -21.89233856
A59: Pitkäaikaisten lainojen vähennys | D59: =VLOOKUP($A$4,Luvut!$B$3:$AV$298,39) -> -3144680 | E59: -574.466783 | G59: =VLOOKUP($A$4,Luvut!$B$3:$EJ$298,85) -> -2923408 | H59: -533.1144034 | J59: =VLOOKUP($A$4,Luvut!$B$3:$EJ$298,131) -> -2961293 | K59: -539.5814239
A60: Pitkäaikaisten lainojen lisäys | D60: =VLOOKUP($A$4,Luvut!$B$3:$FE$298,155) -> 4149527 | E60: 758.0311595 | G60: =VLOOKUP($A$4,Luvut!$B$3:$FE$298,157) -> 3784026 | H60: 690.0572083 | J60: =VLOOKUP($A$4,Luvut!$B$3:$FE$298,159) -> 4325546 | K60: 788.1639101
A61: ± Lyhytaikaisten lainojen muutos | D61: =VLOOKUP($A$4,Luvut!$B$3:$FE$298,156) -> 49387 | E61: 9.021964401 | G61: =VLOOKUP($A$4,Luvut!$B$3:$FE$298,158) -> 43211 | H61: 7.879983391 | J61: =VLOOKUP($A$4,Luvut!$B$3:$FE$298,160) -> 64935 | K61: 11.83189903
A62: Toiminnan ja investointien rahavirta | D62: =VLOOKUP($A$4,Luvut!$B$3:$AV$298,40) -> -755736 | E62: -138.0570452 | G62: =VLOOKUP($A$4,Luvut!$B$3:$EJ$298,86) -> -422223 | H62: -76.99683477 | J62: =VLOOKUP($A$4,Luvut!$B$3:$EJ$298,132) -> -2156811 | K62: -392.9956105
A64: Takaukset muiden puolesta (jäljellä oleva po) | J64: =VLOOKUP($A$4,Luvut!$B$3:$EJ$298,134) -> 1508183 | K64: =J64*1000/$J$6 -> 274.8081769
N65: 2015 - 2016 | O65: 2016 - 2017
A66: Kiinteistövero | N66: €/as | O66: €/as
A67: Lainakanta, | D67: =VLOOKUP($A$4,Luvut!$B$3:$FI$298,161) -> 33722590 | E67: 6160.406716 | G67: =VLOOKUP($A$4,Luvut!$B$3:$FM$298,165) -> 34624959 | H67: 6314.227901 | I67: =((G67/D67)-1)*100 -> 2.67585912 | J67: =VLOOKUP($A$4,Luvut!$B$3:$FQ$298,169) -> 35989201 | K67: =J67*1000/$J$6 -> 6557.643678 | L67: =((J67/G67)-1)*100 -> 3.940053763 | N67: =((H67/E67)-1)*100 -> 2.496932288 | O67: =((K67/H67)-1)*100 -> 3.855036298
A68: josta pitkäaikainen laina | D68: =VLOOKUP($A$4,Luvut!$B$3:$FI$298,162) -> 28582527 | E68: 5221.425499 | G68: =VLOOKUP($A$4,Luvut!$B$3:$FM$298,166) -> 29283914 | H68: =G68*1000/$G$6 -> 5340.231791 | J68: =VLOOKUP($A$4,Luvut!$B$3:$FQ$298,170) -> 30314205 | K68: =J68*1000/$J$6 -> 5523.594558 | N68: 2.275361255 | O68: 3.43361063
A69: josta lyhytaikainen laina | D69: =VLOOKUP($A$4,Luvut!$B$3:$FI$298,163) -> 5140063 | E69: 938.9812179 | G69: =VLOOKUP($A$4,Luvut!$B$3:$FM$298,167) -> 5341045 | H69: 973.9961095 | J69: =VLOOKUP($A$4,Luvut!$B$3:$FQ$298,171) -> 5674996 | K69: 1034.049121 | N69: 3.729030037 | O69: 6.16563151
A70: Lainasaamiset | D70: =VLOOKUP($A$4,Luvut!$B$3:$FI$298,164) -> 1163381 | E70: 212.5251983 | G70: =VLOOKUP($A$4,Luvut!$B$3:$FM$298,168) -> 1196148 | H70: 218.1302532 | J70: =VLOOKUP($A$4,Luvut!$B$3:$FQ$298,172) -> 1170334 | K70: 213.2482284 | N70: 2.637360186 | O70: -2.238123652
A72: Tuloveroprosentti | D72: =VLOOKUP($A$4,Luvut!$B$3:$AV$298,45) -> 19.89 | G72: =VLOOKUP($A$4,Luvut!$B$3:$EJ$298,91) -> 19.92 | J72: =VLOOKUP($A$4,Luvut!$B$3:$EJ$298,137) -> 19.87
A74: * Ei tietoa kertalyhenteisistä lainoista
A75: Sijoitus vuosikatteen (euro/as) mukaan | D75: =VLOOKUP($A$4,Luvut!$B$3:$AV$298,47) -> 0 | G75: =VLOOKUP($A$4,Luvut!$B$3:$EJ$298,93) -> 0 | J75: =VLOOKUP($A$4,Luvut!$B$3:$EJ$298,139) -> -
A76: Lähde: Tilastokeskus
A78: Rahoitusvarallisuus = ((saamiset + rahoitusarvopaperit + rahat ja pankkisaamiset) - (vieras pääoma - saadut ennakot))
A79: Kunnat vuoden 2015 kuntajaolla

Sheet Luvut
C1: 2016 | D1: hakee muualta | E1: 92 | F1: 93 | G1: 94 | H1: vanha | I1: 96 | J1: 97 | K1: 98 | L1: 99 | M1: 100 | N1: 101 | O1: 102 | P1: 103 | Q1: 104 | S1: 105 | T1: 106 | U1: 107 | V1: 108 | W1: summana | X1: 110 | Y1: 111 | Z1: 112 | AA1: 113 | AB1: 114 | AC1: 115 | AD1: 116 | AF1: 117 | AG1: 118 | AH1: 119 | AI1: 120 | AJ1: 121 | AK1: 122 | AL1: kaavasta | AM1: 124 | AN1: 125 | AO1: 126 | AP1: 127 | AQ1: 128 | AR1: 129 | AS1: 130 | AT1: 131 | AU1: kaavasta | AV1: 133 | AW1: 2017 | AX1: hakee muualta | AY1: 92 | AZ1: 93 | BA1: 94 | BB1: vanha | BC1: 96 | BD1: 97 | BE1: 98 | BF1: 99 | BG1: 100 | BH1: 101 | BI1: 102 | BJ1: 103 | BK1: 104 | BM1: 105 | BN1: 106 | BO1: 107 | BP1: 108 | BQ1: summana | BR1: 110 | BS1: 111 | BT1: 112 | BU1: 113 | BV1: 114 | BW1: 115 | BX1: 116 | BY1: 117 | CA1: 118 | CB1: 119 | CC1: 120 | CD1: 121 | CE1: 122 | CF1: kaavasta | CG1: 124 | CH1: 125 | CI1: 126 | CJ1: 127 | CK1: 128 | CL1: 129 | CM1: 130 | CN1: 131 | CO1: kaavasta | CP1: 133 | CQ1: 2018 | CR1: hakee muualta | CS1: 92 | CT1: 93 | CU1: 94 | CV1: vanha | CW1: 96 | CX1: 97 | CY1: 98 | CZ1: 99 | DA1: 100 | DB1: 101 | DC1: 102 | DD1: 107 | DE1: 108 | DF1: 109 | DG1: 110 | DH1: 111 | DI1: 112 | DJ1: 113 | DK1: summana | DL1: 115 | DM1: 116 | DN1: 117 | DO1: 118 | DP1: 119 | DQ1: 120 | DR1: 121 | DS1: 122 | DT1: 123 | DU1: 124 | DV1: 125 | DW1: 126 | DX1: 127 | DY1: 128 | DZ1: kaavasta | EA1: 130 | EB1: 131 | EC1: 132 | ED1: 133 | EE1: 134 | EF1: 135 | EG1: 136 | EH1: 137 | EI1: kaavasta | EJ1: 139 | EK1: Erillistiedot | EL1: 141 | EM1: 142 | EN1: 143 | EO1: 144 | EP1: 145 | EQ1: 2016 | ER1: 147 | ES1: 148 | ET1: 2017 | EU1: 150 | EV1: 151 | EW1: 2018 | EX1: 153 | EY1: 154 | EZ1: 2016 | FA1: 156 | FB1: 2017 | FC1: 158 | FD1: 2018 | FE1: 160 | FF1: 2016 | FG1: 162 | FH1: 163 | FI1: 164 | FJ1: 2017 | FK1: 166 | FL1: 167 | FM1: 168 | FN1: 2018 | FO1: 170 | FP1: 171 | FQ1: 172 | FR1: 2017
A2: Kunta nro | B2: Kunta | C2: Asukasluku | D2: Lainat e/asukas | E2: Lainanhoitokate | F2: Suhteellinen velkaantuneisuus-% | G2: Rahoitusvarallisuus, e/as | H2: Vuosikate | I2: Suunnitelman mukaiset poistot | J2: Tilikauden tulos | K2: Omavaraisuusaste, % | L2: Rahavarat e/as | M2: Kassan riittävyys, pv | N2: Kassasta maksut, €/as | O2: Henkilöstökulut | P2: Toimintatuotot | Q2: Toimintakulut | R2: Osuus osakkuusyhteisojen voitosta/tappiosta | S2: Toimintakate | T2: Verotulot | U2: Valtionosuudet | V2: Alv-takaisinperintä | W2: Käyttökate | X2: Korkotuotot/-menot, netto | Y2: Muut rahoitustuotot/-menot, netto (sis Osinkotuotot) | Z2: Vuosikate | AA2: Suunnitelman mukaiset poistot ja arvonalet | AB2: Satu. erät, netto | AC2: Satunnaiset kulut | AD2: Tilikauden tulos | AE2: Vähemmistöosuudet | AF2: Tilinpäätössiirrot | AG2: Tilikauden verot | AH2: Lask. Verot | AI2: Tilikauden yli- tai alijäämä | AJ2: Kumulat yli/alij | AK2: Tulorah (toiminnan rahavirta) | AL2: Investoinnit, netto | AM2: Saamisten muutos (ent Pitkäaikaisten saamisten muutokset, netto) | AN2: Pitkäaikaisten lainojen vähennys | AO2: Toim ja inv rahavirta | AP2: Verotulot | AQ2: Kunnallisvero | AR2: Osuus yhteisöveron tuotosta | AS2: Kiinteistövero | AT2: Tuloveroprosentti 2015 | AU2: Yhden veroprosentin tuotto 2015 | AV2: Sijoitus vuosikatteen mukaan | AW2: Asukasluku | AX2: Lainat e/asukas | AY2: Lainanhoitokate | AZ2: Suhteellinen velkaantuneisuus-% | BA2: Rahoitusvarallisuus, e/as | BB2: Vuosikate | BC2: Suunnitelman mukaiset poistot | BD2: Tilikauden tulos | BE2: Omavaraisuusaste, % | BF2: Rahavarat e/as | BG2: Kassan riittävyys, pv | BH2: Kassasta maksut, €/as | BI2: Henkilöstökulut | BJ2: Toimintatuotot | BK2: Toimintakulut | BL2: Osuus osakkuusyhteisojen voitosta/tappiosta | BM2: Toimintakate | BN2: Verotulot | BO2: Valtionosuudet | BP2: Alv-takaisinperintä | BQ2: Käyttökate | BR2: Korkotuotot/-menot, netto | BS2: Muut rahoitustuotot/-menot, netto (sis Osinkotuotot) | BT2: Vuosikate | BU2: Suunnitelman mukaiset poistot ja arvonalet | BV2: Satu. erät | BX2: Tilikauden tulos | BY2: Vähemmistöosuudet | BZ2: Tilinpäätössiirrot | CA2: Tilikauden verot | CB2: Lask. verot | CC2: Tilikauden yli- tai alijäämä | CD2: Kumulat yli/alij | CE2: Toiminnan rahavirta | CF2: Investoinnit, netto | CG2: Saamisten muutos | CH2: Pitkäaikaisten lainojen vähennys | CI2: Toim ja inv rahavirta | CJ2: Verotulot | CK2: Kunnallisvero | CL2: Osuus yhteisöveron tuotosta | CM2: Kiinteistövero | CN2: Tuloveroprosentti 2016 | CO2: Yhden veroprosentin tuotto 2016 | CP2: Sijoitus vuosikatteen mukaan | CQ2: Asukasluku | CR2: Lainat e/asukas | CS2: Lainanhoitokate | CT2: Suhteellinen velkaantuneisuus-% | CU2: Rahoitusvarallisuus, e/as | CV2: Vuosikate | CW2: Suunnitelman mukaiset poistot | CX2: Tilikauden tulos | CY2: Omavaraisuusaste, % | CZ2: Rahavarat e/as | DA2: Kassan riittävyys, pv | DB2: Kassasta maksut, €/as | DC2: Henkilöstökulut | DD2: Toimintatuotot | DE2: Toimintakulut | DF2: Osuus osakkuusyhteisojen voitosta/tappiosta | DG2: Toimintakate | DH2: Verotulot | DI2: Valtionosuudet | DJ2: Alv-takaisinperintä | DK2: Käyttökate | DL2: Korkotuotot/-menot, netto | DM2: Muut rahoitustuotot/-menot, netto (sis Osinkotuotot) | DN2: Vuosikate | DO2: Suunnitelman mukaiset poistot ja arvonalet | DP2: Satu. erät | DQ2: Satu. kulut | DR2: Tilikauden tulos | DS2: Vähemmistöosuudet | DT2: Tilinpäätössiirrot | DU2: Tilikauden verot | DV2: Lask. verot | DW2: Tilikauden yli- tai alijäämä | DX2: Kumulat yli/alij | DY2: Toiminnan rahavirta | DZ2: Investoinnit, netto | EA2: Saamisten muutos | EB2: Pitkäaikaisten lainojen vähennys | EC2: Toim ja inv rahavirta | ED2: Verotulot | EE2: Takaukset muiden puolesta (jäljellä oleva pääoma) | EF2: Osuus yhteisöveron tuotosta | EG2: Kiinteistövero | EH2: Tuloveroprosentti 2017 | EI2: Yhden veroprosentin tuotto 2006 | EJ2: Sijoitus vuosikatteen mukaan | EK2: Palvelujen ostot 2015 | EL2: Palvelujen ostot 2016 | EM2: Palvelujen ostot 2017 | EN2: Harkvar2015 | EO2: Harkvar2016 | EP2: Harkvar2017 | EQ2: - Investointimenot | ER2: + Rahoitusos. investointimenoihin | ES2: + Investointihyödykk. luovutustulot | ET2: - Investointimenot | EU2: + Rahoitusosuudet investointimenoihin | EV2: + Investointihyödykkeiden luovutustulot | EW2: - Investointimenot | EX2: + Rahoitusosuudet investointimenoihin | EY2: + Investointihyödykkeiden luovutustulot | EZ2: Pitkäaikaisten lainojen lisäys | FA2: ± Lyhytaikaisten lainojen muutos | FB2: Pitkäaikaisten lainojen lisäys | FC2: ± Lyhytaikaisten lainojen muutos | FD2: Pitkäaikaisten lainojen lisäys | FE2: ± Lyhytaikaisten lainojen muutos | FF2: Lainakanta | FG2: josta pitkäaik | FH2: josta lyhytaik | FI2: Lainasaamiset | FJ2: Lainakanta | FK2: josta pitkäaik | FL2: josta lyhytaik | FM2: Lainasaamiset | FN2: Lainakanta | FO2: josta pitkäaik | FP2: josta lyhytaik | FQ2: Lainasaamiset | FR2: Takaukset muiden puolesta (jäljellä oleva pääoma)
A3: 20 | B3: Akaa | C3: 16923 | E3: 1.092157112 | F3: 60.47579876 | G3: -4432.724694 | H3: 0 | I3: 0 | J3: 0 | K3: 21.10885172 | L3: 563.3752881 | M3: 21.96954488 | N3: 9359.865272 | P3: 57740 | Q3: 143891 | R3: 22 | S3: -86129 | T3: 60148 | U3: 34067 | X3: -317 | Y3: 132 | Z3: 7901 | AA3: 7116 | AB3: 98 | AC3: 0 | AD3: 883 | AE3: -84 | AF3: 9 | AG3: -73 | AH3: -46 | AI3: 689 | AJ3: -7699 | AK3: 7815 | AM3: 1105 | AN3: -7176 | AO3: 2261 | AT3: 21.25 | AV3: 243 | AW3: 16769 | AY3: 1.183814721 | AZ3: 58.25771205 | BA3: -4381.477727 | BE3: 22.40466508 | BF3: 382.8493053 | BG3: 16.35674498 | BH3: 8543.264357 | BJ3: 58889 | BK3: 142923 | BL3: 96 | BM3: -83938 | BN3: 59399 | BO3: 32904 | BR3: -261 | BS3: 144 | BT3: 8248 | BU3: 7001 | BV3: 0 | BX3: 1247 | BY3: -71 | BZ3: 1 | CA3: -84 | CB3: -57 | CC3: 1036 | CD3: -6683 | CE3: 7470 | CG3: -839 | CH3: -6867 | CI3: 1442 | CN3: 21.25 | CP3: 255 | CQ3: 16611 | CS3: 0.6902021336 | CT3: 61.74350181 | CU3: -4767.322858 | CY3: 18.92003298 | CZ3: 387.0326892 | DA3: 14.02369569 | DB3: 10073.44531 | DD3: 61885 | DE3: 150217 | DF3: 9 | DG3: -88323 | DH3: 59625 | DI3: 32456 | DL3: -67 | DM3: 764 | DN3: 4455 | DO3: 7026 | DP3: 0 | DR3: -2571 | DS3: -87 | DT3: 2 | DU3: -94 | DV3: -35 | DW3: -2785 | DX3: -9836 | DY3: 4350 | EA3: -1160 | EB3: -6662 | EC3: -4561 | EE3: 6892 | EH3: 21.75 | EJ3: 233 | EQ3: -6421 | ER3: 394 | ES3: 473 | ET3: -7344 | EU3: 97 | EV3: 1219 | EW3: -9405 | EX3: 130 | EY3: 364 | EZ3: 8646 | FA3: -1099 | FB3: 1321 | FC3: 983 | FD3: 12126 | FE3: -139 | FF3: 70428 | FG3: 54402 | FH3: 16026 | FI3: 7390 | FJ3: 65864 | FK3: 49356 | FL3: 16508 | FM3: 7271 | FN3: 71190 | FO3: 54540 | FP3: 16650 | FQ3: 7687 | FR3: 5140
A4: 5 | B4: Alajärvi | C4: 9899 | E4: 2.029387486 | F4: 41.8247322 | G4: -3915.547025 | K4: 34.87587475 | L4: 926.3561976 | M4: 23.77014253 | N4: 14224.56814 | P4: 66345 | Q4: 123039 | R4: 77 | S4: -56617 | T4: 29436 | U4: 39395 | X4: -477 | Y4: 57 | Z4: 11794 | AA4: 4798 | AB4: 0 | AC4: 0 | AD4: 6996 | AE4: -65 | AF4: 83 | AG4: -68 | AH4: -9 | AI4: 6937 | AJ4: 5760 | AK4: 11859 | AM4: -2632 | AN4: -5559 | AO4: 2530 | AT4: 22 | AV4: 23 | AW4: 9831 | AY4: 1.752173109 | AZ4: 48.64949207 | BA4: -4045.06154 | BE4: 35.9707684 | BF4: 959.1089411 | BG4: 32.13761451 | BH4: 10892.99156 | BJ4: 54164 | BK4: 112513 | BL4: 114 | BM4: -58235 | BN4: 29659 | BO4: 37946 | BR4: -346 | BS4: 83 | BT4: 9107 | BU4: 5188 | BV4: 0 | BX4: 3919 | BY4: -102 | BZ4: 9 | CA4: -87 | CB4: -16 | CC4: 3723 | CD4: 9052 | CE4: 8653 | CG4: -1173 | CH4: -5040 | CI4: -817 | CN4: 21.75 | CP4: 89 | CQ4: 9700 | CS4: 0.9327116475 | CT4: 52.87866095 | CU4: -4758.041237 | CY4: 33.05734858 | CZ4: 914.6391753 | DA4: 24.19895531 | DB4: 13795.7732 | DD4: 56110 | DE4: 116873 | DF4: 190 | DG4: -60573 | DH4: 28893 | DI4: 36755 | DL4: -343 | DM4: 4 | DN4: 4736 | DO4: 5876 | DP4: 0 | DR4: -1140 | DS4: -5 | DT4: 25 | DU4: -50 | DV4: 0 | DW4: -1170 | DX4: 7456 | DY4: 4436 | EA4: 892 | EB4: -5104 | EC4: -6142 | EE4: 808 | EH4: 21.75 | EJ4: 148 | EQ4: -11502 | ER4: 134 | ES4: 2039 | ET4: -10966 | EU4: 647 | EV4: 849 | EW4: -11309 | EX4: 579 | EY4: 152 | EZ4: 4181 | FA4: -1500 | FB4: 6607 | FC4: 1439 | FD4: 7075 | FE4: 2000 | FF4: 38620 | FG4: 32085 | FH4: 6535 | FI4: 28 | FJ4: 41635 | FK4: 33495 | FL4: 8140 | FM4: 17 | FN4: 45721 | FO4: 35494 | FP4: 10227 | FQ4: 115 | FR4: 1006
A5: 9 | B5: Alavieska | C5: 2639 | E5: 2.067307692 | F5: 41.58324942 | G5: -3485.032209 | K5: 36.6368089 | L5: 749.5263357 | M5: 21.42217079 | N5: 12770.74649 | P5: 16234 | Q5: 32053 | R5: 0 | S5: -15819 | T5: 7683 | U5: 9849 | X5: -50 | Y5: 6 | Z5: 1669 | AA5: 1054 | AB5: 681 | AC5: 0 | AD5: 1296 | AE5: -1 | AF5: 0 | AG5: 1 | AH5: -1 | AI5: 1295 | AJ5: 329 | AK5: 2383 | AM5: -1245 | AN5: -781 | AO5: 1858 | AT5: 21.5 | AV5: 171 | AW5: 2610 | AY5: 1.54465593 | AZ5: 42.48554 | BA5: -3465.900383 | BE5: 37.48354591 | BF5: 864.7509579 | BG5: 27.28373187 | BH5: 11568.58238 | BJ5: 14579 | BK5: 30594 | BL5: 1 | BM5: -16014 | BN5: 7282 | BO5: 9778 | BR5: -45 | BS5: 9 | BT5: 1010 | BU5: 1059 | BV5: 0 | BX5: -49 | BY5: 0 | BZ5: 0 | CA5: -1 | CB5: -1 | CC5: -51 | CD5: 300 | CE5: 1037 | CG5: 727 | CH5: -638 | CI5: 142 | CN5: 21.5 | CP5: 276 | CQ5: 2573 | CS5: 2.100740741 | CT5: 40.65316706 | CU5: -3263.894287 | CY5: 38.78576603 | CZ5: 1184.609405 | DA5: 33.89865627 | DB5: 12755.14963 | DD5: 15045 | DE5: 30994 | DF5: 1 | DG5: -15948 | DH5: 7525 | DI5: 9826 | DL5: -29 | DM5: 15 | DN5: 1389 | DO5: 979 | DP5: 72 | DR5: 482 | DS5: -1 | DT5: -1 | DU5: -1 | DV5: 1 | DW5: 480 | DX5: 926 | DY5: 1456 | EA5: 415 | EB5: -646 | EC5: 554 | EE5: 1543 | EH5: 21.5 | EJ5: 127 | EQ5: -815 | ER5: 9 | ES5: 281 | ET5: -1100 | EU5: 201 | EV5: 4 | EW5: -1137 | EX5: 234 | EY5: 1 | EZ5: 93 | FA5: -3 | FB5: 118 | FC5: -2000 | FD5: 95 | FE5: 1499 | FF5: 10838 | FG5: 5187 | FH5: 5651 | FI5: 110 | FJ5: 8306 | FK5: 4767 | FL5: 3539 | FM5: 102 | FN5: 9237 | FO5: 4309 | FP5: 4928 | FQ5: 94 | FR5: 1172
A6: 10 | B6: Alavus | C6: 11907 | E6: 0.7740948496 | F6: 60.31173758 | G6: -5001.175779 | K6: 35.39784783 | L6: 1332.913412 | M6: 37.17171879 | N6: 13088.26741 | P6: 64883 | Q6: 130531 | R6: 541 | S6: -65107 | T6: 34376 | U6: 38870 | X6: -449 | Y6: 949 | Z6: 8639 | AA6: 6022 | AB6: 0 | AC6: 0 | AD6: 2617 | AE6: -34 | AF6: -12 | AG6: -6 | AH6: -50 | AI6: 2515 | AJ6: 12545 | AK6: 7964 | AM6: 489 | AN6: -11297 | AO6: -2302 | AT6: 21.25 | AV6: 133 | AW6: 11713 | AY6: 1.447011952 | AZ6: 58.44925189 | BA6: -5011.696406 | BE6: 38.53182351 | BF6: 1515.410228 | BG6: 47.79390068 | BH6: 11573.12388 | BJ6: 70759 | BK6: 136082 | BL6: 1545 | BM6: -63778 | BN6: 35110 | BO6: 38629 | BR6: -579 | BS6: 873 | BT6: 10255 | BU6: 6434 | BV6: 0 | BX6: 3821 | BY6: -31 | BZ6: -4 | CA6: -18 | CB6: -30 | CC6: 3738 | CD6: 20120 | CE6: 8996 | CG6: 1315 | CH6: -6889 | CI6: 1581 | CN6: 21.25 | CP6: 101 | CQ6: 11544 | CS6: 0.3384476904 | CT6: 59.98275778 | CU6: -5336.538462 | CY6: 38.20510675 | CZ6: 1512.647263 | DA6: 37.07970214 | DB6: 14889.98614 | DD6: 71741 | DE6: 137803 | DF6: 1547 | DG6: -64515 | DH6: 33798 | DI6: 38294 | DL6: -519 | DM6: 610 | DN6: 7668 | DO6: 6649 | DP6: 0 | DR6: 1019 | DS6: -4 | DT6: 9 | DU6: -17 | DV6: -68 | DW6: 939 | DX6: 20657 | DY6: 6355 | EA6: 1916 | EB6: -23837 | EC6: -2613 | EE6: 1995 | EH6: 21.25 | EJ6: 86 | EQ6: -12793 | ER6: 546 | ES6: 1981 | ET6: -9360 | EU6: 768 | EV6: 1177 | EW6: -9478 | EX6: 139 | EY6: 371 | EZ6: 19669 | FA6: 554 | FB6: 8780 | FC6: -1568 | FD6: 25419 | FE6: -996 | FF6: 69825 | FG6: 59081 | FH6: 10744 | FI6: 2204 | FJ6: 70327 | FK6: 61433 | FL6: 8894 | FM6: 2876 | FN6: 71092 | FO6: 64304 | FP6: 6788 | FQ6: 2698 | FR6: 1190
A7: 16 | B7: Asikkala | C7: 8323 | E7: 2.09071618 | F7: 46.72654992 | G7: -3451.399736 | K7: 43.60687023 | L7: 377.3879611 | M7: 14.3771789 | N7: 9580.920341 | P7: 31656 | Q7: 71447 | R7: 4 | S7: -39787 | T7: 29926 | U7: 17906 | X7: -176 | Y7: -171 | Z7: 7698 | AA7: 4014 | AB7: -6 | AC7: 0 | AD7: 3678 | AE7: 0 | AF7: -1 | AG7: 0 | AH7: -81 | AI7: 3596 | AJ7: 7509 | AK7: 7667 | AM7: -1007 | AN7: -3586 | AO7: 4275 | AT7: 20.75 | AV7: 70 | AW7: 8248 | AY7: 8.879594423 | AZ7: 39.58465564 | BA7: -3093.355965 | BE7: 46.13514111 | BF7: 557.8322017 | BG7: 20.97921273 | BH7: 9705.261882 | BJ7: 42592 | BK7: 82843 | BL7: -3 | BM7: -40254 | BN7: 29700 | BO7: 17513 | BR7: -120 | BS7: 43 | BT7: 6882 | BU7: 4354 | BV7: 64 | BX7: 2592 | BY7: 0 | BZ7: 0 | CA7: -2 | CB7: -43 | CC7: 2547 | CD7: 9751 | CE7: 6503 | CG7: -158 | CH7: -665 | CI7: 3943 | CN7: 20.75 | CP7: 115 | CQ7: 8149 | CS7: 6.135 | CT7: 38.46864598 | CU7: -2786.845012 | CY7: 47.37370902 | CZ7: 941.5879249 | DA7: 31.67863768 | DB7: 10848.93852 | DD7: 43453 | DE7: 84756 | DF7: -6 | DG7: -41309 | DH7: 28838 | DI7: 17538 | DL7: -109 | DM7: -163 | DN7: 4795 | DO7: 4165 | DP7: 263 | DR7: 893 | DS7: 0 | DT7: 0 | DU7: -13 | DV7: -59 | DW7: 821 | DX7: 10527 | DY7: 4897 | EA7: 1261 | EB7: -687 | EC7: 2672 | EE7: 12 | EH7: 20.75 | EJ7: 118 | EQ7: -4015 | ER7: 231 | ES7: 392 | ET7: -3984 | EU7: 196 | EV7: 1228 | EW7: -2610 | EX7: 106 | EY7: 279 | EZ7: 2274 | FA7: -2000 | FB7: 326 | FC7: -3250 | FD7: 82 | FE7: -1150 | FF7: 28449 | FG7: 9771 | FH7: 18678 | FI7: 229 | FJ7: 24863 | FK7: 9426 | FL7: 15437 | FM7: 388 | FN7: 23108 | FO7: 8822 | FP7: 14286 | FQ7: 344 | FR7: 12
A8: 18 | B8: Askola | C8: 5046 | E8: 1.401490066 | F8: 64.73328732 | G8: -4507.530717 | K8: 18.51346832 | L8: 340.8640507 | M8: 14.62891763 | N8: 8504.756243 | P8: 14258 | Q8: 39091 | R8: 0 | S8: -24833 | T8: 19174 | U8: 7136 | X8: -192 | Y8: 216 | Z8: 1501 | AA8: 1892 | AB8: 0 | AC8: 0 | AD8: -391 | AE8: 0 | AF8: 93 | AG8: 0 | AH8: 0 | AI8: -298 | AJ8: -2045 | AK8: 1323 | AM8: -419 | AN8: -1016 | AO8: -961 | AT8: 20.25 | AV8: 275 | AW8: 4990 | AY8: 1.433070866 | AZ8: 71.39762168 | BA8: -5016.032064 | BE8: 16.12000287 | BF8: 511.0220441 | BG8: 25.01747124 | BH8: 7455.711423 | BJ8: 15461 | BK8: 39934 | BL8: -30 | BM8: -24503 | BN8: 18756 | BO8: 7325 | BR8: -172 | BS8: 242 | BT8: 1648 | BU8: 2120 | BV8: 0 | BX8: -472 | BY8: 0 | BZ8: 123 | CA8: -3 | CB8: 0 | CC8: -352 | CD8: -2503 | CE8: 1460 | CG8: -373 | CH8: -1098 | CI8: -2271 | CN8: 20.75 | CP8: 282 | CQ8: 4958 | CS8: 0.5587871287 | CT8: 80.76904728 | CU8: -5369.907221 | CY8: 16.29486142 | CZ8: 1060.911658 | DA8: 40.30355194 | DB8: 9607.906414 | DD8: 14418 | DE8: 41260 | DF8: -2 | DG8: -26844 | DH8: 18547 | DI8: 8957 | DL8: -216 | DM8: 243 | DN8: 687 | DO8: 2089 | DP8: 2228 | DR8: 826 | DS8: 0 | DT8: 178 | DU8: -6 | DV8: 0 | DW8: 998 | DX8: -1633 | DY8: 2718 | EA8: 201 | EB8: -1400 | EC8: -1523 | EE8: 2000 | EH8: 20.75 | EJ8: 265 | EQ8: -2567 | ER8: 2 | ES8: 281 | ET8: -4053 | EU8: 12 | EV8: 310 | EW8: -4701 | EX8: 21 | EY8: 439 | EZ8: 2695 | FA8: -1485 | FB8: 2257 | FC8: 1738 | FD8: 7045 | FE8: -1916 | FF8: 21697 | FG8: 15999 | FH8: 5698 | FI8: 0 | FJ8: 24594 | FK8: 16477 | FL8: 8117 | FM8: 0 | FN8: 28168 | FO8: 21682 | FP8: 6486 | FQ8: 0 | FR8: 2000
A9: 19 | B9: Aura | C9: 3984 | E9: 2.275105485 | F9: 59.63508517 | G9: -4296.435743 | K9: 17.96246649 | L9: 299.6987952 | M9: 13.42689013 | N9: 8147.088353 | P9: 12522 | Q9: 30312 | R9: 0 | S9: -17790 | T9: 14440 | U9: 6032 | X9: -66 | Y9: 12 | Z9: 2628 | AA9: 1259 | AB9: 0 | AC9: 0 | AD9: 1369 | AE9: -49 | AF9: 0 | AG9: 0 | AH9: 0 | AI9: 1320 | AJ9: -543 | AK9: 2607 | AM9: 156 | AN9: -1117 | AO9: 1700 | AT9: 21.75 | AV9: 159 | AW9: 3991 | AY9: 2.955424727 | AZ9: 55.6105709 | BA9: -3685.041343 | BE9: 25.32033859 | BF9: 588.3237284 | BG9: 28.45068552 | BH9: 7547.732398 | BJ9: 12669 | BK9: 30038 | BL9: 1 | BM9: -17368 | BN9: 14873 | BO9: 5984 | BR9: -62 | BS9: 22 | BT9: 3449 | BU9: 1306 | BV9: 0 | BX9: 2143 | BY9: -24 | BZ9: 0 | CA9: 0 | CB9: 0 | CC9: 2119 | CD9: 1556 | CE9: 3453 | CG9: -224 | CH9: -1124 | CI9: 2452 | CN9: 21.75 | CP9: 103 | CQ9: 3984 | CS9: 1.202362205 | CT9: 56.5505855 | CU9: -3912.901606 | CY9: 25.06968042 | CZ9: 261.2951807 | DA9: 10.90787736 | DB9: 8743.473896 | DD9: 12003 | DE9: 31204 | DF9: 1 | DG9: -19200 | DH9: 14314 | DI9: 6390 | DL9: -52 | DM9: 23 | DN9: 1475 | DO9: 1297 | DP9: 0 | DR9: 178 | DS9: -41 | DT9: -81 | DU9: 0 | DV9: -21 | DW9: 35 | DX9: 1642 | DY9: 1562 | EA9: -278 | EB9: -1218 | EC9: -850 | EE9: 1020 | EH9: 21.75 | EJ9: 189 | EQ9: -958 | ER9: 3 | ES9: 48 | ET9: -1111 | EU9: 10 | EV9: 100 | EW9: -2336 | EX9: 16 | EY9: -92 | EZ9: 49 | FA9: -520 | FB9: 197 | FC9: -593 | FD9: 225 | FE9: 464 | FF9: 16296 | FG9: 5511 | FH9: 10785 | FI9: 0 | FJ9: 14775 | FK9: 4567 | FL9: 10208 | FM9: 0 | FN9: 14251 | FO9: 3750 | FP9: 10501 | FQ9: 0 | FR9: 912
A10: 46 | B10: Enonkoski | C10: 1453 | E10: 4.46728972 | F10: 17.25612937 | G10: 807.2952512 | K10: 77.05100504 | L10: 2294.562973 | M10: 63.81614138 | N10: 13123.88162 | P10: 9399 | Q10: 17959 | R10: 0 | S10: -8560 | T10: 4544 | U10: 5227 | X10: -13 | Y10: 212 | Z10: 1410 | AA10: 780 | AB10: -65 | AC10: 0 | AD10: 565 | AE10: 0 | AF10: -79 | AG10: 0 | AH10: 9 | AI10: 495 | AJ10: 6061 | AK10: 1452 | AM10: -54 | AN10: -297 | AO10: 806 | AT10: 21 | AV10: 58 | AW10: 1416 | AY10: 9.048780488 | AZ10: 17.95425119 | BA10: 960.4519774 | BE10: 75.02968936 | BF10: 2175.847458 | BG10: 60.89592246 | BH10: 13041.66667 | BJ10: 10316 | BK10: 19838 | BL10: 0 | BM10: -9522 | BN10: 4854 | BO10: 5683 | BR10: -4 | BS10: 71 | BT10: 1082 | BU10: 787 | BV10: -16 | BX10: 279 | BY10: 0 | BZ10: 0 | CA10: 0 | CB10: -36 | CC10: 243 | CD10: 6840 | CE10: 1036 | CG10: -876 | CH10: -92 | CI10: -56 | CN10: 21 | CP10: 151 | CQ10: 1405 | CS10: 7.717948718 | CT10: 18.69898832 | CU10: 748.7544484 | CY10: 74.05974504 | CZ10: 2365.836299 | DA10: 57.85142094 | DB10: 14926.69039 | DD10: 10151 | DE10: 19928 | DF10: 0 | DG10: -9777 | DH10: 4481 | DI10: 5829 | DL10: -7 | DM10: 62 | DN10: 588 | DO10: 843 | DP10: 5 | DR10: -250 | DS10: 0 | DT10: 1 | DU10: -1 | DV10: -8 | DW10: -258 | DX10: 6659 | DY10: 577 | EA10: 469 | EB10: -64 | EC10: -225 | EE10: 108 | EH10: 21 | EJ10: 174 | EQ10: -787 | ER10: 73 | ES10: 68 | ET10: -1552 | EU10: 18 | EV10: 442 | EW10: -907 | EX10: 94 | EY10: 11 | EZ10: 44 | FA10: -82 | FB10: 14 | FC10: 0 | FD10: 9 | FE10: 52 | FF10: 1164 | FG10: 1022 | FH10: 142 | FI10: -53 | FJ10: 1085 | FK10: 930 | FL10: 155 | FM10: 0 | FN10: 1082 | FO10: 787 | FP10: 295 | FQ10: 0 | FR10: 109
A11: 47 | B11: Enontekiö | C11: 1872 | E11: 1.166040571 | F11: 99.92231717 | G11: -7270.299145 | K11: 31.97454481 | L11: 1537.92735 | M11: 48.25435092 | N11: 11633.01282 | P11: 2936 | Q11: 16836 | R11: -4 | S11: -13904 | T11: 6151 | U11: 8935 | X11: -82 | Y11: 266 | Z11: 1366 | AA11: 1108 | AB11: 0 | AC11: 0 | AD11: 258 | AE11: -1 | AF11: 0 | AG11: 0 | AH11: 2 | AI11: 259 | AJ11: 576 | AK11: 1306 | AM11: 540 | AN11: -1145 | AO11: -924 | AT11: 21.25 | AV11: 131 | AW11: 1893 | AY11: 1.892241379 | AZ11: 81.73696239 | BA11: -6499.735869 | BE11: 36.44112346 | BF11: 1033.280507 | BG11: 44.9471166 | BH11: 8390.913893 | BJ11: 4225 | BK11: 17496 | BL11: 2 | BM11: -13269 | BN11: 6203 | BO11: 8824 | BR11: -157 | BS11: 421 | BT11: 2022 | BU11: 1177 | BV11: -22 | BX11: 823 | BY11: 0 | BZ11: -11 | CA11: 0 | CB11: -3 | CC11: 809 | CD11: 1400 | CE11: 1995 | CG11: 996 | CH11: -987 | CI11: 1231 | CN11: 21.25 | CP11: 59 | CQ11: 1852 | CS11: 1.480417755 | CT11: 65.11079282 | CU11: -6109.611231 | CY11: 38.77868822 | CZ11: 1225.701944 | DA11: 33.21107904 | DB11: 13470.84233 | DD11: 8772 | DE11: 22485 | DF11: -11 | DG11: -13724 | DH11: 6362 | DI11: 8604 | DL11: -121 | DM11: 443 | DN11: 1564 | DO11: 1111 | DP11: 0 | DR11: 453 | DS11: 0 | DT11: 10 | DU11: -23 | DV11: -1 | DW11: 439 | DX11: 1933 | DY11: 1596 | EA11: 723 | EB11: -1012 | EC11: 852 | EE11: 1161 | EH11: 21.25 | EJ11: 41 | EQ11: -3331 | ER11: 1021 | ES11: 80 | ET11: -2967 | EU11: 2153 | EV11: 50 | EW11: -1018 | EX11: 87 | EY11: 187 | EZ11: 307 | FA11: 456 | FB11: 0 | FC11: -342 | FD11: 0 | FE11: 48 | FF11: 11675 | FG11: 9704 | FH11: 1971 | FI11: 81 | FJ11: 10397 | FK11: 8767 | FL11: 1630 | FM11: 116 | FN11: 9399 | FO11: 7721 | FP11: 1678 | FQ11: 136 | FR11: 5138
A12: 49 | B12: Espoo | C12: 274583 | E12: 1.942542217 | F12: 140.2772277 | G12: -8531.332967 | K12: 41.82287592 | L12: 3764.17331 | M12: 120.0713733 | N12: 11442.55471 | P12: 982749 | Q12: 2234818 | R12: -2334 | S12: -1254403 | T12: 1446483 | U12: 116040 | X12: -30747 | Y12: 20127 | Z12: 297500 | AA12: 237379 | AB12: 13541 | AC12: 0 | AD12: 73662 | AE12: 29 | AF12: 60 | AG12: -1649 | AH12: 10 | AI12: 72112 | AJ12: 629653 | AK12: 259201 | AM12: -12525 | AN12: -131950 | AO12: -372917 | AT12: 18 | AV12: 37 | AW12: 279044 | AY12: 1.984179228 | AZ12: 147.2504652 | BA12: -9164.676538 | BE12: 40.76427186 | BF12: 3871.382291 | BG12: 214.2994746 | BH12: 6593.83108 | BJ12: 1012445 | BK12: 2264850 | BL12: 994 | BM12: -1251411 | BN12: 1490270 | BO12: 84559 | BR12: -43228 | BS12: 39111 | BT12: 319301 | BU12: 267979 | BV12: 1200 | BX12: 52522 | BY12: -463 | BZ12: 17 | CA12: -390 | CB12: -773 | CC12: 50913 | CD12: 600201 | CE12: 289704 | CG12: 22161 | CH12: -133610 | CI12: -231776 | CN12: 18 | CP12: 44 | CQ12: 283632 | CS12: 1.771296126 | CT12: 143.4887806 | CU12: -9498.684916 | CY12: 40.41422085 | CZ12: 3541.032042 | DA12: 118.5001728 | DB12: 10906.96043 | DD12: 1102801 | DE12: 2383893 | DF12: -1616 | DG12: -1282708 | DH12: 1501986 | DI12: 95314 | DL12: -35590 | DM12: 20923 | DN12: 299925 | DO12: 306013 | DP12: 0 | DR12: -6088 | DS12: 3973 | DT12: 12237 | DU12: -622 | DV12: 2802 | DW12: 12302 | DX12: 604643 | DY12: 229225 | EA12: -1956 | EB12: -148680 | EC12: -151086 | EE12: 92306 | EH12: 18 | EJ12: 19 | EQ12: -726495 | ER12: 30414 | ES12: 63963 | ET12: -616503 | EU12: 48410 | EV12: 46613 | EW12: -495489 | EX12: 36891 | EY12: 78287 | EZ12: 626942 | FA12: -6325 | FB12: 374787 | FC12: 1824 | FD12: 219699 | FE12: 1933 | FF12: 3186678 | FG12: 3056512 | FH12: 130166 | FI12: 210467 | FJ12: 3429679 | FK12: 3275274 | FL12: 154405 | FM12: 208539 | FN12: 3502631 | FO12: 3329807 | FP12: 172824 | FQ12: 208048 | FR12: 50979
A13: 50 | B13: Eura | C13: 12004 | E13: 1.481371088 | F13: 67.05498074 | G13: -4887.954015 | K13: 33.72350754 | L13: 497.4175275 | M13: 19.56439581 | N13: 9279.990003 | P13: 35238 | Q13: 100185 | R13: 0 | S13: -64947 | T13: 43653 | U13: 27037 | X13: -703 | Y13: 1208 | Z13: 6248 | AA13: 5435 | AB13: 0 | AC13: 0 | AD13: 813 | AE13: -43 | AF13: 0 | AG13: -1 | AH13: -127 | AI13: 642 | AJ13: 4004 | AK13: 6368 | AM13: 880 | AN13: -3987 | AO13: -59 | AT13: 20.5 | AV13: 222 | AW13: 11910 | AY13: 1.819447722 | AZ13: 65.16809825 | BA13: -4830.310663 | BE13: 35.01046111 | BF13: 448.9504618 | BG13: 20.09736381 | BH13: 8153.652393 | BJ13: 36426 | BK13: 99266 | BL13: 0 | BM13: -62840 | BN13: 44397 | BO13: 26168 | BR13: -466 | BS13: -3 | BT13: 7256 | BU13: 5748 | BV13: 0 | BX13: 1508 | BY13: 30 | BZ13: 0 | CA13: 0 | CB13: -4 | CC13: 1534 | CD13: 5504 | CE13: 6875 | CG13: -463 | CH13: -3784 | CI13: 1115 | CN13: 20.5 | CP13: 219 | CQ13: 11748 | CS13: 0.4716535433 | CT13: 70.15753209 | CU13: -5271.790943 | CY13: 31.17634101 | CZ13: 486.3806605 | DA13: 18.37898095 | DB13: 9659.346272 | DD13: 36008 | DE13: 103147 | DF13: 0 | DG13: -67139 | DH13: 43565 | DI13: 25358 | DL13: -377 | DM13: 9 | DN13: 1416 | DO13: 5804 | DP13: 0 | DR13: -4388 | DS13: 36 | DT13: 0 | DU13: 0 | DV13: 38 | DW13: -4314 | DX13: 1114 | DY13: 1138 | EA13: 877 | EB13: -3429 | EC13: -4519 | EE13: 607 | EH13: 20.5 | EJ13: 272 | EQ13: -6501 | ER13: 87 | ES13: -13 | ET13: -6603 | EU13: 191 | EV13: 652 | EW13: -6341 | EX13: 81 | EY13: 603 | EZ13: 271 | FA13: 4200 | FB13: 334 | FC13: 1632 | FD13: 933 | FE13: 4000 | FF13: 54035 | FG13: 38127 | FH13: 15908 | FI13: 50 | FJ13: 52506 | FK13: 35316 | FL13: 17190 | FM13: 50 | FN13: 54266 | FO13: 33394 | FP13: 20872 | FQ13: 50 | FR13: 552
A14: 51 | B14: Eurajoki | C14: 6070 | E14: 9.156218905 | F14: 22.3069421 | G14: 2182.537068 | K14: 84.82852292 | L14: 4058.15486 | M14: 130.2729038 | N14: 11370.18122 | P14: 21029 | Q14: 59307 | R14: -6 | S14: -38284 | T14: 38036 | U14: 8609 | X14: 71 | Y14: 731 | Z14: 9163 | AA14: 4275 | AB14: 3 | AC14: 0 | AD14: 4891 | AE14: 2 | AF14: 0 | AG14: -1 | AH14: -6 | AI14: 4886 | AJ14: 73485 | AK14: 9091 | AM14: 1833 | AN14: -966 | AO14: 1073 | AT14: 18 | AV14: 7 | AW14: 9521 | AY14: 5.951488423 | AZ14: 33.44840853 | BA14: -191.1563911 | BE14: 74.53934416 | BF14: 2540.804537 | BG14: 108.9388911 | BH14: 8512.971327 | BJ14: 30898 | BK14: 86250 | BL14: 0 | BM14: -55352 | BN14: 51919 | BO14: 13352 | BR14: -92 | BS14: 836 | BT14: 10663 | BU14: 5641 | BV14: -2 | BX14: 5024 | BY14: 0 | BZ14: 29 | CA14: -3 | CB14: -13 | CC14: 5037 | CD14: 76253 | CE14: 10769 | CG14: -365 | CH14: -1681 | CI14: 3378 | CN14: 18 | CP14: 47 | CQ14: 9454 | CS14: 2.988630491 | CT14: 33.1982377 | CU14: 15.33742331 | CY14: 75.00310549 | CZ14: 2765.17876 | DA14: 99.31233672 | DB14: 10162.78824 | DD14: 31437 | DE14: 87039 | DF14: 0 | DG14: -55602 | DH14: 50340 | DI14: 11737 | DL14: -129 | DM14: -693 | DN14: 5653 | DO14: 5919 | DP14: 0 | DR14: -266 | DS14: 1 | DT14: -52 | DU14: 0 | DV14: -7 | DW14: -324 | DX14: 75926 | DY14: 5702 | EA14: 1108 | EB14: -1805 | EC14: 1863 | EE14: 47 | EH14: 18 | EJ14: 113 | EQ14: -8307 | ER14: 16 | ES14: 273 | ET14: -7916 | EU14: 39 | EV14: 486 | EW14: -5328 | EX14: 16 | EY14: 1473 | EZ14: 26 | FA14: -904 | FB14: 568 | FC14: -763 | FD14: 660 | FE14: -379 | FF14: 3694 | FG14: 2948 | FH14: 746 | FI14: 130 | FJ14: 17545 | FK14: 15617 | FL14: 1928 | FM14: 130 | FN14: 16111 | FO14: 14279 | FP14: 1832 | FQ14: 62 | FR14: 111
A15: 52 | B15: Evijärvi | C15: 2535 | E15: 2.319201995 | F15: 35.03646627 | G15: -347.1400394 | K15: 56.23661919 | L15: 2625.246548 | M15: 96.3345231 | N15: 9946.745562 | P15: 7088 | Q15: 23575 | R15: 4 | S15: -16483 | T15: 8615 | U15: 8566 | X15: 171 | Y15: 35 | Z15: 904 | AA15: 834 | AB15: 0 | AC15: 0 | AD15: 70 | AE15: -7 | AF15: -30 | AG15: -6 | AH15: -2 | AI15: 25 | AJ15: 3286 | AK15: 924 | AM15: 47 | AN15: -375 | AO15: -273 | AT15: 21.5 | AV15: 264 | AW15: 2499 | AY15: 2.2268431 | AZ15: 38.61535244 | BA15: -228.0912365 | BE15: 54.72741051 | BF15: 3002.80112 | BG15: 119.8354918 | BH15: 9146.058423 | BJ15: 7148 | BK15: 23269 | BL15: 0 | BM15: -16121 | BN15: 8224 | BO15: 8533 | BR15: 72 | BS15: 448 | BT15: 1156 | BU15: 888 | BV15: 0 | BX15: 268 | BY15: -7 | BZ15: -28 | CA15: -8 | CB15: -2 | CC15: 223 | CD15: 3481 | CE15: 1104 | CG15: -121 | CH15: -507 | CI15: 339 | CN15: 21.5 | CP15: 264 | CQ15: 2473 | CS15: -0.4292682927 | CT15: 42.64119942 | CU15: -877.8811161 | CY15: 49.3805152 | CZ15: 2844.318641 | DA15: 97.55338552 | DB15: 10642.13506 | DD15: 7570 | DE15: 24216 | DF15: 4 | DG15: -16642 | DH15: 7975 | DI15: 8800 | DL15: 21 | DM15: -270 | DN15: -116 | DO15: 940 | DP15: 0 | DR15: -1056 | DS15: -2 | DT15: -25 | DU15: -2 | DV15: -1 | DW15: -1086 | DX15: 2289 | DY15: -188 | EA15: 41 | EB15: -177 | EC15: -1554 | EE15: 11 | EH15: 21.5 | EJ15: 286 | EQ15: -1216 | ER15: 9 | ES15: 10 | ET15: -976 | EU15: 52 | EV15: 159 | EW15: -1537 | EX15: 75 | EY15: 96 | EZ15: 173 | FA15: 500 | FB15: 618 | FC15: 950 | FD15: 538 | FE15: 550 | FF15: 6210 | FG15: 1705 | FH15: 4505 | FI15: 57 | FJ15: 7285 | FK15: 2021 | FL15: 5264 | FM15: 56 | FN15: 8210 | FO15: 2398 | FP15: 5812 | FQ15: 54 | FR15: 21
A16: 61 | B16: Forssa | C16: 17332 | E16: 2.361519806 | F16: 49.1041761 | G16: -3408.839141 | K16: 48.95149333 | L16: 1135.64505 | M16: 37.84235283 | N16: 10953.61182 | P16: 73748 | Q16: 167829 | R16: 56 | S16: -94025 | T16: 60408 | U16: 47018 | X16: -622 | Y16: 154 | Z16: 12933 | AA16: 8501 | AB16: 0 | AC16: 0 | AD16: 4432 | AE16: 94 | AF16: 171 | AG16: -7 | AH16: -47 | AI16: 4643 | AJ16: 24755 | AK16: 12701 | AM16: 4273 | AN16: -5512 | AO16: -3878 | AT16: 20 | AV16: 101 | AW16: 17185 | AY16: 2.180599094 | AZ16: 49.5358546 | BA16: -3243.759092 | BE16: 49.43690947 | BF16: 1126.447483 | BG16: 42.74530088 | BH16: 9618.679081 | BJ16: 73061 | BK16: 166862 | BL16: 143 | BM16: -93658 | BN16: 61074 | BO16: 44796 | BR16: -520 | BS16: 66 | BT16: 11758 | BU16: 10896 | BV16: 0 | BX16: 862 | BY16: 120 | BZ16: 3 | CA16: -11 | CB16: -62 | CC16: 912 | CD16: 25667 | CE16: 10166 | CG16: -3335 | CH16: -4979 | CI16: 3207 | CN16: 20.5 | CP16: 185 | CQ16: 17028 | CS16: 1.305382527 | CT16: 48.4945179 | CU16: -3143.528306 | CY16: 49.58494927 | CZ16: 1288.93587 | DA16: 43.54359512 | DB16: 10804.38102 | DD16: 74139 | DE16: 170963 | DF16: 0 | DG16: -96824 | DH16: 60239 | DI16: 44568 | DL16: -659 | DM16: 90 | DN16: 7414 | DO16: 13797 | DP16: 2000 | DR16: -4383 | DS16: 108 | DT16: 0 | DU16: -38 | DV16: 51 | DW16: -4262 | DX16: 21404 | DY16: 6504 | EA16: 2230 | EB16: -5502 | EC16: 2011 | EE16: 954 | EH16: 20.5 | EJ16: 167 | EQ16: -16789 | ER16: 51 | ES16: 159 | ET16: -7329 | EU16: 17 | EV16: 353 | EW16: -6742 | EX16: 43 | EY16: 2206 | EZ16: 5181 | FA16: -4032 | FB16: 6072 | FC16: 4699 | FD16: 6913 | FE16: 949 | FF16: 60008 | FG16: 47742 | FH16: 12266 | FI16: 305 | FJ16: 65801 | FK16: 47833 | FL16: 17968 | FM16: 303 | FN16: 68161 | FO16: 49096 | FP16: 19065 | FQ16: 232 | FR16: 1000
A17: 69 | B17: Haapajärvi | C17: 7332 | E17: 0.6600848564 | F17: 60.92620349 | G17: -3926.077469 | K17: 34.27099087 | L17: 2728.723404 | M17: 72.55394933 | N17: 13727.49591 | P17: 40616 | Q17: 87803 | R17: 19 | S17: -47168 | T17: 23037 | U17: 27083 | X17: -501 | Y17: 1078 | Z17: 3529 | AA17: 3603 | AB17: -259 | AC17: 0 | AD17: -333 | AE17: -53 | AF17: -2 | AG17: -89 | AH17: 19 | AI17: -458 | AJ17: 4756 | AK17: 3430 | AM17: -1539 | AN17: -5612 | AO17: -2528 | AT17: 22 | AV17: 237 | AW17: 7251 | AY17: 0.8400062073 | AZ17: 63.30487724 | BA17: -4155.151014 | BE17: 33.64601306 | BF17: 2779.340781 | BG17: 85.54999244 | BH17: 11858.08854 | BJ17: 41518 | BK17: 85945 | BL17: 28 | BM17: -44399 | BN17: 22647 | BO17: 26501 | BR17: -495 | BS17: 644 | BT17: 4898 | BU17: 3904 | BV17: -24 | BX17: 970 | BY17: -99 | BZ17: -3 | CA17: -80 | CB17: -4 | CC17: 784 | CD17: 5116 | CE17: 4695 | CG17: 129 | CH17: -5929 | CI17: -1596 | CN17: 22 | CP17: 188 | CQ17: 7147 | CS17: 0.3967761017 | CT17: 62.42469716 | CU17: -4110.116133 | CY17: 32.86513759 | CZ17: 3005.876592 | DA17: 77.73509993 | DB17: 14113.89394 | DD17: 42556 | DE17: 89443 | DF17: -77 | DG17: -46964 | DH17: 23059 | DI17: 26347 | DL17: -340 | DM17: 213 | DN17: 2315 | DO17: 4044 | DP17: 310 | DR17: -1419 | DS17: -74 | DT17: -6 | DU17: -88 | DV17: 25 | DW17: -1562 | DX17: 4957 | DY17: 2306 | EA17: 1096 | EB17: -6394 | EC17: 921 | EE17: 6829 | EH17: 22 | EJ17: 205 | EQ17: -6533 | ER17: 489 | ES17: 86 | ET17: -7120 | EU17: 253 | EV17: 576 | EW17: -2995 | EX17: 70 | EY17: 1540 | EZ17: 7059 | FA17: 1971 | FB17: 6361 | FC17: 1149 | FD17: 6373 | FE17: -894 | FF17: 42099 | FG17: 29374 | FH17: 12725 | FI17: 216 | FJ17: 43029 | FK17: 29755 | FL17: 13274 | FM17: 171 | FN17: 42154 | FO17: 29564 | FP17: 12590 | FQ17: 169 | FR17: 6867
A18: 71 | B18: Haapavesi | C18: 7098 | E18: 0.555041044 | F18: 55.46494022 | G18: -4778.247394 | K18: 24.44143721 | L18: 1653.705269 | M18: 41.00267968 | N18: 14721.04818 | P18: 52007 | Q18: 93366 | R18: 1 | S18: -41358 | T18: 20805 | U18: 22953 | X18: -270 | Y18: 180 | Z18: 2310 | AA18: 3844 | AB18: 0 | AC18: 0 | AD18: -1534 | AE18: -1 | AF18: -4 | AG18: 0 | AH18: -40 | AI18: -1579 | AJ18: -1575 | AK18: 2538 | AM18: -434 | AN18: -4424 | AO18: -1599 | AT18: 22 | AV18: 270 | AW18: 6970 | AY18: 1.471192242 | AZ18: 67.56119842 | BA18: -4498.421808 | BE18: 25.31431815 | BF18: 1884.361549 | BG18: 69.95957621 | BH18: 9831.276901 | BJ18: 30893 | BK18: 70568 | BL18: 2 | BM18: -39673 | BN18: 20643 | BO18: 23997 | BR18: -284 | BS18: 113 | BT18: 4796 | BU18: 3611 | BV18: 0 | BX18: 1185 | BY18: 2 | BZ18: -1 | CA18: -118 | CB18: -27 | CC18: 1041 | CD18: 214 | CE18: 4411 | CG18: 819 | CH18: -3144 | CI18: 2426 | CN18: 22 | CP18: 183 | CQ18: 6854 | CS18: 0.5027519453 | CT18: 66.6280972 | CU18: -4656.84272 | CY18: 24.53447445 | CZ18: 1852.203093 | DA18: 55.42474552 | DB18: 12197.69478 | DD18: 27937 | DE18: 72355 | DF18: 2 | DG18: -44416 | DH18: 20098 | DI18: 27154 | DL18: -328 | DM18: -232 | DN18: 2276 | DO18: 3641 | DP18: 302 | DR18: -1063 | DS18: 22 | DT18: -7 | DU18: -85 | DV18: 45 | DW18: -1088 | DX18: -173 | DY18: 2364 | EA18: 1038 | EB18: -4896 | EC18: -849 | EE18: 420 | EH18: 22 | EJ18: 202 | EQ18: -6169 | ER18: 1991 | ES18: 41 | ET18: -5797 | EU18: 127 | EV18: 3685 | EW18: -5182 | EX18: 48 | EY18: 1921 | EZ18: 5638 | FA18: 1927 | FB18: 499 | FC18: 3487 | FD18: 9795 | FE18: -6028 | FF18: 48554 | FG18: 17008 | FH18: 31546 | FI18: 19 | FJ18: 38371 | FK18: 14065 | FL18: 24306 | FM18: 271 | FN18: 37208 | FO18: 18903 | FP18: 18305 | FQ18: 2 | FR18: 1147
A19: 72 | B19: Hailuoto | C19: 994 | E19: 2.362962963 | F19: 57.39966555 | G19: -2836.016097 | K19: 55.90873416 | L19: 2677.062374 | M19: 74.44355024 | N19: 13125.75453 | P19: 4977 | Q19: 11338 | R19: 0 | S19: -6361 | T19: 3336 | U19: 3647 | X19: -9 | Y19: 2 | Z19: 615 | AA19: 685 | AB19: 0 | AC19: 0 | AD19: -70 | AE19: -1 | AF19: -1 | AG19: 0 | AH19: -1 | AI19: -73 | AJ19: 6621 | AK19: 624 | AM19: -370 | AN19: -247 | AO19: -495 | AT19: 20 | AV19: 179 | AW19: 967 | AY19: 2.810096154 | AZ19: 52.75396825 | BA19: -2125.129266 | BE19: 57.59832313 | BF19: 3656.670114 | BG19: 112.8379087 | BH19: 11828.33506 | BJ19: 5176 | BK19: 11532 | BL19: 1 | BM19: -6355 | BN19: 3691 | BO19: 3733 | BR19: -15 | BS19: 91 | BT19: 1145 | BU19: 674 | BV19: 0 | BX19: 471 | BY19: 0 | BZ19: 4 | CA19: -1 | CB19: -1 | CC19: 473 | CD19: 7093 | CE19: 1061 | CG19: 329 | CH19: -392 | CI19: 692 | CN19: 20 | CP19: 36 | CQ19: 974 | CS19: 0.5524126456 | CT19: 52.61797027 | CU19: -2983.572895 | CY19: 57.32430144 | CZ19: 2542.094456 | DA19: 62.37852015 | DB19: 14874.74333 | DD19: 5181 | DE19: 12055 | DF19: 0 | DG19: -6874 | DH19: 3470 | DI19: 3725 | DL19: -16 | DM19: 5 | DN19: 310 | DO19: 681 | DP19: 88 | DR19: -283 | DS19: -1 | DT19: -7 | DU19: 0 | DV19: -1 | DW19: -292 | DX19: 6799 | DY19: 200 | EA19: -75 | EB19: -579 | EC19: -860 | EE19: 18 | EH19: 20.5 | EJ19: 206 | EQ19: -1437 | ER19: 250 | ES19: 68 | ET19: -511 | EU19: 5 | EV19: 137 | EW19: -1816 | EX19: 6 | EY19: 750 | EZ19: 816 | FA19: -4 | FB19: 146 | FC19: 53 | FD19: 122 | FE19: -6 | FF19: 3392 | FG19: 3166 | FH19: 226 | FI19: 5 | FJ19: 3199 | FK19: 2863 | FL19: 336 | FM19: 1 | FN19: 2726 | FO19: 2334 | FP19: 392 | FQ19: 1 | FR19: 18
A20: 74 | B20: Halsua | C20: 1219 | E20: 1.372854914 | F20: 118.6900382 | G20: -11153.40443 | K20: 26.72493302 | L20: 1169.811321 | M20: 36.41572798 | N20: 11725.18458 | P20: 5581 | Q20: 13051 | R20: 34 | S20: -7436 | T20: 3649 | U20: 4633 | X20: -143 | Y20: 24 | Z20: 727 | AA20: 774 | AB20: -4 | AC20: 0 | AD20: -51 | AE20: -3 | AF20: 1 | AG20: -3 | AH20: 2 | AI20: -54 | AJ20: 2337 | AK20: 705 | AM20: -303 | AN20: -488 | AO20: 156 | AT20: 21.5 | AV20: 192 | AW20: 1171 | AY20: 2.077445652 | AZ20: 103.683596 | BA20: -12404.78224 | BE20: 25.0999001 | BF20: 1631.084543 | BG20: 44.51787995 | BH20: 13373.18531 | BJ20: 8650 | BK20: 15712 | BL20: 75 | BM20: -6987 | BN20: 3712 | BO20: 4768 | BR20: -135 | BS20: 28 | BT20: 1386 | BU20: 844 | BV20: 0 | BX20: 542 | BY20: -2 | BZ20: -7 | CA20: -4 | CB20: -3 | CC20: 526 | CD20: 2010 | CE20: 1305 | CG20: 332 | CH20: -593 | CI20: 574 | CN20: 22 | CP20: 37 | CQ20: 1165 | CS20: 1.324205915 | CT20: 99.72038922 | CU20: -12215.45064 | CY20: 25.11244068 | CZ20: 1889.270386 | DA20: 43.50509044 | DB20: 15850.64378 | DD20: 9508 | DE20: 16750 | DF20: 52 | DG20: -7190 | DH20: 3411 | DI20: 4963 | DL20: -130 | DM20: 18 | DN20: 1072 | DO20: 833 | DP20: -53 | DR20: 186 | DS20: -3 | DT20: -35 | DU20: -8 | DV20: -2 | DW20: 138 | DX20: 2074 | DY20: 635 | EA20: -7 | EB20: -776 | EC20: 220 | EE20: 1131 | EH20: 22 | EJ20: 30 | EQ20: -590 | ER20: 0 | ES20: 41 | ET20: -799 | EU20: 15 | EV20: 53 | EW20: -798 | EX20: 15 | EY20: 368 | EZ20: 138 | FA20: 284 | FB20: 1431 | FC20: -16 | FD20: 151 | FE20: 372 | FF20: 13613 | FG20: 10232 | FH20: 3381 | FI20: 93 | FJ20: 14372 | FK20: 10834 | FL20: 3538 | FM20: 103 | FN20: 14180 | FO20: 10262 | FP20: 3918 | FQ20: 103 | FR20: 804
A21: 75 | B21: Hamina | C21: 20636 | E21: 0.6269088482 | F21: 86.06438147 | G21: -7431.575887 | K21: 34.98327599 | L21: 905.9410739 | M21: 27.47017951 | N21: 12037.36189 | P21: 89621 | Q21: 196366 | R21: 1083 | S21: -105662 | T21: 81940 | U21: 44992 | X21: -2343 | Y21: 1214 | Z21: 20141 | AA21: 16440 | AB21: 0 | AC21: 0 | AD21: 3701 | AE21: 53 | AF21: 0 | AG21: 0 | AH21: -206 | AI21: 3548 | AJ21: 10712 | AK21: 19109 | AM21: 3485 | AN21: -33554 | AO21: 7315 | AT21: 21 | AV21: 57 | AW21: 20493 | AY21: 1.354971713 | AZ21: 87.0613192 | BA21: -7063.631484 | BE21: 36.19456746 | BF21: 1296.881862 | BG21: 50.17562961 | BH21: 9434.099449 | BJ21: 89565 | BK21: 189548 | BL21: 652 | BM21: -99331 | BN21: 82237 | BO21: 44101 | BR21: -2182 | BS21: 1200 | BT21: 26025 | BU21: 19513 | BV21: 0 | BX21: 6512 | BY21: 54 | BZ21: 0 | CA21: 0 | CB21: -97 | CC21: 6469 | CD21: 17455 | CE21: 24681 | CG21: -3305 | CH21: -18621 | CI21: 11572 | CN21: 21 | CP21: 20 | CQ21: 20286 | CS21: 0.9518827547 | CT21: 89.89359494 | CU21: -7502.415459 | CY21: 36.6415039 | CZ21: 1214.285714 | DA21: 35.22074061 | DB21: 12583.90023 | DD21: 91213 | DE21: 198288 | DF21: 2247 | DG21: -104828 | DH21: 80921 | DI21: 44679 | DL21: -1970 | DM21: 1186 | DN21: 19988 | DO21: 15882 | DP21: 0 | DR21: 4106 | DS21: 51 | DT21: 0 | DU21: 0 | DV21: -111 | DW21: 4046 | DX21: 23232 | DY21: 21321 | EA21: -1437 | EB21: -21101 | EC21: -7768 | EE21: 43599 | EH21: 21 | EJ21: 27 | EQ21: -15716 | ER21: 72 | ES21: 3850 | ET21: -19704 | EU21: 648 | EV21: 5947 | EW21: -33660 | EX21: 589 | EY21: 3982 | EZ21: 29423 | FA21: 200 | FB21: 22362 | FC21: 0 | FD21: 22708 | FE21: 0 | FF21: 148165 | FG21: 130774 | FH21: 17391 | FI21: 758 | FJ21: 151906 | FK21: 133474 | FL21: 18432 | FM21: 720 | FN21: 153512 | FO21: 131234 | FP21: 22278 | FQ21: 714 | FR21: 47950
A22: 77 | B22: Hankasalmi | C22: 5159 | E22: 3.582372323 | F22: 48.20959568 | G22: -3502.810622 | K22: 40.88957915 | L22: 905.0203528 | M22: 30.62987527 | N22: 10784.64819 | P22: 17234 | Q22: 49802 | R22: 0 | S22: -32568 | T22: 15514 | U22: 21318 | X22: -87 | Y22: 37 | Z22: 4214 | AA22: 2483 | AB22: 0 | AC22: 0 | AD22: 1731 | AE22: -5 | AF22: 191 | AG22: 0 | AH22: -64 | AI22: 1853 | AJ22: -691 | AK22: 4216 | AM22: 408 | AN22: -1079 | AO22: -65 | AT22: 22 | AV22: 98 | AW22: 5019 | AY22: 2.371804237 | AZ22: 52.50764828 | BA22: -3854.353457 | BE22: 41.86361711 | BF22: 963.7377964 | BG22: 39.05466089 | BH22: 9006.973501 | BJ22: 15022 | BK22: 47579 | BL22: 0 | BM22: -32557 | BN22: 15243 | BO22: 20400 | BR22: -40 | BS22: 99 | BT22: 3145 | BU22: 2342 | BV22: 2 | BX22: 805 | BY22: -12 | BZ22: 5 | CA22: 0 | CB22: 1 | CC22: 799 | CD22: 108 | CE22: 2860 | CG22: 968 | CH22: -1267 | CI22: -550 | CN22: 22 | CP22: 217 | CQ22: 4939 | CS22: 1.242424242 | CT22: 61.26255667 | CU22: -4508.402511 | CY22: 37.08371555 | CZ22: 1074.10407 | DA22: 35.32924026 | DB22: 11096.98319 | DD22: 15392 | DE22: 48514 | DF22: 0 | DG22: -33122 | DH22: 14524 | DI22: 20157 | DL22: -16 | DM22: 121 | DN22: 1664 | DO22: 2466 | DP22: 12 | DR22: -790 | DS22: 0 | DT22: -52 | DU22: 0 | DV22: 18 | DW22: -824 | DX22: -1150 | DY22: 386 | EA22: 522 | EB22: -1320 | EC22: -2946 | EE22: 533 | EH22: 22 | EJ22: 200 | EQ22: -4476 | ER22: 120 | ES22: 75 | ET22: -3829 | EU22: 27 | EV22: 392 | EW22: -4795 | EX22: 2 | EY22: 1461 | EZ22: 1353 | FA22: 2233 | FB22: 3990 | FC22: -762 | FD22: 2211 | FE22: 1618 | FF22: 17283 | FG22: 8414 | FH22: 8869 | FI22: 0 | FJ22: 19443 | FK22: 11137 | FL22: 8306 | FM22: 0 | FN22: 21951 | FO22: 12196 | FP22: 9755 | FQ22: 2 | FR22: 594
A23: 78 | B23: Hanko | C23: 8663 | E23: 1.652855369 | F23: 86.08793088 | G23: -8361.07584 | K23: 25.77566405 | L23: 1040.286275 | M23: 31.06177643 | N23: 12224.17176 | P23: 50050 | Q23: 91181 | R23: -1 | S23: -41132 | T23: 38792 | U23: 12897 | X23: -1228 | Y23: 61 | Z23: 9390 | AA23: 5414 | AB23: 0 | AC23: 0 | AD23: 3976 | AE23: -1 | AF23: 1 | AG23: -504 | AH23: -15 | AI23: 3457 | AJ23: -7948 | AK23: 7855 | AM23: 192 | AN23: -5183 | AO23: 897 | AT23: 21.75 | AV23: 36 | AW23: 8517 | AY23: 13.80594243 | AZ23: 81.62708163 | BA23: -8558.647411 | BE23: 30.26177124 | BF23: 791.593284 | BG23: 31.49056242 | BH23: 9175.179054 | BJ23: 54531 | BK23: 91458 | BL23: 0 | BM23: -36927 | BN23: 39028 | BO23: 12668 | BR23: -1060 | BS23: 83 | BT23: 13792 | BU23: 5867 | BV23: 38 | BX23: 7963 | BY23: -3 | BZ23: -2 | CA23: -595 | CB23: 55 | CC23: 7418 | CD23: -472 | CE23: 11466 | CG23: -934 | CH23: 0 | CI23: -897 | CN23: 21.75 | CP23: 6 | CQ23: 8379 | CS23: 2.084456129 | CT23: 79.87744503 | CU23: -8746.747822 | CY23: 34.56800053 | CZ23: 670.6050841 | DA23: 18.1501885 | DB23: 13485.8575 | DD23: 56107 | DE23: 94461 | DF23: -5 | DG23: -38359 | DH23: 38575 | DI23: 12372 | DL23: -814 | DM23: 77 | DN23: 11851 | DO23: 5783 | DP23: -17 | DR23: 6051 | DS23: -5 | DT23: -19 | DU23: -767 | DV23: -84 | DW23: 5176 | DX23: 7550 | DY23: 10316 | EA23: -171 | EB23: -5251 | EC23: -593 | EE23: 285 | EH23: 21.75 | EJ23: 5 | EQ23: -7859 | ER23: 5 | ES23: 896 | ET23: -14496 | EU23: 16 | EV23: 2117 | EW23: -12093 | EX23: 29 | EY23: 1155 | EZ23: 4022 | FA23: 65 | FB23: 1590 | FC23: -3047 | FD23: 4512 | FE23: -829 | FF23: 74732 | FG23: 28260 | FH23: 46472 | FI23: 416 | FJ23: 73274 | FK23: 29849 | FL23: 43425 | FM23: 417 | FN23: 71075 | FO23: 29422 | FP23: 41653 | FQ23: 410 | FR23: 340
A24: 79 | B24: Harjavalta | C24: 7240 | E24: 0.3461055276 | F24: 46.67123652 | G24: -3357.044199 | K24: 42.9835442 | L24: 637.8453039 | M24: 22.10525626 | N24: 10532.0442 | P24: 26885 | Q24: 70411 | R24: -1 | S24: -43527 | T24: 30405 | U24: 14193 | X24: -221 | Y24: 25 | Z24: 875 | AA24: 3220 | AB24: 0 | AC24: 0 | AD24: -2345 | AE24: 7 | AF24: 0 | AG24: -8 | AH24: -33 | AI24: -2379 | AJ24: 7575 | AK24: 646 | AM24: 552 | AN24: -2957 | AO24: -1646 | AT24: 19.75 | AV24: 288 | AW24: 7151 | AY24: 1.204069934 | AZ24: 44.62177643 | BA24: -3317.018599 | BE24: 43.86606085 | BF24: 696.406097 | BG24: 25.86589635 | BH24: 9827.157041 | BJ24: 26103 | BK24: 70215 | BL24: -34 | BM24: -44146 | BN24: 34747 | BO24: 13524 | BR24: -203 | BS24: 72 | BT24: 3994 | BU24: 3281 | BV24: 0 | BX24: 713 | BY24: -16 | BZ24: 0 | CA24: -8 | CB24: -38 | CC24: 651 | CD24: 8242 | CE24: 4009 | CG24: -50 | CH24: -3282 | CI24: 965 | CN24: 20.75 | CP24: 232 | CQ24: 7018 | CS24: 0.2355611602 | CT24: 48.31412836 | CU24: -3707.466515 | CY24: 39.95713716 | CZ24: 628.384155 | DA24: 20.13774208 | DB24: 11389.56968 | DD24: 26472 | DE24: 71917 | DF24: -34 | DG24: -45479 | DH24: 33349 | DI24: 12990 | DL24: -167 | DM24: 70 | DN24: 763 | DO24: 3338 | DP24: 0 | DR24: -2575 | DS24: -6 | DT24: 0 | DU24: -8 | DV24: -16 | DW24: -2605 | DX24: 5657 | DY24: 808 | EA24: -261 | EB24: -3794 | EC24: -2396 | EE24: 629 | EH24: 20.75 | EJ24: 274 | EQ24: -2643 | ER24: 20 | ES24: 331 | ET24: -3452 | EU24: 312 | EV24: 96 | EW24: -4028 | EX24: 71 | EY24: 753 | EZ24: 3175 | FA24: 2614 | FB24: 5209 | FC24: -1786 | FD24: 6584 | FE24: -1500 | FF24: 23367 | FG24: 15993 | FH24: 7374 | FI24: 0 | FJ24: 23508 | FK24: 17197 | FL24: 6311 | FM24: 0 | FN24: 24797 | FO24: 19146 | FP24: 5651 | FQ24: 0 | FR24: 719
A25: 81 | B25: Hartola | C25: 2924 | E25: 1.202507599 | F25: 112.1114619 | G25: -10554.71956 | K25: 16.8699772 | L25: 617.3050616 | M25: 18.15545084 | N25: 12410.39672 | P25: 14141 | Q25: 29815 | R25: 0 | S25: -15674 | T25: 9741 | U25: 9062 | X25: -339 | Y25: 22 | Z25: 2812 | AA25: 1738 | AB25: -566 | AC25: 0 | AD25: 508 | AE25: -36 | AF25: 34 | AG25: 0 | AH25: 0 | AI25: 506 | AJ25: 1178 | AK25: 2195 | AM25: -630 | AN25: -2279 | AO25: -469 | AT25: 21.5 | AV25: 62 | AW25: 2882 | AY25: 1.119013581 | AZ25: 90.57770253 | BA25: -10119.70854 | BE25: 18.68129382 | BF25: 1082.581541 | BG25: 29.91331757 | BH25: 13209.57668 | BJ25: 19841 | BK25: 36166 | BL25: 0 | BM25: -16325 | BN25: 9988 | BO25: 9153 | BR25: -287 | BS25: 300 | BT25: 2829 | BU25: 1885 | BV25: -233 | BX25: 711 | BY25: -37 | BZ25: -230 | CA25: 0 | CB25: 0 | CC25: 444 | CD25: 1867 | CE25: 2541 | CG25: 1243 | CH25: -2496 | CI25: 1821 | CN25: 21.5 | CP25: 74 | CQ25: 2780 | CS25: 0.5520094563 | CT25: 87.22534227 | CU25: -10361.8705 | CY25: 18.13074323 | CZ25: 840.2877698 | DA25: 20.82657548 | DB25: 14726.61871 | DD25: 19955 | DE25: 37292 | DF25: 0 | DG25: -17337 | DH25: 9796 | DI25: 8888 | DL25: -239 | DM25: 40 | DN25: 1148 | DO25: 1861 | DP25: 124 | DR25: -589 | DS25: -36 | DT25: 18 | DU25: 0 | DV25: 0 | DW25: -607 | DX25: 1209 | DY25: 1359 | EA25: 473 | EB25: -2285 | EC25: 351 | EE25: 397 | EH25: 21.5 | EJ25: 178 | EQ25: -3834 | ER25: 961 | ES25: 209 | ET25: -931 | EU25: 29 | EV25: 182 | EW25: -1103 | EX25: 19 | EY25: 76 | EZ25: 2616 | FA25: -31 | FB25: 759 | FC25: -1160 | FD25: 25 | FE25: 564 | FF25: 32865 | FG25: 27459 | FH25: 5406 | FI25: 31 | FJ25: 29984 | FK25: 26592 | FL25: 3392 | FM25: 59 | FN25: 28289 | FO25: 24649 | FP25: 3640 | FQ25: 57 | FR25: 491
A26: 82 | B26: Hattula | C26: 9682 | E26: 0.7935003385 | F26: 74.80302946 | G26: -5191.799215 | K26: 33.26493221 | L26: 104.7304276 | M26: 4.408643137 | N26: 8670.832473 | P26: 22703 | Q26: 68725 | R26: 0 | S26: -46022 | T26: 36577 | U26: 12812 | X26: -48 | Y26: -63 | Z26: 3256 | AA26: 2770 | AB26: -271 | AC26: 0 | AD26: 215 | AE26: 0 | AF26: 2 | AG26: 0 | AH26: -82 | AI26: 135 | AJ26: 7728 | AK26: 3272 | AM26: -51 | AN26: -4171 | AO26: -7257 | AT26: 20 | AV26: 268 | AW26: 9610 | AY26: 0.9676258993 | AZ26: 67.61771265 | BA26: -4946.826223 | BE26: 34.57804878 | BF26: 304.2663892 | BG26: 13.95640177 | BH26: 7957.440166 | BJ26: 31306 | BK26: 74081 | BL26: 0 | BM26: -42775 | BN26: 37510 | BO26: 9659 | BR26: -58 | BS26: -27 | BT26: 4309 | BU26: 3357 | BV26: 191 | BX26: 1143 | BY26: 0 | BZ26: 2 | CA26: 0 | CB26: -35 | CC26: 1110 | CD26: 8825 | CE26: 3833 | CG26: 47 | CH26: -4462 | CI26: 2640 | CN26: 20.5 | CP26: 266 | CQ26: 9475 | CS26: 0.4331200714 | CT26: 73.90346162 | CU26: -5182.269129 | CY26: 32.69055609 | CZ26: 293.8258575 | DA26: 11.90259215 | DB26: 9010.343008 | DD26: 24931 | DE26: 71771 | DF26: 0 | DG26: -46840 | DH26: 37627 | DI26: 11858 | DL26: -21 | DM26: 60 | DN26: 2684 | DO26: 3394 | DP26: 53 | DR26: -657 | DS26: 0 | DT26: 0 | DU26: 0 | DV26: 7 | DW26: -650 | DX26: 7749 | DY26: 2708 | EA26: -510 | EB26: -6494 | EC26: -1588 | EE26: 4571 | EH26: 20.5 | EJ26: 225 | EQ26: -10679 | ER26: 265 | ES26: -115 | ET26: -2447 | EU26: 10 | EV26: 1244 | EW26: -6845 | EX26: 0 | EY26: 2549 | EZ26: 3060 | FA26: 7641 | FB26: 10931 | FC26: -7199 | FD26: 2828 | FE26: 4293 | FF26: 45167 | FG26: 29799 | FH26: 15368 | FI26: 4152 | FJ26: 44436 | FK26: 35782 | FL26: 8654 | FM26: 4147 | FN26: 45063 | FO26: 31978 | FP26: 13085 | FQ26: 4142 | FR26: 1359
A27: 86 | B27: Hausjärvi | C27: 8641 | E27: 0.8060370592 | F27: 48.82221671 | G27: -3113.759981 | K27: 37.22136394 | L27: 521.5831501 | M27: 22.83847008 | N27: 8335.840759 | P27: 22652 | Q27: 63212 | R27: 2 | S27: -40558 | T27: 32433 | U27: 13476 | X27: -420 | Y27: 32 | Z27: 4963 | AA27: 2781 | AB27: 0 | AC27: 0 | AD27: 2182 | AE27: -6 | AF27: 26 | AG27: -6 | AH27: 0 | AI27: 2196 | AJ27: 5692 | AK27: 4848 | AM27: -480 | AN27: -6261 | AO27: 3087 | AT27: 21.5 | AV27: 202 | AW27: 8504 | AY27: 0.6311010216 | AZ27: 48.25844577 | BA27: -3209.783631 | BE27: 38.30088111 | BF27: 469.0733772 | BG27: 22.05670267 | BH27: 7762.347131 | BJ27: 22886 | BK27: 64775 | BL27: 2 | BM27: -41887 | BN27: 32232 | BO27: 13585 | BR27: -326 | BS27: -49 | BT27: 3555 | BU27: 2774 | BV27: 138 | BX27: 919 | BY27: 4 | BZ27: 1 | CA27: -11 | CB27: 0 | CC27: 913 | CD27: 6568 | CE27: 3659 | CG27: 188 | CH27: -5830 | CI27: -415 | CN27: 21.5 | CP27: 271 | CQ27: 8417 | CS27: 0.386077989 | CT27: 46.50316293 | CU27: -3211.120352 | CY27: 38.44146512 | CZ27: 307.9482001 | DA27: 12.74490786 | DB27: 8819.294285 | DD27: 23068 | DE27: 65796 | DF27: 3 | DG27: -42725 | DH27: 31690 | DI27: 13375 | DL27: -249 | DM27: 45 | DN27: 2136 | DO27: 3128 | DP27: 0 | DR27: -992 | DS27: -1 | DT27: 1 | DU27: -13 | DV27: 0 | DW27: -1005 | DX27: 5773 | DY27: 2225 | EA27: -193 | EB27: -5946 | EC27: 226 | EE27: 2810 | EH27: 21.5 | EJ27: 238 | EQ27: -2120 | ER27: 118 | ES27: 241 | ET27: -5035 | EU27: 96 | EV27: 865 | EW27: -2227 | EX27: 4 | EY27: 224 | EZ27: 478 | FA27: 597 | FB27: 6172 | FC27: -800 | FD27: 430 | FE27: 3181 | FF27: 26959 | FG27: 20331 | FH27: 6628 | FI27: 177 | FJ27: 26501 | FK27: 20536 | FL27: 5965 | FM27: 159 | FN27: 24166 | FO27: 16327 | FP27: 7839 | FQ27: 142 | FR27: 3610
A28: 111 | B28: Heinola | C28: 19350 | E28: 0.9683996908 | F28: 54.74735839 | G28: -298.8113695 | K28: 54.73999682 | L28: 4359.018088 | M28: 148.9833047 | N28: 10679.32817 | P28: 73429 | Q28: 178811 | R28: 0 | S28: -105382 | T28: 71326 | U28: 41022 | X28: -775 | Y28: 3020 | Z28: 9211 | AA28: 10104 | AB28: -14 | AC28: 0 | AD28: -907 | AE28: -1 | AF28: -2 | AG28: 0 | AH28: 54 | AI28: -856 | AJ28: 22036 | AK28: 9394 | AM28: -1636 | AN28: -9538 | AO28: -3992 | AT28: 20.5 | AV28: 240 | AW28: 19128 | AY28: 1.351977401 | AZ28: 54.51156277 | BA28: -595.9849435 | BE28: 52.29065716 | BF28: 4677.593057 | BG28: 167.534384 | BH28: 10190.87202 | BJ28: 99479 | BK28: 201269 | BL28: 8 | BM28: -101782 | BN28: 69813 | BO28: 42076 | BR28: -744 | BS28: 4126 | BT28: 13489 | BU28: 9896 | BV28: 162 | BX28: 3755 | BY28: -3 | BZ28: 146 | CA28: 0 | CB28: -70 | CC28: 3828 | CD28: 25618 | CE28: 13607 | CG28: -2789 | CH28: -9751 | CI28: -1751 | CN28: 20.5 | CP28: 177 | CQ28: 18889 | CS28: 1.358682798 | CT28: 52.84661847 | CU28: -710.9958177 | CY28: 53.46004357 | CZ28: 4586.373021 | DA28: 135.1080157 | DB28: 12390.28006 | DD28: 105165 | DE28: 202938 | DF28: 0 | DG28: -97773 | DH28: 68917 | DI28: 42965 | DL28: -739 | DM28: 772 | DN28: 14142 | DO28: 8695 | DP28: 614 | DR28: 6061 | DS28: -1 | DT28: 100 | DU28: -3 | DV28: -31 | DW28: 6126 | DX28: 31535 | DY28: 11290 | EA28: -282 | EB28: -10199 | EC28: -2547 | EE28: 20 | EH28: 20.5 | EJ28: 63 | EQ28: -16223 | ER28: 2102 | ES28: 735 | ET28: -18900 | EU28: 1320 | EV28: 2222 | EW28: -18035 | EX28: 28 | EY28: 4170 | EZ28: 18944 | FA28: 2988 | FB28: 22779 | FC28: -4010 | FD28: 8195 | FE28: 62 | FF28: 76029 | FG28: 54259 | FH28: 21770 | FI28: 161 | FJ28: 85052 | FK28: 66850 | FL28: 18202 | FM28: 1773 | FN28: 83094 | FO28: 65285 | FP28: 17809 | FQ28: 1773 | FR28: 21
A29: 90 | B29: Heinävesi | C29: 3514 | E29: 1.999041227 | F29: 73.25062997 | G29: -5664.484917 | K29: 26.56906602 | L29: 1409.220262 | M29: 48.02657101 | N29: 10710.01707 | P29: 10299 | Q29: 34474 | R29: 0 | S29: -24175 | T29: 11892 | U29: 13922 | X29: 64 | Y29: 300 | Z29: 2003 | AA29: 2526 | AB29: 0 | AC29: 0 | AD29: -523 | AE29: 0 | AF29: 267 | AG29: 0 | AH29: -1 | AI29: -257 | AJ29: 600 | AK29: 1984 | AM29: -2 | AN29: -961 | AO29: 452 | AT29: 20.75 | AV29: 205 | AW29: 3455 | AY29: 3.214750542 | AZ29: 63.10575511 | BA29: -5071.201158 | BE29: 27.4105613 | BF29: 2299.855282 | BG29: 77.12921841 | BH29: 10883.64689 | BJ29: 16905 | BK29: 39957 | BL29: 0 | BM29: -23052 | BN29: 12055 | BO29: 13941 | BR29: 117 | BS29: 346 | BT29: 3407 | BU29: 2451 | BV29: -198 | BX29: 758 | BY29: 2 | BZ29: -16 | CA29: 0 | CB29: 10 | CC29: 754 | CD29: 1849 | CE29: 3509 | CG29: -214 | CH29: -865 | CI29: 262 | CN29: 20.75 | CP29: 110 | CQ29: 3329 | CS29: 0.801421092 | CT29: 60.27019245 | CU29: -4835.686392 | CY29: 30.20671141 | CZ29: 2228.597176 | DA29: 61.75732074 | DB29: 13171.52298 | DD29: 16627 | DE29: 40008 | DF29: 0 | DG29: -23381 | DH29: 11515 | DI29: 13532 | DL29: 131 | DM29: 310 | DN29: 2107 | DO29: 1893 | DP29: 79 | DR29: 293 | DS29: 2 | DT29: -10 | DU29: 0 | DV29: 1 | DW29: 286 | DX29: 2041 | DY29: 2004 | EA29: 24 | EB29: -2638 | EC29: 928 | EE29: 0 | EH29: 21 | EJ29: 98 | EQ29: -1903 | ER29: 342 | ES29: 29 | ET29: -3779 | EU29: 33 | EV29: 499 | EW29: -1156 | EX29: 34 | EY29: 46 | EZ29: 106 | FA29: 1000 | FB29: 2381 | FC29: 2127 | FD29: 0 | FE29: 798 | FF29: 21181 | FG29: 7233 | FH29: 13948 | FI29: 0 | FJ29: 23378 | FK29: 5526 | FL29: 17852 | FM29: 0 | FN29: 21270 | FO29: 4557 | FP29: 16713 | FQ29: 0 | FR29: 0
A30: 91 | B30: Helsinki | C30: 635181 | E30: 1.687631258 | F30: 91.16286439 | G30: -6726.30636 | K30: 60.07768361 | L30: 1980.082843 | M30: 58.98894248 | N30: 12251.96125 | P30: 3156032 | Q30: 5604281 | R30: 9883 | S30: -2438366 | T30: 3205605 | U30: 316330 | X30: -56998 | Y30: 5412 | Z30: 1031983 | AA30: 676631 | AB30: 272830 | AC30: 0 | AD30: 628182 | AE30: 1754 | AF30: -12546 | AG30: -10906 | AH30: -8052 | AI30: 598432 | AJ30: 4153306 | AK30: 1001650 | AM30: -115793 | AN30: -581447 | AO30: -37322 | AT30: 18.5 | AV30: 4 | AW30: 643272 | AY30: 3.509177835 | AZ30: 89.17479081 | BA30: -6375.679339 | BE30: 61.44521722 | BF30: 2382.259759 | BG30: 121.6089481 | BH30: 7150.171312 | BJ30: 3368014 | BK30: 5549282 | BL30: 23333 | BM30: -2157935 | BN30: 3380795 | BO30: 220442 | BR30: -51809 | BS30: 1171 | BT30: 1392664 | BU30: 709312 | BV30: 2493 | BX30: 685844 | BY30: 1289 | BZ30: -15738 | CA30: -12602 | CB30: -10463 | CC30: 648330 | CD30: 4770587 | CE30: 1193637 | CG30: -23272 | CH30: -347200 | CI30: 171265 | CN30: 18.5 | CP30: 2 | CQ30: 648042 | CS30: 3.86669318 | CT30: 87.44808177 | CU30: -6435.747992 | CY30: 62.31249088 | CZ30: 2328.42933 | DA30: 69.8428701 | DB30: 12168.41038 | DD30: 3551633 | DE30: 5797476 | DF30: 14523 | DG30: -2231320 | DH30: 3416582 | DI30: 197861 | DL30: -40875 | DM30: 15758 | DN30: 1358006 | DO30: 780501 | DP30: -18391 | DR30: 559114 | DS30: 1312 | DT30: 2050 | DU30: -15145 | DV30: -18959 | DW30: 528372 | DX30: 5249606 | DY30: 1166306 | EA30: -5963 | EB30: -305620 | EC30: -34525 | EE30: 297163 | EH30: 18 | EJ30: 2 | EQ30: -1505347 | ER30: 20003 | ES30: 446372 | ET30: -1385994 | EU30: 33379 | EV30: 330243 | EW30: -1718766 | EX30: 11511 | EY30: 506424 | EZ30: 534986 | FA30: -24788 | FB30: 417793 | FC30: -26229 | FD30: 366423 | FE30: -891 | FF30: 4940025 | FG30: 4661008 | FH30: 279017 | FI30: 478671 | FJ30: 4984749 | FK30: 4716499 | FL30: 268250 | FM30: 480390 | FN30: 4983823 | FO30: 4654445 | FP30: 329378 | FQ30: 478189 | FR30: 316055
A31: 97 | B31: Hirvensalmi | C31: 2274 | E31: 2.396694215 | F31: 46.62843664 | G31: -1338.610378 | K31: 49.18318992 | L31: 3117.854002 | M31: 102.9416445 | N31: 11054.96922 | P31: 10076 | Q31: 22968 | R31: 0 | S31: -12892 | T31: 7377 | U31: 7135 | X31: -111 | Y31: 118 | Z31: 1627 | AA31: 1289 | AB31: 1 | AC31: 0 | AD31: 339 | AE31: -4 | AF31: -6 | AG31: 0 | AH31: -1 | AI31: 328 | AJ31: 3014 | AK31: 1667 | AM31: 161 | AN31: -613 | AO31: 314 | AT31: 19.5 | AV31: 137 | AW31: 2236 | AY31: 2.46911958 | AZ31: 45.31962331 | BA31: -1069.767442 | BE31: 45.92717718 | BF31: 4306.797853 | BG31: 124.6480372 | BH31: 12611.35957 | BJ31: 15101 | BK31: 28513 | BL31: 0 | BM31: -13412 | BN31: 7602 | BO31: 7348 | BR31: -101 | BS31: 335 | BT31: 1772 | BU31: 1252 | BV31: 1 | BX31: 521 | BY31: -5 | BZ31: 10 | CA31: 0 | CB31: -1 | CC31: 525 | CD31: 3417 | CE31: 1690 | CG31: -266 | CH31: -654 | CI31: 774 | CN31: 20 | CP31: 135 | CQ31: 2152 | CS31: 3.363888889 | CT31: 47.20971216 | CU31: -577.1375465 | CY31: 46.2694465 | CZ31: 5256.505576 | DA31: 133.8112523 | DB31: 14338.28996 | DD31: 15911 | DE31: 28468 | DF31: 5 | DG31: -12552 | DH31: 7616 | DI31: 7115 | DL31: -95 | DM31: 236 | DN31: 2320 | DO31: 1561 | DP31: 6 | DR31: 765 | DS31: -1 | DT31: 0 | DU31: 0 | DV31: -5 | DW31: 759 | DX31: 4299 | DY31: 2137 | EA31: -315 | EB31: -618 | EC31: 879 | EE31: 734 | EH31: 20 | EJ31: 16 | EQ31: -1420 | ER31: 12 | ES31: 55 | ET31: -1093 | EU31: 24 | EV31: 153 | EW31: -1667 | EX31: 73 | EY31: 336 | EZ31: 21 | FA31: 305 | FB31: 895 | FC31: 335 | FD31: 993 | FE31: -397 | FF31: 7682 | FG31: 6220 | FH31: 1462 | FI31: 0 | FJ31: 8258 | FK31: 6457 | FL31: 1801 | FM31: 0 | FN31: 8236 | FO31: 6839 | FP31: 1397 | FQ31: 0 | FR31: 814
A32: 98 | B32: Hollola | C32: 23791 | E32: 1.442199681 | F32: 46.39061323 | G32: -3247.152284 | K32: 40.45399958 | L32: 1343.575302 | M32: 42.37280595 | N32: 11573.57824 | P32: 140184 | Q32: 250012 | R32: 31 | S32: -109797 | T32: 90990 | U32: 35755 | X32: -933 | Y32: 245 | Z32: 16260 | AA32: 10542 | AB32: -14 | AC32: 0 | AD32: 5704 | AE32: -34 | AF32: -1 | AG32: 0 | AH32: -56 | AI32: 5613 | AJ32: 18195 | AK32: 15997 | AM32: 202 | AN32: -10985 | AO32: 4004 | AT32: 21 | AV32: 147 | AW32: 23782 | AY32: 8.940217391 | AZ32: 48.86981974 | BA32: -3149.693045 | BE32: 43.98048856 | BF32: 1010.25986 | BG32: 44.57242042 | BH32: 8272.937516 | BJ32: 96659 | BK32: 211063 | BL32: -22 | BM32: -114426 | BN32: 91982 | BO32: 41632 | BR32: -849 | BS32: 545 | BT32: 18884 | BU32: 14390 | BV32: 152 | BX32: 4646 | BY32: 194 | BZ32: -1 | CA32: 0 | CB32: 68 | CC32: 4907 | CD32: 23158 | CE32: 18487 | CG32: 1247 | CH32: -1352 | CI32: 3528 | CN32: 21 | CP32: 133 | CQ32: 23602 | CS32: 6.574035454 | CT32: 44.2702093 | CU32: -2953.732735 | CY32: 46.19073405 | CZ32: 814.3801373 | DA32: 30.50010651 | DB32: 9745.826625 | DD32: 96626 | DE32: 215890 | DF32: 6 | DG32: -119258 | DH32: 89740 | DI32: 41487 | DL32: -806 | DM32: 613 | DN32: 11776 | DO32: 13660 | DP32: 69 | DR32: -1815 | DS32: -2 | DT32: -1 | DU32: -4 | DV32: -45 | DW32: -1867 | DX32: 21484 | DY32: 10306 | EA32: 1665 | EB32: -1085 | EC32: 5132 | EE32: 140 | EH32: 21 | EJ32: 142 | EQ32: -12995 | ER32: 247 | ES32: 755 | ET32: -18275 | EU32: 5 | EV32: 3311 | EW32: -12018 | EX32: 0 | EY32: 6844 | EZ32: 10200 | FA32: -400 | FB32: 5761 | FC32: -9040 | FD32: 208 | FE32: -8749 | FF32: 79879 | FG32: 70011 | FH32: 9868 | FI32: 119 | FJ32: 75251 | FK32: 65624 | FL32: 9627 | FM32: 1576 | FN32: 65624 | FO32: 56536 | FP32: 9088 | FQ32: 1713 | FR32: 227
A33: 99 | B33: Honkajoki | C33: 1759 | E33: 1.236786469 | F33: 33.85201651 | G33: -3571.347356 | K33: 27.25970853 | L33: 421.8305856 | M33: 10.66595778 | N33: 14435.4747 | P33: 14315 | Q33: 24618 | R33: 0 | S33: -10303 | T33: 6147 | U33: 4730 | X33: -59 | Y33: 10 | Z33: 525 | AA33: 534 | AB33: 0 | AC33: 0 | AD33: -9 | AE33: 1 | AF33: 0 | AG33: 0 | AH33: 0 | AI33: -8 | AJ33: -1525 | AK33: 527 | AM33: 69 | AN33: -413 | AO33: 278 | AT33: 21.5 | AV33: 274 | AW33: 1707 | AY33: 1.518617021 | AZ33: 35.11875309 | BA33: -3541.300527 | BE33: 27.44916821 | BF33: 585.2372583 | BG33: 15.34271649 | BH33: 13922.67135 | BJ33: 13630 | BK33: 23688 | BL33: 0 | BM33: -10058 | BN33: 5972 | BO33: 4650 | BR33: -45 | BS33: 6 | BT33: 525 | BU33: 481 | BV33: 0 | BX33: 44 | BY33: 0 | BZ33: 4 | CA33: 0 | CB33: 0 | CC33: 48 | CD33: -1494 | CE33: 533 | CG33: 32 | CH33: -330 | CI33: 236 | CN33: 22 | CP33: 284 | CQ33: 1666 | CS33: -1.562659847 | CT33: 40.13645306 | CU33: -4245.498199 | CY33: 18.52410901 | CZ33: 780.3121248 | DA33: 18.70245556 | DB33: 15228.69148 | DD33: 13851 | DE33: 24515 | DF33: 0 | DG33: -10664 | DH33: 5268 | DI33: 4772 | DL33: -36 | DM33: 11 | DN33: -649 | DO33: 445 | DP33: 0 | DR33: -1094 | DS33: 0 | DT33: -7 | DU33: 0 | DV33: 0 | DW33: -1101 | DX33: -2552 | DY33: -624 | EA33: 257 | EB33: -353 | EC33: -1068 | EE33: 1359 | EH33: 22 | EJ33: 294 | EQ33: -295 | ER33: 18 | ES33: 28 | ET33: -303 | EU33: 4 | EV33: 2 | EW33: -461 | EX33: 8 | EY33: 9 | EZ33: 7 | FA33: 73 | FB33: 46 | FC33: 660 | FD33: 128 | FE33: 0 | FF33: 4681 | FG33: 3997 | FH33: 684 | FI33: 0 | FJ33: 5057 | FK33: 3701 | FL33: 1356 | FM33: 0 | FN33: 4831 | FO33: 3481 | FP33: 1350 | FQ33: 0 | FR33: 1520
A34: 102 | B34: Huittinen | C34: 10403 | E34: 1.455861877 | F34: 46.35847986 | G34: -2666.923003 | K34: 51.28590265 | L34: 734.884168 | M34: 31.05268136 | N34: 8637.989042 | P34: 25240 | Q34: 82750 | R34: -217 | S34: -57727 | T34: 32587 | U34: 30323 | X34: -252 | Y34: 35 | Z34: 4966 | AA34: 4789 | AB34: -1 | AC34: 0 | AD34: 176 | AE34: -18 | AF34: -34 | AG34: 0 | AH34: 0 | AI34: 124 | AJ34: 10636 | AK34: 4658 | AM34: 562 | AN34: -3329 | AO34: 1994 | AT34: 20.5 | AV34: 239 | AW34: 10207 | AY34: 1.338978635 | AZ34: 48.6813833 | BA34: -2762.613892 | BE34: 50.01056859 | BF34: 916.3319291 | BG34: 41.82300983 | BH34: 7997.060841 | BJ34: 24736 | BK34: 83637 | BL34: 266 | BM34: -58635 | BN34: 33980 | BO34: 29710 | BR34: -229 | BS34: 79 | BT34: 4905 | BU34: 4583 | BV34: 0 | BX34: 322 | BY34: -25 | BZ34: 0 | CA34: -41 | CB34: -25 | CC34: 231 | CD34: 10861 | CE34: 4489 | CG34: -20 | CH34: -3604 | CI34: -823 | CN34: 20.75 | CP34: 260 | CQ34: 10091 | CS34: 0.364763062 | CT34: 54.28499277 | CU34: -3295.808146 | CY34: 45.82097288 | CZ34: 872.6588049 | DA34: 33.03279447 | DB34: 9642.55277 | DD34: 24387 | DE34: 86066 | DF34: 128 | DG34: -61551 | DH34: 32665 | DI34: 30066 | DL34: -224 | DM34: 316 | DN34: 1272 | DO34: 4576 | DP34: -5 | DR34: -3309 | DS34: -6 | DT34: 0 | DU34: -17 | DV34: -22 | DW34: -3354 | DX34: 7513 | DY34: 508 | EA34: 270 | EB34: -3886 | EC34: -5407 | EE34: 300 | EH34: 20.75 | EJ34: 270 | EQ34: -3489 | ER34: 108 | ES34: 717 | ET34: -5894 | EU34: 304 | EV34: 278 | EW34: -7071 | EX34: 416 | EY34: 740 | EZ34: 3423 | FA34: -33 | FB34: 5547 | FC34: 17 | FD34: 6159 | FE34: -10 | FF34: 26616 | FG34: 23255 | FH34: 3361 | FI34: 0 | FJ34: 28572 | FK34: 24882 | FL34: 3690 | FM34: 0 | FN34: 30680 | FO34: 26339 | FP34: 4341 | FQ34: 0 | FR34: 300
A35: 103 | B35: Humppila | C35: 2345 | E35: 0.4511002445 | F35: 41.18511475 | G35: -3109.594883 | K35: 39.3194947 | L35: 247.761194 | M35: 8.497555698 | N35: 10642.21748 | P35: 8777 | Q35: 22399 | R35: 0 | S35: -13622 | T35: 7442 | U35: 6918 | X35: -81 | Y35: -11 | Z35: 646 | AA35: 834 | AB35: 0 | AC35: 0 | AD35: -188 | AE35: 0 | AF35: -25 | AG35: 0 | AH35: 0 | AI35: -213 | AJ35: -842 | AK35: 633 | AM35: 28 | AN35: -1544 | AO35: -82 | AT35: 21.5 | AV35: 277 | AW35: 2290 | AY35: 1.133462282 | AZ35: 42.5686173 | BA35: -3069.432314 | BE35: 39.31691819 | BF35: 312.6637555 | BG35: 11.79917829 | BH35: 9672.052402 | BJ35: 8848 | BK35: 21998 | BL35: 0 | BM35: -13150 | BN35: 7652 | BO35: 6672 | BR35: -63 | BS35: -6 | BT35: 1105 | BU35: 763 | BV35: 5 | BX35: 347 | BY35: 0 | BZ35: 0 | CA35: -33 | CB35: -6 | CC35: 308 | CD35: -573 | CE35: 1063 | CG35: -564 | CH35: -967 | CI35: 286 | CN35: 22 | CP35: 257 | CQ35: 2235 | CS35: 0.4623893805 | CT35: 51.25519314 | CU35: -3637.583893 | CY35: 35.97697999 | CZ35: 473.3780761 | DA35: 15.06123245 | DB35: 11472.03579 | DD35: 8938 | DE35: 22208 | DF35: 0 | DG35: -13270 | DH35: 7252 | DI35: 6436 | DL35: -50 | DM35: -4 | DN35: 364 | DO35: 822 | DP35: 664 | DR35: 206 | DS35: 0 | DT35: 0 | DU35: -29 | DV35: -8 | DW35: 169 | DX35: -444 | DY35: 954 | EA35: -229 | EB35: -850 | EC35: -1368 | EE35: 0 | EH35: 22 | EJ35: 257 | EQ35: -899 | ER35: 34 | ES35: 150 | ET35: -895 | EU35: 45 | EV35: 73 | EW35: -2510 | EX35: 105 | EY35: 83 | EZ35: 661 | FA35: 1125 | FB35: 3128 | FC35: -1462 | FD35: 2049 | FE35: 200 | FF35: 6810 | FG35: 3836 | FH35: 2974 | FI35: 10 | FJ35: 7500 | FK35: 6073 | FL35: 1427 | FM35: 8 | FN35: 8936 | FO35: 7127 | FP35: 1809 | FQ35: 8 | FR35: 0
A36: 105 | B36: Hyrynsalmi | C36: 2406 | E36: 1.006129597 | F36: 37.5343496 | G36: -4282.211139 | K36: 40.44153648 | L36: 549.8753117 | M36: 13.63416907 | N36: 14720.69825 | P36: 16928 | Q36: 33353 | R36: 0 | S36: -16425 | T36: 7537 | U36: 10106 | X36: -69 | Y36: -72 | Z36: 1077 | AA36: 1249 | AB36: 10 | AC36: 0 | AD36: -162 | AE36: 0 | AF36: -14 | AG36: 0 | AH36: 0 | AI36: -176 | AJ36: -2717 | AK36: 1051 | AM36: -93 | AN36: -1070 | AO36: 431 | AT36: 21.75 | AV36: 247 | AW36: 2326 | AY36: 3.074433657 | AZ36: 36.78349712 | BA36: -4039.982803 | BE36: 42.57039893 | BF36: 1037.403267 | BG36: 27.11235955 | BH36: 13966.03611 | BJ36: 16914 | BK36: 32982 | BL36: 0 | BM36: -16068 | BN36: 7838 | BO36: 11169 | BR36: -45 | BS36: -93 | BT36: 2801 | BU36: 1272 | BV36: 0 | BX36: 1529 | BY36: 0 | BZ36: 3 | CA36: 0 | CB36: -25 | CC36: 1507 | CD36: -1654 | CE36: 2823 | CG36: -53 | CH36: -878 | CI36: 1328 | CN36: 21.75 | CP36: 32 | CQ36: 2287 | CS36: 2.036158192 | CT36: 43.72963054 | CU36: -4502.842151 | CY36: 38.08314347 | CZ36: 1517.271535 | DA36: 32.80877629 | DB36: 16879.75514 | DD36: 17513 | DE36: 34689 | DF36: 0 | DG36: -17176 | DH36: 7657 | DI36: 11343 | DL36: -40 | DM36: -26 | DN36: 1758 | DO36: 1707 | DP36: -1 | DR36: 50 | DS36: 0 | DT36: 3 | DU36: 0 | DV36: -12 | DW36: 41 | DX36: -1613 | DY36: 1972 | EA36: -802 | EB36: -841 | EC36: -919 | EE36: 2907 | EH36: 21.75 | EJ36: 56 | EQ36: -820 | ER36: 134 | ES36: 66 | ET36: -1535 | EU36: 15 | EV36: 25 | EW36: -2988 | EX36: 59 | EY36: 38 | EZ36: 1 | FA36: 467 | FB36: 1367 | FC36: -500 | FD36: 2230 | FE36: 478 | FF36: 9172 | FG36: 5850 | FH36: 3322 | FI36: 0 | FJ36: 9162 | FK36: 6383 | FL36: 2779 | FM36: 0 | FN36: 11029 | FO36: 7769 | FP36: 3260 | FQ36: 0 | FR36: 2917
A37: 106 | B37: Hyvinkää | C37: 46596 | E37: 1.979324164 | F37: 70.18691433 | G37: -4791.055026 | K37: 40.69450511 | L37: 1073.375397 | M37: 40.92513507 | N37: 9573.139325 | P37: 169167 | Q37: 377443 | R37: 142 | S37: -208134 | T37: 197930 | U37: 53470 | X37: -3690 | Y37: 144 | Z37: 39720 | AA37: 30728 | AB37: 0 | AC37: 0 | AD37: 8992 | AE37: -51 | AF37: -257 | AG37: -176 | AH37: -559 | AI37: 7949 | AJ37: 49475 | AK37: 35520 | AM37: 1804 | AN37: -18216 | AO37: -3695 | AT37: 19.75 | AV37: 88 | AW37: 46739 | AY37: 2.333458465 | AZ37: 73.28428957 | BA37: -5056.740623 | BE37: 40.012266 | BF37: 1101.949122 | BG37: 54.22505798 | BH37: 7417.445816 | BJ37: 177245 | BK37: 383035 | BL37: 236 | BM37: -205554 | BN37: 197736 | BO37: 51169 | BR37: -3224 | BS37: 119 | BT37: 40246 | BU37: 30538 | BV37: 238 | BX37: 9946 | BY37: -82 | BZ37: -237 | CA37: -200 | CB37: -572 | CC37: 8855 | CD37: 56526 | CE37: 32481 | CG37: -2299 | CH37: -15381 | CI37: -12554 | CN37: 19.75 | CP37: 106 | CQ37: 46504 | CS37: 1.75005381 | CT37: 60.00102543 | CU37: -5679.898503 | CY37: 37.79051338 | CZ37: 1112.829004 | DA37: 30.76307899 | DB37: 13203.57389 | DD37: 315013 | DE37: 533029 | DF37: -71 | DG37: -218087 | DH37: 198798 | DI37: 51806 | DL37: -2977 | DM37: -34 | DN37: 29506 | DO37: 31206 | DP37: 0 | DR37: -1700 | DS37: -62 | DT37: -19 | DU37: -216 | DV37: -65 | DW37: -2062 | DX37: 54416 | DY37: 21640 | EA37: 963 | EB37: -15567 | EC37: -27270 | EE37: 5581 | EH37: 19.75 | EJ37: 97 | EQ37: -46118 | ER37: 2308 | ES37: 4595 | ET37: -55528 | EU37: 787 | EV37: 9706 | EW37: -61875 | EX37: 1043 | EY37: 11922 | EZ37: 40921 | FA37: 1519 | FB37: 26636 | FC37: 0 | FD37: 40302 | FE37: -1634 | FF37: 225234 | FG37: 209635 | FH37: 15599 | FI37: 2037 | FJ37: 236489 | FK37: 220708 | FL37: 15781 | FM37: 2006 | FN37: 259590 | FO37: 242417 | FP37: 17173 | FQ37: 1974 | FR37: 5700
A38: 108 | B38: Hämeenkyrö | C38: 10681 | E38: 1.945454545 | F38: 79.23557043 | G38: -5371.407172 | K38: 32.55929644 | L38: 1126.767157 | M38: 42.02687447 | N38: 9785.881472 | P38: 34877 | Q38: 87294 | R38: 17 | S38: -52400 | T38: 36062 | U38: 22307 | X38: -381 | Y38: 38 | Z38: 5626 | AA38: 7669 | AB38: 52 | AC38: 0 | AD38: -1991 | AE38: -81 | AF38: 5 | AG38: -55 | AH38: -40 | AI38: -2162 | AJ38: 5223 | AK38: 5626 | AM38: 818 | AN38: -2662 | AO38: -7391 | AT38: 21 | AV38: 217 | AW38: 10599 | AY38: 2.199082816 | AZ38: 78.24421965 | BA38: -5617.794132 | BE38: 32.25015648 | BF38: 1046.796868 | BG38: 48.83244905 | BH38: 7824.323049 | BJ38: 36936 | BK38: 89241 | BL38: 56 | BM38: -52249 | BN38: 38179 | BO38: 21765 | BR38: -410 | BS38: 388 | BT38: 7673 | BU38: 6635 | BV38: 0 | BX38: 1038 | BY38: -96 | BZ38: 9 | CA38: -62 | CB38: -59 | CC38: 830 | CD38: 5670 | CE38: 7525 | CG38: -689 | CH38: -3228 | CI38: -1987 | CN38: 22 | CP38: 168 | CQ38: 10510 | CS38: 2.29941127 | CT38: 83.01581687 | CU38: -6160.513796 | CY38: 30.59954241 | CZ38: 1141.484301 | DA38: 40.34592846 | DB38: 10326.73644 | DD38: 40010 | DE38: 91156 | DF38: 7 | DG38: -51139 | DH38: 37360 | DI38: 21575 | DL38: -363 | DM38: 367 | DN38: 7800 | DO38: 6895 | DP38: 0 | DR38: 905 | DS38: -87 | DT38: 1 | DU38: -67 | DV38: -43 | DW38: 709 | DX38: 5974 | DY38: 7606 | EA38: -227 | EB38: -3165 | EC38: -4929 | EE38: 84 | EH38: 22 | EJ38: 65 | EQ38: -13776 | ER38: 531 | ES38: 228 | ET38: -10296 | EU38: 234 | EV38: 550 | EW38: -13636 | EX38: 490 | EY38: 611 | EZ38: 3372 | FA38: 7425 | FB38: 7425 | FC38: -1015 | FD38: 4386 | FE38: 4104 | FF38: 58524 | FG38: 42280 | FH38: 16244 | FI38: 32 | FJ38: 61756 | FK38: 46520 | FL38: 15236 | FM38: 29 | FN38: 67089 | FO38: 47620 | FP38: 19469 | FQ38: 27 | FR38: 84
A39: 109 | B39: Hämeenlinna | C39: 67850 | E39: 1.502901825 | F39: 85.83162285 | G39: -5377.361828 | K39: 39.3976037 | L39: 1712.070744 | M39: 63.1109014 | N39: 9901.709654 | P39: 218006 | Q39: 571540 | R39: 603 | S39: -352931 | T39: 272446 | U39: 117077 | X39: -9036 | Y39: 6124 | Z39: 33680 | AA39: 40104 | AB39: 0 | AC39: 0 | AD39: -6424 | AE39: 136 | AF39: -18 | AG39: -2 | AH39: -37 | AI39: -6345 | AJ39: 5228 | AK39: 30507 | AM39: -1884 | AN39: -19209 | AO39: -28511 | AT39: 20.5 | AV39: 231 | AW39: 67662 | AY39: 0.9044351464 | AZ39: 86.30282338 | BA39: -5342.319175 | BE39: 39.11525054 | BF39: 1796.370193 | BG39: 77.8426033 | BH39: 8423.088292 | BJ39: 222299 | BK39: 566706 | BL39: 800 | BM39: -343607 | BN39: 278641 | BO39: 113537 | BR39: -10331 | BS39: 5012 | BT39: 43252 | BU39: 42380 | BV39: 1471 | BX39: 2343 | BY39: 168 | BZ39: 2 | CA39: -12 | CB39: 82 | CC39: 2583 | CD39: 8011 | CE39: 43191 | CG39: -6929 | CH39: -48962 | CI39: -3066 | CN39: 20.75 | CP39: 212 | CQ39: 67532 | CS39: 0.8543748904 | CT39: 86.05664243 | CU39: -5422.629272 | CY39: 38.07328659 | CZ39: 1859.11864 | DA39: 65.53576127 | DB39: 10354.32091 | DD39: 229427 | DE39: 577780 | DF39: 590 | DG39: -347763 | DH39: 278719 | DI39: 113720 | DL39: -9301 | DM39: 3456 | DN39: 38831 | DO39: 50268 | DP39: 0 | DR39: -11437 | DS39: -162 | DT39: 7469 | DU39: -106 | DV39: -77 | DW39: -4313 | DX39: 3715 | DY39: 30936 | EA39: -2512 | EB39: -47136 | EC39: -11262 | EE39: 17963 | EH39: 20.75 | EJ39: 123 | EQ39: -71492 | ER39: 566 | ES39: 11908 | ET39: -57216 | EU39: 635 | EV39: 10324 | EW39: -61347 | EX39: 272 | EY39: 18877 | EZ39: 49430 | FA39: 13430 | FB39: 25181 | FC39: 27306 | FD39: 64307 | FE39: -4102 | FF39: 428009 | FG39: 364950 | FH39: 63059 | FI39: 965 | FJ39: 426284 | FK39: 358090 | FL39: 68194 | FM39: 1202 | FN39: 432523 | FO39: 362552 | FP39: 69971 | FQ39: 1213 | FR39: 18820
A40: 139 | B40: Ii | C40: 9628 | E40: 1.05731142 | F40: 56.01448558 | G40: -5481.304528 | K40: 37.53637502 | L40: 784.8982135 | M40: 21.07474672 | N40: 13593.89281 | P40: 62339 | Q40: 113763 | R40: 1 | S40: -51423 | T40: 31222 | U40: 27663 | X40: -652 | Y40: 45 | Z40: 6855 | AA40: 5948 | AB40: 0 | AC40: 0 | AD40: 907 | AE40: -5 | AF40: 545 | AG40: -75 | AH40: -66 | AI40: 1306 | AJ40: 13291 | AK40: 7036 | AM40: 608 | AN40: -6447 | AO40: -2666 | AT40: 21.25 | AV40: 140 | AW40: 9966 | AY40: 1.051624983 | AZ40: 64.8454084 | BA40: -5848.284166 | BE40: 35.28961202 | BF40: 1141.8824 | BG40: 39.64664783 | BH40: 10512.54264 | BJ40: 59869 | BK40: 111519 | BL40: 4 | BM40: -51646 | BN40: 31639 | BO40: 27677 | BR40: -565 | BS40: 167 | BT40: 7272 | BU40: 5869 | BV40: 0 | BX40: 1403 | BY40: -9 | BZ40: 42 | CA40: -4 | CB40: -120 | CC40: 1312 | CD40: 14529 | CE40: 6754 | CG40: 1274 | CH40: -6886 | CI40: -5421 | CN40: 21.25 | CP40: 164 | CQ40: 9862 | CS40: 0.5606060606 | CT40: 66.05822213 | CU40: -6586.595011 | CY40: 33.58154625 | CZ40: 820.4218211 | DA40: 21.06895961 | DB40: 14213.03995 | DD40: 60810 | DE40: 118217 | DF40: 3 | DG40: -57404 | DH40: 32091 | DI40: 30145 | DL40: -631 | DM40: 205 | DN40: 4406 | DO40: 6056 | DP40: 486 | DR40: -1164 | DS40: -7 | DT40: -52 | DU40: -6 | DV40: -53 | DW40: -1282 | DX40: 13144 | DY40: 3782 | EA40: -23 | EB40: -8379 | EC40: -7047 | EE40: 571 | EH40: 21.25 | EJ40: 162 | EQ40: -9984 | ER40: 169 | ES40: 113 | ET40: -14238 | EU40: 222 | EV40: 1841 | EW40: -12859 | EX40: 316 | EY40: 1714 | EZ40: 1243 | FA40: 5840 | FB40: 12549 | FC40: 1588 | FD40: 14523 | FE40: -2432 | FF40: 44502 | FG40: 26990 | FH40: 17512 | FI40: 326 | FJ40: 52711 | FK40: 33611 | FL40: 19100 | FM40: 225 | FN40: 57005 | FO40: 40347 | FP40: 16658 | FQ40: 298 | FR40: 714
A41: 140 | B41: Iisalmi | C41: 21767 | E41: 1.336864959 | F41: 48.14522124 | G41: -3550.971654 | K41: 44.79620511 | L41: 1483.805761 | M41: 40.85152611 | N41: 13257.49989 | P41: 118051 | Q41: 241172 | R41: 406 | S41: -122715 | T41: 74672 | U41: 62887 | X41: -428 | Y41: 445 | Z41: 14861 | AA41: 12226 | AB41: 321 | AC41: 0 | AD41: 2956 | AE41: -29 | AF41: 1279 | AG41: -13 | AH41: -171 | AI41: 4022 | AJ41: 26532 | AK41: 14656 | AM41: 927 | AN41: -10982 | AO41: -15199 | AT41: 20.5 | AV41: 148 | AW41: 21639 | AY41: 1.852766431 | AZ41: 50.26634513 | BA41: -3883.774666 | BE41: 44.62681669 | BF41: 1582.281991 | BG41: 54.91938248 | BH41: 10516.01275 | BJ41: 120731 | BK41: 242112 | BL41: 653 | BM41: -120728 | BN41: 75009 | BO41: 64261 | BR41: -416 | BS41: 1268 | BT41: 19394 | BU41: 14003 | BV41: -15 | BX41: 5376 | BY41: -41 | BZ41: -25 | CA41: -17 | CB41: -224 | CC41: 5069 | CD41: 32377 | CE41: 18930 | CG41: 914 | CH41: -10208 | CI41: -6264 | CN41: 20.5 | CP41: 96 | CQ41: 21472 | CS41: 1.180191824 | CT41: 55.25592692 | CU41: -3969.821162 | CY41: 42.94388665 | CZ41: 2118.945604 | DA41: 59.05259228 | DB41: 13097.05663 | DD41: 118486 | DE41: 243970 | DF41: 571 | DG41: -124913 | DH41: 74684 | DI41: 67041 | DL41: -547 | DM41: 426 | DN41: 16691 | DO41: 15532 | DP41: 2327 | DR41: 3486 | DS41: -9 | DT41: 400 | DU41: -11 | DV41: -202 | DW41: 3664 | DX41: 36042 | DY41: 15187 | EA41: -631 | EB41: -14042 | EC41: -2069 | EE41: 3360 | EH41: 20.5 | EJ41: 54 | EQ41: -34841 | ER41: 697 | ES41: 4289 | ET41: -26205 | EU41: 458 | EV41: 553 | EW41: -21369 | EX41: 235 | EY41: 3878 | EZ41: 24385 | FA41: -31 | FB41: 16159 | FC41: 953 | FD41: 26744 | FE41: -1529 | FF41: 91334 | FG41: 79556 | FH41: 11778 | FI41: 0 | FJ41: 98358 | FK41: 83036 | FL41: 15322 | FM41: 0 | FN41: 109138 | FO41: 95345 | FP41: 13793 | FQ41: 0 | FR41: 3258
A42: 142 | B42: Iitti | C42: 6889 | E42: 1.21223565 | F42: 50.98116506 | G42: -3155.029758 | K42: 44.49576597 | L42: 817.68036 | M42: 34.34469222 | N42: 8689.940485 | P42: 19087 | Q42: 55200 | R42: 0 | S42: -36113 | T42: 23613 | U42: 15649 | X42: -263 | Y42: 50 | Z42: 2936 | AA42: 3254 | AB42: 115 | AC42: 0 | AD42: -203 | AE42: 0 | AF42: 0 | AG42: 0 | AH42: 42 | AI42: -161 | AJ42: 534 | AK42: 3028 | AM42: 1160 | AN42: -2374 | AO42: 1247 | AT42: 20.25 | AV42: 254 | AW42: 6820 | AY42: 1.100979653 | AZ42: 45.76598998 | BA42: -3017.595308 | BE42: 43.10183914 | BF42: 975.9530792 | BG42: 37.4884654 | BH42: 9502.199413 | BJ42: 27351 | BK42: 63863 | BL42: 0 | BM42: -36512 | BN42: 24167 | BO42: 15180 | BR42: -220 | BS42: 83 | BT42: 2698 | BU42: 3068 | BV42: 0 | BX42: -370 | BY42: 0 | BZ42: 0 | CA42: 0 | CB42: 0 | CC42: -370 | CD42: 316 | CE42: 2676 | CG42: -909 | CH42: -2430 | CI42: 1234 | CN42: 20.25 | CP42: 275 | CQ42: 6765 | CS42: 0.9592875318 | CT42: 46.51900161 | CU42: -2939.837398 | CY42: 42.04749514 | CZ42: 1188.765706 | DA42: 42.70875467 | DB42: 10159.49741 | DD42: 28376 | DE42: 64468 | DF42: 0 | DG42: -36092 | DH42: 23237 | DI42: 14934 | DL42: -175 | DM42: 176 | DN42: 2080 | DO42: 2918 | DP42: 230 | DR42: -608 | DS42: 0 | DT42: 0 | DU42: 0 | DV42: 0 | DW42: -608 | DX42: -290 | DY42: 2239 | EA42: 262 | EB42: -2176 | EC42: 879 | EE42: 956 | EH42: 20.75 | EJ42: 213 | EQ42: -1996 | ER42: 8 | ES42: 207 | ET42: -1754 | EU42: 214 | EV42: 98 | EW42: -1864 | EX42: 286 | EY42: 218 | EZ42: 207 | FA42: 0 | FB42: 1655 | FC42: 0 | FD42: 1801 | FE42: 0 | FF42: 21440 | FG42: 19012 | FH42: 2428 | FI42: 6 | FJ42: 20664 | FK42: 18468 | FL42: 2196 | FM42: 30 | FN42: 20291 | FO42: 17759 | FP42: 2532 | FQ42: 30 | FR42: 1219
A43: 143 | B43: Ikaalinen | C43: 7128 | E43: 2.759109312 | F43: 67.06846673 | G43: -5831.790123 | K43: 31.51375288 | L43: 1021.885522 | M43: 30.6092703 | N43: 12185.46577 | P43: 29801 | Q43: 73413 | R43: 22 | S43: -43590 | T43: 25046 | U43: 23965 | X43: -205 | Y43: 16 | Z43: 5232 | AA43: 3743 | AB43: 0 | AC43: 0 | AD43: 1489 | AE43: -101 | AF43: 5 | AG43: -65 | AH43: -35 | AI43: 1293 | AJ43: 3216 | AK43: 5086 | AM43: 2049 | AN43: -1756 | AO43: -5352 | AT43: 21.25 | AV43: 129 | AW43: 7119 | AY43: 2.075112669 | AZ43: 71.39059644 | BA43: -6286.557101 | BE43: 30.33273056 | BF43: 930.0463548 | BG43: 34.82677869 | BH43: 9747.295969 | BJ43: 30047 | BK43: 74520 | BL43: 55 | BM43: -44418 | BN43: 25271 | BO43: 22929 | BR43: -197 | BS43: 356 | BT43: 3941 | BU43: 3574 | BV43: 0 | BX43: 367 | BY43: -64 | BZ43: -8 | CA43: -71 | CB43: 5 | CC43: 229 | CD43: 3114 | CE43: 3801 | CG43: 2173 | CH43: -1794 | CI43: -2761 | CN43: 21.25 | CP43: 236 | CQ43: 7003 | CS43: 0.8903256705 | CT43: 74.27735532 | CU43: -6894.616593 | CY43: 27.90992275 | CZ43: 1106.811367 | DA43: 30.72553406 | DB43: 13148.22219 | DD43: 32840 | DE43: 79419 | DF43: 11 | DG43: -46568 | DH43: 24715 | DI43: 25162 | DL43: -279 | DM43: 403 | DN43: 3433 | DO43: 4265 | DP43: 0 | DR43: -832 | DS43: -58 | DT43: 842 | DU43: -82 | DV43: 1 | DW43: -129 | DX43: 2678 | DY43: 4281 | EA43: 1391 | EB43: -3891 | EC43: -3864 | EE43: 315 | EH43: 21.25 | EJ43: 146 | EQ43: -11281 | ER43: 269 | ES43: 574 | ET43: -7259 | EU43: 26 | EV43: 671 | EW43: -8341 | EX43: 90 | EY43: 106 | EZ43: 2197 | FA43: 5674 | FB43: 12219 | FC43: -10197 | FD43: 11239 | FE43: -5798 | FF43: 40729 | FG43: 17436 | FH43: 23293 | FI43: 61 | FJ43: 42644 | FK43: 27968 | FL43: 14676 | FM43: 27 | FN43: 45751 | FO43: 36761 | FP43: 8990 | FQ43: 25 | FR43: 577
A44: 145 | B44: Ilmajoki | C44: 12167 | E44: 1.124514224 | F44: 65.2779588 | G44: -5799.786307 | K44: 31.54297494 | L44: 652.3382921 | M44: 21.16007713 | N44: 11252.48623 | P44: 63437 | Q44: 123278 | R44: 14 | S44: -59827 | T44: 38465 | U44: 28531 | X44: -781 | Y44: -27 | Z44: 6361 | AA44: 4983 | AB44: 0 | AC44: 0 | AD44: 1378 | AE44: -19 | AF44: -220 | AG44: 0 | AH44: -8 | AI44: 1131 | AJ44: 7827 | AK44: 6101 | AM44: 1004 | AN44: -5560 | AO44: 920 | AT44: 20.25 | AV44: 220 | AW44: 12205 | AY44: 1.137695312 | AZ44: 66.08570194 | BA44: -5772.470299 | BE44: 32.22150335 | BF44: 697.5010242 | BG44: 25.70945722 | BH44: 9902.498976 | BJ44: 61655 | BK44: 122728 | BL44: 0 | BM44: -61073 | BN44: 38942 | BO44: 29015 | BR44: -802 | BS44: 95 | BT44: 6177 | BU44: 5027 | BV44: 0 | BX44: 1150 | BY44: -20 | BZ44: -61 | CA44: -5 | CB44: -6 | CC44: 1058 | CD44: 9718 | CE44: 6084 | CG44: 1006 | CH44: -5331 | CI44: -11 | CN44: 20.25 | CP44: 251 | CQ44: 12187 | CS44: 0.7401349417 | CT44: 67.45409021 | CU44: -6057.19209 | CY44: 30.30698839 | CZ44: 640.846804 | DA44: 20.30276268 | DB44: 11521.04702 | DD44: 63377 | DE44: 127869 | DF44: 13 | DG44: -64479 | DH44: 39149 | DI44: 28873 | DL44: -612 | DM44: 54 | DN44: 2985 | DO44: 5050 | DP44: 0 | DR44: -2065 | DS44: -3 | DT44: 13 | DU44: -9 | DV44: -4 | DW44: -2068 | DX44: 7611 | DY44: 2360 | EA44: 609 | EB44: -4256 | EC44: -5200 | EE44: 6075 | EH44: 20.75 | EJ44: 241 | EQ44: -7062 | ER44: 465 | ES44: 1416 | ET44: -8075 | EU44: 321 | EV44: 1659 | EW44: -7458 | EX44: 19 | EY44: -121 | EZ44: 2795 | FA44: 1017 | FB44: 3216 | FC44: 2661 | FD44: 7096 | FE44: -364 | FF44: 67810 | FG44: 59649 | FH44: 8161 | FI44: 233 | FJ44: 68362 | FK44: 58124 | FL44: 10238 | FM44: 118 | FN44: 69346 | FO44: 58779 | FP44: 10567 | FQ44: 117 | FR44: 6254
A45: 146 | B45: Ilomantsi | C45: 5237 | E45: 2.231265509 | F45: 52.17151479 | G45: -4137.483292 | K45: 41.11099369 | L45: 1412.640825 | M45: 39.95191454 | N45: 12905.86213 | P45: 19294 | Q45: 57497 | R45: -4 | S45: -38207 | T45: 17868 | U45: 24477 | X45: -289 | Y45: 328 | Z45: 4177 | AA45: 3190 | AB45: 0 | AC45: 0 | AD45: 987 | AE45: 39 | AF45: 47 | AG45: -21 | AH45: -25 | AI45: 1027 | AJ45: 2494 | AK45: 4168 | AM45: 4 | AN45: -1696 | AO45: -2867 | AT45: 20.75 | AV45: 104 | AW45: 5128 | AY45: 2.191629956 | AZ45: 39.67797116 | BA45: -3652.4961 | BE45: 43.46448816 | BF45: 1555.967239 | BG45: 45.54722322 | BH45: 12468.99376 | BJ45: 31722 | BK45: 70039 | BL45: 4 | BM45: -38313 | BN45: 18359 | BO45: 23577 | BR45: -241 | BS45: 337 | BT45: 3719 | BU45: 3541 | BV45: -157 | BX45: 21 | BY45: 38 | BZ45: -28 | CA45: -11 | CB45: 2 | CC45: 22 | CD45: 2484 | CE45: 3673 | CG45: 2245 | CH45: -1555 | CI45: -3893 | CN45: 20.75 | CP45: 167 | CQ45: 4973 | CS45: 0.6392884179 | CT45: 38.71472697 | CU45: -3818.017293 | CY45: 42.91764335 | CZ45: 1153.830686 | DA45: 27.72677928 | DB45: 15189.2218 | DD45: 33211 | DE45: 70208 | DF45: -1 | DG45: -36998 | DH45: 17060 | DI45: 21278 | DL45: -175 | DM45: 307 | DN45: 1472 | DO45: 3250 | DP45: 0 | DR45: -1778 | DS45: 43 | DT45: 0 | DU45: -2 | DV45: -12 | DW45: -1749 | DX45: 761 | DY45: 1538 | EA45: -459 | EB45: -2425 | EC45: -1014 | EE45: 1051 | EH45: 20.75 | EJ45: 220 | EQ45: -7459 | ER45: 409 | ES45: 15 | ET45: -7938 | EU45: 17 | EV45: 355 | EW45: -2642 | EX45: 18 | EY45: 72 | EZ45: 4652 | FA45: -341 | FB45: 3923 | FC45: -771 | FD45: 505 | FE45: 434 | FF45: 23187 | FG45: 20211 | FH45: 2976 | FI45: 315 | FJ45: 21383 | FK45: 18931 | FL45: 2452 | FM45: 315 | FN45: 19475 | FO45: 17013 | FP45: 2462 | FQ45: 0 | FR45: 1159
A46: 153 | B46: Imatra | C46: 27517 | E46: 1.511658442 | F46: 74.78286949 | G46: -7415.415925 | K46: 34.39426202 | L46: 498.1284297 | M46: 13.46166575 | N46: 13506.26885 | P46: 151530 | Q46: 290861 | R46: 486 | S46: -138845 | T46: 106689 | U46: 65204 | X46: -2364 | Y46: 182 | Z46: 30866 | AA46: 23087 | AB46: 0 | AC46: 0 | AD46: 7779 | AE46: -23 | AF46: 282 | AG46: -279 | AH46: -131 | AI46: 7628 | AJ46: 48119 | AK46: 26688 | AM46: -13381 | AN46: -19565 | AO46: -9247 | AT46: 20 | AV46: 31 | AW46: 27269 | AY46: 1.418109847 | AZ46: 77.71674798 | BA46: -7712.750743 | BE46: 34.28905325 | BF46: 498.294767 | BG46: 17.8946229 | BH46: 10163.81239 | BJ46: 148086 | BK46: 288149 | BL46: -6 | BM46: -140069 | BN46: 105590 | BO46: 65658 | BR46: -2326 | BS46: 212 | BT46: 29065 | BU46: 23575 | BV46: 854 | BX46: 6344 | BY46: -65 | BZ46: 747 | CA46: -374 | CB46: -81 | CC46: 6571 | CD46: 52223 | CE46: 33672 | CG46: 1201 | CH46: -19770 | CI46: -2680 | CN46: 20 | CP46: 61 | CQ46: 26932 | CS46: 0.749921544 | CT46: 116.5497721 | CU46: -8425.88742 | CY46: 30.86629307 | CZ46: 777.1795633 | DA46: 26.01106859 | DB46: 10905.76266 | DD46: 71109 | DE46: 221611 | DF46: 149 | DG46: -150353 | DH46: 102066 | DI46: 67070 | DL46: -2233 | DM46: 193 | DN46: 16743 | DO46: 20807 | DP46: 0 | DR46: -4064 | DS46: 0 | DT46: 407 | DU46: -397 | DV46: -297 | DW46: -4351 | DX46: 49132 | DY46: 17989 | EA46: -7379 | EB46: -23118 | EC46: -21967 | EE46: 2567 | EH46: 20 | EJ46: 102 | EQ46: -58698 | ER46: 2029 | ES46: 20734 | ET46: -41820 | EU46: 463 | EV46: 5005 | EW46: -46611 | EX46: 395 | EY46: 6260 | EZ46: 27534 | FA46: -1186 | FB46: 26785 | FC46: -2370 | FD46: 42800 | FE46: -2371 | FF46: 196872 | FG46: 176057 | FH46: 20815 | FI46: 1244 | FJ46: 200492 | FK46: 181585 | FL46: 18907 | FM46: 1161 | FN46: 219774 | FO46: 201047 | FP46: 18727 | FQ46: 994 | FR46: 4335
A47: 148 | B47: Inari | C47: 6825 | E47: 1.919324222 | F47: 79.99367519 | G47: -6768.351648 | K47: 46.70230928 | L47: 1838.827839 | M47: 52.40952828 | N47: 12806.30037 | P47: 35417 | Q47: 75437 | R47: 0 | S47: -40020 | T47: 26169 | U47: 23792 | X47: -915 | Y47: 127 | Z47: 9153 | AA47: 5155 | AB47: 18 | AC47: 0 | AD47: 4016 | AE47: -155 | AF47: 63 | AG47: 0 | AH47: -45 | AI47: 3879 | AJ47: 17773 | AK47: 8766 | AM47: -1793 | AN47: -4310 | AO47: 2707 | AT47: 19 | AV47: 10 | AW47: 6869 | AY47: 3.410298103 | AZ47: 78.21384984 | BA47: -6460.911341 | BE47: 48.48212567 | BF47: 2073.664289 | BG47: 73.34499542 | BH47: 10319.55161 | BJ47: 38359 | BK47: 76083 | BL47: -2 | BM47: -37726 | BN47: 26677 | BO47: 23456 | BR47: -741 | BS47: 127 | BT47: 11793 | BU47: 5689 | BV47: 1 | BX47: 6105 | BY47: -234 | BZ47: -18 | CA47: -343 | CB47: -260 | CC47: 5250 | CD47: 23370 | CE47: 10887 | CG47: -1037 | CH47: -2899 | CI47: 2147 | CN47: 19 | CP47: 5 | CQ47: 6930 | CS47: 2.460552486 | CT47: 74.83841029 | CU47: -6235.353535 | CY47: 50.0458625 | CZ47: 2168.975469 | DA47: 58.37498936 | DB47: 13561.90476 | DD47: 39087 | DE47: 79381 | DF47: 4 | DG47: -40290 | DH47: 27992 | DI47: 23428 | DL47: -667 | DM47: -65 | DN47: 10398 | DO47: 5562 | DP47: -4 | DR47: 4832 | DS47: -207 | DT47: 44 | DU47: -320 | DV47: -360 | DW47: 3989 | DX47: 26271 | DY47: 9903 | EA47: 1097 | EB47: -3789 | EC47: 1402 | EE47: 39215 | EH47: 19 | EJ47: 4 | EQ47: -6568 | ER47: 214 | ES47: 295 | ET47: -10713 | EU47: 1057 | EV47: 916 | EW47: -9678 | EX47: 467 | EY47: 710 | EZ47: 3036 | FA47: 521 | FB47: 1257 | FC47: 448 | FD47: 2474 | FE47: -265 | FF47: 46440 | FG47: 41207 | FH47: 5233 | FI47: 17 | FJ47: 43499 | FK47: 37760 | FL47: 5739 | FM47: 241 | FN47: 41708 | FO47: 36299 | FP47: 5409 | FQ47: 241 | FR47: 22153
A48: 149 | B48: Inkoo | C48: 5585 | E48: 2.370070779 | F48: 49.68828345 | G48: -3330.170098 | K48: 39.86950549 | L48: 350.4028648 | M48: 15.63578058 | N48: 8179.767234 | P48: 13322 | Q48: 42732 | R48: -1 | S48: -29411 | T48: 25764 | U48: 5987 | X48: -186 | Y48: 3 | Z48: 2157 | AA48: 2080 | AB48: 0 | AC48: 0 | AD48: 77 | AE48: 0 | AF48: 0 | AG48: 0 | AH48: 0 | AI48: 77 | AJ48: 7279 | AK48: 2112 | AM48: 419 | AN48: -802 | AO48: 858 | AT48: 20.75 | AV48: 260 | AW48: 5481 | AY48: 1.08168028 | AZ48: 47.89735977 | BA48: -3251.049079 | BE48: 40.26430114 | BF48: 543.8788542 | BG48: 24.26982959 | BH48: 8179.529283 | BJ48: 15299 | BK48: 44385 | BL48: 0 | BM48: -29086 | BN48: 25578 | BO48: 6278 | BR48: -140 | BS48: 10 | BT48: 2640 | BU48: 2176 | BV48: 0 | BX48: 464 | BY48: 0 | BZ48: 2 | CA48: 0 | CB48: 0 | CC48: 466 | CD48: 7667 | CE48: 2362 | CG48: 53 | CH48: -2430 | CI48: 535 | CN48: 20.75 | CP48: 258 | CQ48: 5403 | CS48: 1.318952234 | CT48: 48.84876394 | CU48: -3266.518601 | CY48: 39.79782118 | CZ48: 864.3346289 | DA48: 33.12185454 | DB48: 9524.893578 | DD48: 16424 | DE48: 46096 | DF48: -3 | DG48: -29675 | DH48: 25976 | DI48: 7112 | DL48: -127 | DM48: 11 | DN48: 3297 | DO48: 2533 | DP48: 0 | DR48: 764 | DS48: 0 | DT48: -2 | DU48: 0 | DV48: 0 | DW48: 762 | DX48: 8429 | DY48: 3134 | EA48: 17 | EB48: -2469 | EC48: 490 | EE48: 397 | EH48: 20.75 | EJ48: 108 | EQ48: -1901 | ER48: 2 | ES48: 645 | ET48: -2175 | EU48: 8 | EV48: 340 | EW48: -2720 | EX48: 28 | EY48: 48 | EZ48: 2207 | FA48: -3116 | FB48: 2993 | FC48: -1013 | FD48: 4088 | FE48: 25 | FF48: 16081 | FG48: 13665 | FH48: 2416 | FI48: 0 | FJ48: 16695 | FK48: 14237 | FL48: 2458 | FM48: 0 | FN48: 18304 | FO48: 15881 | FP48: 2423 | FQ48: 0 | FR48: 443
A49: 151 | B49: Isojoki | C49: 2079 | E49: 2.781690141 | F49: 22.86053635 | G49: -1602.212602 | K49: 60.87960639 | L49: 837.4218374 | M49: 19.92178193 | N49: 15342.95334 | P49: 16560 | Q49: 30504 | R49: 69 | S49: -13875 | T49: 6145 | U49: 9289 | X49: -47 | Y49: 20 | Z49: 1532 | AA49: 846 | AB49: 0 | AC49: 0 | AD49: 686 | AE49: 0 | AF49: -4 | AG49: 0 | AH49: 0 | AI49: 682 | AJ49: 1469 | AK49: 1482 | AM49: -306 | AN49: -520 | AO49: 696 | AT49: 22 | AV49: 128 | AW49: 2032 | AY49: 4.014888337 | AZ49: 21.3057235 | BA49: -1215.059055 | BE49: 63.66039806 | BF49: 1274.606299 | BG49: 31.41637034 | BH49: 14808.56299 | BJ49: 16348 | BK49: 30446 | BL49: 133 | BM49: -13965 | BN49: 6512 | BO49: 9061 | BR49: -45 | BS49: 9 | BT49: 1572 | BU49: 856 | BV49: 0 | BX49: 716 | BY49: -6 | BZ49: 2 | CA49: 0 | CB49: -1 | CC49: 711 | CD49: 2113 | CE49: 1412 | CG49: 512 | CH49: -357 | CI49: 800 | CN49: 22 | CP49: 144 | CQ49: 1976 | CS49: 0.9194029851 | CT49: 26.45626402 | CU49: -1535.425101 | CY49: 57.207777 | CZ49: 1632.591093 | DA49: 35.74759404 | DB49: 16669.53441 | DD49: 16393 | DE49: 30729 | DF49: 129 | DG49: -14207 | DH49: 6172 | DI49: 8645 | DL49: -49 | DM49: 6 | DN49: 567 | DO49: 892 | DP49: 0 | DR49: -325 | DS49: 0 | DT49: 2 | DU49: 0 | DV49: -1 | DW49: -324 | DX49: 1414 | DY49: 479 | EA49: -241 | EB49: -621 | EC49: -726 | EE49: 398 | EH49: 22 | EJ49: 223 | EQ49: -807 | ER49: 20 | ES49: 1 | ET49: -777 | EU49: 20 | EV49: 145 | EW49: -1518 | EX49: 49 | EY49: 264 | EZ49: 306 | FA49: -24 | FB49: 472 | FC49: -89 | FD49: 745 | FE49: 214 | FF49: 3532 | FG49: 2950 | FH49: 582 | FI49: 183 | FJ49: 3508 | FK49: 3080 | FL49: 428 | FM49: 161 | FN49: 3847 | FO49: 3386 | FP49: 461 | FQ49: 4 | FR49: 324
A50: 152 | B50: Isokyrö | C50: 4712 | E50: 1.640079365 | F50: 38.99243491 | G50: -2222.410866 | K50: 56.93351843 | L50: 808.7860781 | M50: 33.03916679 | N50: 8935.059423 | P50: 13506 | Q50: 37806 | R50: 9 | S50: -24291 | T50: 15439 | U50: 12958 | X50: -224 | Y50: 19 | Z50: 3901 | AA50: 1883 | AB50: 0 | AC50: 0 | AD50: 2018 | AE50: -11 | AF50: -61 | AG50: 0 | AH50: 0 | AI50: 1946 | AJ50: 10876 | AK50: 3954 | AM50: 5 | AN50: -2288 | AO50: 2287 | AT50: 21.5 | AV50: 93 | AW50: 4673 | AY50: 2.909733124 | AZ50: 39.40162272 | BA50: -2109.137599 | BE50: 58.74058763 | BF50: 926.8136101 | BG50: 44.37001796 | BH50: 7624.224267 | BJ50: 13217 | BK50: 37748 | BL50: -7 | BM50: -24538 | BN50: 15063 | BO50: 13132 | BR50: -151 | BS50: 42 | BT50: 3548 | BU50: 1886 | BV50: 142 | BX50: 1804 | BY50: -10 | BZ50: -37 | CA50: 0 | CB50: 0 | CC50: 1757 | CD50: 12604 | CE50: 3631 | CG50: 43 | CH50: -1115 | CI50: 660 | CN50: 21.5 | CP50: 152 | CQ50: 4601 | CS50: 2.863636364 | CT50: 42.01660216 | CU50: -2099.760922 | CY50: 58.50819672 | CZ50: 1151.488807 | DA50: 46.37560554 | DB50: 9062.812432 | DD50: 13048 | DE50: 37479 | DF50: 5 | DG50: -24426 | DH50: 14646 | DI50: 13385 | DL50: -144 | DM50: 41 | DN50: 3502 | DO50: 1963 | DP50: 0 | DR50: 1539 | DS50: -1 | DT50: 57 | DU50: 0 | DV50: 0 | DW50: 1595 | DX50: 13710 | DY50: 3476 | EA50: -95 | EB50: -1124 | EC50: 609 | EE50: 662 | EH50: 21.5 | EJ50: 58 | EQ50: -1762 | ER50: 60 | ES50: 35 | ET50: -3414 | EU50: 0 | EV50: 443 | EW50: -2914 | EX50: 3 | EY50: 44 | EZ50: 99 | FA50: 0 | FB50: 874 | FC50: -206 | FD50: 954 | FE50: -3 | FF50: 10140 | FG50: 8567 | FH50: 1573 | FI50: 7 | FJ50: 9694 | FK50: 8327 | FL50: 1367 | FM50: 6 | FN50: 9520 | FO50: 8249 | FP50: 1271 | FQ50: 3 | FR50: 661
A51: 165 | B51: Janakkala | C51: 16709 | E51: 0.9280521901 | F51: 66.25392969 | G51: -4107.008199 | K51: 35.25548703 | L51: 925.8483452 | M51: 37.44024136 | N51: 9025.974026 | P51: 48225 | Q51: 130113 | R51: 0 | S51: -81888 | T51: 62843 | U51: 28892 | X51: -683 | Y51: 83 | Z51: 9247 | AA51: 7484 | AB51: 0 | AC51: 0 | AD51: 1763 | AE51: -8 | AF51: 5 | AG51: -72 | AH51: -162 | AI51: 1526 | AJ51: 3431 | AK51: 8932 | AM51: -1318 | AN51: -10019 | AO51: 779 | AT51: 20.5 | AV51: 210 | AW51: 16607 | AY51: 0.8055278055 | AZ51: 65.14520985 | BA51: -3869.693503 | BE51: 37.86932053 | BF51: 963.3889324 | BG51: 44.79896741 | BH51: 7849.220208 | BJ51: 43023 | BK51: 123571 | BL51: 0 | BM51: -80548 | BN51: 64611 | BO51: 27894 | BR51: -637 | BS51: 121 | BT51: 11441 | BU51: 7908 | BV51: 292 | BX51: 3825 | BY51: -7 | BZ51: 4 | CA51: -79 | CB51: -10 | CC51: 3733 | CD51: 7147 | CE51: 11548 | CG51: 608 | CH51: -14361 | CI51: 4423 | CN51: 21 | CP51: 182 | CQ51: 16447 | CS51: 0.5884319366 | CT51: 67.71880017 | CU51: -4106.098377 | CY51: 36.68134736 | CZ51: 859.6096553 | DA51: 34.71653559 | DB51: 9037.696844 | DD51: 44691 | DE51: 127061 | DF51: 0 | DG51: -82370 | DH51: 63114 | DI51: 26747 | DL51: -612 | DM51: 64 | DN51: 6943 | DO51: 7938 | DP51: 80 | DR51: -915 | DS51: 0 | DT51: 1 | DU51: -30 | DV51: 94 | DW51: -850 | DX51: 6209 | DY51: 6646 | EA51: -1013 | EB51: -12237 | EC51: -775 | EE51: 22 | EH51: 21 | EJ51: 173 | EQ51: -9957 | ER51: 180 | ES51: 1624 | ET51: -8306 | EU51: 354 | EV51: 827 | EW51: -8597 | EX51: 221 | EY51: 955 | EZ51: 13008 | FA51: -523 | FB51: 11094 | FC51: -434 | FD51: 9196 | FE51: -14 | FF51: 73972 | FG51: 63602 | FH51: 10370 | FI51: 85 | FJ51: 70271 | FK51: 59920 | FL51: 10351 | FM51: 77 | FN51: 69815 | FO51: 59576 | FP51: 10239 | FQ51: 70 | FR51: 2755
A52: 167 | B52: Joensuu | C52: 75848 | E52: 1.337386842 | F52: 70.2300521 | G52: -4893.70847 | K52: 39.74539218 | L52: 1661.639068 | M52: 54.70678827 | N52: 11086.34374 | P52: 308191 | Q52: 705537 | R52: -59 | S52: -397405 | T52: 262306 | U52: 193982 | X52: -5006 | Y52: 4640 | Z52: 58517 | AA52: 53999 | AB52: 0 | AC52: 0 | AD52: 4518 | AE52: 3 | AF52: 60 | AG52: -396 | AH52: -737 | AI52: 3448 | AJ52: 63842 | AK52: 53586 | AM52: -3764 | AN52: -42342 | AO52: -20594 | AT52: 20.5 | AV52: 111 | AW52: 76067 | AY52: 0.7617256728 | AZ52: 72.9549688 | BA52: -5062.366072 | BE52: 38.1955755 | BF52: 2107.510484 | BG52: 89.03579607 | BH52: 8639.686066 | BJ52: 356517 | BK52: 737618 | BL52: -83 | BM52: -381184 | BN52: 262380 | BO52: 186922 | BR52: -4324 | BS52: 5247 | BT52: 69041 | BU52: 57334 | BV52: -2729 | BX52: 8978 | BY52: -240 | BZ52: -681 | CA52: -435 | CB52: -867 | CC52: 6755 | CD52: 73685 | CE52: 65824 | CG52: -2808 | CH52: -92166 | CI52: -14888 | CN52: 20.5 | CP52: 91 | CQ52: 76551 | CS52: 1.120301502 | CT52: 76.48777321 | CU52: -5606.510692 | CY52: 36.45860535 | CZ52: 1934.305234 | DA52: 60.01528514 | DB52: 11764.0266 | DD52: 379627 | DE52: 750242 | DF52: -87 | DG52: -370702 | DH52: 260636 | DI52: 163791 | DL52: -4105 | DM52: 2043 | DN52: 51663 | DO52: 61289 | DP52: 0 | DR52: -9626 | DS52: -265 | DT52: -513 | DU52: -620 | DV52: -733 | DW52: -11757 | DX52: 61624 | DY52: 47890 | EA52: 4747 | EB52: -45630 | EC52: -42165 | EE52: 2313 | EH52: 20.5 | EJ52: 80 | EQ52: -84405 | ER52: 1801 | ES52: 8424 | ET52: -178434 | EU52: 5028 | EV52: 92694 | EW52: -98703 | EX52: 2494 | EY52: 6154 | EZ52: 59533 | FA52: 15905 | FB52: 131284 | FC52: 24916 | FD52: 99197 | FE52: -32559 | FF52: 422002 | FG52: 365127 | FH52: 56875 | FI52: 5452 | FJ52: 486034 | FK52: 399680 | FL52: 86354 | FM52: 5984 | FN52: 507042 | FO52: 447082 | FP52: 59960 | FQ52: 3352 | FR52: 1531
A53: 169 | B53: Jokioinen | C53: 5341 | E53: 1.054981203 | F53: 48.86607363 | G53: -4263.246583 | K53: 40.89163604 | L53: 228.9833365 | M53: 7.582724648 | N53: 11022.28047 | P53: 26879 | Q53: 54651 | R53: -6 | S53: -27778 | T53: 18408 | U53: 11595 | X53: -242 | Y53: 18 | Z53: 2001 | AA53: 2526 | AB53: 0 | AC53: 0 | AD53: -525 | AE53: 27 | AF53: 3 | AG53: 0 | AH53: 0 | AI53: -495 | AJ53: 6628 | AK53: 1949 | AM53: 408 | AN53: -1884 | AO53: -45 | AT53: 20.5 | AV53: 263 | AW53: 5286 | AY53: 1.560142712 | AZ53: 46.31053036 | BA53: -4060.726447 | BE53: 41.00821297 | BF53: 161.5588347 | BG53: 5.689176857 | BH53: 10365.1154 | BJ53: 27261 | BK53: 54272 | BL53: -4 | BM53: -27015 | BN53: 18647 | BO53: 11336 | BR53: -152 | BS53: 33 | BT53: 2849 | BU53: 2538 | BV53: 27 | BX53: 338 | BY53: 0 | BZ53: 1 | CA53: 0 | CB53: 0 | CC53: 339 | CD53: 6754 | CE53: 2911 | CG53: 397 | CH53: -1808 | CI53: 1561 | CN53: 20.5 | CP53: 238 | CQ53: 5195 | CS53: 1.171428571 | CT53: 43.48429878 | CU53: -3829.836381 | CY53: 42.46872943 | CZ53: 181.7131858 | DA53: 5.911641074 | DB53: 11219.44177 | DD53: 27694 | DE53: 55287 | DF53: -14 | DG53: -27607 | DH53: 18793 | DI53: 11120 | DL53: -179 | DM53: 30 | DN53: 2157 | DO53: 2974 | DP53: 7 | DR53: -810 | DS53: -1 | DT53: 0 | DU53: -1 | DV53: 0 | DW53: -812 | DX53: 6092 | DY53: 2086 | EA53: 422 | EB53: -1815 | EC53: 1492 | EE53: 1720 | EH53: 21.25 | EJ53: 175 | EQ53: -2075 | ER53: 48 | ES53: 33 | ET53: -1431 | EU53: 24 | EV53: 57 | EW53: -955 | EX53: 28 | EY53: 333 | EZ53: 297 | FA53: 761 | FB53: 1004 | FC53: -200 | FD53: 93 | FE53: -600 | FF53: 21397 | FG53: 14146 | FH53: 7251 | FI53: 11 | FJ53: 21130 | FK53: 13948 | FL53: 7182 | FM53: 8 | FN53: 18755 | FO53: 12345 | FP53: 6410 | FQ53: 8 | FR53: 1917
A54: 171 | B54: Joroinen | C54: 5039 | E54: 0.4754990926 | F54: 63.54660173 | G54: -2283.588013 | K54: 34.47311159 | L54: 2980.750149 | M54: 109.9913729 | N54: 9891.446716 | P54: 15702 | Q54: 43434 | R54: 2 | S54: -27730 | T54: 16776 | U54: 12692 | X54: -226 | Y54: 42 | Z54: 1554 | AA54: 1235 | AB54: 216 | AC54: 0 | AD54: 535 | AE54: 26 | AF54: -5 | AG54: 0 | AH54: 0 | AI54: 556 | AJ54: 140 | AK54: 1861 | AM54: 1361 | AN54: -3577 | AO54: -366 | AT54: 20.25 | AV54: 273 | AW54: 4917 | AY54: 0.869168357 | AZ54: 62.16888791 | BA54: -2393.329266 | BE54: 31.12899371 | BF54: 3751.677852 | BG54: 130.02636 | BH54: 10531.4216 | BJ54: 24452 | BK54: 51864 | BL54: -15 | BM54: -27427 | BN54: 17376 | BO54: 12421 | BR54: -139 | BS54: 129 | BT54: 2360 | BU54: 1968 | BV54: 0 | BX54: 392 | BY54: -10 | BZ54: 0 | CA54: 0 | CB54: 0 | CC54: 382 | CD54: 496 | CE54: 2317 | CG54: 490 | CH54: -2747 | CI54: -109 | CN54: 20.75 | CP54: 262 | CQ54: 4812 | CS54: -0.04253810705 | CT54: 70.54417438 | CU54: -4043.848712 | CY54: 26.41725739 | CZ54: 2981.296758 | DA54: 81.97200958 | DB54: 13274.93766 | DD54: 25026 | DE54: 53568 | DF54: 6 | DG54: -28536 | DH54: 16171 | DI54: 12205 | DL54: -52 | DM54: -122 | DN54: -334 | DO54: 1468 | DP54: 0 | DR54: -1802 | DS54: -2 | DT54: -4 | DU54: 0 | DV54: 0 | DW54: -1808 | DX54: -1304 | DY54: -323 | EA54: -479 | EB54: -2607 | EC54: -7643 | EE54: 701 | EH54: 20.75 | EJ54: 287 | EQ54: -2535 | ER54: 114 | ES54: 194 | ET54: -3133 | EU54: 232 | EV54: 475 | EW54: -7290 | EX54: 59 | EY54: -89 | EZ54: 1731 | FA54: 494 | FB54: 5035 | FC54: 543 | FD54: 6298 | FE54: -642 | FF54: 24677 | FG54: 21030 | FH54: 3647 | FI54: 159 | FJ54: 27827 | FK54: 23498 | FL54: 4329 | FM54: 159 | FN54: 31179 | FO54: 27007 | FP54: 4172 | FQ54: 159 | FR54: 910
A55: 172 | B55: Joutsa | C55: 4673 | E55: 1.622188334 | F55: 56.38881064 | G55: -3898.780227 | K55: 29.59624645 | L55: 1050.074898 | M55: 38.05249851 | N55: 10072.33041 | P55: 14033 | Q55: 41942 | R55: -4 | S55: -27913 | T55: 15166 | U55: 16952 | X55: -124 | Y55: 48 | Z55: 4129 | AA55: 2178 | AB55: -145 | AC55: 0 | AD55: 1806 | AE55: -11 | AF55: -2 | AG55: -36 | AH55: -5 | AI55: 1752 | AJ55: 3331 | AK55: 3992 | AM55: -259 | AN55: -2497 | AO55: 1632 | AT55: 21 | AV55: 80 | AW55: 4567 | AY55: 0.7872028177 | AZ55: 66.00747566 | BA55: -4942.850887 | BE55: 25.54658441 | BF55: 914.6047734 | BG55: 37.39159759 | BH55: 8927.961463 | BJ55: 13962 | BK55: 43415 | BL55: 1 | BM55: -29452 | BN55: 15492 | BO55: 16562 | BR55: -143 | BS55: 77 | BT55: 2536 | BU55: 2272 | BV55: -1037 | BX55: -773 | BY55: 11 | BZ55: 5 | CA55: -6 | CB55: 9 | CC55: -754 | CD55: 2581 | CE55: 1461 | CG55: -725 | CH55: -3261 | CI55: -4214 | CN55: 21 | CP55: 233 | CQ55: 4467 | CS55: 0.9842442147 | CT55: 70.05916895 | CU55: -5397.58227 | CY55: 24.62106795 | CZ55: 792.4781733 | DA55: 26.6362943 | DB55: 10859.41348 | DD55: 13567 | DE55: 42727 | DF55: -21 | DG55: -29181 | DH55: 14830 | DI55: 16221 | DL55: -157 | DM55: 125 | DN55: 1838 | DO55: 2251 | DP55: 100 | DR55: -313 | DS55: 20 | DT55: 0 | DU55: 2 | DV55: 3 | DW55: -288 | DX55: 2276 | DY55: 2072 | EA55: 14 | EB55: -1870 | EC55: -1597 | EE55: 574 | EH55: 21 | EJ55: 179 | EQ55: -2468 | ER55: 84 | ES55: 24 | ET55: -6081 | EU55: 26 | EV55: 380 | EW55: -3723 | EX55: 2 | EY55: 52 | EZ55: 1152 | FA55: 268 | FB55: 9023 | FC55: -1165 | FD55: 1896 | FE55: -461 | FF55: 18975 | FG55: 11039 | FH55: 7936 | FI55: 70 | FJ55: 23572 | FK55: 18250 | FL55: 5322 | FM55: 70 | FN55: 23137 | FO55: 18097 | FP55: 5040 | FQ55: 70 | FR55: 1220
A56: 176 | B56: Juuka | C56: 4938 | E56: 0.5721162418 | F56: 36.53719082 | G56: -2024.301337 | K56: 56.19614407 | L56: 1308.626974 | M56: 38.06206429 | N56: 12549.21021 | P56: 19242 | Q56: 53273 | R56: 0 | S56: -34031 | T56: 14495 | U56: 22258 | X56: -9 | Y56: 370 | Z56: 3083 | AA56: 3145 | AB56: 0 | AC56: 0 | AD56: -62 | AE56: 2 | AF56: 256 | AG56: -13 | AH56: -3 | AI56: 180 | AJ56: 10052 | AK56: 3097 | AM56: -104 | AN56: -5483 | AO56: 700 | AT56: 20.75 | AV56: 177 | AW56: 4817 | AY56: 3.575122292 | AZ56: 27.39372157 | BA56: -1424.538094 | BE56: 58.21493101 | BF56: 1965.538717 | BG56: 57.90777171 | BH56: 12389.03882 | BJ56: 34359 | BK56: 66595 | BL56: 0 | BM56: -32236 | BN56: 14781 | BO56: 22088 | BR56: -16 | BS56: 390 | BT56: 5007 | BU56: 3287 | BV56: -553 | BX56: 1167 | BY56: -2 | BZ56: -904 | CA56: -25 | CB56: -1 | CC56: 235 | CD56: 11179 | CE56: 4567 | CG56: -387 | CH56: -1322 | CI56: -2304 | CN56: 20.75 | CP56: 66 | CQ56: 4709 | CS56: 1.76864357 | CT56: 27.1488847 | CU56: -1254.618815 | CY56: 58.51214846 | CZ56: 2236.780633 | DA56: 53.86553739 | DB56: 15156.72117 | DD56: 35715 | DE56: 66898 | DF56: 0 | DG56: -31183 | DH56: 13654 | DI56: 20074 | DL56: 9 | DM56: 371 | DN56: 2925 | DO56: 2784 | DP56: 0 | DR56: 141 | DS56: 0 | DT56: -247 | DU56: -39 | DV56: -4 | DW56: -149 | DX56: 11272 | DY56: 3240 | EA56: 770 | EB56: -1616 | EC56: 724 | EE56: 835 | EH56: 20.75 | EJ56: 103 | EQ56: -2785 | ER56: 192 | ES56: 196 | ET56: -8352 | EU56: 24 | EV56: 1457 | EW56: -2771 | EX56: 49 | EY56: 206 | EZ56: 618 | FA56: 5000 | FB56: 9297 | FC56: -4222 | FD56: 0 | FE56: -4 | FF56: 12649 | FG56: 7166 | FH56: 5483 | FI56: 3058 | FJ56: 12659 | FK56: 11422 | FL56: 1237 | FM56: 3058 | FN56: 11039 | FO56: 9806 | FP56: 1233 | FQ56: 2770 | FR56: 989
A57: 177 | B57: Juupajoki | C57: 1957 | E57: 1.265658747 | F57: 47.00098869 | G57: -3227.899847 | K57: 49.81402164 | L57: 726.6223812 | M57: 27.14308127 | N57: 9771.078181 | P57: 6800 | Q57: 17075 | R57: 15 | S57: -10260 | T57: 6912 | U57: 4494 | X57: -59 | Y57: -2 | Z57: 1085 | AA57: 827 | AB57: 13 | AC57: 0 | AD57: 271 | AE57: 74 | AF57: 12 | AG57: -9 | AH57: 0 | AI57: 348 | AJ57: 2299 | AK57: 1082 | AM57: 19 | AN57: -839 | AO57: 87 | AT57: 21 | AV57: 208 | AW57: 1904 | AY57: -8.674418605 | AZ57: 44.93394446 | BA57: -3321.953782 | BE57: 51.87732239 | BF57: 601.8907563 | BG57: 27.05102503 | BH57: 8121.323529 | BJ57: 7086 | BK57: 17134 | BL57: 12 | BM57: -10036 | BN57: 7174 | BO57: 4285 | BR57: -43 | BS57: 62 | BT57: 1442 | BU57: 803 | BV57: -2 | BX57: 637 | BY57: 72 | BZ57: 1 | CA57: 0 | CB57: 0 | CC57: 710 | CD57: 2823 | CE57: 1262 | CG57: -42 | CH57: 222 | CI57: 79 | CN57: 21 | CP57: 153 | CQ57: 1884 | CS57: 68.33333333 | CT57: 48.74396135 | CU57: -3532.377919 | CY57: 49.70891417 | CZ57: 632.1656051 | DA57: 22.7539911 | DB57: 10140.65817 | DD57: 7480 | DE57: 17860 | DF57: 24 | DG57: -10356 | DH57: 6911 | DI57: 4239 | DL57: -38 | DM57: 1 | DN57: 757 | DO57: 831 | DP57: 0 | DR57: -74 | DS57: 71 | DT57: -1 | DU57: 0 | DV57: 0 | DW57: -4 | DX57: 2704 | DY57: 765 | EA57: -373 | EB57: 51 | EC57: -334 | EE57: 299 | EH57: 21 | EJ57: 181 | EQ57: -1108 | ER57: 87 | ES57: 26 | ET57: -1611 | EU57: 192 | EV57: 236 | EW57: -1224 | EX57: 128 | EY57: -3 | EZ57: 448 | FA57: 269 | FB57: 0 | FC57: -554 | FD57: 0 | FE57: 262 | FF57: 6359 | FG57: 4681 | FH57: 1678 | FI57: 58 | FJ57: 6060 | FK57: 4865 | FL57: 1195 | FM57: 55 | FN57: 6405 | FO57: 4912 | FP57: 1493 | FQ57: 52 | FR57: 397
A58: 178 | B58: Juva | C58: 6421 | E58: 1.625231339 | F58: 56.20889446 | G58: -4725.587915 | K58: 54.38262289 | L58: 314.4370036 | M58: 10.80185568 | N58: 10624.98053 | P58: 23334 | Q58: 59034 | R58: 81 | S58: -35619 | T58: 19218 | U58: 21308 | X58: -310 | Y58: 360 | Z58: 4957 | AA58: 2780 | AB58: -199 | AC58: 0 | AD58: 1978 | AE58: -8 | AF58: -37 | AG58: 0 | AH58: 0 | AI58: 1933 | AJ58: 3145 | AK58: 5050 | AM58: -172 | AN58: -2930 | AO58: 871 | AT58: 19.75 | AV58: 110 | AW58: 6334 | AY58: 1.421455939 | AZ58: 55.83263598 | BA58: -4813.703821 | BE58: 52.1622094 | BF58: 835.9646353 | BG58: 29.91988544 | BH58: 10198.13704 | BJ58: 30684 | BK58: 66970 | BL58: 216 | BM58: -36070 | BN58: 19236 | BO58: 21780 | BR58: -227 | BS58: 597 | BT58: 5316 | BU58: 4198 | BV58: 3 | BX58: 1121 | BY58: -11 | BZ58: -33 | CA58: 0 | CB58: 0 | CC58: 1077 | CD58: 3944 | CE58: 5100 | CG58: -574 | CH58: -3666 | CI58: 125 | CN58: 19.75 | CP58: 112 | CQ58: 6225 | CS58: 1.095776521 | CT58: 55.97182285 | CU58: -5449.638554 | CY58: 51.80181221 | CZ58: 243.0522088 | DA58: 7.050776263 | DB58: 12582.16867 | DD58: 31710 | DE58: 70030 | DF58: 153 | DG58: -38167 | DH58: 19425 | DI58: 21548 | DL58: -192 | DM58: 484 | DN58: 3098 | DO58: 2731 | DP58: -115 | DR58: 252 | DS58: -1 | DT58: -18 | DU58: 0 | DV58: 0 | DW58: 233 | DX58: 3993 | DY58: 2705 | EA58: -883 | EB58: -2810 | EC58: -3421 | EE58: 1366 | EH58: 20.75 | EJ58: 143 | EQ58: -4887 | ER58: 130 | ES58: 578 | ET58: -5286 | EU58: 60 | EV58: 251 | EW58: -6290 | EX58: 33 | EY58: 131 | EZ58: 980 | FA58: 2998 | FB58: 6858 | FC58: -209 | FD58: 1063 | FE58: 843 | FF58: 27753 | FG58: 14834 | FH58: 12919 | FI58: 158 | FJ58: 31771 | FK58: 19893 | FL58: 11878 | FM58: 160 | FN58: 31903 | FO58: 19226 | FP58: 12677 | FQ58: 160 | FR58: 1420
A59: 179 | B59: Jyväskylä | C59: 138850 | E59: 1.133627788 | F59: 97.71341452 | G59: -8203.989917 | K59: 25.93558347 | L59: 402.160605 | M59: 13.97103329 | N59: 10506.64026 | P59: 562405 | Q59: 1165225 | R59: 543 | S59: -602277 | T59: 506959 | U59: 271325 | X59: -14050 | Y59: -1101 | Z59: 160856 | AA59: 118271 | AB59: 3878 | AC59: 0 | AD59: 46463 | AE59: -953 | AF59: -70 | AG59: -4695 | AH59: -2946 | AI59: 37799 | AJ59: 4169 | AK59: 145690 | AM59: -24441 | AN59: -139920 | AO59: 43723 | AT59: 20 | AV59: 27 | AW59: 140188 | AY59: 1.342847992 | AZ59: 96.97265574 | BA59: -8016.192541 | BE59: 27.64431522 | BF59: 452.5209005 | BG59: 21.18653497 | BH59: 7795.995378 | BJ59: 555518 | BK59: 1157049 | BL59: 489 | BM59: -601042 | BN59: 514407 | BO59: 263554 | BR59: -16285 | BS59: -1674 | BT59: 158960 | BU59: 117804 | BV59: 0 | BX59: 41156 | BY59: -127 | BZ59: 138 | CA59: -4198 | CB59: -1455 | CC59: 35514 | CD59: 40775 | CE59: 137949 | CG59: 11302 | CH59: -114002 | CI59: 6752 | CN59: 20 | CP59: 46 | CQ59: 141305 | CS59: 1.04030403 | CT59: 102.1018826 | CU59: -8679.523018 | CY59: 26.19191956 | CZ59: 262.0997134 | DA59: 8.565184829 | DB59: 11169.21553 | DD59: 570959 | DE59: 1203046 | DF59: 935 | DG59: -631152 | DH59: 510190 | DI59: 266167 | DL59: -15292 | DM59: -296 | DN59: 129617 | DO59: 114136 | DP59: 0 | DR59: 15481 | DS59: -637 | DT59: -498 | DU59: -2413 | DV59: -2174 | DW59: 9759 | DX59: 33107 | DY59: 109171 | EA59: -5600 | EB59: -123975 | EC59: -100981 | EE59: 7045 | EH59: 20 | EJ59: 31 | EQ59: -134941 | ER59: 545 | ES59: 32429 | ET59: -197578 | EU59: 1488 | EV59: 64893 | EW59: -233394 | EX59: 1776 | EY59: 21466 | EZ59: 161880 | FA59: -36040 | FB59: 49747 | FC59: 33476 | FD59: 171824 | FE59: 14737 | FF59: 1066245 | FG59: 927435 | FH59: 138810 | FI59: 5774 | FJ59: 1035466 | FK59: 876846 | FL59: 158620 | FM59: 5567 | FN59: 1099603 | FO59: 980473 | FP59: 119130 | FQ59: 2652 | FR59: 6350
A60: 181 | B60: Jämijärvi | C60: 1915 | E60: -0.2463917526 | F60: 48.03677082 | G60: -4105.483029 | K60: 9.790273007 | L60: 418.2767624 | M60: 13.16307235 | N60: 11598.43342 | P60: 9091 | Q60: 20697 | R60: 0 | S60: -11606 | T60: 5372 | U60: 5988 | X60: -52 | Y60: 6 | Z60: -292 | AA60: 568 | AB60: 0 | AC60: 0 | AD60: -860 | AE60: 0 | AF60: 4 | AG60: 0 | AH60: 0 | AI60: -856 | AJ60: -2692 | AK60: -297 | AM60: 59 | AN60: -917 | AO60: -834 | AT60: 21.5 | AV60: 296 | AW60: 1867 | AY60: 0.5774011299 | AZ60: 46.90582092 | BA60: -4114.622389 | BE60: 9.017074296 | BF60: 484.7348688 | BG60: 15.95002414 | BH60: 11092.66202 | BJ60: 8896 | BK60: 20177 | BL60: 0 | BM60: -11281 | BN60: 5694 | BO60: 6094 | BR60: -57 | BS60: 4 | BT60: 454 | BU60: 560 | BV60: 0 | BX60: -106 | BY60: 0 | BZ60: 0 | CA60: 0 | CB60: 0 | CC60: -106 | CD60: -2798 | CE60: 459 | CG60: 45 | CH60: -828 | CI60: 126 | CN60: 22.5 | CP60: 287 | CQ60: 1809 | CS60: 0.8700787402 | CT60: 43.6614324 | CU60: -3845.218353 | CY60: 15.34531521 | CZ60: 365.9480376 | DA60: 11.07784706 | DB60: 12057.49033 | DD60: 9347 | DE60: 20040 | DF60: 0 | DG60: -10693 | DH60: 5760 | DI60: 5781 | DL60: -47 | DM60: 36 | DN60: 837 | DO60: 553 | DP60: 407 | DR60: 691 | DS60: 0 | DT60: 0 | DU60: 0 | DV60: 0 | DW60: 691 | DX60: -2092 | DY60: 751 | EA60: -387 | EB60: -969 | EC60: 704 | EE60: 1841 | EH60: 22.5 | EJ60: 157 | EQ60: -538 | ER60: 5 | ES60: -4 | ET60: -359 | EU60: 4 | EV60: 22 | EW60: -649 | EX60: 32 | EY60: 570 | EZ60: 822 | FA60: 836 | FB60: 1296 | FC60: -207 | FD60: 249 | FE60: -416 | FF60: 6848 | FG60: 4998 | FH60: 1850 | FI60: 50 | FJ60: 7074 | FK60: 5332 | FL60: 1742 | FM60: 50 | FN60: 6120 | FO60: 4828 | FP60: 1292 | FQ60: 50 | FR60: 1950
A61: 182 | B61: Jämsä | C61: 21259 | E61: 1.742368742 | F61: 42.45678034 | G61: -3192.671339 | K61: 53.37509537 | L61: 561.9267134 | M61: 19.40157249 | N61: 10571.47561 | P61: 64992 | Q61: 199557 | R61: 434 | S61: -134131 | T61: 86941 | U61: 61338 | X61: -920 | Y61: 98 | Z61: 13326 | AA61: 14169 | AB61: 31 | AC61: 0 | AD61: -812 | AE61: -14 | AF61: 21 | AG61: -23 | AH61: 2 | AI61: -826 | AJ61: 12454 | AK61: 13211 | AM61: 2060 | AN61: -7246 | AO61: -2905 | AT61: 21 | AV61: 175 | AW61: 20877 | AY61: 1.668816388 | AZ61: 47.51579628 | BA61: -3335.153518 | BE61: 50.47266506 | BF61: 842.4582076 | BG61: 33.86589998 | BH61: 9079.848637 | BJ61: 63810 | BK61: 195533 | BL61: 1453 | BM61: -130270 | BN61: 85413 | BO61: 57946 | BR61: -802 | BS61: 76 | BT61: 12363 | BU61: 15968 | BV61: 33 | BX61: -3605 | BY61: -10 | BZ61: 2267 | CA61: -26 | CB61: 0 | CC61: -1374 | CD61: 11080 | CE61: 10828 | CG61: -493 | CH61: -7074 | CI61: -1968 | CN61: 21 | CP61: 224 | CQ61: 20607 | CS61: 1.40657232 | CT61: 47.07519151 | CU61: -3112.388994 | CY61: 50.63072183 | CZ61: 903.6249818 | DA61: 31.49651746 | DB61: 10471.73291 | DD61: 66909 | DE61: 196655 | DF61: -165 | DG61: -129911 | DH61: 84038 | DI61: 57135 | DL61: -722 | DM61: 448 | DN61: 10988 | DO61: 13515 | DP61: 2360 | DR61: -167 | DS61: -25 | DT61: -123 | DU61: -29 | DV61: 0 | DW61: -344 | DX61: 11343 | DY61: 11049 | EA61: -4151 | EB61: -7598 | EC61: 6051 | EE61: 2582 | EH61: 21 | EJ61: 129 | EQ61: -16657 | ER61: 0 | ES61: 541 | ET61: -14092 | EU61: 481 | EV61: 815 | EW61: -10644 | EX61: 501 | EY61: 5145 | EZ61: 16816 | FA61: -4415 | FB61: 13354 | FC61: -4 | FD61: 5434 | FE61: -17 | FF61: 65510 | FG61: 58122 | FH61: 7388 | FI61: 584 | FJ61: 71787 | FK61: 64362 | FL61: 7425 | FM61: 390 | FN61: 69605 | FO61: 62178 | FP61: 7427 | FQ61: 521 | FR61: 2831
A62: 186 | B62: Järvenpää | C62: 41529 | E62: 4.459643436 | F62: 94.9564635 | G62: -7428.929182 | K62: 31.28107578 | L62: 396.2773002 | M62: 14.52083555 | N62: 9960.942956 | P62: 137385 | Q62: 330798 | R62: 9 | S62: -193404 | T62: 180855 | U62: 40080 | X62: -1399 | Y62: -72 | Z62: 26060 | AA62: 25558 | AB62: 0 | AC62: 0 | AD62: 502 | AE62: -2 | AF62: -92 | AG62: -100 | AH62: -197 | AI62: 111 | AJ62: 43742 | AK62: 16554 | AM62: 3085 | AN62: -4714 | AO62: -40313 | AT62: 19.75 | AV62: 174 | AW62: 42572 | AY62: 3.567933297 | AZ62: 103.2395939 | BA62: -7624.565442 | BE62: 28.83567059 | BF62: 327.1399042 | BG62: 18.02435582 | BH62: 6624.70638 | BJ62: 127885 | BK62: 320599 | BL62: 533 | BM62: -192181 | BN62: 181045 | BO62: 36638 | BR62: -34 | BS62: -704 | BT62: 24764 | BU62: 33397 | BV62: 57 | BX62: -8576 | BY62: 18 | BZ62: -42 | CA62: -245 | CB62: 924 | CC62: -7921 | CD62: 36104 | CE62: 16951 | CG62: -2966 | CH62: -5977 | CI62: -17967 | CN62: 19.75 | CP62: 225 | CQ62: 43410 | CS62: 3.128400796 | CT62: 83.64780779 | CU62: -8676.295784 | CY62: 25.26252412 | CZ62: 282.7228749 | DA62: 8.141789227 | DB62: 12674.59111 | DD62: 260125 | DE62: 457858 | DF62: 258 | DG62: -197475 | DH62: 186872 | DI62: 39476 | DL62: -1072 | DM62: -933 | DN62: 26868 | DO62: 34919 | DP62: 0 | DR62: -8051 | DS62: 27 | DT62: -14 | DU62: -215 | DV62: -108 | DW62: -8361 | DX62: 29844 | DY62: 15149 | EA62: 236 | EB62: -7623 | EC62: -52045 | EE62: 8596 | EH62: 19.75 | EJ62: 104 | EQ62: -76160 | ER62: 953 | ES62: 18340 | ET62: -47031 | EU62: 479 | EV62: 11634 | EW62: -81978 | EX62: 1163 | EY62: 13621 | EZ62: 30479 | FA62: 4378 | FB62: 17167 | FC62: 8397 | FD62: 13025 | FE62: 36316 | FF62: 279613 | FG62: 196222 | FH62: 83391 | FI62: 5 | FJ62: 299420 | FK62: 204956 | FL62: 94464 | FM62: 4 | FN62: 340857 | FO62: 210057 | FP62: 130800 | FQ62: 4 | FR62: 8932
A63: 202 | B63: Kaarina | C63: 32738 | E63: 5.705021521 | F63: 59.85712876 | G63: -3635.591667 | K63: 39.73797096 | L63: 626.0003665 | M63: 29.11476112 | N63: 7847.913739 | P63: 80043 | Q63: 234729 | R63: 3 | S63: -154683 | T63: 137017 | U63: 36315 | X63: -600 | Y63: 622 | Z63: 18671 | AA63: 12703 | AB63: -500 | AC63: 0 | AD63: 5468 | AE63: 38 | AF63: 33 | AG63: -5 | AH63: -4 | AI63: 5530 | AJ63: 25281 | AK63: 15938 | AM63: -407 | AN63: -2274 | AO63: 1285 | AT63: 19.25 | AV63: 203 | AW63: 33099 | AY63: 5.787088765 | AZ63: 66.19908771 | BA63: -3975.648811 | BE63: 38.19464884 | BF63: 738.5419499 | BG63: 42.79012162 | BH63: 6299.767365 | BJ63: 82653 | BK63: 236306 | BL63: 10 | BM63: -153643 | BN63: 137266 | BO63: 33728 | BR63: -614 | BS63: 653 | BT63: 17390 | BU63: 13520 | BV63: 1 | BX63: 3871 | BY63: -8 | BZ63: 0 | CA63: -4 | CB63: -3 | CC63: 3856 | CD63: 29136 | CE63: 13919 | CG63: 271 | CH63: -1966 | CI63: -12645 | CN63: 19.75 | CP63: 246 | CQ63: 33458 | CS63: 2.811791383 | CT63: 68.25394344 | CU63: -4296.252017 | CY63: 36.59072883 | CZ63: 512.5231634 | DA63: 22.83255571 | DB63: 8193.167553 | DD63: 83798 | DE63: 246041 | DF63: 6 | DG63: -162237 | DH63: 139346 | DI63: 32724 | DL63: -1385 | DM63: 861 | DN63: 9309 | DO63: 13062 | DP63: 0 | DR63: -3753 | DS63: 3 | DT63: 0 | DU63: -1 | DV63: 0 | DW63: -3751 | DX63: 25166 | DY63: 6898 | EA63: -1872 | EB63: -2118 | EC63: -12885 | EE63: 23254 | EH63: 19.75 | EJ63: 229 | EQ63: -18672 | ER63: 335 | ES63: 3684 | ET63: -31031 | EU63: 146 | EV63: 4321 | EW63: -24077 | EX63: 179 | EY63: 4115 | EZ63: 4863 | FA63: -1548 | FB63: 9971 | FC63: 4180 | FD63: 3300 | FE63: 1963 | FF63: 106345 | FG63: 39416 | FH63: 66929 | FI63: 1620 | FJ63: 118530 | FK63: 45377 | FL63: 73153 | FM63: 1620 | FN63: 121676 | FO63: 47993 | FP63: 73683 | FQ63: 1620 | FR63: 19802
A64: 204 | B64: Kaavi | C64: 3154 | E64: 1.773399015 | F64: 56.06483615 | G64: -5748.256183 | K64: 32.20052871 | L64: 280.9131262 | M64: 7.832542143 | N64: 13090.6785 | P64: 14076 | Q64: 35289 | R64: 9 | S64: -21204 | T64: 9193 | U64: 13624 | X64: -234 | Y64: 184 | Z64: 1563 | AA64: 1498 | AB64: 0 | AC64: 0 | AD64: 65 | AE64: -11 | AF64: -7 | AG64: -2 | AH64: -2 | AI64: 43 | AJ64: 1142 | AK64: 1543 | AM64: -131 | AN64: -778 | AO64: -3144 | AT64: 21.25 | AV64: 232 | AW64: 3048 | AY64: 1.002779708 | AZ64: 56.53402079 | BA64: -5958.661417 | BE64: 30.67287158 | BF64: 381.5616798 | BG64: 12.03626517 | BH64: 11570.86614 | BJ64: 14106 | BK64: 35250 | BL64: 44 | BM64: -21100 | BN64: 9034 | BO64: 13323 | BR64: -300 | BS64: 180 | BT64: 1137 | BU64: 1676 | BV64: 0 | BX64: -539 | BY64: -14 | BZ64: 3 | CA64: -5 | CB64: -3 | CC64: -558 | CD64: 666 | CE64: 1154 | CG64: 380 | CH64: -1133 | CI64: -180 | CN64: 21.25 | CP64: 278 | CQ64: 2990 | CS64: 0.8033744322 | CT64: 55.77662281 | CU64: -5632.107023 | CY64: 29.13748379 | CZ64: 764.548495 | DA64: 21.48606891 | DB64: 12987.95987 | DD64: 14264 | DE64: 35986 | DF64: 89 | DG64: -21633 | DH64: 9191 | DI64: 13487 | DL64: -286 | DM64: 189 | DN64: 948 | DO64: 1508 | DP64: -50 | DR64: -610 | DS64: -2 | DT64: 4 | DU64: -1 | DV64: -1 | DW64: -610 | DX64: 35 | DY64: 993 | EA64: -191 | EB64: -1251 | EC64: 995 | EE64: 84 | EH64: 21.75 | EJ64: 208 | EQ64: -4939 | ER64: 211 | ES64: 41 | ET64: -1443 | EU64: 28 | EV64: 81 | EW64: -1276 | EX64: 75 | EY64: 1203 | EZ64: 3226 | FA64: 479 | FB64: 1287 | FC64: -2 | FD64: 843 | FE64: 6 | FF64: 17109 | FG64: 15421 | FH64: 1688 | FI64: 0 | FJ64: 17209 | FK64: 15404 | FL64: 1805 | FM64: 0 | FN64: 16584 | FO64: 14825 | FP64: 1759 | FQ64: 0 | FR64: 96
A65: 205 | B65: Kajaani | C65: 37521 | E65: 1.575348686 | F65: 84.62603035 | G65: -11139.62847 | K65: 32.07652621 | L65: 422.9897924 | M65: 9.153187388 | N65: 16867.48754 | P65: 333843 | Q65: 525991 | R65: -4 | S65: -192152 | T65: 136396 | U65: 104928 | X65: -5428 | Y65: -800 | Z65: 42944 | AA65: 37838 | AB65: 116 | AC65: 0 | AD65: 5222 | AE65: -371 | AF65: 380 | AG65: 0 | AH65: -326 | AI65: 4905 | AJ65: 86242 | AK65: 43417 | AM65: -4305 | AN65: -25206 | AO65: -18632 | AT65: 21 | AV65: 28 | AW65: 37239 | AY65: 1.660599647 | AZ65: 90.6026967 | BA65: -11648.05714 | BE65: 30.98642848 | BF65: 563.6832353 | BG65: 16.86387778 | BH65: 12200.30076 | BJ65: 300207 | BK65: 501841 | BL65: 372 | BM65: -201262 | BN65: 137906 | BO65: 115897 | BR65: -2188 | BS65: -5623 | BT65: 44730 | BU65: 40492 | BV65: 0 | BX65: 4238 | BY65: -436 | BZ65: 58 | CA65: -787 | CB65: -1212 | CC65: 1861 | CD65: 83131 | CE65: 44851 | CG65: 7130 | CH65: -26002 | CI65: -8810 | CN65: 21 | CP65: 33 | CQ65: 36973 | CS65: 1.394505297 | CT65: 101.4902333 | CU65: -12825.95407 | CY65: 27.7577518 | CZ65: 703.8920293 | DA65: 14.78748428 | DB65: 17374.19198 | DD65: 298911 | DE65: 514215 | DF65: 791 | DG65: -214513 | DH65: 134861 | DI65: 116209 | DL65: -2174 | DM65: -5684 | DN65: 28699 | DO65: 37698 | DP65: 0 | DR65: -8999 | DS65: -225 | DT65: -286 | DU65: -780 | DV65: -493 | DW65: -10783 | DX65: 72348 | DY65: 28993 | EA65: -14121 | EB65: -19911 | EC65: -36591 | EE65: 1503 | EH65: 21 | EJ65: 55 | EQ65: -74676 | ER65: 3823 | ES65: 8804 | ET65: -82955 | EU65: 884 | EV65: 28410 | EW65: -99694 | EX65: 1480 | EY65: 32630 | EZ65: 29409 | FA65: 16793 | FB65: 37315 | FC65: -2380 | FD65: 58008 | FE65: 3684 | FF65: 327093 | FG65: 285372 | FH65: 41721 | FI65: 262 | FJ65: 336027 | FK65: 287055 | FL65: 48972 | FM65: 212 | FN65: 383759 | FO65: 310035 | FP65: 73724 | FQ65: 198 | FR65: 2462
A66: 208 | B66: Kalajoki | C66: 12586 | E66: 3.201789838 | F66: 68.79648746 | G66: -3354.36199 | K66: 49.22870731 | L66: 1845.62212 | M66: 75.01977561 | N66: 8979.65994 | P66: 36431 | Q66: 100091 | R66: 90 | S66: -63570 | T66: 39000 | U66: 35486 | X66: -117 | Y66: 92 | Z66: 10891 | AA66: 8959 | AB66: -6 | AC66: 0 | AD66: 1926 | AE66: 19 | AF66: 140 | AG66: -80 | AH66: -50 | AI66: 1955 | AJ66: 23106 | AK66: 9537 | AM66: -552 | AN66: -3264 | AO66: 2534 | AT66: 20 | AV66: 85 | AW66: 12516 | AY66: 1.987313599 | AZ66: 76.51147068 | BA66: -3861.697028 | BE66: 46.11153533 | BF66: 2098.993289 | BG66: 99.27440729 | BH66: 7717.321828 | BJ66: 37969 | BK66: 102797 | BL66: 49 | BM66: -64779 | BN66: 38599 | BO66: 34367 | BR66: -403 | BS66: 674 | BT66: 8458 | BU66: 8322 | BV66: 906 | BX66: 1042 | BY66: -65 | BZ66: 6 | CA66: -53 | CB66: 36 | CC66: 966 | CD66: 21970 | CE66: 8156 | CG66: 755 | CH66: -4022 | CI66: -411 | CN66: 20 | CP66: 187 | CQ66: 12387 | CS66: 1.534333186 | CT66: 82.9704797 | CU66: -4582.384758 | CY66: 43.35886375 | CZ66: 2234.600791 | DA66: 75.80261549 | DB66: 10759.90958 | DD66: 39888 | DE66: 104096 | DF66: 136 | DG66: -64072 | DH66: 38850 | DI66: 35082 | DL66: -372 | DM66: 474 | DN66: 9962 | DO66: 9926 | DP66: 146 | DR66: 182 | DS66: -89 | DT66: 10 | DU66: -54 | DV66: 59 | DW66: 108 | DX66: 22174 | DY66: 8567 | EA66: 825 | EB66: -6328 | EC66: -8480 | EE66: 3869 | EH66: 20 | EJ66: 48 | EQ66: -9091 | ER66: 1294 | ES66: 794 | ET66: -11598 | EU66: 877 | EV66: 2154 | EW66: -21918 | EX66: 2038 | EY66: 2833 | EZ66: 3426 | FA66: -989 | FB66: 9175 | FC66: 154 | FD66: 15287 | FE66: 25 | FF66: 54062 | FG66: 33529 | FH66: 20533 | FI66: 677 | FJ66: 59412 | FK66: 38641 | FL66: 20771 | FM66: 1466 | FN66: 68437 | FO66: 46541 | FP66: 21896 | FQ66: 1411 | FR66: 4962
A67: 211 | B67: Kangasala | C67: 31190 | E67: 2.080851349 | F67: 57.43184174 | G67: -2791.471626 | K67: 44.04761495 | L67: 1736.550176 | M67: 71.59721644 | N67: 8852.869509 | P67: 107497 | Q67: 241477 | R67: 53 | S67: -133927 | T67: 124961 | U67: 38639 | X67: -1725 | Y67: 1391 | Z67: 29339 | AA67: 17886 | AB67: 137 | AC67: 0 | AD67: 11590 | AE67: -116 | AF67: 13 | AG67: -539 | AH67: -267 | AI67: 10681 | AJ67: 59792 | AK67: 27808 | AM67: 648 | AN67: -13190 | AO67: 12523 | AT67: 21 | AV67: 67 | AW67: 31437 | AY67: 1.450691325 | AZ67: 53.43021719 | BA67: -2426.66285 | BE67: 47.71407383 | BF67: 1747.813086 | BG67: 81.04457286 | BH67: 7871.616248 | BJ67: 109187 | BK67: 245528 | BL67: 172 | BM67: -136169 | BN67: 128741 | BO67: 38279 | BR67: -1339 | BS67: 2389 | BT67: 31901 | BU67: 17812 | BV67: 0 | BX67: 14089 | BY67: -124 | BZ67: 1 | CA67: -360 | CB67: 701 | CC67: 14307 | CD67: 72926 | CE67: 31176 | CG67: -1882 | CH67: -21568 | CI67: 11425 | CN67: 21 | CP67: 69 | CQ67: 31676 | CS67: 1.097847657 | CT67: 56.85117707 | CU67: -2961.358757 | CY67: 44.89314074 | CZ67: 1383.792145 | DA67: 51.19661634 | DB67: 9865.576462 | DD67: 116161 | DE67: 265051 | DF67: 29 | DG67: -148861 | DH67: 125174 | DI67: 37493 | DL67: -1135 | DM67: 480 | DN67: 13151 | DO67: 17607 | DP67: 0 | DR67: -4456 | DS67: -211 | DT67: 1 | DU67: -375 | DV67: -79 | DW67: -5120 | DX67: 67806 | DY67: 11638 | EA67: -4516 | EB67: -11869 | EC67: -17929 | EE67: 36111 | EH67: 21 | EJ67: 176 | EQ67: -19563 | ER67: 1036 | ES67: 3242 | ET67: -21472 | EU67: 155 | EV67: 1566 | EW67: -31635 | EX67: 20 | EY67: 2048 | EZ67: 8915 | FA67: -1431 | FB67: 5878 | FC67: 7871 | FD67: 13385 | FE67: -1445 | FF67: 103137 | FG67: 89341 | FH67: 13796 | FI67: 144 | FJ67: 101312 | FK67: 87939 | FL67: 13373 | FM67: 133 | FN67: 101383 | FO67: 88906 | FP67: 12477 | FQ67: 116 | FR67: 8487
A68: 213 | B68: Kangasniemi | C68: 5603 | E68: 2.391304348 | F68: 65.504731 | G68: -4799.92861 | K68: 31.95625981 | L68: 238.2652151 | M68: 8.006884993 | N68: 10861.50277 | P68: 17544 | Q68: 51783 | R68: 0 | S68: -34239 | T68: 17731 | U68: 19576 | X68: -170 | Y68: 152 | Z68: 3050 | AA68: 2560 | AB68: 0 | AC68: 0 | AD68: 490 | AE68: 9 | AF68: -8 | AG68: 0 | AH68: 0 | AI68: 491 | AJ68: -1062 | AK68: 3175 | AM68: -2488 | AN68: -1162 | AO68: -1804 | AT68: 20 | AV68: 213 | AW68: 5549 | AY68: 1.697214735 | AZ68: 59.51312323 | BA68: -4843.575419 | BE68: 32.46091879 | BF68: 480.9875653 | BG68: 17.17079404 | BH68: 10224.36475 | BJ68: 24133 | BK68: 57883 | BL68: -5 | BM68: -33755 | BN68: 18685 | BO68: 18676 | BR68: -229 | BS68: 145 | BT68: 3522 | BU68: 2607 | BV68: 3 | BX68: 918 | BY68: 6 | BZ68: -6 | CA68: 0 | CB68: 0 | CC68: 918 | CD68: -213 | CE68: 3720 | CG68: 602 | CH68: -1970 | CI68: 209 | CN68: 20.75 | CP68: 214 | CQ68: 5452 | CS68: 0.8533576976 | CT68: 61.28947927 | CU68: -5268.341893 | CY68: 31.23270663 | CZ68: 323.5509905 | DA68: 9.849924274 | DB68: 11989.54512 | DD68: 25024 | DE68: 59547 | DF68: 5 | DG68: -34518 | DH68: 18063 | DI68: 18116 | DL68: -170 | DM68: 184 | DN68: 1675 | DO68: 2585 | DP68: 15 | DR68: -895 | DS68: 9 | DT68: 8 | DU68: 0 | DV68: 0 | DW68: -878 | DX68: -907 | DY68: 1582 | EA68: -29 | EB68: -1996 | EC68: -1919 | EE68: 1709 | EH68: 20.75 | EJ68: 214 | EQ68: -7715 | ER68: 2730 | ES68: 6 | ET68: -3436 | EU68: -289 | EV68: 214 | EW68: -3629 | EX68: 110 | EY68: 18 | EZ68: 40 | FA68: 6070 | FB68: 6653 | FC68: -3400 | FD68: 1777 | FE68: 409 | FF68: 28939 | FG68: 14601 | FH68: 14338 | FI68: 808 | FJ68: 30220 | FK68: 19243 | FL68: 10977 | FM68: 704 | FN68: 30405 | FO68: 18932 | FP68: 11473 | FQ68: 600 | FR68: 2271
A69: 214 | B69: Kankaanpää | C69: 11637 | E69: 0.9187570523 | F69: 73.95384391 | G69: -7010.7416 | K69: 24.61037434 | L69: 622.4112744 | M69: 17.20841904 | N69: 13201.68428 | P69: 68027 | Q69: 127235 | R69: 43 | S69: -59165 | T69: 40738 | U69: 28595 | X69: -371 | Y69: 370 | Z69: 10167 | AA69: 7530 | AB69: 0 | AC69: 0 | AD69: 2637 | AE69: -783 | AF69: -1 | AG69: -4 | AH69: -226 | AI69: 1623 | AJ69: 9547 | AK69: 10789 | AM69: -138 | AN69: -11103 | AO69: -3424 | AT69: 21.5 | AV69: 83 | AW69: 11585 | AY69: 1.182819383 | AZ69: 75.78528154 | BA69: -7207.596029 | BE69: 24.06746032 | BF69: 577.211912 | BG69: 20.00881263 | BH69: 10529.47777 | BJ69: 67466 | BK69: 126957 | BL69: 23 | BM69: -59468 | BN69: 39869 | BO69: 28508 | BR69: -424 | BS69: 735 | BT69: 9220 | BU69: 8672 | BV69: 0 | BX69: 548 | BY69: -553 | BZ69: -1 | CA69: 0 | CB69: -139 | CC69: -145 | CD69: 9952 | CE69: 10307 | CG69: -757 | CH69: -7726 | CI69: -849 | CN69: 21.5 | CP69: 131 | CQ69: 11471 | CS69: 0.8129102845 | CT69: 77.74969509 | CU69: -7641.879522 | CY69: 20.92429185 | CZ69: 469.6190393 | DA69: 13.06065175 | DB69: 13124.22631 | DD69: 67714 | DE69: 129320 | DF69: 20 | DG69: -61586 | DH69: 39779 | DI69: 28613 | DL69: -428 | DM69: 606 | DN69: 6984 | DO69: 9583 | DP69: 0 | DR69: -2599 | DS69: -632 | DT69: -1 | DU69: 0 | DV69: -200 | DW69: -3432 | DX69: 6400 | DY69: 7580 | EA69: 108 | EB69: -8694 | EC69: -3475 | EE69: 1644 | EH69: 21.5 | EJ69: 109 | EQ69: -14807 | ER69: 73 | ES69: 521 | ET69: -13216 | EU69: 848 | EV69: 1212 | EW69: -12055 | EX69: 670 | EY69: 330 | EZ69: 18893 | FA69: 224 | FB69: 10265 | FC69: -690 | FD69: 9740 | FE69: 158 | FF69: 66193 | FG69: 54210 | FH69: 11983 | FI69: 0 | FJ69: 67725 | FK69: 56048 | FL69: 11677 | FM69: 0 | FN69: 73033 | FO69: 60519 | FP69: 12514 | FQ69: 0 | FR69: 1734
A70: 216 | B70: Kannonkoski | C70: 1424 | E70: 1.851112817 | F70: 50.95128335 | G70: -4176.264045 | K70: 52.34353073 | L70: 3158.005618 | M70: 62.10150959 | N70: 18561.09551 | P70: 14979 | Q70: 23231 | R70: 0 | S70: -8252 | T70: 4204 | U70: 6414 | X70: -29 | Y70: 23 | Z70: 2360 | AA70: 1301 | AB70: 0 | AC70: 0 | AD70: 1059 | AE70: 9 | AF70: 3 | AG70: 0 | AH70: 0 | AI70: 1071 | AJ70: 11362 | AK70: 2375 | AM70: -253 | AN70: -1251 | AO70: 507 | AT70: 21 | AV70: 3 | AW70: 1408 | AY70: 1.363775902 | AZ70: 53.30988168 | BA70: -4813.210227 | BE70: 52.61415603 | BF70: 2925.426136 | BG70: 70.4481983 | BH70: 15156.96023 | BJ70: 14824 | BK70: 23332 | BL70: 0 | BM70: -8508 | BN70: 4229 | BO70: 5963 | BR70: 4 | BS70: 73 | BT70: 1761 | BU70: 1587 | BV70: 320 | BX70: 494 | BY70: 9 | BZ70: 4 | CA70: 0 | CB70: 0 | CC70: 507 | CD70: 11862 | CE70: 2081 | CG70: -4 | CH70: -1287 | CI70: -855 | CN70: 21 | CP70: 23 | CQ70: 1353 | CS70: 0.8322981366 | CT70: 59.35455735 | CU70: -6055.432373 | CY70: 49.77155633 | CZ70: 3169.253511 | DA70: 55.34174888 | DB70: 20902.43902 | DD70: 15267 | DE70: 24123 | DF70: 0 | DG70: -8856 | DH70: 4049 | DI70: 5907 | DL70: -5 | DM70: 92 | DN70: 1187 | DO70: 1292 | DP70: 18 | DR70: -87 | DS70: 8 | DT70: 1 | DU70: 0 | DV70: 0 | DW70: -78 | DX70: 11798 | DY70: 1216 | EA70: 94 | EB70: -1430 | EC70: -1438 | EE70: 2642 | EH70: 21 | EJ70: 36 | EQ70: -1890 | ER70: 21 | ES70: 1 | ET70: -3298 | EU70: 22 | EV70: 340 | EW70: -2656 | EX70: 2 | EY70: 0 | EZ70: 1665 | FA70: -176 | FB70: 2382 | FC70: -818 | FD70: 2430 | FE70: 179 | FF70: 10282 | FG70: 7137 | FH70: 3145 | FI70: 49 | FJ70: 10558 | FK70: 8088 | FL70: 2470 | FM70: 49 | FN70: 11737 | FO70: 9053 | FP70: 2684 | FQ70: 62 | FR70: 2783
A71: 217 | B71: Kannus | C71: 5578 | E71: 2.364560639 | F71: 60.87577939 | G71: -4219.612764 | K71: 43.84937497 | L71: 1202.402295 | M71: 42.98905981 | N71: 10209.0355 | P71: 25588 | Q71: 52926 | R71: 148 | S71: -27190 | T71: 17171 | U71: 13214 | X71: -147 | Y71: 19 | Z71: 3067 | AA71: 2904 | AB71: 0 | AC71: 0 | AD71: 163 | AE71: -34 | AF71: -29 | AG71: 0 | AH71: 0 | AI71: 100 | AJ71: 15556 | AK71: 3021 | AM71: -566 | AN71: -1188 | AO71: 450 | AT71: 20.5 | AV71: 211 | AW71: 5520 | AY71: 3.202172097 | AZ71: 64.57659889 | BA71: -5499.818841 | BE71: 36.94748772 | BF71: 1338.586957 | BG71: 45.00525648 | BH71: 10856.15942 | BJ71: 35050 | BK71: 62747 | BL71: 312 | BM71: -27385 | BN71: 17621 | BO71: 13531 | BR71: -119 | BS71: 33 | BT71: 3681 | BU71: 3155 | BV71: 0 | BX71: 526 | BY71: -36 | BZ71: -27 | CA71: -54 | CB71: 0 | CC71: 409 | CD71: 12434 | CE71: 3419 | CG71: -77 | CH71: -1045 | CI71: -464 | CN71: 20.5 | CP71: 196 | CQ71: 5502 | CS71: 2.859117841 | CT71: 62.21512369 | CU71: -5334.78735 | CY71: 36.58007767 | CZ71: 1748.636859 | DA71: 49.37453426 | DB71: 12926.75391 | DD71: 38693 | DE71: 65720 | DF71: 227 | DG71: -26800 | DH71: 17779 | DI71: 13339 | DL71: -116 | DM71: 0 | DN71: 4202 | DO71: 3147 | DP71: 0 | DR71: 1055 | DS71: -150 | DT71: -271 | DU71: -144 | DV71: 0 | DW71: 490 | DX71: 12872 | DY71: 3209 | EA71: 523 | EB71: -1378 | EC71: 808 | EE71: 1265 | EH71: 21.5 | EJ71: 57 | EQ71: -2631 | ER71: 0 | ES71: 60 | ET71: -4034 | EU71: 43 | EV71: 108 | EW71: -3806 | EX71: 44 | EY71: 1361 | EZ71: 456 | FA71: 558 | FB71: 5447 | FC71: 1242 | FD71: 655 | FE71: 1059 | FF71: 22524 | FG71: 7856 | FH71: 14668 | FI71: 52 | FJ71: 28275 | FK71: 12330 | FL71: 15945 | FM71: 50 | FN71: 28644 | FO71: 11639 | FP71: 17005 | FQ71: 49 | FR71: 1353
A72: 218 | B72: Karijoki | C72: 1349 | E72: 2.334146341 | F72: 27.89482106 | G72: -1229.058562 | K72: 48.83949295 | L72: 1837.657524 | M72: 48.59218087 | N72: 13803.55819 | P72: 9804 | Q72: 17798 | R72: 1 | S72: -7993 | T72: 4001 | U72: 4944 | X72: -41 | Y72: 4 | Z72: 915 | AA72: 461 | AB72: 0 | AC72: 0 | AD72: 454 | AE72: -2 | AF72: 15 | AG72: -6 | AH72: -1 | AI72: 460 | AJ72: 960 | AK72: 918 | AM72: 117 | AN72: -368 | AO72: 516 | AT72: 22 | AV72: 152 | AW72: 1329 | AY72: 2.8767507 | AZ72: 27.67041835 | BA72: -920.2407825 | BE72: 51.8708484 | BF72: 2211.437171 | BG72: 61.18725759 | BH72: 13191.87359 | BJ72: 9610 | BK72: 17813 | BL72: 0 | BM72: -8203 | BN72: 4243 | BO72: 4983 | BR72: -38 | BS72: 4 | BT72: 989 | BU72: 459 | BV72: 0 | BX72: 530 | BY72: -2 | BZ72: 0 | CA72: 0 | CB72: -4 | CC72: 524 | CD72: 1659 | CE72: 933 | CG72: 16 | CH72: -319 | CI72: 419 | CN72: 22 | CP72: 156 | CQ72: 1274 | CS72: 0.7418478261 | CT72: 28.81938932 | CU72: -1902.66876 | CY72: 49.09168443 | CZ72: 1427.786499 | DA72: 32.38865311 | DB72: 16090.26688 | DD72: 9985 | DE72: 18628 | DF72: 1 | DG72: -8642 | DH72: 4032 | DI72: 4880 | DL72: -37 | DM72: 3 | DN72: 236 | DO72: 451 | DP72: 0 | DR72: -215 | DS72: 0 | DT72: 1 | DU72: 0 | DV72: 0 | DW72: -214 | DX72: 1246 | DY72: 255 | EA72: -173 | EB72: -331 | EC72: -1209 | EE72: 88 | EH72: 22 | EJ72: 253 | EQ72: -409 | ER72: 5 | ES72: 2 | ET72: -643 | EU72: 4 | EV72: 125 | EW72: -1497 | EX72: 0 | EY72: 33 | EZ72: 84 | FA72: -11 | FB72: 245 | FC72: -46 | FD72: 397 | FE72: -1 | FF72: 3089 | FG72: 2665 | FH72: 424 | FI72: 2 | FJ72: 2969 | FK72: 2586 | FL72: 383 | FM72: 1 | FN72: 3034 | FO72: 2676 | FP72: 358 | FQ72: 1 | FR72: 88
A73: 224 | B73: Karkkila | C73: 8911 | E73: 0.8434610304 | F73: 69.7348451 | G73: -6496.128381 | K73: 13.47834034 | L73: 787.1170463 | M73: 22.53994946 | N73: 12746.15644 | P73: 49149 | Q73: 95747 | R73: -1 | S73: -46599 | T73: 31563 | U73: 20097 | X73: -551 | Y73: 16 | Z73: 4526 | AA73: 3776 | AB73: 0 | AC73: 0 | AD73: 750 | AE73: 1 | AF73: -2 | AG73: 0 | AH73: 0 | AI73: 749 | AJ73: 2461 | AK73: 4049 | AM73: 835 | AN73: -5474 | AO73: -7391 | AT73: 20.75 | AV73: 229 | AW73: 8900 | AY73: 0.7804726368 | AZ73: 71.23639825 | BA73: -6956.629213 | BE73: 13.399492 | BF73: 614.1573034 | BG73: 21.02307692 | BH73: 10662.92135 | BJ73: 50714 | BK73: 97193 | BL73: 0 | BM73: -46479 | BN73: 31553 | BO73: 19650 | BR73: -617 | BS73: 263 | BT73: 4370 | BU73: 4082 | BV73: 21 | BX73: 309 | BY73: 3 | BZ73: 3 | CA73: 0 | CB73: 0 | CC73: 315 | CD73: 2745 | CE73: 3771 | CG73: 175 | CH73: -5782 | CI73: -4064 | CN73: 20.75 | CP73: 256 | CQ73: 8778 | CS73: 0.206377827 | CT73: 71.48552808 | CU73: -7005.696058 | CY73: 12.13705536 | CZ73: 897.6987924 | DA73: 23.36968003 | DB73: 14020.73365 | DD73: 53575 | DE73: 100388 | DF73: -6 | DG73: -46819 | DH73: 30716 | DI73: 20049 | DL73: -549 | DM73: 24 | DN73: 3421 | DO73: 4326 | DP73: 0 | DR73: -905 | DS73: -9 | DT73: 0 | DU73: -2 | DV73: 0 | DW73: -916 | DX73: 1808 | DY73: 2542 | EA73: 10 | EB73: -18826 | EC73: 511 | EE73: 49 | EH73: 20.75 | EJ73: 186 | EQ73: -11666 | ER73: 5 | ES73: 221 | ET73: -8595 | EU73: 22 | EV73: 738 | EW73: -3161 | EX73: 54 | EY73: 1076 | EZ73: 12685 | FA73: 500 | FB73: 735 | FC73: 6850 | FD73: 35350 | FE73: -16520 | FF73: 61174 | FG73: 39253 | FH73: 21921 | FI73: 3 | FJ73: 62977 | FK73: 34019 | FL73: 28958 | FM73: 3 | FN73: 62980 | FO73: 43622 | FP73: 19358 | FQ73: 3 | FR73: 52
A74: 226 | B74: Karstula | C74: 4232 | E74: 25.83333333 | F74: 53.3445178 | G74: -3534.499055 | K74: 38.25681697 | L74: 2502.599244 | M74: 70.67766706 | N74: 12924.14934 | P74: 28416 | Q74: 52086 | R74: 0 | S74: -23670 | T74: 11721 | U74: 15297 | X74: -7 | Y74: -63 | Z74: 3278 | AA74: 3383 | AB74: 0 | AC74: 0 | AD74: -105 | AE74: -21 | AF74: 102 | AG74: -38 | AH74: 20 | AI74: -42 | AJ74: 4181 | AK74: 3317 | AM74: -14 | AN74: 0 | AO74: 1159 | AT74: 20 | AV74: 109 | AW74: 4146 | AY74: 4.792429792 | AZ74: 49.62879459 | BA74: -3524.119633 | BE74: 38.20570644 | BF74: 2864.688857 | BG74: 77.74439124 | BH74: 13449.34877 | BJ74: 33982 | BK74: 58196 | BL74: 0 | BM74: -24214 | BN74: 12130 | BO74: 15983 | BR74: 45 | BS74: -54 | BT74: 3890 | BU74: 2810 | BV74: 0 | BX74: 1080 | BY74: -68 | BZ74: 183 | CA74: -45 | CB74: -28 | CC74: 1122 | CD74: 5119 | CE74: 3820 | CG74: -309 | CH74: -784 | CI74: 355 | CN74: 20 | CP74: 85 | CQ74: 4031 | CS74: 3.679218968 | CT74: 53.99664161 | CU74: -3874.720913 | CY74: 34.39261719 | CZ74: 3186.05805 | DA74: 72.1095096 | DB74: 16127.01563 | DD74: 33843 | DE74: 58799 | DF74: 0 | DG74: -24956 | DH74: 12013 | DI74: 15483 | DL74: 25 | DM74: 16 | DN74: 2581 | DO74: 2604 | DP74: 0 | DR74: -23 | DS74: -89 | DT74: 0 | DU74: -58 | DV74: 14 | DW74: -156 | DX74: 3514 | DY74: 2637 | EA74: -330 | EB74: -660 | EC74: -1468 | EE74: 5033 | EH74: 21 | EJ74: 95 | EQ74: -2304 | ER74: 0 | ES74: 146 | ET74: -3752 | EU74: 242 | EV74: 45 | EW74: -5420 | EX74: 636 | EY74: 679 | EZ74: 516 | FA74: -1112 | FB74: 3062 | FC74: -645 | FD74: 2210 | FE74: 655 | FF74: 20593 | FG74: 6029 | FH74: 14564 | FI74: -92 | FJ74: 22341 | FK74: 8374 | FL74: 13967 | FM74: 279 | FN74: 24222 | FO74: 9997 | FP74: 14225 | FQ74: 270 | FR74: 5150
A75: 230 | B75: Karvia | C75: 2449 | E75: 2.747252747 | F75: 51.64570804 | G75: -4849.734586 | K75: 49.6931383 | L75: 1377.705186 | M75: 30.78775 | N75: 16333.19722 | P75: 21615 | Q75: 34390 | R75: 11 | S75: -12764 | T75: 6248 | U75: 8717 | X75: -11 | Y75: 13 | Z75: 2203 | AA75: 2363 | AB75: 0 | AC75: 0 | AD75: -160 | AE75: -319 | AF75: 0 | AG75: -2 | AH75: -113 | AI75: -594 | AJ75: 12736 | AK75: 2165 | AM75: 27 | AN75: -772 | AO75: -923 | AT75: 19.75 | AV75: 74 | AW75: 2403 | AY75: 4.092050209 | AZ75: 58.86609393 | BA75: -5824.386184 | BE75: 46.75363752 | BF75: 1656.679151 | BG75: 49.50143081 | BH75: 12215.56388 | BJ75: 21599 | BK75: 34103 | BL75: -2 | BM75: -12506 | BN75: 6712 | BO75: 8588 | BR75: -72 | BS75: 129 | BT75: 2851 | BU75: 2331 | BV75: 0 | BX75: 520 | BY75: -233 | BZ75: 0 | CA75: -2 | CB75: -69 | CC75: 216 | CD75: 13318 | CE75: 2624 | CG75: -72 | CH75: -634 | CI75: -1937 | CN75: 19.75 | CP75: 35 | CQ75: 2390 | CS75: 2.274271845 | CT75: 59.34881428 | CU75: -5952.719665 | CY75: 44.80150814 | CZ75: 1449.372385 | DA75: 33.48677067 | DB75: 15797.90795 | DD75: 21936 | DE75: 34722 | DF75: -11 | DG75: -12797 | DH75: 6397 | DI75: 8185 | DL75: -88 | DM75: 80 | DN75: 1777 | DO75: 2482 | DP75: 0 | DR75: -705 | DS75: -265 | DT75: 0 | DU75: -2 | DV75: -68 | DW75: -1040 | DX75: 12455 | DY75: 1375 | EA75: -353 | EB75: -727 | EC75: -332 | EE75: 313 | EH75: 20.5 | EJ75: 64 | EQ75: -4772 | ER75: 7 | ES75: 1677 | ET75: -5508 | EU75: 456 | EV75: 491 | EW75: -2199 | EX75: 194 | EY75: 298 | EZ75: 1464 | FA75: 51 | FB75: 3871 | FC75: -210 | FD75: 197 | FE75: 61 | FF75: 7666 | FG75: 5565 | FH75: 2101 | FI75: 2 | FJ75: 10693 | FK75: 8673 | FL75: 2020 | FM75: 1 | FN75: 10224 | FO75: 7980 | FP75: 2244 | FQ75: 0 | FR75: 268
A76: 231 | B76: Kaskinen | C76: 1296 | E76: 0.05994550409 | F76: 55.92196555 | G76: -4106.481481 | K76: 65.1786613 | L76: 681.3271605 | M76: 23.45669578 | N76: 10601.85185 | P76: 4084 | Q76: 12213 | R76: 0 | S76: -8129 | T76: 6342 | U76: 1825 | X76: -50 | Y76: 4 | Z76: -8 | AA76: 1163 | AB76: 6 | AC76: 0 | AD76: -1165 | AE76: 0 | AF76: 63 | AG76: 0 | AH76: -46 | AI76: -1148 | AJ76: 5907 | AK76: -48 | AM76: -16 | AN76: -682 | AO76: -794 | AT76: 21.5 | AV76: 293 | AW76: 1274 | AY76: 1.475675676 | AZ76: 67.64048408 | BA76: -5776.295133 | BE76: 58.12180337 | BF76: 332.0251177 | BG76: 15.12786596 | BH76: 8010.989011 | BJ76: 4118 | BK76: 11886 | BL76: 0 | BM76: -7768 | BN76: 6638 | BO76: 2217 | BR76: -57 | BS76: 4 | BT76: 1034 | BU76: 1111 | BV76: 0 | BX76: -77 | BY76: 0 | BZ76: 21 | CA76: 0 | CB76: -47 | CC76: -103 | CD76: 5809 | CE76: 987 | CG76: -332 | CH76: -682 | CI76: -1415 | CN76: 22 | CP76: 126 | CQ76: 1262 | CS76: 0.990512334 | CT76: 65.80611562 | CU76: -6018.22504 | CY76: 54.76456261 | CZ76: 170.3645008 | DA76: 5.462930734 | DB76: 11382.72583 | DD76: 4865 | DE76: 12922 | DF76: 0 | DG76: -8057 | DH76: 6663 | DI76: 1913 | DL76: -55 | DM76: 1 | DN76: 465 | DO76: 1940 | DP76: 0 | DR76: -1475 | DS76: 0 | DT76: -8 | DU76: 0 | DV76: -18 | DW76: -1501 | DX76: 4329 | DY76: -142 | EA76: -100 | EB76: -470 | EC76: -250 | EE76: 0 | EH76: 22 | EJ76: 191 | EQ76: -790 | ER76: 18 | ES76: 26 | ET76: -2430 | EU76: 27 | EV76: 1 | EW76: -909 | EX76: 33 | EY76: 768 | EZ76: 1008 | FA76: -17 | FB76: 1635 | FC76: 204 | FD76: 345 | FE76: 86 | FF76: 4311 | FG76: 4305 | FH76: 6 | FI76: 0 | FJ76: 5469 | FK76: 5409 | FL76: 60 | FM76: 0 | FN76: 5444 | FO76: 2898 | FP76: 2546 | FQ76: 0 | FR76: 0
A77: 232 | B77: Kauhajoki | C77: 13772 | E77: 1.130245495 | F77: 65.41741877 | G77: -6186.029625 | K77: 26.2848039 | L77: 1380.482138 | M77: 36.58717647 | N77: 13771.92855 | P77: 87141 | Q77: 169360 | R77: 144 | S77: -82075 | T77: 45558 | U77: 44581 | X77: -1281 | Y77: 1260 | Z77: 8043 | AA77: 8209 | AB77: 0 | AC77: 0 | AD77: -166 | AE77: -47 | AF77: -51 | AG77: 0 | AH77: -38 | AI77: -302 | AJ77: -2123 | AK77: 8006 | AM77: 4285 | AN77: -6966 | AO77: -2890 | AT77: 22 | AV77: 195 | AW77: 13610 | AY77: 1.425147493 | AZ77: 67.87767753 | BA77: -6036.884644 | BE77: 26.99063019 | BF77: 1869.066863 | BG77: 56.81112865 | BH77: 12008.37619 | BJ77: 83982 | BK77: 163501 | BL77: 157 | BM77: -79362 | BN77: 45865 | BO77: 43727 | BR77: -1118 | BS77: 1348 | BT77: 10460 | BU77: 8016 | BV77: 0 | BX77: 2444 | BY77: 18 | BZ77: -14 | CA77: 0 | CB77: -37 | CC77: 2411 | CD77: 153 | CE77: 9929 | CG77: 6571 | CH77: -7001 | CI77: 2975 | CN77: 22 | CP77: 149 | CQ77: 13375 | CS77: 0.9494488788 | CT77: 69.24914814 | CU77: -6345.196262 | CY77: 25.50820349 | CZ77: 1763.28972 | DA77: 46.62636767 | DB77: 13803.36449 | DD77: 84479 | DE77: 166629 | DF77: 214 | DG77: -81936 | DH77: 44521 | DI77: 43857 | DL77: -961 | DM77: 993 | DN77: 6474 | DO77: 8076 | DP77: 0 | DR77: -1602 | DS77: -25 | DT77: -54 | DU77: 0 | DV77: -7 | DW77: -1688 | DX77: -2381 | DY77: 6148 | EA77: 3436 | EB77: -6873 | EC77: -2674 | EE77: 2740 | EH77: 22 | EJ77: 150 | EQ77: -11829 | ER77: 488 | ES77: 445 | ET77: -8452 | EU77: 300 | EV77: 1198 | EW77: -9594 | EX77: -6 | EY77: 778 | EZ77: 8935 | FA77: 1844 | FB77: 16634 | FC77: -7158 | FD77: 8266 | FE77: -1010 | FF77: 90620 | FG77: 72623 | FH77: 17997 | FI77: 150 | FJ77: 93095 | FK77: 82478 | FL77: 10617 | FM77: 117 | FN77: 93478 | FO77: 83830 | FP77: 9648 | FQ77: 258 | FR77: 2861
A78: 233 | B78: Kauhava | C78: 16599 | E78: 1.470919912 | F78: 61.29651061 | G78: -5742.695343 | K78: 31.71654761 | L78: 1818.121574 | M78: 47.07810497 | N78: 14096.02988 | P78: 110472 | Q78: 208223 | R78: 70 | S78: -97681 | T78: 55033 | U78: 56568 | X78: -981 | Y78: -23 | Z78: 12916 | AA78: 11107 | AB78: 0 | AC78: 0 | AD78: 1809 | AE78: -48 | AF78: 317 | AG78: -121 | AH78: -15 | AI78: 1942 | AJ78: 21863 | AK78: 12765 | AM78: 4062 | AN78: -8406 | AO78: -5630 | AT78: 21.75 | AV78: 108 | AW78: 16278 | AY78: 1.255061952 | AZ78: 60.12860894 | BA78: -5707.02789 | BE78: 32.51083057 | BF78: 1937.891633 | BG78: 55.03367333 | BH78: 12852.6846 | BJ78: 117673 | BK78: 212526 | BL78: 27 | BM78: -94826 | BN78: 55113 | BO78: 56125 | BR78: -943 | BS78: 45 | BT78: 15514 | BU78: 11844 | BV78: 0 | BX78: 3670 | BY78: -46 | BZ78: 629 | CA78: -194 | CB78: -35 | CC78: 4024 | CD78: 25744 | CE78: 14783 | CG78: 1223 | CH78: -12138 | CI78: 2387 | CN78: 21.75 | CP78: 81 | CQ78: 16022 | CS78: 0.3638136089 | CT78: 68.22771765 | CU78: -6833.478966 | CY78: 27.98031394 | CZ78: 1889.714143 | DA78: 42.46407245 | DB78: 16243.04082 | DD78: 119536 | DE78: 218741 | DF78: 53 | DG78: -99152 | DH78: 52045 | DI78: 54506 | DL78: -1112 | DM78: 44 | DN78: 6331 | DO78: 11590 | DP78: 0 | DR78: -5259 | DS78: -13 | DT78: 646 | DU78: -128 | DV78: -28 | DW78: -4782 | DX78: 20042 | DY78: 6333 | EA78: 4016 | EB78: -19383 | EC78: -16041 | EE78: 4876 | EH78: 21.75 | EJ78: 184 | EQ78: -18854 | ER78: 67 | ES78: 392 | ET78: -13949 | EU78: 0 | EV78: 1553 | EW78: -23477 | EX78: 306 | EY78: 797 | EZ78: 9432 | FA78: -1427 | FB78: 10004 | FC78: -823 | FD78: 25049 | FE78: 74 | FF78: 107881 | FG78: 94547 | FH78: 13334 | FI78: 32 | FJ78: 108413 | FK78: 93198 | FL78: 15215 | FM78: 26 | FN78: 121585 | FO78: 102392 | FP78: 19193 | FQ78: 13 | FR78: 5018
A79: 235 | B79: Kauniainen | C79: 9397 | E79: 14.25 | F79: 30.5968983 | G79: -1845.269767 | K79: 73.64853402 | L79: 1293.497925 | M79: 41.93716857 | N79: 11257.95467 | P79: 45374 | Q79: 93074 | R79: 0 | S79: -47700 | T79: 62972 | U79: 433 | X79: -198 | Y79: 70 | Z79: 15577 | AA79: 8670 | AB79: 201 | AC79: 0 | AD79: 7108 | AE79: -1 | AF79: 111 | AG79: -6 | AH79: 27 | AI79: 7239 | AJ79: 42805 | AK79: 6721 | AM79: 398 | AN79: -684 | AO79: 4723 | AT79: 16.5 | AV79: 2 | AW79: 9624 | AY79: 13.0181668 | AZ79: 33.26746687 | BA79: -2047.277639 | BE79: 73.2852974 | BF79: 1258.000831 | BG79: 57.94114176 | BH79: 7924.771405 | BJ79: 40332 | BK79: 93315 | BL79: 1 | BM79: -52982 | BN79: 69270 | BO79: -796 | BR79: -108 | BS79: 47 | BT79: 15431 | BU79: 9319 | BV79: 45 | BX79: 6157 | BY79: -8 | BZ79: 83 | CA79: -5 | CB79: 18 | CC79: 6245 | CD79: 49060 | CE79: 14333 | CG79: -584 | CH79: -877 | CI79: -2427 | CN79: 17 | CP79: 7 | CQ79: 9615 | CS79: 11.30412371 | CT79: 32.54137159 | CU79: -1984.295372 | CY79: 74.24800273 | CZ79: 1232.969319 | DA79: 39.36137794 | DB79: 11433.38534 | DD79: 42147 | DE79: 96141 | DF79: -5 | DG79: -53999 | DH79: 69149 | DI79: -2284 | DL79: -90 | DM79: 54 | DN79: 12830 | DO79: 9199 | DP79: 0 | DR79: 3631 | DS79: 0 | DT79: -246 | DU79: -7 | DV79: -61 | DW79: 3317 | DX79: 51762 | DY79: 10876 | EA79: -210 | EB79: -836 | EC79: 429 | EE79: 2394 | EH79: 17 | EJ79: 6 | EQ79: -11499 | ER79: 7 | ES79: 9494 | ET79: -18348 | EU79: 240 | EV79: 1348 | EW79: -12506 | EX79: 22 | EY79: 2037 | EZ79: 114 | FA79: 61 | FB79: 915 | FC79: 1922 | FD79: 260 | FE79: -1791 | FF79: 19861 | FG79: 18983 | FH79: 878 | FI79: 4735 | FJ79: 21859 | FK79: 19041 | FL79: 2818 | FM79: 4710 | FN79: 19470 | FO79: 18392 | FP79: 1078 | FQ79: 4684 | FR79: 2598
A80: 236 | B80: Kaustinen | C80: 4298 | E80: 1.611773203 | F80: 106.2341652 | G80: -10327.1289 | K80: 27.15320454 | L80: 1114.006515 | M80: 33.37891781 | N80: 12181.71242 | P80: 23346 | Q80: 45716 | R80: 107 | S80: -22263 | T80: 14518 | U80: 12263 | X80: -257 | Y80: -122 | Z80: 4139 | AA80: 3114 | AB80: 0 | AC80: 0 | AD80: 1025 | AE80: -10 | AF80: 0 | AG80: 0 | AH80: 0 | AI80: 1015 | AJ80: 8030 | AK80: 4124 | AM80: -1263 | AN80: -2445 | AO80: 439 | AT80: 21.5 | AV80: 61 | AW80: 4309 | AY80: 0.6456487754 | AZ80: 106.6618327 | BA80: -11458.57508 | BE80: 21.88024622 | BF80: 1236.945927 | BG80: 37.3156229 | BH80: 12099.09492 | BJ80: 28898 | BK80: 51486 | BL80: 172 | BM80: -22416 | BN80: 13983 | BO80: 12284 | BR80: -263 | BS80: -170 | BT80: 3418 | BU80: 3351 | BV80: -12 | BX80: 55 | BY80: 0 | BZ80: 0 | CA80: 0 | CB80: 0 | CC80: 55 | CD80: 4606 | CE80: 3266 | CG80: 426 | CH80: -5458 | CI80: -1906 | CN80: 21.5 | CP80: 134 | CQ80: 4273 | CS80: 0.8326456937 | CT80: 104.6223108 | CU80: -11886.02855 | CY80: 20.56877124 | CZ80: 1476.480225 | DA80: 35.33613123 | DB80: 15251.11163 | DD80: 31162 | DE80: 55132 | DF80: 120 | DG80: -23850 | DH80: 14057 | DI80: 12977 | DL80: -263 | DM80: -50 | DN80: 2871 | DO80: 3261 | DP80: -1 | DR80: -391 | DS80: 8 | DT80: -76 | DU80: 0 | DV80: 0 | DW80: -459 | DX80: 3906 | DY80: 2085 | EA80: 436 | EB80: -3520 | EC80: -1457 | EE80: 1631 | EH80: 21.5 | EJ80: 83 | EQ80: -3736 | ER80: 0 | ES80: 51 | ET80: -5327 | EU80: 49 | EV80: 106 | EW80: -6061 | EX80: 49 | EY80: 2470 | EZ80: 3448 | FA80: 376 | FB80: 10223 | FC80: 93 | FD80: 4999 | FE80: -9 | FF80: 43081 | FG80: 36141 | FH80: 6940 | FI80: 23 | FJ80: 47846 | FK80: 40259 | FL80: 7587 | FM80: 22 | FN80: 49632 | FO80: 41788 | FP80: 7844 | FQ80: 22 | FR80: 2349
A81: 239 | B81: Keitele | C81: 2346 | E81: 2.125396825 | F81: 67.16825739 | G81: -6309.462916 | K81: 34.45922049 | L81: 390.4518329 | M81: 12.50663973 | N81: 11395.14066 | P81: 10518 | Q81: 24712 | R81: 9 | S81: -14185 | T81: 7106 | U81: 8360 | X81: -88 | Y81: 55 | Z81: 1248 | AA81: 976 | AB81: 0 | AC81: 0 | AD81: 272 | AE81: 0 | AF81: 0 | AG81: 0 | AH81: 0 | AI81: 272 | AJ81: 1457 | AK81: 1234 | AM81: 220 | AN81: -539 | AO81: 61 | AT81: 19.5 | AV81: 216 | AW81: 2309 | AY81: 1.031561462 | AZ81: 69.58837583 | BA81: -6640.537029 | BE81: 32.84501357 | BF81: 281.507146 | BG81: 9.673013414 | BH81: 10622.34734 | BJ81: 10079 | BK81: 25038 | BL81: 14 | BM81: -14945 | BN81: 7315 | BO81: 8139 | BR81: -82 | BS81: 109 | BT81: 536 | BU81: 1036 | BV81: 0 | BX81: -500 | BY81: -8 | BZ81: 3 | CA81: -3 | CB81: -2 | CC81: -510 | CD81: 986 | CE81: 535 | CG81: -52 | CH81: -517 | CI81: -548 | CN81: 20.5 | CP81: 289 | CQ81: 2244 | CS81: 0.6413043478 | CT81: 78.283594 | CU81: -7068.181818 | CY81: 27.01046544 | CZ81: 907.7540107 | DA81: 27.40527092 | DB81: 12090.01783 | DD81: 10247 | DE81: 24712 | DF81: 22 | DG81: -14443 | DH81: 6874 | DI81: 7943 | DL81: -84 | DM81: 213 | DN81: 503 | DO81: 1150 | DP81: -26 | DR81: -673 | DS81: 1 | DT81: 5 | DU81: 0 | DV81: -1 | DW81: -668 | DX81: -1456 | DY81: 487 | EA81: 54 | EB81: -833 | EC81: -862 | EE81: 1673 | EH81: 20.5 | EJ81: 244 | EQ81: -1360 | ER81: 31 | ES81: 156 | ET81: -1168 | EU81: 30 | EV81: 55 | EW81: -1454 | EX81: 10 | EY81: 95 | EZ81: 415 | FA81: 124 | FB81: 162 | FC81: 798 | FD81: 3992 | FE81: -1250 | FF81: 15088 | FG81: 9335 | FH81: 5753 | FI81: 0 | FJ81: 17768 | FK81: 8965 | FL81: 8803 | FM81: 0 | FN81: 19621 | FO81: 12024 | FP81: 7597 | FQ81: 3 | FR81: 1441
A82: 240 | B82: Kemi | C82: 21602 | E82: 1.225214273 | F82: 69.76717902 | G82: -6119.664846 | K82: 28.53413393 | L82: 757.2909916 | M82: 23.49607876 | N82: 11764.14221 | P82: 101524 | Q82: 219573 | R82: 607 | S82: -117442 | T82: 86141 | U82: 51231 | X82: -1771 | Y82: 215 | Z82: 18374 | AA82: 14146 | AB82: 0 | AC82: 0 | AD82: 4228 | AE82: -44 | AF82: -86 | AG82: -852 | AH82: -135 | AI82: 3111 | AJ82: -752 | AK82: 14704 | AM82: -1300 | AN82: -14669 | AO82: -1062 | AT82: 21.25 | AV82: 90 | AW82: 21256 | AY82: 1.176225885 | AZ82: 66.32167279 | BA82: -5908.637561 | BE82: 30.66217786 | BF82: 782.5084682 | BG82: 27.02530237 | BH82: 10568.45126 | BJ82: 105205 | BK82: 220500 | BL82: 173 | BM82: -115122 | BN82: 87280 | BO82: 50128 | BR82: -1892 | BS82: 289 | BT82: 20683 | BU82: 13783 | BV82: -60 | BX82: 6840 | BY82: -46 | BZ82: -33 | CA82: -1185 | CB82: -135 | CC82: 5441 | CD82: 4667 | CE82: 19155 | CG82: -554 | CH82: -17294 | CI82: 10059 | CN82: 21.25 | CP82: 75 | CQ82: 21021 | CS82: 0.3532867416 | CT82: 72.08347475 | CU82: -6611.245897 | CY82: 27.44361478 | CZ82: 824.4136816 | DA82: 21.9571926 | DB82: 13704.43842 | DD82: 111044 | DE82: 231676 | DF82: 132 | DG82: -120500 | DH82: 85711 | DI82: 44851 | DL82: -1435 | DM82: 331 | DN82: 8958 | DO82: 13615 | DP82: 35 | DR82: -4622 | DS82: -26 | DT82: -54 | DU82: -1219 | DV82: -79 | DW82: -6000 | DX82: -1332 | DY82: 7902 | EA82: 998 | EB82: -28113 | EC82: -13395 | EE82: 5293 | EH82: 21.75 | EJ82: 171 | EQ82: -18058 | ER82: 517 | ES82: 1775 | ET82: -15116 | EU82: 415 | EV82: 5605 | EW82: -26743 | EX82: 174 | EY82: 5272 | EZ82: 18194 | FA82: -4994 | FB82: 10606 | FC82: -388 | FD82: 25612 | FE82: 12569 | FF82: 127693 | FG82: 95222 | FH82: 32471 | FI82: 0 | FJ82: 120540 | FK82: 81611 | FL82: 38929 | FM82: 0 | FN82: 135345 | FO82: 90400 | FP82: 44945 | FQ82: 0 | FR82: 6501
A83: 320 | B83: Kemijärvi | C83: 7661 | E83: 1.267345267 | F83: 95.87532543 | G83: -11039.81203 | K83: 29.25822664 | L83: 1459.731106 | M83: 30.69526538 | N83: 17357.78619 | P83: 50692 | Q83: 100658 | R83: 0 | S83: -49966 | T83: 29105 | U83: 30442 | X83: -1132 | Y83: 1161 | Z83: 9610 | AA83: 6874 | AB83: 51 | AC83: 0 | AD83: 2787 | AE83: 68 | AF83: -350 | AG83: 0 | AH83: -388 | AI83: 2117 | AJ83: 5754 | AK83: 6249 | AM83: -493 | AN83: -7325 | AO83: 13627 | AT83: 21 | AV83: 17 | AW83: 7534 | AY83: 1.061226879 | AZ83: 100.3299875 | BA83: -11526.14813 | BE83: 29.14181636 | BF83: 1484.868596 | BG83: 41.31887314 | BH83: 13116.93655 | BJ83: 50571 | BK83: 101010 | BL83: 0 | BM83: -50439 | BN83: 29153 | BO83: 29068 | BR83: -1016 | BS83: 1182 | BT83: 7948 | BU83: 6922 | BV83: 9 | BX83: 1035 | BY83: -397 | BZ83: 61 | CA83: 0 | CB83: -416 | CC83: 283 | CD83: 7243 | CE83: 7997 | CG83: -169 | CH83: -7425 | CI83: -4100 | CN83: 21 | CP83: 64 | CQ83: 7370 | CS83: 0.551152899 | CT83: 94.46148246 | CU83: -11293.75848 | CY83: 30.10338524 | CZ83: 1557.123474 | DA83: 32.93112259 | DB83: 17258.7517 | DD83: 51891 | DE83: 101202 | DF83: 0 | DG83: -49311 | DH83: 29446 | DI83: 28548 | DL83: -984 | DM83: 1066 | DN83: 8765 | DO83: 7171 | DP83: 0 | DR83: 1594 | DS83: -316 | DT83: 57 | DU83: 0 | DV83: -485 | DW83: 850 | DX83: 7513 | DY83: 7980 | EA83: 1498 | EB83: -16785 | EC83: 3681 | EE83: 8552 | EH83: 21.5 | EJ83: 13 | EQ83: -11135 | ER83: 5112 | ES83: 13401 | ET83: -12082 | EU83: 190 | EV83: -205 | EW83: -7226 | EX83: 164 | EY83: 2763 | EZ83: 8467 | FA83: -2499 | FB83: 7698 | FC83: 4138 | FD83: 15771 | FE83: -3956 | FF83: 67228 | FG83: 57326 | FH83: 9902 | FI83: 768 | FJ83: 71662 | FK83: 57803 | FL83: 13859 | FM83: 740 | FN83: 66238 | FO83: 56972 | FP83: 9266 | FQ83: 736 | FR83: 8725
A84: 241 | B84: Keminmaa | C84: 8316 | E84: 1.75382716 | F84: 62.89141013 | G84: -4068.783069 | K84: 38.8540589 | L84: 1073.833574 | M84: 40.5464746 | N84: 9666.666667 | P84: 27219 | Q84: 68616 | R84: -2 | S84: -41399 | T84: 35173 | U84: 13232 | X84: -450 | Y84: 91 | Z84: 6647 | AA84: 5513 | AB84: -70 | AC84: 0 | AD84: 1064 | AE84: 0 | AF84: -8 | AG84: 0 | AH84: -180 | AI84: 876 | AJ84: 4666 | AK84: 4919 | AM84: 142 | AN84: -3594 | AO84: 783 | AT84: 21.25 | AV84: 102 | AW84: 8296 | AY84: 1.373975904 | AZ84: 60.85487185 | BA84: -3739.513018 | BE84: 40.64318607 | BF84: 1112.584378 | BG84: 48.9786869 | BH84: 8291.224687 | BJ84: 26511 | BK84: 68392 | BL84: 0 | BM84: -41881 | BN84: 34762 | BO84: 12703 | BR84: -377 | BS84: 115 | BT84: 5322 | BU84: 4048 | BV84: -430 | BX84: 849 | BY84: 0 | BZ84: 6 | CA84: 0 | CB84: -101 | CC84: 754 | CD84: 5626 | CE84: 4976 | CG84: 433 | CH84: -3770 | CI84: 1417 | CN84: 21.25 | CP84: 211 | CQ84: 8147 | CS84: 0.7520036638 | CT84: 55.31829386 | CU84: -3025.162637 | CY84: 42.3531438 | CZ84: 1154.289923 | DA84: 43.19678836 | DB84: 9753.406162 | DD84: 27442 | DE84: 71492 | DF84: 0 | DG84: -44050 | DH84: 34796 | DI84: 12410 | DL84: -309 | DM84: 123 | DN84: 2970 | DO84: 4057 | DP84: 713 | DR84: -374 | DS84: 0 | DT84: 5 | DU84: 0 | DV84: -165 | DW84: -534 | DX84: 5459 | DY84: 3099 | EA84: -2082 | EB84: -4053 | EC84: 6638 | EE84: 433 | EH84: 21.25 | EJ84: 195 | EQ84: -6081 | ER84: 198 | ES84: 1747 | ET84: -3796 | EU84: 60 | EV84: 177 | EW84: -3591 | EX84: 133 | EY84: 6997 | EZ84: 5946 | FA84: -316 | FB84: 2500 | FC84: 3 | FD84: 15 | FE84: 599 | FF84: 31513 | FG84: 28128 | FH84: 3385 | FI84: 0 | FJ84: 29237 | FK84: 25348 | FL84: 3889 | FM84: 18 | FN84: 26012 | FO84: 21198 | FP84: 4814 | FQ84: 82 | FR84: 955
A85: 322 | B85: Kemiönsaari | C85: 6872 | E85: 1.591204037 | F85: 60.37756543 | G85: -5087.892899 | K85: 45.67232933 | L85: 725.9895227 | M85: 24.15676156 | N85: 10969.44121 | P85: 27501 | Q85: 66357 | R85: 1 | S85: -38855 | T85: 22398 | U85: 23042 | X85: -481 | Y85: 41 | Z85: 6145 | AA85: 5232 | AB85: 0 | AC85: 0 | AD85: 913 | AE85: -10 | AF85: 0 | AG85: -65 | AH85: 11 | AI85: 849 | AJ85: 18364 | AK85: 5801 | AM85: -360 | AN85: -3685 | AO85: 1444 | AT85: 19.75 | AV85: 76 | AW85: 6793 | AY85: 1.874660745 | AZ85: 63.67671136 | BA85: -5150.301781 | BE85: 45.13779114 | BF85: 1112.468718 | BG85: 44.03705537 | BH85: 9220.668335 | BJ85: 28373 | BK85: 66346 | BL85: 4 | BM85: -37969 | BN85: 23382 | BO85: 22148 | BR85: -472 | BS85: 39 | BT85: 7128 | BU85: 5106 | BV85: -62 | BX85: 2022 | BY85: -15 | BZ85: 0 | CA85: -62 | CB85: -37 | CC85: 1908 | CD85: 20132 | CE85: 5950 | CG85: -354 | CH85: -3583 | CI85: 18 | CN85: 19.75 | CP85: 65 | CQ85: 6724 | CS85: 0.6190366444 | CT85: 60.43503407 | CU85: -5183.521713 | CY85: 45.52468581 | CZ85: 577.1861987 | DA85: 18.83780154 | DB85: 11183.52171 | DD85: 27424 | DE85: 68266 | DF85: 2 | DG85: -40840 | DH85: 22262 | DI85: 21205 | DL85: -453 | DM85: 60 | DN85: 2234 | DO85: 5149 | DP85: 0 | DR85: -2915 | DS85: -2 | DT85: -214 | DU85: -59 | DV85: 27 | DW85: -3163 | DX85: 17302 | DY85: 1841 | EA85: 553 | EB85: -3887 | EC85: 87 | EE85: 1406 | EH85: 19.75 | EJ85: 201 | EQ85: -4764 | ER85: 54 | ES85: 353 | ET85: -7858 | EU85: 285 | EV85: 1641 | EW85: -2496 | EX85: 198 | EY85: 544 | EZ85: 82 | FA85: 896 | FB85: 4691 | FC85: 1102 | FD85: 693 | FE85: -1928 | FF85: 33966 | FG85: 29609 | FH85: 4357 | FI85: 1 | FJ85: 36308 | FK85: 30840 | FL85: 5468 | FM85: 1 | FN85: 31218 | FO85: 28271 | FP85: 2947 | FQ85: 1 | FR85: 1711
A86: 244 | B86: Kempele | C86: 17297 | E86: 2.034764522 | F86: 57.6706665 | G86: -2956.524253 | K86: 45.17556421 | L86: 963.0571775 | M86: 45.56175018 | N86: 7715.152917 | P86: 33965 | Q86: 114956 | R86: -66 | S86: -81057 | T86: 65652 | U86: 29055 | X86: -929 | Y86: 40 | Z86: 12761 | AA86: 7993 | AB86: 0 | AC86: 0 | AD86: 4768 | AE86: -3 | AF86: -3 | AG86: -5 | AH86: -14 | AI86: 4743 | AJ86: 19699 | AK86: 9737 | AM86: 974 | AN86: -5796 | AO86: 3218 | AT86: 20.5 | AV86: 125 | AW86: 17535 | AY86: 1.446848042 | AZ86: 64.23865018 | BA86: -3545.993727 | BE86: 42.93059979 | BF86: 794.582264 | BG86: 48.62734505 | BH86: 5964.185914 | BJ86: 34369 | BK86: 119201 | BL86: 85 | BM86: -84747 | BN86: 67244 | BO86: 28301 | BR86: -851 | BS86: 100 | BT86: 10047 | BU86: 8222 | BV86: 0 | BX86: 1825 | BY86: 6 | BZ86: 76 | CA86: -2 | CB86: 22 | CC86: 1927 | CD86: 21414 | CE86: 6672 | CG86: -937 | CH86: -6680 | CI86: -11001 | CN86: 20.5 | CP86: 226 | CQ86: 17923 | CS86: 1.098953886 | CT86: 70.34093784 | CU86: -4018.356302 | CY86: 40.73581209 | CZ86: 839.1452324 | DA86: 35.37478091 | DB86: 8658.371924 | DD86: 37141 | DE86: 124080 | DF86: -32 | DG86: -86971 | DH86: 68585 | DI86: 28668 | DL86: -795 | DM86: -2 | DN86: 9485 | DO86: 7897 | DP86: 453 | DR86: 2041 | DS86: -15 | DT86: -109 | DU86: -2 | DV86: -31 | DW86: 1884 | DX86: 23761 | DY86: 5194 | EA86: 56 | EB86: -8558 | EC86: -10345 | EE86: 867 | EH86: 20.5 | EJ86: 131 | EQ86: -11369 | ER86: 261 | ES86: 4589 | ET86: -22209 | EU86: 528 | EV86: 4008 | EW86: -21605 | EX86: 281 | EY86: 5785 | EZ86: 8524 | FA86: -729 | FB86: 13748 | FC86: 0 | FD86: 18673 | FE86: -78 | FF86: 54039 | FG86: 47344 | FH86: 6695 | FI86: 29 | FJ86: 61107 | FK86: 53598 | FL86: 7509 | FM86: 29 | FN86: 71092 | FO86: 63512 | FP86: 7580 | FQ86: 3 | FR86: 1054
A87: 245 | B87: Kerava | C87: 35511 | E87: 1.690888597 | F87: 69.58793224 | G87: -6004.167723 | K87: 53.87036316 | L87: 533.7219453 | M87: 17.31851205 | N87: 11248.57087 | P87: 179588 | Q87: 327425 | R87: -29 | S87: -147866 | T87: 154077 | U87: 38434 | X87: -1168 | Y87: 298 | Z87: 43775 | AA87: 28119 | AB87: 0 | AC87: 0 | AD87: 15656 | AE87: -149 | AF87: -1152 | AG87: 1 | AH87: -298 | AI87: 14058 | AJ87: 166606 | AK87: 37497 | AM87: -3319 | AN87: -25387 | AO87: 3245 | AT87: 19.25 | AV87: 19 | AW87: 35554 | AY87: 2.156226029 | AZ87: 73.80521906 | BA87: -6214.350003 | BE87: 53.50204719 | BF87: 641.531192 | BG87: 28.49300277 | BH87: 8218.118918 | BJ87: 178172 | BK87: 327844 | BL87: 28 | BM87: -149644 | BN87: 156322 | BO87: 34423 | BR87: -772 | BS87: 932 | BT87: 41261 | BU87: 29517 | BV87: 134 | BX87: 11878 | BY87: -172 | BZ87: 39 | CA87: -362 | CB87: -523 | CC87: 10860 | CD87: 137647 | CE87: 38574 | CG87: -1758 | CH87: -18651 | CI87: -8646 | CN87: 19.25 | CP87: 41 | CQ87: 36254 | CS87: 1.621773563 | CT87: 75.5574621 | CU87: -6364.732167 | CY87: 53.0266474 | CZ87: 648.6732498 | DA87: 21.23360239 | DB87: 11150.52132 | DD87: 182884 | DE87: 338222 | DF87: 59 | DG87: -155279 | DH87: 151935 | DI87: 35834 | DL87: -782 | DM87: 551 | DN87: 32259 | DO87: 30748 | DP87: 0 | DR87: 1511 | DS87: 60 | DT87: -10 | DU87: -19 | DV87: -68 | DW87: 1474 | DX87: 139430 | DY87: 27934 | EA87: 2694 | EB87: -19540 | EC87: -9501 | EE87: 5664 | EH87: 19.25 | EJ87: 34 | EQ87: -44605 | ER87: 11 | ES87: 10342 | ET87: -56048 | EU87: 43 | EV87: 8785 | EW87: -44837 | EX87: 84 | EY87: 7318 | EZ87: 26355 | FA87: -2900 | FB87: 27781 | FC87: -521 | FD87: 21700 | FE87: -9 | FF87: 169055 | FG87: 138659 | FH87: 30396 | FI87: 152 | FJ87: 177664 | FK87: 147148 | FL87: 30516 | FM87: 219 | FN87: 179815 | FO87: 150801 | FP87: 29014 | FQ87: 80 | FR87: 3263
A88: 249 | B88: Keuruu | C88: 9992 | E88: 2.320474777 | F88: 112.6927545 | G88: -11289.53163 | K88: 27.51375192 | L88: 510.4083267 | M88: 14.7514482 | N88: 12629.20336 | P88: 47554 | Q88: 102147 | R88: 140 | S88: -54453 | T88: 33553 | U88: 31666 | X88: -659 | Y88: 143 | Z88: 10250 | AA88: 10240 | AB88: -1 | AC88: 0 | AD88: 9 | AE88: -341 | AF88: 0 | AG88: -84 | AH88: -171 | AI88: -587 | AJ88: 10953 | AK88: 10076 | AM88: -967 | AN88: -4020 | AO88: -8845 | AT88: 20.5 | AV88: 44 | AW88: 9919 | AY88: 1.982530761 | AZ88: 111.3418598 | BA88: -11661.55862 | BE88: 27.92760296 | BF88: 605.5045872 | BG88: 22.72193949 | BH88: 9726.686158 | BJ88: 52407 | BK88: 105050 | BL88: 125 | BM88: -52518 | BN88: 33735 | BO88: 31687 | BR88: -615 | BS88: 111 | BT88: 12400 | BU88: 9916 | BV88: 0 | BX88: 2484 | BY88: -219 | BZ88: 11 | CA88: -38 | CB88: -94 | CC88: 2144 | CD88: 13623 | CE88: 12173 | CG88: -186 | CH88: -5932 | CI88: -2664 | CN88: 20.5 | CP88: 25 | CQ88: 9762 | CS88: 1.961674827 | CT88: 112.1778132 | CU88: -12138.80352 | CY88: 27.25627943 | CZ88: 679.7787339 | DA88: 18.6899287 | DB88: 13275.55829 | DD88: 55436 | DE88: 109333 | DF88: 217 | DG88: -53680 | DH88: 34185 | DI88: 31000 | DL88: -628 | DM88: 70 | DN88: 10947 | DO88: 10153 | DP88: 0 | DR88: 794 | DS88: -379 | DT88: -1 | DU88: -80 | DV88: -155 | DW88: 179 | DX88: 14074 | DY88: 10350 | EA88: -570 | EB88: -5251 | EC88: -2617 | EE88: 675 | EH88: 21.5 | EJ88: 15 | EQ88: -19298 | ER88: 49 | ES88: 328 | ET88: -15195 | EU88: 60 | EV88: 298 | EW88: -14242 | EX88: 41 | EY88: 1234 | EZ88: 13860 | FA88: -683 | FB88: 13737 | FC88: -2724 | FD88: 4660 | FE88: 2398 | FF88: 95266 | FG88: 51951 | FH88: 43315 | FI88: 0 | FJ88: 100404 | FK88: 58711 | FL88: 41693 | FM88: 0 | FN88: 102233 | FO88: 59095 | FP88: 43138 | FQ88: 0 | FR88: 863
A89: 250 | B89: Kihniö | C89: 1994 | E89: 1.28232503 | F89: 57.72056908 | G89: -4012.036108 | K89: 37.12510132 | L89: 974.9247743 | M89: 35.82912543 | N89: 9931.795386 | P89: 5638 | Q89: 18134 | R89: 3 | S89: -12493 | T89: 6100 | U89: 7451 | X89: -135 | Y89: 20 | Z89: 943 | AA89: 1137 | AB89: -11 | AC89: 0 | AD89: -205 | AE89: -13 | AF89: 1 | AG89: -9 | AH89: -6 | AI89: -232 | AJ89: -198 | AK89: 921 | AM89: -118 | AN89: -705 | AO89: 382 | AT89: 21.5 | AV89: 241 | AW89: 1967 | AY89: 1.305764411 | AZ89: 66.5046787 | BA89: -4394.001017 | BE89: 33.24375435 | BF89: 1341.128622 | BG89: 54.96460783 | BH89: 8905.948144 | BJ89: 5798 | BK89: 18419 | BL89: 12 | BM89: -12609 | BN89: 5880 | BO89: 7665 | BR89: -143 | BS89: 103 | BT89: 896 | BU89: 1017 | BV89: 0 | BX89: -121 | BY89: -16 | BZ89: 0 | CA89: -10 | CB89: -4 | CC89: -151 | CD89: -428 | CE89: 954 | CG89: -454 | CH89: -652 | CI89: -651 | CN89: 21.5 | CP89: 265 | CQ89: 1910 | CS89: 1.231343284 | CT89: 63.91138046 | CU89: -4667.539267 | CY89: 32.99805806 | CZ89: 1492.146597 | DA89: 48.64845906 | DB89: 11195.28796 | DD89: 6900 | DE89: 19089 | DF89: 1 | DG89: -12188 | DH89: 5774 | DI89: 7457 | DL89: -141 | DM89: 109 | DN89: 1011 | DO89: 894 | DP89: 0 | DR89: 117 | DS89: -16 | DT89: 0 | DU89: -11 | DV89: -1 | DW89: 89 | DX89: -424 | DY89: 692 | EA89: 497 | EB89: -794 | EC89: -244 | EE89: 3208 | EH89: 21.5 | EJ89: 130 | EQ89: -707 | ER89: 10 | ES89: 158 | ET89: -1738 | EU89: 2 | EV89: 131 | EW89: -1317 | EX89: 32 | EY89: 349 | EZ89: 425 | FA89: -25 | FB89: 2250 | FC89: 1 | FD89: 586 | FE89: -7 | FF89: 9145 | FG89: 8492 | FH89: 653 | FI89: 36 | FJ89: 10723 | FK89: 9981 | FL89: 742 | FM89: 7 | FN89: 10566 | FO89: 9797 | FP89: 769 | FQ89: 23 | FR89: 3219
A90: 256 | B90: Kinnula | C90: 1699 | E90: 13.23157895 | F90: 52.41291823 | G90: -1971.159506 | K90: 56.06638448 | L90: 1846.380224 | M90: 58.35907238 | N90: 11547.96939 | P90: 6500 | Q90: 17762 | R90: 0 | S90: -11262 | T90: 4760 | U90: 7659 | X90: 76 | Y90: 12 | Z90: 1245 | AA90: 986 | AB90: 0 | AC90: 0 | AD90: 259 | AE90: 0 | AF90: 0 | AG90: 0 | AH90: 0 | AI90: 259 | AJ90: 6436 | AK90: 1322 | AM90: 216 | AN90: -83 | AO90: -367 | AT90: 20.5 | AV90: 130 | AW90: 1656 | AY90: 17.77272727 | AZ90: 56.92932575 | BA90: -1676.328502 | BE90: 56.94985298 | BF90: 2371.376812 | BG90: 89.56789352 | BH90: 9663.647343 | BJ90: 6144 | BK90: 17047 | BL90: 0 | BM90: -10903 | BN90: 4778 | BO90: 7543 | BR90: 84 | BS90: 56 | BT90: 1558 | BU90: 990 | BV90: 0 | BX90: 568 | BY90: 0 | BZ90: 2 | CA90: 0 | CB90: 0 | CC90: 570 | CD90: 7397 | CE90: 1577 | CG90: -344 | CH90: -82 | CI90: 587 | CN90: 20.5 | CP90: 84 | CQ90: 1615 | CS90: -1.885057471 | CT90: 68.29742242 | CU90: -3432.817337 | CY90: 51.5714342 | CZ90: 1585.758514 | DA90: 45.59162074 | DB90: 12695.35604 | DD90: 5903 | DE90: 17749 | DF90: -29 | DG90: -11875 | DH90: 4599 | DI90: 6995 | DL90: 74 | DM90: 38 | DN90: -169 | DO90: 1042 | DP90: 0 | DR90: -1211 | DS90: 0 | DT90: 0 | DU90: 0 | DV90: 0 | DW90: -1211 | DX90: 6144 | DY90: -169 | EA90: 0 | EB90: -82 | EC90: -2740 | EE90: 161 | EH90: 20.5 | EJ90: 288 | EQ90: -1717 | ER90: 1 | ES90: 27 | ET90: -1137 | EU90: 1 | EV90: 146 | EW90: -2610 | EX90: 22 | EY90: 17 | EZ90: 496 | FA90: 109 | FB90: 993 | FC90: -413 | FD90: 1015 | FE90: 287 | FF90: 7472 | FG90: 1087 | FH90: 6385 | FI90: 0 | FJ90: 7980 | FK90: 1975 | FL90: 6005 | FM90: 0 | FN90: 9199 | FO90: 2898 | FP90: 6301 | FQ90: 0 | FR90: 223
A91: 257 | B91: Kirkkonummi | C91: 39033 | E91: 1.503052718 | F91: 65.24464874 | G91: -4300.694284 | K91: 28.40462889 | L91: 860.8357031 | M91: 35.18722063 | N91: 8929.521174 | P91: 111256 | Q91: 302460 | R91: 11 | S91: -191193 | T91: 184775 | U91: 31602 | X91: -2020 | Y91: 393 | Z91: 23557 | AA91: 19968 | AB91: 0 | AC91: 0 | AD91: 3589 | AE91: 54 | AF91: 36 | AG91: -1 | AH91: -6 | AI91: 3672 | AJ91: 25076 | AK91: 22444 | AM91: 11815 | AN91: -14988 | AO91: -4506 | AT91: 19.5 | AV91: 188 | AW91: 39170 | AY91: 1.329113205 | AZ91: 65.42409149 | BA91: -4458.948175 | BE91: 28.52149129 | BF91: 711.3607353 | BG91: 34.36199434 | BH91: 7556.216492 | BJ91: 112139 | BK91: 307827 | BL91: -55 | BM91: -195743 | BN91: 189712 | BO91: 29021 | BR91: -1664 | BS91: 352 | BT91: 21678 | BU91: 20514 | BV91: 150 | BX91: 1314 | BY91: 52 | BZ91: 83 | CA91: 0 | CB91: -136 | CC91: 1313 | CD91: 26943 | CE91: 20326 | CG91: -1642 | CH91: -15881 | CI91: -7959 | CN91: 19.5 | CP91: 237 | CQ91: 39262 | CS91: 1.140510949 | CT91: 69.9926088 | CU91: -4872.67587 | CY91: 25.78152591 | CZ91: 801.5383832 | DA91: 30.91255766 | DB91: 9464.163823 | DD91: 120214 | DE91: 319679 | DF91: -59 | DG91: -199524 | DH91: 189339 | DI91: 28687 | DL91: -1542 | DM91: 175 | DN91: 17135 | DO91: 21656 | DP91: -190 | DR91: -4711 | DS91: 57 | DT91: 48 | DU91: -4 | DV91: -49 | DW91: -4659 | DX91: 22294 | DY91: 12692 | EA91: -85 | EB91: -14825 | EC91: -17434 | EE91: 5845 | EH91: 19.5 | EJ91: 166 | EQ91: -28732 | ER91: 77 | ES91: 1705 | ET91: -29756 | EU91: -295 | EV91: 1766 | EW91: -35037 | EX91: 66 | EY91: 4845 | EZ91: 32 | FA91: 30839 | FB91: 11506 | FC91: 3178 | FD91: 35881 | FE91: -8575 | FF91: 163451 | FG91: 104047 | FH91: 59404 | FI91: 1049 | FJ91: 162359 | FK91: 99868 | FL91: 62491 | FM91: 962 | FN91: 174841 | FO91: 118909 | FP91: 55932 | FQ91: 882 | FR91: 4736
A92: 260 | B92: Kitee | C92: 10719 | E92: 2.18920373 | F92: 42.12669724 | G92: -2917.809497 | K92: 46.40659122 | L92: 879.2797836 | M92: 30.87944886 | N92: 10393.22698 | P92: 36118 | Q92: 99240 | R92: 1 | S92: -63121 | T92: 34516 | U92: 40355 | X92: -364 | Y92: 404 | Z92: 11790 | AA92: 5058 | AB92: 0 | AC92: 0 | AD92: 6732 | AE92: -25 | AF92: 11 | AG92: 0 | AH92: -80 | AI92: 6638 | AJ92: 14282 | AK92: 11717 | AM92: -626 | AN92: -5159 | AO92: 6439 | AT92: 22 | AV92: 34 | AW92: 10486 | AY92: 1.079648306 | AZ92: 29.98150463 | BA92: -2075.910738 | BE92: 52.87946211 | BF92: 1354.377265 | BG92: 42.318236 | BH92: 11681.6708 | BJ92: 62385 | BK92: 124759 | BL92: 0 | BM92: -62374 | BN92: 34203 | BO92: 40203 | BR92: -274 | BS92: 449 | BT92: 12207 | BU92: 5796 | BV92: 533 | BX92: 6944 | BY92: -31 | BZ92: -55 | CA92: -67 | CB92: -94 | CC92: 6697 | CD92: 20997 | CE92: 12629 | CG92: 1013 | CH92: -11283 | CI92: 9785 | CN92: 21.5 | CP92: 40 | CQ92: 10358 | CS92: 1.299654577 | CT92: 27.65965428 | CU92: -1744.641823 | CY92: 55.89707715 | CZ92: 1392.546824 | DA92: 38.33209558 | DB92: 13259.89573 | DD92: 61656 | DE92: 126206 | DF92: 1 | DG92: -64549 | DH92: 32042 | DI92: 39590 | DL92: -197 | DM92: 412 | DN92: 7298 | DO92: 4819 | DP92: 20 | DR92: 2499 | DS92: -23 | DT92: 1 | DU92: -77 | DV92: -73 | DW92: 2327 | DX92: 23324 | DY92: 8101 | EA92: 669 | EB92: -5563 | EC92: 3176 | EE92: 1911 | EH92: 21.5 | EJ92: 74 | EQ92: -5968 | ER92: 125 | ES92: 565 | ET92: -14176 | EU92: 23 | EV92: 11309 | EW92: -5143 | EX92: 72 | EY92: 146 | EZ92: 3138 | FA92: -2500 | FB92: 8194 | FC92: -1410 | FD92: 0 | FE92: -8 | FF92: 30246 | FG92: 24056 | FH92: 6190 | FI92: 662 | FJ92: 25747 | FK92: 21012 | FL92: 4735 | FM92: 962 | FN92: 20176 | FO92: 17519 | FP92: 2657 | FQ92: 530 | FR92: 2015
A93: 261 | B93: Kittilä | C93: 6383 | E93: 1.83129164 | F93: 82.6306557 | G93: -11205.70265 | K93: 36.85198351 | L93: 843.1771894 | M93: 19.4134738 | N93: 15852.89049 | P93: 49113 | Q93: 83063 | R93: 1010 | S93: -32940 | T93: 28495 | U93: 21584 | X93: -1035 | Y93: -116 | Z93: 15988 | AA93: 8661 | AB93: 4 | AC93: 0 | AD93: 7331 | AE93: -455 | AF93: 519 | AG93: -51 | AH93: -64 | AI93: 7280 | AJ93: 38466 | AK93: 14931 | AM93: 38 | AN93: -8252 | AO93: 7823 | AT93: 20.25 | AV93: 1 | AW93: 6421 | AY93: 1.894275923 | AZ93: 75.50117657 | BA93: -9788.662202 | BE93: 41.07615491 | BF93: 945.0241395 | BG93: 26.08033159 | BH93: 13225.82152 | BJ93: 49471 | BK93: 83698 | BL93: 0 | BM93: -34227 | BN93: 29144 | BO93: 20402 | BR93: -878 | BS93: -411 | BT93: 14030 | BU93: 8419 | BV93: -55 | BX93: 5556 | BY93: 584 | BZ93: 891 | CA93: -529 | CB93: -84 | CC93: 6418 | CD93: 44152 | CE93: 13488 | CG93: -533 | CH93: -6984 | CI93: 5767 | CN93: 20.25 | CP93: 1 | CQ93: 6436 | CS93: 1.610940521 | CT93: 67.4533718 | CU93: -8761.342449 | CY93: 43.58366856 | CZ93: 1219.546302 | DA93: 26.96159348 | DB93: 16509.94406 | DD93: 51079 | DE93: 90616 | DF93: 1248 | DG93: -38289 | DH93: 28580 | DI93: 23980 | DL93: -667 | DM93: -107 | DN93: 13497 | DO93: 8502 | DP93: 0 | DR93: 4995 | DS93: -671 | DT93: 662 | DU93: -386 | DV93: -46 | DW93: 4554 | DX93: 48182 | DY93: 10262 | EA93: 513 | EB93: -8125 | EC93: 5993 | EE93: 3269 | EH93: 20.25 | EJ93: 1 | EQ93: -8136 | ER93: 813 | ES93: 215 | ET93: -7950 | EU93: 139 | EV93: 90 | EW93: -6021 | EX93: 67 | EY93: 1685 | EZ93: 156 | FA93: -605 | FB93: 1841 | FC93: -892 | FD93: 139 | FE93: 755 | FF93: 56718 | FG93: 47921 | FH93: 8797 | FI93: 306 | FJ93: 50840 | FK93: 42935 | FL93: 7905 | FM93: 423 | FN93: 43992 | FO93: 35506 | FP93: 8486 | FQ93: 367 | FR93: 4438
A94: 263 | B94: Kiuruvesi | C94: 8444 | E94: 1.204559848 | F94: 62.3054286 | G94: -6038.133586 | K94: 34.97939594 | L94: 1308.384652 | M94: 36.07744198 | N94: 13237.09143 | P94: 46966 | Q94: 100500 | R94: 67 | S94: -53467 | T94: 23413 | U94: 35302 | X94: -475 | Y94: 445 | Z94: 5218 | AA94: 5236 | AB94: 122 | AC94: 0 | AD94: 104 | AE94: -16 | AF94: 88 | AG94: -4 | AH94: -13 | AI94: 159 | AJ94: 2254 | AK94: 5240 | AM94: 185 | AN94: -4249 | AO94: -490 | AT94: 20.75 | AV94: 180 | AW94: 8283 | AY94: 1.494010739 | AZ94: 62.80201421 | BA94: -6173.246408 | BE94: 34.89015195 | BF94: 1308.825305 | BG94: 40.49578869 | BH94: 11796.81275 | BJ94: 47164 | BK94: 100169 | BL94: 118 | BM94: -52887 | BN94: 24349 | BO94: 34732 | BR94: -503 | BS94: 1020 | BT94: 6711 | BU94: 6436 | BV94: 1 | BX94: 276 | BY94: -13 | BZ94: 9 | CA94: -9 | CB94: -51 | CC94: 212 | CD94: 2622 | CE94: 6685 | CG94: -954 | CH94: -4319 | CI94: -171 | CN94: 20.75 | CP94: 128 | CQ94: 8153 | CS94: 0.8648382005 | CT94: 65.96114145 | CU94: -6414.939286 | CY94: 33.12334599 | CZ94: 1451.244941 | DA94: 38.54862896 | DB94: 13741.19956 | DD94: 46447 | DE94: 100170 | DF94: 154 | DG94: -53569 | DH94: 22913 | DI94: 34298 | DL94: -531 | DM94: 735 | DN94: 3846 | DO94: 5634 | DP94: 140 | DR94: -1648 | DS94: -2 | DT94: 9 | DU94: -4 | DV94: -66 | DW94: -1711 | DX94: 887 | DY94: 3213 | EA94: 418 | EB94: -4531 | EC94: -1530 | EE94: 22 | EH94: 20.75 | EJ94: 155 | EQ94: -6298 | ER94: 209 | ES94: 359 | ET94: -7498 | EU94: 533 | EV94: 109 | EW94: -6402 | EX94: 463 | EY94: 1196 | EZ94: 6071 | FA94: -2819 | FB94: 5544 | FC94: 718 | FD94: 3251 | FE94: 1426 | FF94: 54562 | FG94: 37261 | FH94: 17301 | FI94: 99 | FJ94: 56500 | FK94: 38396 | FL94: 18104 | FM94: 99 | FN94: 56328 | FO94: 36398 | FP94: 19930 | FQ94: 92 | FR94: 315
A95: 265 | B95: Kivijärvi | C95: 1161 | E95: 1.577235772 | F95: 49.53280418 | G95: -4785.529716 | K95: 39.8379124 | L95: 2425.495263 | M95: 49.20955618 | N95: 17990.52541 | P95: 10659 | Q95: 19151 | R95: 0 | S95: -8492 | T95: 3427 | U95: 5820 | X95: -62 | Y95: 10 | Z95: 703 | AA95: 1273 | AB95: 0 | AC95: 0 | AD95: -570 | AE95: 0 | AF95: -1 | AG95: -1 | AH95: 0 | AI95: -572 | AJ95: 2250 | AK95: 603 | AM95: 220 | AN95: -419 | AO95: -110 | AT95: 21 | AV95: 186 | AW95: 1132 | AY95: 2.529045643 | AZ95: 51.4521757 | BA95: -4864.840989 | BE95: 38.71599816 | BF95: 2347.173145 | BG95: 54.87184565 | BH95: 15613.0742 | BJ95: 10431 | BK95: 18291 | BL95: 0 | BM95: -7860 | BN95: 3516 | BO95: 5541 | BR95: -57 | BS95: 12 | BT95: 1152 | BU95: 1369 | BV95: 0 | BX95: -217 | BY95: 0 | BZ95: 1 | CA95: 0 | CB95: -1 | CC95: -217 | CD95: 2060 | CE95: 1151 | CG95: -375 | CH95: -415 | CI95: 60 | CN95: 21 | CP95: 68 | CQ95: 1103 | CS95: 1.766129032 | CT95: 57.3389209 | CU95: -6138.712602 | CY95: 35.36681716 | CZ95: 2259.292838 | DA95: 43.66892314 | DB95: 18883.95286 | DD95: 10488 | DE95: 18683 | DF95: 0 | DG95: -8195 | DH95: 3489 | DI95: 5113 | DL95: -40 | DM95: -195 | DN95: 172 | DO95: 1106 | DP95: 0 | DR95: -934 | DS95: 0 | DT95: 0 | DU95: 0 | DV95: -1 | DW95: -935 | DX95: 1610 | DY95: 183 | EA95: 179 | EB95: -77 | EC95: -1581 | EE95: 2837 | EH95: 21.5 | EJ95: 259 | EQ95: -1243 | ER95: 241 | ES95: 289 | ET95: -1112 | EU95: 1 | EV95: 20 | EW95: -1814 | EX95: 50 | EY95: 0 | EZ95: 488 | FA95: 154 | FB95: 977 | FC95: -357 | FD95: 600 | FE95: 302 | FF95: 7566 | FG95: 6784 | FH95: 782 | FI95: 48 | FJ95: 7771 | FK95: 7345 | FL95: 426 | FM95: 60 | FN95: 8596 | FO95: 7868 | FP95: 728 | FQ95: 48 | FR95: 2867
A96: 271 | B96: Kokemäki | C96: 7498 | E96: 0.9040957015 | F96: 64.21765641 | G96: -5379.567885 | K96: 21.4357065 | L96: 677.9141104 | M96: 20.96141679 | N96: 11804.48119 | P96: 32221 | Q96: 75437 | R96: 0 | S96: -43216 | T96: 26579 | U96: 21069 | X96: -295 | Y96: 20 | Z96: 4157 | AA96: 3509 | AB96: 0 | AC96: 0 | AD96: 648 | AE96: 4 | AF96: 44 | AG96: 0 | AH96: -30 | AI96: 666 | AJ96: -127 | AK96: 4465 | AM96: -730 | AN96: -4630 | AO96: -913 | AT96: 21.25 | AV96: 209 | AW96: 7381 | AY96: 0.8301602262 | AZ96: 62.32752915 | BA96: -5268.933749 | BE96: 22.98319711 | BF96: 606.963826 | BG96: 21.54811164 | BH96: 10281.2627 | BJ96: 31895 | BK96: 74205 | BL96: 15 | BM96: -42295 | BN96: 26780 | BO96: 19889 | BR96: -266 | BS96: 20 | BT96: 4128 | BU96: 3484 | BV96: 0 | BX96: 644 | BY96: 0 | BZ96: 25 | CA96: 0 | CB96: -24 | CC96: 645 | CD96: 1069 | CE96: 4166 | CG96: 1315 | CH96: -5029 | CI96: 585 | CN96: 21.75 | CP96: 231 | CQ96: 7226 | CS96: 1.206762029 | CT96: 62.34146841 | CU96: -5404.788265 | CY96: 22.72510353 | CZ96: 557.7082757 | DA96: 18.04049745 | DB96: 11283.69776 | DD96: 32223 | DE96: 74380 | DF96: -14 | DG96: -42171 | DH96: 25747 | DI96: 20169 | DL96: -202 | DM96: -50 | DN96: 3493 | DO96: 3618 | DP96: -455 | DR96: -580 | DS96: 3 | DT96: 0 | DU96: -66 | DV96: 0 | DW96: -643 | DX96: 452 | DY96: 3206 | EA96: 609 | EB96: -2857 | EC96: -404 | EE96: 375 | EH96: 21.75 | EJ96: 151 | EQ96: -8112 | ER96: 2037 | ES96: 697 | ET96: -3662 | EU96: 70 | EV96: 11 | EW96: -3963 | EX96: 202 | EY96: 151 | EZ96: 3884 | FA96: 2700 | FB96: 3259 | FC96: -793 | FD96: 768 | FE96: 935 | FF96: 37974 | FG96: 18987 | FH96: 18987 | FI96: 15 | FJ96: 35522 | FK96: 19169 | FL96: 16353 | FM96: 15 | FN96: 34262 | FO96: 15742 | FP96: 18520 | FQ96: 0 | FR96: 950
A97: 272 | B97: Kokkola | C97: 47723 | E97: 0.4364409364 | F97: 91.67705537 | G97: -9291.746118 | K97: 26.6963664 | L97: 1683.129728 | M97: 39.17050334 | N97: 15683.80026 | P97: 358041 | Q97: 579936 | R97: -67 | S97: -221962 | T97: 183911 | U97: 86936 | X97: -5456 | Y97: 1035 | Z97: 44464 | AA97: 40395 | AB97: -52 | AC97: 0 | AD97: 4017 | AE97: -35 | AF97: 103 | AG97: -92 | AH97: -1296 | AI97: 2697 | AJ97: 55287 | AK97: 43297 | AM97: -9409 | AN97: -109151 | AO97: 2316 | AT97: 21.5 | AV97: 68 | AW97: 47723 | AY97: 1.177165489 | AZ97: 93.32409665 | BA97: -8445.717998 | BE97: 30.9486327 | BF97: 2274.836033 | BG97: 73.178494 | BH97: 11346.43673 | BJ97: 327002 | BK97: 537772 | BL97: 520 | BM97: -210250 | BN97: 190238 | BO97: 86873 | BR97: -4148 | BS97: 1650 | BT97: 64363 | BU97: 42548 | BV97: 25022 | BX97: 46837 | BY97: -325 | BZ97: -1261 | CA97: -2222 | CB97: -1119 | CC97: 41910 | CD97: 98572 | CE97: 82558 | CG97: 12381 | CH97: -53985 | CI97: 28551 | CN97: 21.75 | CP97: 15 | CQ97: 47657 | CS97: 0.5351559667 | CT97: 85.19323723 | CU97: -8381.077281 | CY97: 32.46068392 | CZ97: 1498.751495 | DA97: 36.77473185 | DB97: 14875.54819 | DD97: 332872 | DE97: 555741 | DF97: -20 | DG97: -222889 | DH97: 186811 | DI97: 87938 | DL97: -3812 | DM97: -863 | DN97: 47185 | DO97: 41215 | DP97: -21 | DR97: 5949 | DS97: -354 | DT97: -1389 | DU97: -1886 | DV97: -237 | DW97: 2083 | DX97: 100604 | DY97: 50439 | EA97: 4900 | EB97: -92055 | EC97: 5446 | EE97: 1730 | EH97: 21.75 | EJ97: 25 | EQ97: -53587 | ER97: 1391 | ES97: 11215 | ET97: -55797 | EU97: 1833 | EV97: -43 | EW97: -53816 | EX97: 1895 | EY97: 6928 | EZ97: 85469 | FA97: 2344 | FB97: 56613 | FC97: -5586 | FD97: 66092 | FE97: -18109 | FF97: 461743 | FG97: 400351 | FH97: 61392 | FI97: 169 | FJ97: 452664 | FK97: 388908 | FL97: 63756 | FM97: 821 | FN97: 408593 | FO97: 353097 | FP97: 55496 | FQ97: 821 | FR97: 2221
B98: KOKO MAA (Manner-Suomi) | C98: 5474085 | E98: 1.6 | F98: 77.6 | G98: -5949 | K98: 42.9 | L98: 1247 | M98: 41 | N98: 11169 | P98: 23903762 | Q98: 50418429 | R98: 68081 | S98: -26446586 | T98: 21942053 | U98: 10050212 | X98: -384607 | Y98: 116459 | Z98: 5294661 | AA98: 3936462 | AB98: 322374 | AC98: 0 | AD98: 1680573 | AE98: -32889 | AF98: -15533 | AG98: -68562 | AH98: -43947 | AI98: 1519612 | AJ98: 10807561 | AK98: 4883308 | AM98: -144906 | AN98: -3144680 | AO98: -755736 | AT98: 19.89 | AV98: 0 | AW98: 5483641 | AY98: 1.885379184 | AZ98: 78.71552436 | BA98: -6016.301578 | BE98: 43.38546408 | BF98: 1378.654803 | BG98: 59 | BH98: 8537.36377 | BJ98: 24592758 | BK98: 50642020 | BL98: 81899 | BM98: -25967363 | BN98: 22391744 | BO98: 9701332 | BR98: -371567 | BS98: 156115 | BT98: 5910261 | BU98: 4145979 | BV98: 94051 | BX98: 1848434 | BY98: -39026 | BZ98: -9836 | CA98: -78795 | CB98: -48094 | CC98: 1672683 | CD98: 12313216 | CE98: 5404397 | CG98: -72292 | CH98: -2923408 | CI98: -422223 | CN98: 19.92 | CP98: 0 | CQ98: 5488130 | CS98: 1.526367982 | CT98: 80.75610324 | CU98: -6400.727752 | CY98: 42.44390773 | CZ98: 1343.538692 | DA98: 41.77203475 | DB98: 11739.71116 | DD98: 25941171 | DE98: 52925761 | DF98: 66298 | DG98: -26918292 | DH98: 22270468 | DI98: 9617527 | DL98: -334759 | DM98: 102912 | DN98: 4737856 | DO98: 4281238 | DP98: -9816 | DR98: 446802 | DS98: -26068 | DT98: 17985 | DU98: -84766 | DV98: -64631 | DW98: 289322 | DX98: 12554784 | DY98: 4083856 | EA98: -120148 | EB98: -2961293 | EC98: -2156811 | EE98: 1508183 | EH98: 19.87 | EJ98: - | EQ98: -7001117 | ER98: 173789 | ES98: 1186717 | ET98: -7342003 | EU98: 215662 | EV98: 1299721 | EW98: -7992634 | EX98: 167702 | EY98: 1584265 | EZ98: 4149527 | FA98: 49387 | FB98: 3784026 | FC98: 43211 | FD98: 4325546 | FE98: 64935 | FF98: 33722590 | FG98: 28582527 | FH98: 5140063 | FI98: 1163381 | FJ98: 34624959 | FK98: 29283914 | FL98: 5341045 | FM98: 1196148 | FN98: 35989201 | FO98: 30314205 | FP98: 5674996 | FQ98: 1170334 | FR98: 1498550
A99: 273 | B99: Kolari | C99: 3827 | E99: 3.150278293 | F99: 57.36232019 | G99: -4531.225503 | K99: 42.97026679 | L99: 1212.960544 | M99: 39.16439369 | N99: 11304.41599 | P99: 14886 | Q99: 37908 | R99: 0 | S99: -23022 | T99: 13882 | U99: 14194 | X99: -181 | Y99: 34 | Z99: 4907 | AA99: 3109 | AB99: 0 | AC99: 0 | AD99: 1798 | AE99: -11 | AF99: 0 | AG99: -7 | AH99: -4 | AI99: 1776 | AJ99: 8490 | AK99: 4852 | AM99: -457 | AN99: -1430 | AO99: 1430 | AT99: 20 | AV99: 14 | AW99: 3854 | AY99: 3.986008837 | AZ99: 54.11192791 | BA99: -4275.298391 | BE99: 49.29919137 | BF99: 997.4052932 | BG99: 43.20298066 | BH99: 8426.569798 | BJ99: 13684 | BK99: 36769 | BL99: 0 | BM99: -23085 | BN99: 14085 | BO99: 14401 | BR99: -137 | BS99: 5 | BT99: 5269 | BU99: 3140 | BV99: 182 | BX99: 1748 | BY99: -6 | BZ99: -29 | CA99: -5 | CB99: -9 | CC99: 1699 | CD99: 12271 | CE99: 5416 | CG99: -71 | CH99: -1214 | CI99: -226 | CN99: 20 | CP99: 13 | CQ99: 3834 | CS99: 1.885675554 | CT99: 50.48599069 | CU99: -3642.149191 | CY99: 51.86850643 | CZ99: 1508.607199 | DA99: 47.68073718 | DB99: 11548.5133 | DD99: 14698 | DE99: 39667 | DF99: 0 | DG99: -24969 | DH99: 14808 | DI99: 14322 | DL99: -121 | DM99: 7 | DN99: 4047 | DO99: 2943 | DP99: 0 | DR99: 1104 | DS99: -6 | DT99: 13 | DU99: -5 | DV99: 19 | DW99: 1125 | DX99: 14090 | DY99: 4044 | EA99: 261 | EB99: -2087 | EC99: 2424 | EE99: 4714 | EH99: 20 | EJ99: 20 | EQ99: -3719 | ER99: 174 | ES99: 123 | ET99: -6267 | EU99: 133 | EV99: 492 | EW99: -2020 | EX99: 89 | EY99: 311 | EZ99: 19 | FA99: -12 | FB99: 1744 | FC99: 74 | FD99: 234 | FE99: 2 | FF99: 12473 | FG99: 11128 | FH99: 1345 | FI99: -17 | FJ99: 11012 | FK99: 9879 | FL99: 1133 | FM99: 601 | FN99: 9885 | FO99: 8750 | FP99: 1135 | FQ99: 493 | FR99: 5191
A100: 275 | B100: Konnevesi | C100: 2753 | E100: 0.6652433817 | F100: 100.631427 | G100: -8327.279332 | K100: 30.79341685 | L100: 1179.44061 | M100: 33.12431873 | N100: 12996.3676 | P100: 9089 | Q100: 26265 | R100: 0 | S100: -17176 | T100: 8697 | U100: 9929 | X100: -21 | Y100: -27 | Z100: 1402 | AA100: 1410 | AB100: 0 | AC100: 0 | AD100: -8 | AE100: 0 | AF100: -30 | AG100: -23 | AH100: 0 | AI100: -61 | AJ100: 3640 | AK100: 1372 | AM100: -241 | AN100: -2186 | AO100: -5512 | AT100: 21.5 | AV100: 228 | AW100: 2748 | AY100: 0.2067158847 | AZ100: 116.9926695 | BA100: -9582.24163 | BE100: 26.52878729 | BF100: 1199.053857 | BG100: 45.35999849 | BH100: 9648.471616 | BJ100: 8854 | BK100: 26500 | BL100: 0 | BM100: -17646 | BN100: 8793 | BO100: 9500 | BR100: 10 | BS100: -19 | BT100: 638 | BU100: 1814 | BV100: 0 | BX100: -1176 | BY100: 0 | BZ100: -65 | CA100: -21 | CB100: 1 | CC100: -1261 | CD100: 2680 | CE100: 616 | CG100: -254 | CH100: -3969 | CI100: -3409 | CN100: 21.5 | CP100: 288 | CQ100: 2698 | CS100: 0.2306501548 | CT100: 123.0602238 | CU100: -10540.4003 | CY100: 23.66749517 | CZ100: 915.1223128 | DA100: 28.2662631 | DB100: 11816.90141 | DD100: 8530 | DE100: 26317 | DF100: 0 | DG100: -17787 | DH100: 8897 | DI100: 9290 | DL100: 22 | DM100: -51 | DN100: 371 | DO100: 1881 | DP100: 0 | DR100: -1510 | DS100: 0 | DT100: -1 | DU100: -42 | DV100: 2 | DW100: -1551 | DX100: 1395 | DY100: 318 | EA100: 125 | EB100: -2359 | EC100: -2044 | EE100: 6746 | EH100: 22 | EJ100: 267 | EQ100: -7140 | ER100: 1 | ES100: 255 | ET100: -4208 | EU100: 15 | EV100: 168 | EW100: -2919 | EX100: 180 | EY100: 377 | EZ100: 9869 | FA100: 551 | FB100: 7570 | FC100: -177 | FD100: 2944 | FE100: 353 | FF100: 23472 | FG100: 21120 | FH100: 2352 | FI100: 0 | FJ100: 27023 | FK100: 24847 | FL100: 2176 | FM100: 0 | FN100: 27962 | FO100: 25448 | FP100: 2514 | FQ100: 0 | FR100: 7262
A101: 276 | B101: Kontiolahti | C101: 14806 | E101: 1.14240333 | F101: 70.45172024 | G101: -3741.591247 | K101: 37.12122438 | L101: 967.040389 | M101: 46.1357216 | N101: 7650.682156 | P101: 34020 | Q101: 96881 | R101: 18 | S101: -62843 | T101: 50879 | U101: 22092 | X101: -1091 | Y101: 275 | Z101: 9312 | AA101: 5631 | AB101: 7 | AC101: 0 | AD101: 3688 | AE101: 4 | AF101: 89 | AG101: 0 | AH101: -4 | AI101: 3777 | AJ101: 24094 | AK101: 8951 | AM101: 230 | AN101: -8012 | AO101: 3014 | AT101: 20.5 | AV101: 173 | AW101: 14830 | AY101: 0.9238207801 | AZ101: 55.90042005 | BA101: -3826.298045 | BE101: 38.90605585 | BF101: 692.9197572 | BG101: 33.69543539 | BH101: 7505.933918 | BJ101: 54081 | BK101: 121479 | BL101: 18 | BM101: -67380 | BN101: 50752 | BO101: 24913 | BR101: -1004 | BS101: 297 | BT101: 7578 | BU101: 6116 | BV101: 418 | BX101: 1880 | BY101: -4 | BZ101: 38 | CA101: 0 | CB101: -1 | CC101: 1913 | CD101: 25920 | CE101: 7509 | CG101: -1454 | CH101: -8286 | CI101: -7693 | CN101: 20.5 | CP101: 248 | CQ101: 14849 | CS101: 0.3085707825 | CT101: 65.98292485 | CU101: -4614.452152 | CY101: 33.66781766 | CZ101: 620.6478551 | DA101: 22.61678724 | DB101: 10016.29739 | DD101: 52941 | DE101: 124287 | DF101: 1 | DG101: -71345 | DH101: 49315 | DI101: 24595 | DL101: -700 | DM101: 136 | DN101: 2001 | DO101: 5978 | DP101: 36 | DR101: -3941 | DS101: 1 | DT101: 66 | DU101: -30 | DV101: -5 | DW101: -3909 | DX101: 21864 | DY101: 1919 | EA101: -456 | EB101: -8116 | EC101: -12661 | EE101: 1352 | EH101: 20.5 | EJ101: 269 | EQ101: -6426 | ER101: 42 | ES101: 447 | ET101: -19485 | EU101: 218 | EV101: 4065 | EW101: -15365 | EX101: 470 | EY101: 315 | EZ101: 16241 | FA101: -3250 | FB101: 8306 | FC101: -535 | FD101: 11325 | FE101: 6394 | FF101: 65149 | FG101: 56210 | FH101: 8939 | FI101: 834 | FJ101: 59344 | FK101: 51378 | FL101: 7966 | FM101: 834 | FN101: 68948 | FO101: 54416 | FP101: 14532 | FQ101: -1 | FR101: 1453
A102: 280 | B102: Korsnäs | C102: 2171 | E102: 6.689349112 | F102: 29.0881859 | G102: -1800.092123 | K102: 62.04323409 | L102: 687.2409028 | M102: 23.80053319 | N102: 10539.38277 | P102: 7869 | Q102: 19768 | R102: 0 | S102: -11899 | T102: 7043 | U102: 7121 | X102: -58 | Y102: -4 | Z102: 2203 | AA102: 1312 | AB102: 0 | AC102: 0 | AD102: 891 | AE102: 0 | AF102: 0 | AG102: 0 | AH102: 0 | AI102: 891 | AJ102: 8844 | AK102: 2178 | AM102: -128 | AN102: -280 | AO102: -144 | AT102: 21 | AV102: 48 | AW102: 2154 | AY102: 4.147126437 | AZ102: 26.33196721 | BA102: -1805.942433 | BE102: 64.4752644 | BF102: 405.2924791 | BG102: 17.406588 | BH102: 8498.607242 | BJ102: 7558 | BK102: 19680 | BL102: -3 | BM102: -12125 | BN102: 7090 | BO102: 6824 | BR102: -56 | BS102: 15 | BT102: 1748 | BU102: 1256 | BV102: -2 | BX102: 512 | BY102: 0 | BZ102: 0 | CA102: 0 | CB102: 0 | CC102: 512 | CD102: 9341 | CE102: 1727 | CG102: 116 | CH102: -379 | CI102: 27 | CN102: 21 | CP102: 127 | CQ102: 2122 | CS102: 0.3651794374 | CT102: 29.28290672 | CU102: -2037.700283 | CY102: 62.44827855 | CZ102: 373.7040528 | DA102: 12.31628441 | DB102: 11074.92931 | DD102: 7689 | DE102: 20112 | DF102: -2 | DG102: -12425 | DH102: 6638 | DI102: 6535 | DL102: -53 | DM102: 5 | DN102: 700 | DO102: 1342 | DP102: 0 | DR102: -642 | DS102: 0 | DT102: 0 | DU102: 0 | DV102: 0 | DW102: -642 | DX102: 8699 | DY102: 658 | EA102: -101 | EB102: -2009 | EC102: -455 | EE102: 1250 | EH102: 21 | EJ102: 203 | EQ102: -2757 | ER102: 140 | ES102: 295 | ET102: -1820 | EU102: 70 | EV102: 50 | EW102: -1311 | EX102: 139 | EY102: 59 | EZ102: 879 | FA102: 405 | FB102: 30 | FC102: 54 | FD102: 457 | FE102: 1209 | FF102: 3834 | FG102: 2928 | FH102: 906 | FI102: 1 | FJ102: 3540 | FK102: 2580 | FL102: 960 | FM102: 1 | FN102: 3213 | FO102: 2672 | FP102: 541 | FQ102: 1 | FR102: 1250
A103: 284 | B103: Koski tl | C103: 2416 | E103: 3.768328446 | F103: 25.54154272 | G103: -760.3476821 | K103: 63.34431186 | L103: 1245.860927 | M103: 44.14553783 | N103: 10300.9106 | P103: 9567 | Q103: 22621 | R103: 0 | S103: -13054 | T103: 6785 | U103: 7515 | X103: -1 | Y103: 21 | Z103: 1266 | AA103: 1026 | AB103: 0 | AC103: 0 | AD103: 240 | AE103: 0 | AF103: 127 | AG103: 0 | AH103: 0 | AI103: 367 | AJ103: 4359 | AK103: 1267 | AM103: -90 | AN103: -322 | AO103: -211 | AT103: 19.5 | AV103: 219 | AW103: 2359 | AY103: 10.62566845 | AZ103: 23.64407471 | BA103: -743.1114879 | BE103: 66.17196824 | BF103: 962.6960577 | BG103: 39.94771084 | BH103: 8796.100042 | BJ103: 9690 | BK103: 22564 | BL103: 1 | BM103: -12873 | BN103: 7435 | BO103: 7397 | BR103: -22 | BS103: 21 | BT103: 1958 | BU103: 1064 | BV103: 0 | BX103: 894 | BY103: 0 | BZ103: 65 | CA103: 0 | CB103: 0 | CC103: 959 | CD103: 5381 | CE103: 2011 | CG103: -522 | CH103: -158 | CI103: 100 | CN103: 19.5 | CP103: 117 | CQ103: 2340 | CS103: 14.68 | CT103: 25.81545511 | CU103: -1167.948718 | CY103: 63.35364238 | CZ103: 966.6666667 | DA103: 32.69303873 | DB103: 10792.30769 | DD103: 9779 | DE103: 23670 | DF103: 14 | DG103: -13877 | DH103: 6709 | DI103: 7517 | DL103: -25 | DM103: 18 | DN103: 342 | DO103: 1138 | DP103: 0 | DR103: -796 | DS103: -1 | DT103: 47 | DU103: -1 | DV103: 0 | DW103: -751 | DX103: 4589 | DY103: 361 | EA103: 570 | EB103: 0 | EC103: -1104 | EE103: 154 | EH103: 19.5 | EJ103: 262 | EQ103: -1863 | ER103: 264 | ES103: 121 | ET103: -2002 | EU103: 53 | EV103: 38 | EW103: -1553 | EX103: 63 | EY103: 25 | EZ103: 53 | FA103: -6 | FB103: 102 | FC103: -119 | FD103: 87 | FE103: 224 | FF103: 1760 | FG103: 1412 | FH103: 348 | FI103: 10 | FJ103: 1515 | FK103: 1286 | FL103: 229 | FM103: 10 | FN103: 1443 | FO103: 1354 | FP103: 89 | FQ103: 11 | FR103: 157
A104: 285 | B104: Kotka | C104: 54187 | E104: 1.398844881 | F104: 112.8295137 | G104: -10734.36433 | K104: 26.99260126 | L104: 982.4865743 | M104: 29.42827114 | N104: 12185.81948 | P104: 282298 | Q104: 538861 | R104: 4292 | S104: -252271 | T104: 208149 | U104: 123450 | X104: -8262 | Y104: -2912 | Z104: 68154 | AA104: 56064 | AB104: 159 | AC104: 0 | AD104: 12249 | AE104: -2760 | AF104: 0 | AG104: -2547 | AH104: -185 | AI104: 6757 | AJ104: -41678 | AK104: 63463 | AM104: -8056 | AN104: -46332 | AO104: 11002 | AT104: 20.5 | AV104: 16 | AW104: 53539 | AY104: 1.596956281 | AZ104: 106.9003661 | BA104: -8958.609612 | BE104: 31.71472343 | BF104: 2438.372028 | BG104: 95.47418491 | BH104: 9321.952222 | BJ104: 283620 | BK104: 530822 | BL104: 1172 | BM104: -246030 | BN104: 214777 | BO104: 120860 | BR104: -6760 | BS104: -3193 | BT104: 79654 | BU104: 64407 | BV104: 48218 | BX104: 63465 | BY104: -2700 | BZ104: 0 | CA104: -3058 | CB104: -212 | CC104: 57495 | CD104: 15728 | CE104: 123442 | CG104: 3652 | CH104: -47293 | CI104: 84513 | CN104: 21.5 | CP104: 9 | CQ104: 52883 | CS104: 0.8038859245 | CT104: 105.6219854 | CU104: -9272.242498 | CY104: 31.77268906 | CZ104: 2460.734073 | DA104: 61.88559758 | DB104: 14513.35968 | DD104: 299862 | DE104: 561357 | DF104: 304 | DG104: -261191 | DH104: 211083 | DI104: 128242 | DL104: -5292 | DM104: -3108 | DN104: 69734 | DO104: 59107 | DP104: 8402 | DR104: 19029 | DS104: -3087 | DT104: 0 | DU104: -3403 | DV104: -93 | DW104: 12446 | DX104: 28173 | DY104: 63929 | EA104: -3707 | EB104: -88074 | EC104: -17811 | EE104: 198 | EH104: 21.5 | EJ104: 7 | EQ104: -63637 | ER104: 189 | ES104: 10987 | ET104: -89381 | EU104: 1826 | EV104: 48626 | EW104: -109379 | EX104: 458 | EY104: 27181 | EZ104: 49080 | FA104: 16080 | FB104: 47796 | FC104: -31279 | FD104: 19232 | FE104: 65661 | FF104: 594337 | FG104: 437167 | FH104: 157170 | FI104: 1382 | FJ104: 560306 | FK104: 399671 | FL104: 160635 | FM104: 1210 | FN104: 557126 | FO104: 328021 | FP104: 229105 | FQ104: 1069 | FR104: 317
A105: 286 | B105: Kouvola | C105: 85306 | E105: 1.480935373 | F105: 59.25817189 | G105: -4144.60882 | K105: 41.32662284 | L105: 681.0189201 | M105: 25.06293902 | N105: 9917.907298 | P105: 291984 | Q105: 748987 | R105: 122 | S105: -456881 | T105: 339413 | U105: 175852 | X105: -5400 | Y105: 2640 | Z105: 55624 | AA105: 37804 | AB105: 1492 | AC105: 0 | AD105: 19312 | AE105: -40 | AF105: 2 | AG105: -2184 | AH105: -187 | AI105: 16903 | AJ105: 19071 | AK105: 51597 | AM105: -7800 | AN105: -35695 | AO105: 9272 | AT105: 20.75 | AV105: 163 | AW105: 84196 | AY105: 1.434412423 | AZ105: 62.21817701 | BA105: -4278.077343 | BE105: 41.55451846 | BF105: 825.6330467 | BG105: 35.08557415 | BH105: 8589.172882 | BJ105: 295120 | BK105: 743319 | BL105: 1968 | BM105: -446231 | BN105: 336659 | BO105: 169167 | BR105: -4920 | BS105: 2125 | BT105: 56800 | BU105: 44774 | BV105: 0 | BX105: 12026 | BY105: 9 | BZ105: 0 | CA105: -2649 | CB105: -522 | CC105: 8864 | CD105: 36695 | CE105: 51109 | CG105: -1869 | CH105: -37973 | CI105: -7046 | CN105: 20.75 | CP105: 190 | CQ105: 83177 | CS105: 0.5864036487 | CT105: 67.65224616 | CU105: -4874.592736 | CY105: 37.91048741 | CZ105: 875.6627433 | DA105: 29.00368209 | DB105: 11019.87328 | DD105: 313098 | DE105: 787091 | DF105: 4371 | DG105: -469622 | DH105: 329566 | DI105: 170969 | DL105: -4539 | DM105: -35 | DN105: 26339 | DO105: 42700 | DP105: 0 | DR105: -16361 | DS105: -37 | DT105: 5 | DU105: -2328 | DV105: -101 | DW105: -18822 | DX105: 51931 | DY105: 18909 | EA105: -3461 | EB105: -48375 | EC105: -47303 | EE105: 12449 | EH105: 20.75 | EJ105: 209 | EQ105: -54219 | ER105: 2165 | ES105: 9729 | ET105: -63890 | EU105: 957 | EV105: 4778 | EW105: -74197 | EX105: 1102 | EY105: 6883 | EZ105: 19762 | FA105: 1874 | FB105: 41800 | FC105: 9309 | FD105: 67854 | FE105: 7441 | FF105: 333587 | FG105: 296268 | FH105: 37319 | FI105: 5179 | FJ105: 346723 | FK105: 306603 | FL105: 40120 | FM105: 5419 | FN105: 367644 | FO105: 324031 | FP105: 43613 | FQ105: 5419 | FR105: 16429
A106: 287 | B106: Kristiinankaupunki | C106: 6727 | E106: 2.077993814 | F106: 51.30441144 | G106: -3922.40226 | K106: 39.76690511 | L106: 832.7634904 | M106: 31.7553968 | N106: 9571.874535 | P106: 24125 | Q106: 58948 | R106: 0 | S106: -34823 | T106: 23253 | U106: 20967 | X106: -500 | Y106: 6 | Z106: 8903 | AA106: 3057 | AB106: 0 | AC106: 0 | AD106: 5846 | AE106: 0 | AF106: 5 | AG106: 0 | AH106: -16 | AI106: 5835 | AJ106: 7763 | AK106: 6115 | AM106: 1391 | AN106: -4024 | AO106: 8016 | AT106: 21.5 | AV106: 12 | AW106: 6638 | AY106: 3.388282026 | AZ106: 58.9684173 | BA106: -4616.752034 | BE106: 41.17466222 | BF106: 338.3549262 | BG106: 17.22899416 | BH106: 7168.122929 | BJ106: 16952 | BK106: 54919 | BL106: 0 | BM106: -37967 | BN106: 24097 | BO106: 20662 | BR106: -512 | BS106: 31 | BT106: 6311 | BU106: 3176 | BV106: 40 | BX106: 3175 | BY106: 0 | BZ106: -35 | CA106: 0 | CB106: -4 | CC106: 3136 | CD106: 10654 | CE106: 4762 | CG106: -317 | CH106: -1501 | CI106: -3022 | CN106: 21.5 | CP106: 82 | CQ106: 6596 | CS106: 0.5653203137 | CT106: 72.8677398 | CU106: -5430.260764 | CY106: 34.690725 | CZ106: 1073.226198 | DA106: 32.94237267 | DB106: 11891.29776 | DD106: 22922 | DE106: 62871 | DF106: 0 | DG106: -39949 | DH106: 23469 | DI106: 20205 | DL106: -484 | DM106: 95 | DN106: 3336 | DO106: 3313 | DP106: 0 | DR106: 23 | DS106: 0 | DT106: 20 | DU106: 0 | DV106: -3 | DW106: 40 | DX106: 10681 | DY106: 2764 | EA106: -2044 | EB106: -6274 | EC106: -4090 | EE106: 1100 | EH106: 21.5 | EJ106: 140 | EQ106: -855 | ER106: 0 | ES106: 2756 | ET106: -9419 | EU106: 0 | EV106: 1635 | EW106: -8776 | EX106: 1303 | EY106: 619 | EZ106: 0 | FA106: -246 | FB106: 0 | FC106: 23 | FD106: 15621 | FE106: 92 | FF106: 27071 | FG106: 22608 | FH106: 4463 | FI106: 2 | FJ106: 26451 | FK106: 21902 | FL106: 4549 | FM106: 3 | FN106: 37013 | FO106: 32071 | FP106: 4942 | FQ106: 3 | FR106: 1100
A107: 288 | B107: Kruunupyy | C107: 6620 | E107: 0.9667341626 | F107: 60.35452302 | G107: -4274.320242 | K107: 26.82672652 | L107: 711.6314199 | M107: 27.10629611 | N107: 9582.477341 | P107: 20736 | Q107: 56429 | R107: 8 | S107: -35685 | T107: 22338 | U107: 16499 | X107: -392 | Y107: 176 | Z107: 2936 | AA107: 2488 | AB107: -1 | AC107: 0 | AD107: 447 | AE107: -1 | AF107: 141 | AG107: 0 | AH107: 0 | AI107: 587 | AJ107: 7276 | AK107: 2297 | AM107: 139 | AN107: -3051 | AO107: -849 | AT107: 20.75 | AV107: 248 | AW107: 6531 | AY107: 1.189412738 | AZ107: 58.61467919 | BA107: -4452.304394 | BE107: 28.35425805 | BF107: 654.7236258 | BG107: 26.6001977 | BH107: 8983.92283 | BJ107: 24300 | BK107: 59838 | BL107: 29 | BM107: -35509 | BN107: 22757 | BO107: 16625 | BR107: -375 | BS107: 431 | BT107: 3929 | BU107: 2460 | BV107: 22 | BX107: 1491 | BY107: 1 | BZ107: 114 | CA107: -14 | CB107: -3 | CC107: 1589 | CD107: 8868 | CE107: 3887 | CG107: -1024 | CH107: -3242 | CI107: -712 | CN107: 21.25 | CP107: 220 | CQ107: 6509 | CS107: 0.8703097457 | CT107: 53.00239593 | CU107: -4422.184667 | CY107: 29.25933202 | CZ107: 580.8880012 | DA107: 19.59985514 | DB107: 10817.63712 | DD107: 26832 | DE107: 63498 | DF107: 24 | DG107: -36642 | DH107: 23584 | DI107: 16364 | DL107: -346 | DM107: 144 | DN107: 3104 | DO107: 2821 | DP107: -2 | DR107: 281 | DS107: 0 | DT107: -81 | DU107: -12 | DV107: -55 | DW107: 133 | DX107: 8720 | DY107: 3133 | EA107: 1143 | EB107: -3619 | EC107: 321 | EE107: 6418 | EH107: 22 | EJ107: 154 | EQ107: -3531 | ER107: 120 | ES107: 265 | ET107: -4801 | EU107: 153 | EV107: 49 | EW107: -2928 | EX107: 67 | EY107: 49 | EZ107: 3698 | FA107: -201 | FB107: 3307 | FC107: 1679 | FD107: 4572 | FE107: -1738 | FF107: 24642 | FG107: 18618 | FH107: 6024 | FI107: 9 | FJ107: 26247 | FK107: 18091 | FL107: 8156 | FM107: 9 | FN107: 25266 | FO107: 18590 | FP107: 6676 | FQ107: 9 | FR107: 6569
A108: 290 | B108: Kuhmo | C108: 8647 | E108: 1.269351338 | F108: 41.52617085 | G108: -1649.473806 | K108: 46.44024214 | L108: 3095.755753 | M108: 81.78290129 | N108: 13816.46814 | P108: 48786 | Q108: 105791 | R108: 0 | S108: -57005 | T108: 28707 | U108: 32534 | X108: -209 | Y108: 992 | Z108: 5019 | AA108: 4329 | AB108: 294 | AC108: 0 | AD108: 984 | AE108: -69 | AF108: -48 | AG108: 0 | AH108: -28 | AI108: 839 | AJ108: 7259 | AK108: 5307 | AM108: -355 | AN108: -3902 | AO108: -3057 | AT108: 21.5 | AV108: 199 | AW108: 8499 | AY108: 1.500976774 | AZ108: 57.8461237 | BA108: -3219.437581 | BE108: 38.8399189 | BF108: 3767.855042 | BG108: 128.7764557 | BH108: 10679.4917 | BJ108: 50942 | BK108: 106694 | BL108: 2 | BM108: -55750 | BN108: 29097 | BO108: 32233 | BR108: -138 | BS108: 1249 | BT108: 6691 | BU108: 5095 | BV108: 0 | BX108: 1596 | BY108: -159 | BZ108: 12 | CA108: 0 | CB108: -147 | CC108: 1302 | CD108: 8637 | CE108: 7438 | CG108: -902 | CH108: -4383 | CI108: -12795 | CN108: 21.5 | CP108: 138 | CQ108: 8329 | CS108: 0.6280074028 | CT108: 65.10972346 | CU108: -4252.73142 | CY108: 34.65567378 | CZ108: 3589.866731 | DA108: 86.09373398 | DB108: 15219.47413 | DD108: 52066 | DE108: 108580 | DF108: 0 | DG108: -56514 | DH108: 27788 | DI108: 32246 | DL108: -223 | DM108: -487 | DN108: 2810 | DO108: 4882 | DP108: -3 | DR108: -2075 | DS108: -238 | DT108: 12 | DU108: 0 | DV108: -135 | DW108: -2436 | DX108: 6201 | DY108: 3271 | EA108: -2107 | EB108: -4619 | EC108: -8198 | EE108: 695 | EH108: 21.5 | EJ108: 199 | EQ108: -9022 | ER108: 414 | ES108: 244 | ET108: -20934 | EU108: 160 | EV108: 541 | EW108: -11986 | EX108: 348 | EY108: 169 | EZ108: 8376 | FA108: 1920 | FB108: 21025 | FC108: -186 | FD108: 13979 | FE108: -4266 | FF108: 33946 | FG108: 23764 | FH108: 10182 | FI108: 53 | FJ108: 50402 | FK108: 40077 | FL108: 10325 | FM108: 201 | FN108: 55585 | FO108: 49804 | FP108: 5781 | FQ108: 50 | FR108: 885
A109: 291 | B109: Kuhmoinen | C109: 2286 | E109: 4.710526316 | F109: 45.93138523 | G109: -1678.040245 | K109: 60.97268807 | L109: 2699.03762 | M109: 90.07839686 | N109: 10936.57043 | P109: 4341 | Q109: 21187 | R109: 1 | S109: -16845 | T109: 8267 | U109: 10594 | X109: 72 | Y109: 12 | Z109: 2100 | AA109: 1638 | AB109: 3 | AC109: 0 | AD109: 465 | AE109: 89 | AF109: 0 | AG109: -2 | AH109: 0 | AI109: 552 | AJ109: 4452 | AK109: 2115 | AM109: 31 | AN109: -408 | AO109: -1119 | AT109: 20.75 | AV109: 71 | AW109: 2252 | AY109: 2.399190283 | AZ109: 44.27408588 | BA109: -1855.683837 | BE109: 63.07245215 | BF109: 2075.488455 | BG109: 91.85430464 | BH109: 8247.335702 | BJ109: 4784 | BK109: 20319 | BL109: 4 | BM109: -15531 | BN109: 8067 | BO109: 10368 | BR109: 63 | BS109: -46 | BT109: 2921 | BU109: 1785 | BV109: 4 | BX109: 1140 | BY109: -40 | BZ109: -2 | CA109: -3 | CB109: -1 | CC109: 1094 | CD109: 5535 | CE109: 2938 | CG109: -720 | CH109: -1193 | CI109: -90 | CN109: 20.75 | CP109: 19 | CQ109: 2238 | CS109: 3.972222222 | CT109: 46.64687391 | CU109: -2273.458445 | CY109: 62.33770524 | CZ109: 2117.068811 | DA109: 71.32010887 | DB109: 10834.67382 | DD109: 5042 | DE109: 21400 | DF109: 0 | DG109: -16358 | DH109: 8040 | DI109: 9822 | DL109: 49 | DM109: -16 | DN109: 1537 | DO109: 1576 | DP109: 0 | DR109: -39 | DS109: 19 | DT109: 47 | DU109: -3 | DV109: -8 | DW109: 16 | DX109: 5504 | DY109: 1546 | EA109: 673 | EB109: -360 | EC109: -678 | EE109: 318 | EH109: 20.75 | EJ109: 79 | EQ109: -3285 | ER109: 0 | ES109: 51 | ET109: -3093 | EU109: 40 | EV109: 25 | EW109: -2326 | EX109: 14 | EY109: 88 | EZ109: 4277 | FA109: -1033 | FB109: 189 | FC109: 298 | FD109: 176 | FE109: -314 | FF109: 8266 | FG109: 7680 | FH109: 586 | FI109: 59 | FJ109: 7596 | FK109: 6795 | FL109: 801 | FM109: 59 | FN109: 7167 | FO109: 4991 | FP109: 2176 | FQ109: 56 | FR109: 345
A110: 297 | B110: Kuopio | C110: 113013 | E110: 1.267232977 | F110: 91.71306925 | G110: -7782.538292 | K110: 25.54107681 | L110: 1653.057613 | M110: 50.6704255 | N110: 11907.65664 | P110: 557569 | Q110: 1092468 | R110: 418 | S110: -534481 | T110: 429134 | U110: 244730 | X110: -14502 | Y110: 1935 | Z110: 126816 | AA110: 99407 | AB110: 1392 | AC110: 0 | AD110: 28801 | AE110: -1448 | AF110: -99 | AG110: -906 | AH110: -2417 | AI110: 23931 | AJ110: -15766 | AK110: 122135 | AM110: 11284 | AN110: -96930 | AO110: 2828 | AT110: 20.5 | AV110: 30 | AW110: 118209 | AY110: 1.148742783 | AZ110: 89.75450531 | BA110: -7984.282077 | BE110: 26.3079332 | BF110: 1338.248357 | BG110: 52.92365176 | BH110: 9229.53413 | BJ110: 614581 | BK110: 1170587 | BL110: 1068 | BM110: -554938 | BN110: 452739 | BO110: 258004 | BR110: -13717 | BS110: 1787 | BT110: 143875 | BU110: 103555 | BV110: 0 | BX110: 40320 | BY110: -2623 | BZ110: 23 | CA110: -2434 | CB110: -2510 | CC110: 32776 | CD110: 2177 | CE110: 135955 | CG110: -22130 | CH110: -123419 | CI110: -24494 | CN110: 20.5 | CP110: 28 | CQ110: 118664 | CS110: 1.254984134 | CT110: 90.33345919 | CU110: -8121.721836 | CY110: 25.92494869 | CZ110: 1449.344367 | DA110: 39.71356984 | DB110: 13320.65327 | DD110: 662764 | DE110: 1232300 | DF110: 952 | DG110: -568584 | DH110: 441274 | DI110: 257328 | DL110: -12075 | DM110: 5265 | DN110: 123208 | DO110: 106063 | DP110: 1379 | DR110: 18524 | DS110: -989 | DT110: -961 | DU110: -1549 | DV110: -5087 | DW110: 9938 | DX110: 10875 | DY110: 96424 | EA110: -1648 | EB110: -95646 | EC110: -25599 | EE110: 10653 | EH110: 20.5 | EJ110: 22 | EQ110: -140518 | ER110: 1450 | ES110: 19761 | ET110: -218638 | EU110: 2399 | EV110: 55790 | EW110: -238526 | EX110: 2632 | EY110: 113871 | EZ110: 95976 | FA110: -577 | FB110: 84002 | FC110: 42570 | FD110: 121417 | FE110: -24014 | FF110: 906583 | FG110: 821194 | FH110: 85389 | FI110: 0 | FJ110: 947219 | FK110: 839892 | FL110: 107327 | FM110: 510 | FN110: 955659 | FO110: 868669 | FP110: 86990 | FQ110: 502 | FR110: 11789
A111: 300 | B111: Kuortane | C111: 3690 | E111: 7.745327103 | F111: 37.47126863 | G111: -3939.837398 | K111: 45.24140463 | L111: 860.1626016 | M111: 21.53484395 | N111: 14579.13279 | P111: 28594 | Q111: 50665 | R111: 3 | S111: -22068 | T111: 11111 | U111: 14243 | X111: -78 | Y111: 10 | Z111: 3218 | AA111: 1918 | AB111: 0 | AC111: 0 | AD111: 1300 | AE111: -13 | AF111: -31 | AG111: 0 | AH111: 0 | AI111: 1256 | AJ111: 2696 | AK111: 3189 | AM111: 40 | AN111: -331 | AO111: 767 | AT111: 21 | AV111: 84 | AW111: 3637 | AY111: 8.852071006 | AZ111: 35.42817433 | BA111: -3846.851801 | BE111: 46.24104235 | BF111: 795.4357987 | BG111: 20.35870592 | BH111: 14260.92934 | BJ111: 30555 | BK111: 52970 | BL111: -22 | BM111: -22437 | BN111: 11305 | BO111: 14262 | BR111: -58 | BS111: -152 | BT111: 2920 | BU111: 2244 | BV111: 0 | BX111: 676 | BY111: -11 | BZ111: -94 | CA111: 0 | CB111: 0 | CC111: 571 | CD111: 3195 | CE111: 2745 | CG111: -464 | CH111: -266 | CI111: 906 | CN111: 21 | CP111: 130 | CQ111: 3572 | CS111: 4.705544933 | CT111: 36.7685045 | CU111: -4178.331467 | CY111: 45.61927418 | CZ111: 798.712206 | DA111: 18.04726088 | DB111: 16153.69541 | DD111: 31144 | DE111: 53821 | DF111: -13 | DG111: -22690 | DH111: 10776 | DI111: 14215 | DL111: -57 | DM111: 122 | DN111: 2366 | DO111: 1964 | DP111: 0 | DR111: 402 | DS111: -2 | DT111: -8 | DU111: 0 | DV111: 0 | DW111: 392 | DX111: 3484 | DY111: 2332 | EA111: 203 | EB111: -428 | EC111: -835 | EE111: 1570 | EH111: 21 | EJ111: 88 | EQ111: -2687 | ER111: 58 | ES111: 207 | ET111: -2819 | EU111: 188 | EV111: 792 | EW111: -3292 | EX111: 32 | EY111: 93 | EZ111: 522 | FA111: 440 | FB111: 1206 | FC111: -1236 | FD111: 5933 | FE111: -5087 | FF111: 15320 | FG111: 6827 | FH111: 8493 | FI111: 1145 | FJ111: 15071 | FK111: 7827 | FL111: 7244 | FM111: 1570 | FN111: 15534 | FO111: 13008 | FP111: 2526 | FQ111: 1549 | FR111: 1982
A112: 301 | B112: Kurikka | C112: 21501 | E112: 0.6236913205 | F112: 74.74671569 | G112: -5058.462397 | K112: 39.21505411 | L112: 2157.946142 | M112: 65.30998126 | N112: 12060.18325 | P112: 93598 | Q112: 217471 | R112: 14 | S112: -123859 | T112: 63169 | U112: 66796 | X112: -1034 | Y112: 8361 | Z112: 13433 | AA112: 16033 | AB112: 0 | AC112: 0 | AD112: -2600 | AE112: -61 | AF112: 59 | AG112: 0 | AH112: -68 | AI112: -2670 | AJ112: 13876 | AK112: 13345 | AM112: 4238 | AN112: -22347 | AO112: -1066 | AT112: 20 | AV112: 176 | AW112: 21203 | AY112: 1.488301048 | AZ112: 76.89394945 | BA112: -4908.362024 | BE112: 39.50105159 | BF112: 2719.002028 | BG112: 99.84443949 | BH112: 9939.819837 | BJ112: 91921 | BK112: 213779 | BL112: -6 | BM112: -121864 | BN112: 66489 | BO112: 67652 | BR112: -1148 | BS112: 8935 | BT112: 20064 | BU112: 14373 | BV112: 0 | BX112: 5691 | BY112: 49 | BZ112: -95 | CA112: 0 | CB112: -14 | CC112: 5631 | CD112: 19953 | CE112: 19742 | CG112: 3152 | CH112: -13031 | CI112: 4379 | CN112: 21 | CP112: 83 | CQ112: 20952 | CS112: 1.086107412 | CT112: 77.99454322 | CU112: -5060.710195 | CY112: 39.16061143 | CZ112: 2665.759832 | DA112: 80.94894815 | DB112: 12019.95036 | DD112: 92967 | DE112: 216865 | DF112: 24 | DG112: -123874 | DH112: 63772 | DI112: 67569 | DL112: -1026 | DM112: 9491 | DN112: 15932 | DO112: 14631 | DP112: 0 | DR112: 1301 | DS112: 48 | DT112: -40 | DU112: -190 | DV112: -39 | DW112: 1080 | DX112: 22823 | DY112: 15608 | EA112: 2014 | EB112: -14574 | EC112: -2012 | EE112: 15584 | EH112: 21 | EJ112: 59 | EQ112: -17529 | ER112: 173 | ES112: 2945 | ET112: -18027 | EU112: 189 | EV112: 2475 | EW112: -18920 | EX112: 63 | EY112: 1237 | EZ112: 26290 | FA112: -4131 | FB112: 16573 | FC112: 2176 | FD112: 5193 | FE112: 6715 | FF112: 132104 | FG112: 111679 | FH112: 20425 | FI112: 335 | FJ112: 137520 | FK112: 116224 | FL112: 21296 | FM112: 332 | FN112: 134854 | FO112: 106738 | FP112: 28116 | FQ112: 104 | FR112: 17611
A113: 304 | B113: Kustavi | C113: 908 | E113: 2.538461538 | F113: 49.47701503 | G113: -4014.317181 | K113: 55.05451713 | L113: 1112.334802 | M113: 31.27332881 | N113: 12982.37885 | P113: 4652 | Q113: 10297 | R113: 0 | S113: -5645 | T113: 4233 | U113: 2492 | X113: -51 | Y113: 9 | Z113: 1038 | AA113: 489 | AB113: 0 | AC113: 0 | AD113: 549 | AE113: 0 | AF113: -407 | AG113: 0 | AH113: 0 | AI113: 142 | AJ113: 2716 | AK113: 1027 | AM113: -134 | AN113: -378 | AO113: 38 | AT113: 19.25 | AV113: 29 | AW113: 923 | AY113: 2.419483101 | AZ113: 49.2319641 | BA113: -3921.993499 | BE113: 56.64952241 | BF113: 1191.76598 | BG113: 41.25989107 | BH113: 10542.79523 | BJ113: 5195 | BK113: 10376 | BL113: 1 | BM113: -5180 | BN113: 4026 | BO113: 2367 | BR113: -58 | BS113: 4 | BT113: 1159 | BU113: 524 | BV113: 0 | BX113: 635 | BY113: 0 | BZ113: 30 | CA113: 0 | CB113: 0 | CC113: 665 | CD113: 3432 | CE113: 1175 | CG113: -7 | CH113: -445 | CI113: 39 | CN113: 19 | CP113: 22 | CQ113: 926 | CS113: 1.813333333 | CT113: 44.85600133 | CU113: -3317.4946 | CY113: 58.96115362 | CZ113: 1579.913607 | DA113: 44.53669725 | DB113: 12948.16415 | DD113: 5242 | DE113: 11053 | DF113: 0 | DG113: -5811 | DH113: 4469 | DI113: 2303 | DL113: -53 | DM113: -9 | DN113: 899 | DO113: 588 | DP113: 0 | DR113: 311 | DS113: 0 | DT113: 21 | DU113: 0 | DV113: 0 | DW113: 332 | DX113: 3761 | DY113: 901 | EA113: 114 | EB113: -472 | EC113: 533 | EE113: 1484 | EH113: 18.75 | EJ113: 28 | EQ113: -1061 | ER113: 63 | ES113: 9 | ET113: -1148 | EU113: 5 | EV113: 7 | EW113: -390 | EX113: 18 | EY113: 4 | EZ113: 686 | FA113: -4 | FB113: 495 | FC113: -2 | FD113: 103 | FE113: -4 | FF113: 4353 | FG113: 3904 | FH113: 449 | FI113: 1 | FJ113: 4408 | FK113: 3940 | FL113: 468 | FM113: 0 | FN113: 4012 | FO113: 3647 | FP113: 365 | FQ113: 0 | FR113: 1358
A114: 305 | B114: Kuusamo | C114: 15533 | E114: 1.802641126 | F114: 53.63277969 | G114: -2342.303483 | K114: 50.9240979 | L114: 2152.900277 | M114: 79.69212739 | N114: 9860.554948 | P114: 49234 | Q114: 136667 | R114: 1 | S114: -87432 | T114: 51794 | U114: 46600 | X114: -982 | Y114: 1489 | Z114: 11469 | AA114: 8409 | AB114: 0 | AC114: 0 | AD114: 3060 | AE114: 2 | AF114: 538 | AG114: -15 | AH114: -147 | AI114: 3438 | AJ114: 18557 | AK114: 10312 | AM114: -711 | AN114: -5938 | AO114: 3144 | AT114: 20 | AV114: 123 | AW114: 15386 | AY114: 1.763862748 | AZ114: 50.62492333 | BA114: -2223.969843 | BE114: 52.20180454 | BF114: 2023.527882 | BG114: 85.76471121 | BH114: 8611.789939 | BJ114: 47965 | BK114: 135460 | BL114: 2 | BM114: -87493 | BN114: 52586 | BO114: 46187 | BR114: -894 | BS114: 883 | BT114: 11269 | BU114: 9222 | BV114: 0 | BX114: 2047 | BY114: -39 | BZ114: 414 | CA114: -46 | CB114: -66 | CC114: 2310 | CD114: 21081 | CE114: 11152 | CG114: 420 | CH114: -5993 | CI114: 2430 | CN114: 20 | CP114: 163 | CQ114: 15207 | CS114: 0.5417534861 | CT114: 56.97106038 | CU114: -2112.382455 | CY114: 49.86128876 | CZ114: 2405.668442 | DA114: 82.22873277 | DB114: 10678.3718 | DD114: 48008 | DE114: 137406 | DF114: 4 | DG114: -89394 | DH114: 51130 | DI114: 44886 | DL114: -716 | DM114: 113 | DN114: 6019 | DO114: 7343 | DP114: 511 | DR114: -813 | DS114: -8 | DT114: 412 | DU114: -21 | DV114: -92 | DW114: -522 | DX114: 21569 | DY114: 5752 | EA114: -3332 | EB114: -11737 | EC114: -3692 | EE114: 2189 | EH114: 20 | EJ114: 183 | EQ114: -9362 | ER114: 753 | ES114: 1441 | ET114: -9976 | EU114: 580 | EV114: 674 | EW114: -11481 | EX114: 843 | EY114: 1194 | EZ114: 7170 | FA114: -313 | FB114: 1049 | FC114: -450 | FD114: 16369 | FE114: 95 | FF114: 60769 | FG114: 53959 | FH114: 6810 | FI114: 572 | FJ114: 55375 | FK114: 49041 | FL114: 6334 | FM114: 546 | FN114: 60107 | FO114: 52016 | FP114: 8091 | FQ114: 544 | FR114: 2506
A115: 312 | B115: Kyyjärvi | C115: 1375 | E115: -0.7781299525 | F115: 95.44004924 | G115: -6812.363636 | K115: 22.10188356 | L115: 4785.454545 | M115: 117.2590567 | N115: 14896 | P115: 9707 | Q115: 18494 | R115: 0 | S115: -8787 | T115: 3907 | U115: 4259 | X115: -22 | Y115: 108 | Z115: -535 | AA115: 1080 | AB115: 0 | AC115: 0 | AD115: -1615 | AE115: 0 | AF115: 0 | AG115: 0 | AH115: 0 | AI115: -1615 | AJ115: -393 | AK115: -529 | AM115: 1102 | AN115: -587 | AO115: -1833 | AT115: 20.5 | AV115: 297 | AW115: 1352 | AY115: 1.621527778 | AZ115: 93.21027986 | BA115: -7004.43787 | BE115: 18.40561108 | BF115: 4744.822485 | BG115: 136.5610055 | BH115: 12681.95266 | BJ115: 9627 | BK115: 17810 | BL115: 0 | BM115: -8183 | BN115: 4319 | BO115: 4420 | BR115: -7 | BS115: 350 | BT115: 899 | BU115: 954 | BV115: 0 | BX115: -55 | BY115: 48 | BZ115: 2 | CA115: 0 | CB115: 0 | CC115: -5 | CD115: -1539 | CE115: 898 | CG115: -144 | CH115: -541 | CI115: -261 | CN115: 21 | CP115: 198 | CQ115: 1343 | CS115: 0.8137755102 | CT115: 103.7884243 | CU115: -8068.503351 | CY115: 18.02380747 | CZ115: 4903.201787 | DA115: 117.376813 | DB115: 15247.20774 | DD115: 9522 | DE115: 18191 | DF115: 0 | DG115: -8669 | DH115: 4384 | DI115: 4149 | DL115: -11 | DM115: 445 | DN115: 298 | DO115: 2383 | DP115: 0 | DR115: -2085 | DS115: 492 | DT115: 0 | DU115: 0 | DV115: 0 | DW115: -1593 | DX115: -1867 | DY115: 304 | EA115: -157 | EB115: -371 | EC115: -1378 | EE115: 2352 | EH115: 21.75 | EJ115: 245 | EQ115: -1332 | ER115: 23 | ES115: 5 | ET115: -1245 | EU115: 71 | EV115: 15 | EW115: -1758 | EX115: 33 | EY115: 43 | EZ115: 1097 | FA115: 175 | FB115: 820 | FC115: 119 | FD115: 760 | FE115: 1147 | FF115: 14499 | FG115: 13673 | FH115: 826 | FI115: 66 | FJ115: 14982 | FK115: 4564 | FL115: 10418 | FM115: 66 | FN115: 16518 | FO115: 5004 | FP115: 11514 | FQ115: 65 | FR115: 2406
A116: 316 | B116: Kärkölä | C116: 4540 | E116: 1.601097896 | F116: 37.34266402 | G116: -2425.330396 | K116: 39.49695564 | L116: 591.6299559 | M116: 22.44071599 | N116: 9622.907489 | P116: 17070 | Q116: 40138 | R116: 0 | S116: -23068 | T116: 16223 | U116: 8576 | X116: -147 | Y116: 15 | Z116: 1599 | AA116: 1610 | AB116: 4842 | AC116: 0 | AD116: 4831 | AE116: -10 | AF116: 1 | AG116: -10 | AH116: 0 | AI116: 4812 | AJ116: 333 | AK116: 6476 | AM116: 479 | AN116: -942 | AO116: 5408 | AT116: 21.75 | AV116: 265 | AW116: 4508 | AY116: 3.120076849 | AZ116: 31.72158237 | BA116: -1950.754215 | BE116: 42.23808223 | BF116: 734.2502218 | BG116: 25.72502342 | BH116: 10417.92369 | BJ116: 25035 | BK116: 46680 | BL116: 1 | BM116: -21644 | BN116: 16687 | BO116: 8203 | BR116: -155 | BS116: 1 | BT116: 3092 | BU116: 1587 | BV116: 20 | BX116: 1525 | BY116: -9 | BZ116: 0 | CA116: 0 | CB116: 0 | CC116: 1516 | CD116: 1861 | CE116: 3040 | CG116: -1794 | CH116: -885 | CI116: 2515 | CN116: 21.75 | CP116: 184 | CQ116: 4451 | CS116: 1.062275449 | CT116: 32.63086754 | CU116: -2017.973489 | CY116: 40.90830119 | CZ116: 902.7184902 | DA116: 29.32788065 | DB116: 11234.7787 | DD116: 25304 | DE116: 47952 | DF116: -2 | DG116: -22650 | DH116: 15663 | DI116: 7861 | DL116: -142 | DM116: 11 | DN116: 743 | DO116: 1482 | DP116: 173 | DR116: -566 | DS116: -4 | DT116: 0 | DU116: -1 | DV116: -2 | DW116: -573 | DX116: 1275 | DY116: 901 | EA116: 800 | EB116: -691 | EC116: -228 | EE116: 863 | EH116: 21.75 | EJ116: 255 | EQ116: -2444 | ER116: 35 | ES116: 1341 | ET116: -830 | EU116: 24 | EV116: 281 | EW116: -1188 | EX116: 6 | EY116: 53 | EZ116: 213 | FA116: -6000 | FB116: 303 | FC116: 0 | FD116: 26 | FE116: 0 | FF116: 10567 | FG116: 9884 | FH116: 683 | FI116: 9 | FJ116: 9986 | FK116: 9295 | FL116: 691 | FM116: 49 | FN116: 9321 | FO116: 8629 | FP116: 692 | FQ116: 49 | FR116: 1095
A117: 317 | B117: Kärsämäki | C117: 2655 | E117: 0.8609680742 | F117: 60.05462294 | G117: -3720.903955 | K117: 30.91522005 | L117: 4282.862524 | M117: 93.57476214 | N117: 16705.83804 | P117: 24223 | Q117: 40199 | R117: 0 | S117: -15976 | T117: 7027 | U117: 11223 | X117: -171 | Y117: 226 | Z117: 2329 | AA117: 1328 | AB117: 0 | AC117: 0 | AD117: 1001 | AE117: 2 | AF117: -86 | AG117: -2 | AH117: -9 | AI117: 906 | AJ117: 4960 | AK117: 2263 | AM117: -846 | AN117: -2734 | AO117: 1409 | AT117: 21.5 | AV117: 81 | AW117: 2611 | AY117: 1.053362979 | AZ117: 61.3801951 | BA117: -4292.991191 | BE117: 31.57866864 | BF117: 4392.186902 | BG117: 108.8130394 | BH117: 14733.05247 | BJ117: 22453 | BK117: 39888 | BL117: 1 | BM117: -17434 | BN117: 6835 | BO117: 12025 | BR117: -132 | BS117: 458 | BT117: 1752 | BU117: 1898 | BV117: 0 | BX117: -146 | BY117: -1 | BZ117: 277 | CA117: -6 | CB117: -2 | CC117: 122 | CD117: 5051 | CE117: 1760 | CG117: 1176 | CH117: -1656 | CI117: -1254 | CN117: 21.5 | CP117: 191 | CQ117: 2613 | CS117: 1.054011536 | CT117: 68.25468342 | CU117: -4100.650593 | CY117: 29.76564561 | CZ117: 4514.734022 | DA117: 96.83589709 | DB117: 17017.22158 | DD117: 22956 | DE117: 40419 | DF117: 1 | DG117: -17462 | DH117: 6977 | DI117: 12237 | DL117: -76 | DM117: 235 | DN117: 1911 | DO117: 1528 | DP117: 189 | DR117: 572 | DS117: -1 | DT117: -5 | DU117: -4 | DV117: -1 | DW117: 561 | DX117: 5675 | DY117: 1821 | EA117: -3591 | EB117: -1808 | EC117: 889 | EE117: 2620 | EH117: 21.5 | EJ117: 67 | EQ117: -1014 | ER117: 7 | ES117: 153 | ET117: -3341 | EU117: 11 | EV117: 316 | EW117: -1661 | EX117: 174 | EY117: 555 | EZ117: 1685 | FA117: 658 | FB117: 1209 | FC117: 2201 | FD117: 251 | FE117: 553 | FF117: 18529 | FG117: 15498 | FH117: 3031 | FI117: -388 | FJ117: 20282 | FK117: 15175 | FL117: 5107 | FM117: 102 | FN117: 19560 | FO117: 13657 | FP117: 5903 | FQ117: 92 | FR117: 2733
A118: 398 | B118: Lahti | C118: 119452 | E118: 1.599793974 | F118: 97.00834651 | G118: -8462.780029 | K118: 31.63864483 | L118: 947.2842648 | M118: 29.88562491 | N118: 11569.40026 | P118: 558052 | Q118: 1118146 | R118: 36 | S118: -560058 | T118: 444753 | U118: 265390 | X118: -20261 | Y118: -2135 | Z118: 127689 | AA118: 117466 | AB118: -135 | AC118: 0 | AD118: 10088 | AE118: 390 | AF118: -10 | AG118: -5346 | AH118: -1079 | AI118: 4043 | AJ118: 132152 | AK118: 120232 | AM118: -11331 | AN118: -71793 | AO118: -37650 | AT118: 20.25 | AV118: 38 | AW118: 119573 | AY118: 1.960145084 | AZ118: 102.4004743 | BA118: -8998.109941 | BE118: 30.74332289 | BF118: 1326.394755 | BG118: 56.30039884 | BH118: 8599.123548 | BJ118: 610585 | BK118: 1134068 | BL118: 156 | BM118: -523327 | BN118: 448384 | BO118: 253230 | BR118: -20701 | BS118: 1576 | BT118: 159162 | BU118: 118319 | BV118: 1047 | BX118: 41890 | BY118: -1048 | BZ118: -138 | CA118: -5764 | CB118: -1862 | CC118: 33078 | CD118: 162740 | CE118: 144444 | CG118: -5424 | CH118: -70483 | CI118: -72152 | CN118: 20.25 | CP118: 17 | CQ118: 119951 | CS118: 1.739247366 | CT118: 107.7171199 | CU118: -9820.093205 | CY118: 30.35301193 | CZ118: 1199.122975 | DA118: 34.54674788 | DB118: 12669.20659 | DD118: 630995 | DE118: 1145546 | DF118: -11 | DG118: -514562 | DH118: 460249 | DI118: 225413 | DL118: -17345 | DM118: 1125 | DN118: 154880 | DO118: 127681 | DP118: 3106 | DR118: 30305 | DS118: -43 | DT118: -122 | DU118: -6640 | DV118: -3619 | DW118: 19881 | DX118: 182621 | DY118: 128155 | EA118: 10732 | EB118: -80939 | EC118: -100698 | EE118: 0 | EH118: 20.75 | EJ118: 9 | EQ118: -167825 | ER118: 574 | ES118: 9369 | ET118: -211894 | EU118: 530 | EV118: -5232 | EW118: -272918 | EX118: 653 | EY118: 43412 | EZ118: 75096 | FA118: -8331 | FB118: 174022 | FC118: 21942 | FD118: 171747 | FE118: -27422 | FF118: 989489 | FG118: 921308 | FH118: 68181 | FI118: 10796 | FJ118: 1098025 | FK118: 993239 | FL118: 104786 | FM118: 24203 | FN118: 1161404 | FO118: 1097740 | FP118: 63664 | FQ118: 23791 | FR118: 2104
A119: 399 | B119: Laihia | C119: 8139 | E119: 0.766798419 | F119: 65.11146572 | G119: -4347.339968 | K119: 30.83537493 | L119: 371.667281 | M119: 15.90431125 | N119: 8529.67195 | P119: 19205 | Q119: 61821 | R119: 0 | S119: -42616 | T119: 29150 | U119: 14938 | X119: -278 | Y119: 73 | Z119: 1267 | AA119: 2897 | AB119: 0 | AC119: 0 | AD119: -1630 | AE119: 4 | AF119: 21 | AG119: 0 | AH119: -28 | AI119: -1633 | AJ119: -423 | AK119: 1161 | AM119: 620 | AN119: -1739 | AO119: -3601 | AT119: 21.5 | AV119: 287 | AW119: 8051 | AY119: 1.065986611 | AZ119: 72.48521641 | BA119: -5020.37014 | BE119: 28.6646497 | BF119: 356.353248 | BG119: 18.94774459 | BH119: 6864.613092 | BJ119: 18597 | BK119: 60277 | BL119: 0 | BM119: -41680 | BN119: 29946 | BO119: 15041 | BR119: -260 | BS119: 34 | BT119: 3081 | BU119: 2931 | BV119: 0 | BX119: 150 | BY119: 21 | BZ119: -34 | CA119: 0 | CB119: -38 | CC119: 99 | CD119: -336 | CE119: 3100 | CG119: 0 | CH119: -2874 | CI119: -4817 | CN119: 21.75 | CP119: 277 | CQ119: 8058 | CS119: 0.4951984635 | CT119: 81.03203585 | CU119: -5371.556217 | CY119: 24.95247013 | CZ119: 340.7793497 | DA119: 14.13966283 | DB119: 8796.847853 | DD119: 18535 | DE119: 61225 | DF119: 0 | DG119: -42690 | DH119: 29126 | DI119: 15050 | DL119: -243 | DM119: 59 | DN119: 1302 | DO119: 3075 | DP119: 0 | DR119: -1773 | DS119: 20 | DT119: 0 | DU119: 0 | DV119: -12 | DW119: -1765 | DX119: -2078 | DY119: 1077 | EA119: -1984 | EB119: -2879 | EC119: -2799 | EE119: 23 | EH119: 21.75 | EJ119: 258 | EQ119: -5515 | ER119: 253 | ES119: 500 | ET119: -8208 | EU119: 65 | EV119: 226 | EW119: -6481 | EX119: 233 | EY119: 2372 | EZ119: 6736 | FA119: -1479 | FB119: 8125 | FC119: -1679 | FD119: 6505 | FE119: 1816 | FF119: 31671 | FG119: 20657 | FH119: 11014 | FI119: 102 | FJ119: 35436 | FK119: 25026 | FL119: 10410 | FM119: 4 | FN119: 40881 | FO119: 28465 | FP119: 12416 | FQ119: 2 | FR119: 603
A120: 400 | B120: Laitila | C120: 8520 | E120: 3.676705593 | F120: 54.88197672 | G120: -4210.915493 | K120: 45.04755852 | L120: 451.8779343 | M120: 15.83184056 | N120: 10417.95775 | P120: 37761 | Q120: 81043 | R120: 17 | S120: -43265 | T120: 28683 | U120: 20488 | X120: -180 | Y120: 71 | Z120: 5797 | AA120: 4354 | AB120: 0 | AC120: 0 | AD120: 1443 | AE120: -118 | AF120: 0 | AG120: 0 | AH120: 30 | AI120: 1355 | AJ120: 9292 | AK120: 5959 | AM120: -1450 | AN120: -1442 | AO120: 596 | AT120: 20.75 | AV120: 150 | AW120: 8610 | AY120: 8.27064803 | AZ120: 55.07475593 | BA120: -4232.404181 | BE120: 44.27017401 | BF120: 506.039489 | BG120: 20.66082472 | BH120: 8939.837398 | BJ120: 38145 | BK120: 81498 | BL120: 12 | BM120: -43341 | BN120: 29232 | BO120: 20509 | BR120: -188 | BS120: 103 | BT120: 6315 | BU120: 6583 | BV120: -1 | BX120: -268 | BY120: -98 | BZ120: -294 | CA120: -33 | CB120: -14 | CC120: -707 | CD120: 8617 | CE120: 5232 | CG120: 378 | CH120: -593 | CI120: 484 | CN120: 20.75 | CP120: 162 | CQ120: 8647 | CS120: 4.985815603 | CT120: 68.70440137 | CU120: -5372.961721 | CY120: 38.78365858 | CZ120: 708.338152 | DA120: 23.64414667 | DB120: 10934.77507 | DD120: 38494 | DE120: 83775 | DF120: 23 | DG120: -45258 | DH120: 29006 | DI120: 20359 | DL120: -181 | DM120: 57 | DN120: 3983 | DO120: 4746 | DP120: 0 | DR120: -763 | DS120: -107 | DT120: 0 | DU120: -40 | DV120: 9 | DW120: -901 | DX120: 8207 | DY120: 2739 | EA120: -173 | EB120: -611 | EC120: -3767 | EE120: 2030 | EH120: 20.5 | EJ120: 158 | EQ120: -6121 | ER120: 587 | ES120: 171 | ET120: -5269 | EU120: -573 | EV120: 1094 | EW120: -9903 | EX120: 2175 | EY120: 1222 | EZ120: 118 | FA120: 2304 | FB120: 187 | FC120: -1337 | FD120: 10059 | FE120: -1438 | FF120: 32541 | FG120: 16479 | FH120: 16062 | FI120: 328 | FJ120: 31673 | FK120: 16691 | FL120: 14982 | FM120: 328 | FN120: 35307 | FO120: 20432 | FP120: 14875 | FQ120: 389 | FR120: 2247
A121: 407 | B121: Lapinjärvi | C121: 2739 | E121: 0.4791231733 | F121: 64.77577928 | G121: -5028.842643 | K121: 34.48682019 | L121: 401.9715225 | M121: 14.91869919 | N121: 9834.611172 | P121: 9028 | Q121: 24905 | R121: 0 | S121: -15877 | T121: 8481 | U121: 7065 | X121: -199 | Y121: 783 | Z121: 253 | AA121: 1476 | AB121: 0 | AC121: 0 | AD121: -1223 | AE121: 0 | AF121: -1 | AG121: 0 | AH121: 0 | AI121: -1224 | AJ121: -421 | AK121: 245 | AM121: -41 | AN121: -752 | AO121: -329 | AT121: 20.5 | AV121: 289 | AW121: 2706 | AY121: 0.7283236994 | AZ121: 71.15671935 | BA121: -5644.124169 | BE121: 29.23689501 | BF121: 574.2793792 | BG121: 23.36408947 | BH121: 8971.544715 | BJ121: 9643 | BK121: 25315 | BL121: 1 | BM121: -15671 | BN121: 8630 | BO121: 7161 | BR121: -107 | BS121: 756 | BT121: 769 | BU121: 1697 | BV121: 0 | BX121: -928 | BY121: 0 | BZ121: 1 | CA121: 0 | CB121: 0 | CC121: -927 | CD121: -1348 | CE121: 742 | CG121: -228 | CH121: -1098 | CI121: -1433 | CN121: 20.5 | CP121: 285 | CQ121: 2665 | CS121: 0.6123215627 | CT121: 82.24217294 | CU121: -7038.649156 | CY121: 23.56705718 | CZ121: 482.1763602 | DA121: 14.67675314 | DB121: 11991.36961 | DD121: 10533 | DE121: 26313 | DF121: -2 | DG121: -15782 | DH121: 8438 | DI121: 7316 | DL121: -111 | DM121: 839 | DN121: 700 | DO121: 1525 | DP121: 0 | DR121: -825 | DS121: 0 | DT121: -1 | DU121: 0 | DV121: -1 | DW121: -827 | DX121: -2173 | DY121: 562 | EA121: -302 | EB121: -1216 | EC121: -3598 | EE121: 204 | EH121: 20.5 | EJ121: 237 | EQ121: -1046 | ER121: 1 | ES121: 471 | ET121: -2304 | EU121: 98 | EV121: 31 | EW121: -4277 | EX121: 6 | EY121: 111 | EZ121: 5 | FA121: 852 | FB121: 1139 | FC121: 2015 | FD121: 4211 | FE121: 21 | FF121: 12629 | FG121: 10116 | FH121: 2513 | FI121: 0 | FJ121: 14685 | FK121: 10147 | FL121: 4538 | FM121: 0 | FN121: 17716 | FO121: 13442 | FP121: 4274 | FQ121: 0 | FR121: 242
A122: 402 | B122: Lapinlahti | C122: 9882 | E122: 0.6826594533 | F122: 73.64533276 | G122: -6211.596843 | K122: 32.71728856 | L122: 347.9052823 | M122: 11.41818546 | N122: 11121.33171 | P122: 35233 | Q122: 93723 | R122: 109 | S122: -58381 | T122: 29107 | U122: 33673 | X122: -526 | Y122: 368 | Z122: 4241 | AA122: 5565 | AB122: 43 | AC122: 0 | AD122: -1281 | AE122: 30 | AF122: -4 | AG122: -70 | AH122: 16 | AI122: -1309 | AJ122: -1062 | AK122: 4181 | AM122: 306 | AN122: -6470 | AO122: -3747 | AT122: 20.25 | AV122: 253 | AW122: 9692 | AY122: 1.5109847 | AZ122: 70.92766147 | BA122: -6203.157243 | BE122: 34.15341798 | BF122: 370.5117623 | BG122: 14.43343868 | BH122: 9369.686339 | BJ122: 35963 | BK122: 91828 | BL122: 115 | BM122: -55750 | BN122: 29275 | BO122: 33354 | BR122: -567 | BS122: 798 | BT122: 7110 | BU122: 5962 | BV122: -3 | BX122: 1145 | BY122: 66 | BZ122: 1 | CA122: -24 | CB122: -3 | CC122: 1185 | CD122: 126 | CE122: 6589 | CG122: 1146 | CH122: -4505 | CI122: 1407 | CN122: 20.25 | CP122: 161 | CQ122: 9617 | CS122: 0.7802491103 | CT122: 70.65219634 | CU122: -6065.301029 | CY122: 34.26874838 | CZ122: 490.3816159 | DA122: 16.43487975 | DB122: 10890.81834 | DD122: 35029 | DE122: 91782 | DF122: 130 | DG122: -56623 | DH122: 29062 | DI122: 32843 | DL122: -537 | DM122: 842 | DN122: 5587 | DO122: 6029 | DP122: -116 | DR122: -558 | DS122: 65 | DT122: 10 | DU122: -27 | DV122: 27 | DW122: -483 | DX122: -276 | DY122: 5389 | EA122: 777 | EB122: -7316 | EC122: 804 | EE122: 3314 | EH122: 21.25 | EJ122: 120 | EQ122: -9085 | ER122: 302 | ES122: 855 | ET122: -6179 | EU122: 453 | EV122: 544 | EW122: -5003 | EX122: 90 | EY122: 328 | EZ122: 7683 | FA122: -14 | FB122: 2419 | FC122: 38 | FD122: 3890 | FE122: 882 | FF122: 59777 | FG122: 52673 | FH122: 7104 | FI122: 907 | FJ122: 57754 | FK122: 49773 | FL122: 7981 | FM122: 907 | FN122: 54782 | FO122: 48552 | FP122: 6230 | FQ122: 454 | FR122: 3116
A123: 403 | B123: Lappajärvi | C123: 3176 | E123: 2.976165803 | F123: 58.97599591 | G123: -5346.662469 | K123: 42.04593179 | L123: 1217.254408 | M123: 35.68495056 | N123: 12450.56675 | P123: 16234 | Q123: 36321 | R123: 5 | S123: -20082 | T123: 10354 | U123: 12572 | X123: -154 | Y123: 19 | Z123: 2709 | AA123: 1667 | AB123: 0 | AC123: 0 | AD123: 1042 | AE123: 7 | AF123: 9 | AG123: 0 | AH123: 6 | AI123: 1064 | AJ123: 2732 | AK123: 2744 | AM123: -226 | AN123: -802 | AO123: 687 | AT123: 21 | AV123: 87 | AW123: 3140 | AY123: 1.811206897 | AZ123: 61.93466028 | BA123: -5572.611465 | BE123: 41.46893147 | BF123: 1234.394904 | BG123: 41.13812155 | BH123: 10952.2293 | BJ123: 16092 | BK123: 36262 | BL123: -90 | BM123: -20260 | BN123: 9906 | BO123: 12386 | BR123: -143 | BS123: 62 | BT123: 1951 | BU123: 1945 | BV123: 0 | BX123: 6 | BY123: 8 | BZ123: 2 | CA123: -3 | CB123: -7 | CC123: 6 | CD123: 2912 | CE123: 1911 | CG123: 133 | CH123: -1010 | CI123: -667 | CN123: 21 | CP123: 218 | CQ123: 3078 | CS123: 0.3957627119 | CT123: 61.41014072 | CU123: -3948.34308 | CY123: 39.75709532 | CZ123: 1912.280702 | DA123: 45.33711777 | DB123: 15395.38661 | DD123: 19343 | DE123: 38647 | DF123: -67 | DG123: -19371 | DH123: 9318 | DI123: 12342 | DL123: -81 | DM123: 37 | DN123: 2245 | DO123: 2513 | DP123: 0 | DR123: -268 | DS123: 42 | DT123: 4 | DU123: -7 | DV123: -1 | DW123: -230 | DX123: 2541 | DY123: 409 | EA123: -4115 | EB123: -5810 | EC123: 5201 | EE123: 801 | EH123: 21 | EJ123: 69 | EQ123: -2244 | ER123: 180 | ES123: 7 | ET123: -3056 | EU123: 183 | EV123: 295 | EW123: -2781 | EX123: 202 | EY123: 7371 | EZ123: 686 | FA123: 852 | FB123: 1127 | FC123: 583 | FD123: 1424 | FE123: 749 | FF123: 17969 | FG123: 9974 | FH123: 7995 | FI123: 7 | FJ123: 18416 | FK123: 10008 | FL123: 8408 | FM123: 5 | FN123: 15246 | FO123: 6092 | FP123: 9154 | FQ123: 3 | FR123: 647
A124: 405 | B124: Lappeenranta | C124: 72872 | E124: 1.783575568 | F124: 88.22540215 | G124: -8258.219892 | K124: 28.84841154 | L124: 602.3438358 | M124: 18.97463623 | N124: 11586.80975 | P124: 376468 | Q124: 693585 | R124: 1327 | S124: -315790 | T124: 293913 | U124: 122300 | X124: -6879 | Y124: -627 | Z124: 92917 | AA124: 49567 | AB124: 0 | AC124: 0 | AD124: 43350 | AE124: -662 | AF124: -29 | AG124: -2177 | AH124: -2087 | AI124: 38395 | AJ124: 69752 | AK124: 88675 | AM124: -3557 | AN124: -48978 | AO124: 13696 | AT124: 21 | AV124: 15 | AW124: 72909 | AY124: 1.320369449 | AZ124: 88.7632341 | BA124: -8124.264494 | BE124: 29.54424469 | BF124: 586.6628263 | BG124: 22.78669562 | BH124: 9397.234909 | BJ124: 365675 | BK124: 683920 | BL124: -31 | BM124: -318276 | BN124: 291499 | BO124: 117435 | BR124: -5924 | BS124: -632 | BT124: 84102 | BU124: 61837 | BV124: 0 | BX124: 22265 | BY124: -602 | BZ124: 812 | CA124: -3399 | CB124: -2524 | CC124: 16552 | CD124: 80222 | CE124: 79845 | CG124: 1155 | CH124: -62215 | CI124: 22973 | CN124: 21 | CP124: 42 | CQ124: 72699 | CS124: 1.129636054 | CT124: 83.31866762 | CU124: -7853.326731 | CY124: 30.9482917 | CZ124: 687.9186784 | DA124: 21.50174626 | DB124: 11677.67094 | DD124: 386828 | DE124: 716530 | DF124: -260 | DG124: -329962 | DH124: 288085 | DI124: 120593 | DL124: -4616 | DM124: -696 | DN124: 73404 | DO124: 54595 | DP124: 0 | DR124: 18809 | DS124: -668 | DT124: 96 | DU124: -2761 | DV124: -2140 | DW124: 13336 | DX124: 88902 | DY124: 67041 | EA124: 11444 | EB124: -64435 | EC124: 18122 | EE124: 15748 | EH124: 21 | EJ124: 23 | EQ124: -93568 | ER124: 2452 | ES124: 16137 | ET124: -78830 | EU124: 1719 | EV124: 20239 | EW124: -62187 | EX124: 1913 | EY124: 11355 | EZ124: 18999 | FA124: 18336 | FB124: 53383 | FC124: -8566 | FD124: 43745 | FE124: -4037 | FF124: 520003 | FG124: 421960 | FH124: 98043 | FI124: 428 | FJ124: 500519 | FK124: 412577 | FL124: 87942 | FM124: 11258 | FN124: 479933 | FO124: 363444 | FP124: 116489 | FQ124: 10885 | FR124: 17250
A125: 408 | B125: Lapua | C125: 14575 | E125: 1.408137317 | F125: 89.82512648 | G125: -6882.744425 | K125: 27.48898838 | L125: 736.1921098 | M125: 28.43219816 | N125: 9450.909091 | P125: 43967 | Q125: 118806 | R125: 59 | S125: -74780 | T125: 48256 | U125: 39415 | X125: -1306 | Y125: 386 | Z125: 11971 | AA125: 8802 | AB125: 0 | AC125: 0 | AD125: 3169 | AE125: -38 | AF125: 16 | AG125: 1 | AH125: -29 | AI125: 3119 | AJ125: 14497 | AK125: 11471 | AM125: -761 | AN125: -8119 | AO125: 3163 | AT125: 21 | AV125: 97 | AW125: 14494 | AY125: 1.196691015 | AZ125: 92.67201364 | BA125: -7032.427211 | BE125: 28.38072893 | BF125: 842.7625224 | BG125: 39.11869478 | BH125: 7863.460742 | BJ125: 43993 | BK125: 118217 | BL125: 34 | BM125: -74190 | BN125: 48687 | BO125: 38734 | BR125: -1034 | BS125: 334 | BT125: 12531 | BU125: 8802 | BV125: 0 | BX125: 3729 | BY125: -35 | BZ125: 58 | CA125: -47 | CB125: -82 | CC125: 3623 | CD125: 18249 | CE125: 11487 | CG125: -443 | CH125: -10296 | CI125: -1694 | CN125: 21 | CP125: 102 | CQ125: 14427 | CS125: 0.3483400219 | CT125: 102.0020874 | CU125: -7792.056561 | CY125: 25.87381782 | CZ125: 973.6604977 | DA125: 29.9921322 | DB125: 11849.31032 | DD125: 47633 | DE125: 122288 | DF125: 19 | DG125: -74636 | DH125: 47777 | DI125: 35853 | DL125: -916 | DM125: 513 | DN125: 8591 | DO125: 9146 | DP125: 0 | DR125: -555 | DS125: -4 | DT125: 237 | DU125: -3 | DV125: -122 | DW125: -447 | DX125: 16520 | DY125: 8087 | EA125: 234 | EB125: -26453 | EC125: -10370 | EE125: 1230 | EH125: 21.5 | EJ125: 115 | EQ125: -9436 | ER125: 33 | ES125: 1095 | ET125: -15702 | EU125: 412 | EV125: 2109 | EW125: -21140 | EX125: 212 | EY125: 2471 | EZ125: 5944 | FA125: 452 | FB125: 11886 | FC125: 375 | FD125: 35348 | FE125: 47 | FF125: 90378 | FG125: 66609 | FH125: 23769 | FI125: 23 | FJ125: 92343 | FK125: 67581 | FL125: 24762 | FM125: 19 | FN125: 101285 | FO125: 75332 | FP125: 25953 | FQ125: 9 | FR125: 2249
A126: 410 | B126: Laukaa | C126: 18970 | E126: 3.662452107 | F126: 89.2525024 | G126: -6337.691091 | K126: 18.73640281 | L126: 389.4043226 | M126: 16.27740818 | N126: 8731.892462 | P126: 41588 | Q126: 142812 | R126: 0 | S126: -101224 | T126: 66746 | U126: 43720 | X126: -252 | Y126: 262 | Z126: 9252 | AA126: 9020 | AB126: 0 | AC126: 0 | AD126: 232 | AE126: 0 | AF126: -8 | AG126: -22 | AH126: -120 | AI126: 82 | AJ126: -3969 | AK126: 9293 | AM126: -1570 | AN126: -2303 | AO126: -9258 | AT126: 21.5 | AV126: 234 | AW126: 18978 | AY126: 4.694740854 | AZ126: 93.17925952 | BA126: -6780.693435 | BE126: 19.09833449 | BF126: 352.6715144 | BG126: 19.44184029 | BH126: 6621.034882 | BJ126: 44331 | BK126: 144285 | BL126: 0 | BM126: -99954 | BN126: 67930 | BO126: 44071 | BR126: -61 | BS126: 215 | BT126: 12201 | BU126: 8993 | BV126: 0 | BX126: 3208 | BY126: 0 | BZ126: -201 | CA126: -17 | CB126: -87 | CC126: 2903 | CD126: -886 | CE126: 12013 | CG126: -1566 | CH126: -2506 | CI126: -8026 | CN126: 21.5 | CP126: 210 | CQ126: 18927 | CS126: 2.567614126 | CT126: 102.8988164 | CU126: -7428.752576 | CY126: 16.67918266 | CZ126: 301.4212501 | DA126: 12.36395537 | DB126: 8898.346278 | DD126: 42889 | DE126: 147556 | DF126: 0 | DG126: -104667 | DH126: 66130 | DI126: 43733 | DL126: -131 | DM126: 729 | DN126: 5794 | DO126: 9245 | DP126: 0 | DR126: -3451 | DS126: 0 | DT126: 86 | DU126: -15 | DV126: -40 | DW126: -3420 | DX126: -3820 | DY126: 5663 | EA126: 75 | EB126: -2154 | EC126: -11509 | EE126: 4263 | EH126: 21.5 | EJ126: 215 | EQ126: -19898 | ER126: 410 | ES126: 937 | ET126: -21436 | EU126: 717 | EV126: 680 | EW126: -18147 | EX126: 24 | EY126: 951 | EZ126: 5312 | FA126: 8928 | FB126: 12780 | FC126: -4977 | FD126: 5637 | FE126: 5700 | FF126: 112039 | FG126: 38635 | FH126: 73404 | FI126: 303 | FJ126: 118285 | FK126: 49865 | FL126: 68420 | FM126: 237 | FN126: 128124 | FO126: 54004 | FP126: 74120 | FQ126: 234 | FR126: 3674
A127: 416 | B127: Lemi | C127: 3076 | E127: 2.470277411 | F127: 43.61220757 | G127: -3402.795839 | K127: 35.73366441 | L127: 464.5643693 | M127: 16.40204403 | N127: 10338.10143 | P127: 14123 | Q127: 29337 | R127: 29 | S127: -15185 | T127: 10848 | U127: 6190 | X127: -138 | Y127: 16 | Z127: 1731 | AA127: 1103 | AB127: 0 | AC127: 0 | AD127: 628 | AE127: 0 | AF127: -29 | AG127: 0 | AH127: 0 | AI127: 599 | AJ127: 679 | AK127: 1693 | AM127: -49 | AN127: -618 | AO127: 519 | AT127: 21 | AV127: 206 | AW127: 3063 | AY127: 0.7173913043 | AZ127: 46.44358389 | BA127: -3749.591903 | BE127: 32.05082795 | BF127: 233.4312765 | BG127: 9.152842563 | BH127: 9308.847535 | BJ127: 13656 | BK127: 29523 | BL127: 0 | BM127: -15867 | BN127: 10546 | BO127: 6011 | BR127: -74 | BS127: 2 | BT127: 618 | BU127: 1146 | BV127: 0 | BX127: -528 | BY127: 0 | BZ127: -43 | CA127: 0 | CB127: 0 | CC127: -571 | CD127: 179 | CE127: 1371 | CG127: -86 | CH127: -891 | CI127: -691 | CN127: 21 | CP127: 290 | CQ127: 3043 | CS127: -0.6175595238 | CT127: 55.6546238 | CU127: -4689.451199 | CY127: 22.84208214 | CZ127: 299.0469931 | DA127: 9.745899475 | DB127: 11199.80283 | DD127: 13688 | DE127: 31018 | DF127: 4 | DG127: -17326 | DH127: 10252 | DI127: 6230 | DL127: -79 | DM127: 13 | DN127: -910 | DO127: 1122 | DP127: 0 | DR127: -2032 | DS127: 0 | DT127: -5 | DU127: 0 | DV127: 0 | DW127: -2037 | DX127: -1859 | DY127: -1457 | EA127: 234 | EB127: -1264 | EC127: -2822 | EE127: 44 | EH127: 21 | EJ127: 292 | EQ127: -1657 | ER127: 391 | ES127: 92 | ET127: -2315 | EU127: 21 | EV127: 232 | EW127: -1710 | EX127: 0 | EY127: 345 | EZ127: -117 | FA127: 250 | FB127: 1466 | FC127: -17 | FD127: 2035 | FE127: 144 | FF127: 9791 | FG127: 8872 | FH127: 919 | FI127: 2 | FJ127: 10350 | FK127: 9378 | FL127: 972 | FM127: 197 | FN127: 11297 | FO127: 10142 | FP127: 1155 | FQ127: 197 | FR127: 113
A128: 418 | B128: Lempäälä | C128: 22745 | E128: 1.580713644 | F128: 78.31622893 | G128: -5431.479446 | K128: 28.6583808 | L128: 357.3532645 | M128: 16.10605921 | N128: 8098.439217 | P128: 58520 | Q128: 158752 | R128: 33 | S128: -100199 | T128: 92783 | U128: 26429 | X128: -813 | Y128: 188 | Z128: 18388 | AA128: 15066 | AB128: 69 | AC128: 0 | AD128: 3391 | AE128: -76 | AF128: 7 | AG128: -115 | AH128: 2 | AI128: 3209 | AJ128: 9188 | AK128: 16127 | AM128: -998 | AN128: -11276 | AO128: 6206 | AT128: 20.5 | AV128: 100 | AW128: 22829 | AY128: 1.62417509 | AZ128: 80.06879646 | BA128: -5377.852731 | BE128: 32.20139586 | BF128: 435.7615314 | BG128: 24.02739545 | BH128: 6619.650445 | BJ128: 59699 | BK128: 158465 | BL128: 79 | BM128: -98687 | BN128: 93798 | BO128: 23547 | BR128: -937 | BS128: 766 | BT128: 18487 | BU128: 15034 | BV128: 0 | BX128: 3453 | BY128: -108 | BZ128: 1 | CA128: -120 | CB128: -122 | CC128: 3104 | CD128: 20919 | CE128: 17024 | CG128: -1419 | CH128: -11015 | CI128: 1321 | CN128: 20.5 | CP128: 129 | CQ128: 23206 | CS128: 0.992732049 | CT128: 92.0360648 | CU128: -6246.487977 | CY128: 27.80251853 | CZ128: 342.8854607 | DA128: 13.56353269 | DB128: 9227.182625 | DD128: 63439 | DE128: 167347 | DF128: 24 | DG128: -103884 | DH128: 91776 | DI128: 22687 | DL128: -918 | DM128: 736 | DN128: 10397 | DO128: 14504 | DP128: 0 | DR128: -4107 | DS128: -86 | DT128: 1 | DU128: -143 | DV128: -42 | DW128: -4377 | DX128: 16229 | DY128: 9189 | EA128: -4523 | EB128: -10480 | EC128: -21764 | EE128: 15639 | EH128: 20.5 | EJ128: 161 | EQ128: -12980 | ER128: 232 | ES128: 2827 | ET128: -19399 | EU128: 496 | EV128: 3200 | EW128: -35261 | EX128: 2177 | EY128: 2131 | EZ128: 7522 | FA128: -248 | FB128: 11721 | FC128: -1008 | FD128: 21659 | FE128: 4963 | FF128: 112685 | FG128: 98403 | FH128: 14282 | FI128: 259 | FJ128: 112590 | FK128: 99778 | FL128: 12812 | FM128: 320 | FN128: 128938 | FO128: 110182 | FP128: 18756 | FQ128: 316 | FR128: 15700
A129: 420 | B129: Leppävirta | C129: 9865 | E129: 2.19552378 | F129: 47.4157327 | G129: -3187.531678 | K129: 49.75716966 | L129: 982.1591485 | M129: 36.38059625 | N129: 9853.82666 | P129: 35218 | Q129: 88431 | R129: 31 | S129: -53182 | T129: 33186 | U129: 26710 | X129: -458 | Y129: 291 | Z129: 6547 | AA129: 6232 | AB129: 0 | AC129: 0 | AD129: 315 | AE129: -21 | AF129: -224 | AG129: -5 | AH129: -3 | AI129: 62 | AJ129: 4770 | AK129: 6493 | AM129: 110 | AN129: -2701 | AO129: 1306 | AT129: 20 | AV129: 157 | AW129: 9782 | AY129: 2.278334853 | AZ129: 48.79893097 | BA129: -3506.644858 | BE129: 49.2944795 | BF129: 695.3588223 | BG129: 31.27494205 | BH129: 8115.313842 | BJ129: 35297 | BK129: 87515 | BL129: 44 | BM129: -52174 | BN129: 33198 | BO129: 25796 | BR129: -422 | BS129: 624 | BT129: 7022 | BU129: 6746 | BV129: 3 | BX129: 279 | BY129: -27 | BZ129: -149 | CA129: -10 | CB129: -7 | CC129: 86 | CD129: 4779 | CE129: 6843 | CG129: -944 | CH129: -2815 | CI129: -3002 | CN129: 20 | CP129: 171 | CQ129: 9650 | CS129: 1.309079602 | CT129: 51.75875714 | CU129: -3898.445596 | CY129: 46.67481435 | CZ129: 687.1502591 | DA129: 23.20020513 | DB129: 10810.67358 | DD129: 35387 | DE129: 91930 | DF129: 81 | DG129: -56462 | DH129: 34685 | DI129: 25450 | DL129: -392 | DM129: 498 | DN129: 3779 | DO129: 5428 | DP129: -88 | DR129: -1737 | DS129: -5 | DT129: 70 | DU129: -1 | DV129: -3 | DW129: -1676 | DX129: 3230 | DY129: 3634 | EA129: -282 | EB129: -2785 | EC129: -3865 | EE129: 603 | EH129: 21 | EJ129: 185 | EQ129: -5486 | ER129: 169 | ES129: 130 | ET129: -11504 | EU129: 1463 | EV129: 196 | EW129: -8947 | EX129: 1107 | EY129: 341 | EZ129: 1460 | FA129: 40 | FB129: 3275 | FC129: 133 | FD129: 3751 | FE129: 71 | FF129: 35078 | FG129: 32315 | FH129: 2763 | FI129: 509 | FJ129: 35673 | FK129: 32734 | FL129: 2939 | FM129: 495 | FN129: 36290 | FO129: 33481 | FP129: 2809 | FQ129: 495 | FR129: 649
A130: 421 | B130: Lestijärvi | C130: 811 | E130: 2.237885463 | F130: 42.19368458 | G130: -2717.632552 | K130: 64.85555634 | L130: 1786.683107 | M130: 43.66980431 | N130: 14933.41554 | P130: 6001 | Q130: 10907 | R130: 26 | S130: -4880 | T130: 2256 | U130: 3112 | X130: -24 | Y130: 6 | Z130: 470 | AA130: 566 | AB130: 49 | AC130: 0 | AD130: -47 | AE130: 0 | AF130: 0 | AG130: 0 | AH130: 0 | AI130: -47 | AJ130: 3246 | AK130: 521 | AM130: 45 | AN130: -189 | AO130: -426 | AT130: 21 | AV130: 200 | AW130: 789 | AY130: 3.917197452 | AZ130: 43.09456419 | BA130: -3991.12801 | BE130: 58.13219967 | BF130: 2097.591888 | BG130: 47.61369906 | BH130: 16079.84791 | BJ130: 8199 | BK130: 13219 | BL130: 39 | BM130: -4981 | BN130: 2569 | BO130: 3011 | BR130: -27 | BS130: 8 | BT130: 580 | BU130: 588 | BV130: 50 | BX130: 42 | BY130: -1 | BZ130: -9 | CA130: 0 | CB130: 0 | CC130: 32 | CD130: 2497 | CE130: 598 | CG130: 136 | CH130: -122 | CI130: -82 | CN130: 21 | CP130: 160 | CQ130: 737 | CS130: 0.5798816568 | CT130: 41.70243205 | CU130: -4943.012212 | CY130: 56.91682703 | CZ130: 1857.530529 | DA130: 33.56970104 | DB130: 20196.74355 | DD130: 8595 | DE130: 13815 | DF130: 27 | DG130: -5193 | DH130: 2420 | DI130: 2965 | DL130: -27 | DM130: -2 | DN130: 163 | DO130: 616 | DP130: 50 | DR130: -403 | DS130: -1 | DT130: -38 | DU130: 0 | DV130: 2 | DW130: -440 | DX130: 2007 | DY130: -17 | EA130: 381 | EB130: -305 | EC130: -570 | EE130: 395 | EH130: 21 | EJ130: 246 | EQ130: -976 | ER130: 29 | ES130: 0 | ET130: -690 | EU130: 5 | EV130: 5 | EW130: -726 | EX130: 5 | EY130: 168 | EZ130: 62 | FA130: 3 | FB130: 809 | FC130: 26 | FD130: 95 | FE130: -76 | FF130: 3242 | FG130: 3173 | FH130: 69 | FI130: 0 | FJ130: 4076 | FK130: 3888 | FL130: 188 | FM130: 0 | FN130: 3949 | FO130: 3825 | FP130: 124 | FQ130: 0 | FR130: 444
A131: 422 | B131: Lieksa | C131: 11580 | E131: 1.854195874 | F131: 52.44774433 | G131: -2807.944732 | K131: 48.50796396 | L131: 1262.867012 | M131: 42.21308364 | N131: 10919.51641 | P131: 38796 | Q131: 115486 | R131: -3 | S131: -76693 | T131: 39660 | U131: 45454 | X131: -447 | Y131: 569 | Z131: 8543 | AA131: 6017 | AB131: 0 | AC131: 0 | AD131: 2526 | AE131: 5 | AF131: 14 | AG131: 0 | AH131: -11 | AI131: 2534 | AJ131: 27357 | AK131: 8543 | AM131: -773 | AN131: -4278 | AO131: 3486 | AT131: 21 | AV131: 126 | AW131: 11297 | AY131: 0.8750758495 | AZ131: 39.77873786 | BA131: -2461.981057 | BE131: 52.2837993 | BF131: 1754.182526 | BG131: 53.76128821 | BH131: 11909.62202 | BJ131: 66785 | BK131: 139928 | BL131: -3 | BM131: -73146 | BN131: 40482 | BO131: 43414 | BR131: -441 | BS131: 574 | BT131: 10883 | BU131: 6583 | BV131: 574 | BX131: 4874 | BY131: 1 | BZ131: -62 | CA131: -1 | CB131: 11 | CC131: 4823 | CD131: 31860 | CE131: 10547 | CG131: 5540 | CH131: -12530 | CI131: 4764 | CN131: 21 | CP131: 78 | CQ131: 11098 | CS131: 0.643313709 | CT131: 36.87971824 | CU131: -2373.130294 | CY131: 55.08251807 | CZ131: 1372.769868 | DA131: 34.91041328 | DB131: 14352.76626 | DD131: 70729 | DE131: 139581 | DF131: -2 | DG131: -68854 | DH131: 38403 | DI131: 37374 | DL131: -392 | DM131: 541 | DN131: 7072 | DO131: 6056 | DP131: 0 | DR131: 1016 | DS131: 0 | DT131: 1 | DU131: 0 | DV131: 51 | DW131: 1068 | DX131: 32996 | DY131: 7228 | EA131: -150 | EB131: -11313 | EC131: 616 | EE131: 5246 | EH131: 21 | EJ131: 96 | EQ131: -5225 | ER131: 67 | ES131: 101 | ET131: -18607 | EU131: 256 | EV131: 12568 | EW131: -7749 | EX131: 1005 | EY131: 132 | EZ131: 2021 | FA131: 476 | FB131: 10913 | FC131: -1202 | FD131: 3200 | FE131: 57 | FF131: 48278 | FG131: 36354 | FH131: 11924 | FI131: 769 | FJ131: 45460 | FK131: 33759 | FL131: 11701 | FM131: 716 | FN131: 37404 | FO131: 30314 | FP131: 7090 | FQ131: 70 | FR131: 5045
A132: 423 | B132: Lieto | C132: 19418 | E132: 0.9870838639 | F132: 65.65901712 | G132: -4277.165517 | K132: 28.09273479 | L132: 550.8291276 | M132: 23.07570456 | N132: 8712.740756 | P132: 55532 | Q132: 142880 | R132: 2 | S132: -87346 | T132: 75363 | U132: 22796 | X132: -654 | Y132: 27 | Z132: 10186 | AA132: 8122 | AB132: 0 | AC132: 0 | AD132: 2064 | AE132: -49 | AF132: 0 | AG132: 0 | AH132: -29 | AI132: 1986 | AJ132: 8452 | AK132: 8505 | AM132: -437 | AN132: -10328 | AO132: -3160 | AT132: 19.5 | AV132: 218 | AW132: 19596 | AY132: 1.973432888 | AZ132: 71.84095497 | BA132: -4703.868136 | BE132: 27.38552339 | BF132: 355.582772 | BG132: 21.02038961 | BH132: 6174.372321 | BJ132: 52269 | BK132: 138306 | BL132: 5 | BM132: -86032 | BN132: 75955 | BO132: 21394 | BR132: -612 | BS132: 40 | BT132: 10745 | BU132: 8790 | BV132: 0 | BX132: 1955 | BY132: -1 | BZ132: 0 | CA132: 0 | CB132: -64 | CC132: 1890 | CD132: 9613 | CE132: 8428 | CG132: -1121 | CH132: -5139 | CI132: -9278 | CN132: 19.5 | CP132: 239 | CQ132: 19831 | CS132: 1.109930872 | CT132: 77.29445698 | CU132: -4970.752862 | CY132: 23.94342569 | CZ132: 473.7027886 | DA132: 21.04158229 | DB132: 8217.134789 | DD132: 53617 | DE132: 143266 | DF132: 8 | DG132: -89641 | DH132: 75125 | DI132: 21032 | DL132: -637 | DM132: 53 | DN132: 5932 | DO132: 10014 | DP132: 0 | DR132: -4082 | DS132: -5 | DT132: 0 | DU132: 0 | DV132: -79 | DW132: -4166 | DX132: 5433 | DY132: 2479 | EA132: 546 | EB132: -5280 | EC132: -6341 | EE132: 6801 | EH132: 19.5 | EJ132: 218 | EQ132: -15222 | ER132: 1305 | ES132: 2252 | ET132: -23087 | EU132: 2268 | EV132: 3113 | EW132: -13746 | EX132: 162 | EY132: 4764 | EZ132: 9209 | FA132: 9976 | FB132: 10463 | FC132: -702 | FD132: 732 | FE132: 12335 | FF132: 76102 | FG132: 43178 | FH132: 32924 | FI132: 0 | FJ132: 80724 | FK132: 48324 | FL132: 32400 | FM132: 0 | FN132: 88511 | FO132: 45534 | FP132: 42977 | FQ132: 0 | FR132: 6246
A133: 425 | B133: Liminka | C133: 10000 | E133: 1.526711813 | F133: 47.24062656 | G133: -2664.6 | K133: 54.78353338 | L133: 545.3 | M133: 24.65037217 | N133: 8074.3 | P133: 20265 | Q133: 72301 | R133: 1 | S133: -52035 | T133: 29958 | U133: 28110 | X133: -230 | Y133: 51 | Z133: 5854 | AA133: 7482 | AB133: 0 | AC133: 0 | AD133: -1628 | AE133: 57 | AF133: -3 | AG133: -5 | AH133: -32 | AI133: -1611 | AJ133: 27359 | AK133: 5640 | AM133: 348 | AN133: -3754 | AO133: 2319 | AT133: 20.5 | AV133: 194 | AW133: 10133 | AY133: 9.247232472 | AZ133: 60.60617494 | BA133: -2940.688838 | BE133: 49.4854617 | BF133: 1254.416264 | BG133: 75.19351388 | BH133: 6089.114774 | BJ133: 22895 | BK133: 72060 | BL133: 2 | BM133: -49163 | BN133: 31384 | BO133: 25236 | BR133: -191 | BS133: 59 | BT133: 7325 | BU133: 5510 | BV133: -15 | BX133: 1800 | BY133: 44 | BZ133: 43 | CA133: -8 | CB133: -37 | CC133: 1842 | CD133: 29126 | CE133: 6535 | CG133: -775 | CH133: -620 | CI133: -2988 | CN133: 21 | CP133: 169 | CQ133: 10161 | CS133: 4.221206581 | CT133: 76.17627691 | CU133: -4758.193091 | CY133: 45.14742707 | CZ133: 707.2138569 | DA133: 23.45740732 | DB133: 11004.33028 | DD133: 21539 | DE133: 73612 | DF133: 1 | DG133: -52072 | DH133: 32097 | DI133: 26851 | DL133: -241 | DM133: 24 | DN133: 6659 | DO133: 5422 | DP133: 265 | DR133: 1502 | DS133: 78 | DT133: -45 | DU133: -5 | DV133: -21 | DW133: 1509 | DX133: 30591 | DY133: 5606 | EA133: -96 | EB133: -1373 | EC133: -18710 | EE133: 713 | EH133: 21.5 | EJ133: 90 | EQ133: -4451 | ER133: 225 | ES133: 905 | ET133: -11174 | EU133: 47 | EV133: 1604 | EW133: -36559 | EX133: 191 | EY133: 12052 | EZ133: 347 | FA133: 947 | FB133: 15141 | FC133: -4362 | FD133: 10407 | FE133: 2374 | FF133: 23100 | FG133: 15187 | FH133: 7913 | FI133: 695 | FJ133: 33585 | FK133: 27682 | FL133: 5903 | FM133: 674 | FN133: 45432 | FO133: 33401 | FP133: 12031 | FQ133: 606 | FR133: 885
A134: 426 | B134: Liperi | C134: 12301 | E134: 0.9538502817 | F134: 62.02661499 | G134: -4315.584099 | K134: 27.00113726 | L134: 631.9811397 | M134: 25.50570787 | N134: 9043.980164 | P134: 35280 | Q134: 98314 | R134: -229 | S134: -63263 | T134: 40284 | U134: 29715 | X134: -699 | Y134: 341 | Z134: 6378 | AA134: 5081 | AB134: 0 | AC134: 0 | AD134: 1297 | AE134: 6 | AF134: 8 | AG134: -26 | AH134: -83 | AI134: 1202 | AJ134: 8680 | AK134: 6580 | AM134: 298 | AN134: -6722 | AO134: 3236 | AT134: 21.5 | AV134: 223 | AW134: 12150 | AY134: 0.6255186722 | AZ134: 50.25716272 | BA134: -4158.518519 | BE134: 28.75566473 | BF134: 895.9670782 | BG134: 33.19096506 | BH134: 9852.921811 | BJ134: 60486 | BK134: 121387 | BL134: -67 | BM134: -60968 | BN134: 40020 | BO134: 28984 | BR134: -603 | BS134: 383 | BT134: 7816 | BU134: 5284 | BV134: -305 | BX134: 2227 | BY134: -19 | BZ134: -48 | CA134: 19 | CB134: -87 | CC134: 2092 | CD134: 11095 | CE134: 6976 | CG134: 774 | CH134: -12870 | CI134: 2587 | CN134: 21.5 | CP134: 209 | CQ134: 12145 | CS134: 0.4881516588 | CT134: 51.05359204 | CU134: -4173.981062 | CY134: 29.00340179 | CZ134: 931.1650885 | DA134: 29.37005493 | DB134: 11572.16962 | DD134: 59894 | DE134: 122909 | DF134: -20 | DG134: -63035 | DH134: 39488 | DI134: 28846 | DL134: -432 | DM134: 344 | DN134: 5211 | DO134: 4528 | DP134: 0 | DR134: 683 | DS134: -77 | DT134: 1 | DU134: -23 | DV134: -72 | DW134: 512 | DX134: 11789 | DY134: 4962 | EA134: 203 | EB134: -11151 | EC134: -809 | EE134: 34 | EH134: 21.5 | EJ134: 170 | EQ134: -4775 | ER134: 37 | ES134: 1394 | ET134: -15196 | EU134: 69 | EV134: 10738 | EW134: -6021 | EX134: 26 | EY134: 224 | EZ134: 6024 | FA134: -1000 | FB134: 16310 | FC134: -2870 | FD134: 10000 | FE134: 494 | FF134: 49363 | FG134: 38409 | FH134: 10954 | FI134: 686 | FJ134: 49859 | FK134: 38537 | FL134: 11322 | FM134: 881 | FN134: 49203 | FO134: 38865 | FP134: 10338 | FQ134: 0 | FR134: 43
A135: 444 | B135: Lohja | C135: 47149 | E135: 1.933333333 | F135: 57.73136854 | G135: -4409.998091 | K135: 36.78454174 | L135: 381.6199707 | M135: 14.35711085 | N135: 9701.902479 | P135: 156079 | Q135: 402266 | R135: 128 | S135: -246059 | T135: 190131 | U135: 81722 | X135: -1846 | Y135: 165 | Z135: 24113 | AA135: 26207 | AB135: 0 | AC135: 0 | AD135: -2094 | AE135: 40 | AF135: -7 | AG135: -377 | AH135: 51 | AI135: -2387 | AJ135: 16931 | AK135: 22434 | AM135: -3182 | AN135: -11555 | AO135: -16335 | AT135: 20.5 | AV135: 226 | AW135: 46785 | AY135: 0.7503694822 | AZ135: 63.31744003 | BA135: -4975.056108 | BE135: 34.7190436 | BF135: 463.9093727 | BG135: 20.32141968 | BH135: 8332.43561 | BJ135: 163705 | BK135: 406111 | BL135: 88 | BM135: -242318 | BN135: 189856 | BO135: 79116 | BR135: -1696 | BS135: 121 | BT135: 25079 | BU135: 23234 | BV135: 282 | BX135: 2127 | BY135: -54 | BZ135: 13 | CA135: -335 | CB135: 10 | CC135: 1761 | CD135: 18775 | CE135: 24036 | CG135: 1634 | CH135: -34031 | CI135: -25268 | CN135: 20.5 | CP135: 241 | CQ135: 46296 | CS135: 0.8908871454 | CT135: 67.50789006 | CU135: -5530.974598 | CY135: 31.2233281 | CZ135: 413.4266459 | DA135: 14.61539427 | DB135: 10324.77968 | DD135: 167376 | DE135: 420848 | DF135: 15 | DG135: -253457 | DH135: 188458 | DI135: 79524 | DL135: -1854 | DM135: 104 | DN135: 12775 | DO135: 25222 | DP135: 0 | DR135: -12447 | DS135: 24 | DT135: -20 | DU135: -223 | DV135: -2 | DW135: -12668 | DX135: 6080 | DY135: 10635 | EA135: 798 | EB135: -14583 | EC135: -23238 | EE135: 4714 | EH135: 20.5 | EJ135: 231 | EQ135: -41049 | ER135: 70 | ES135: 2210 | ET135: -52881 | EU135: 1136 | EV135: 2441 | EW135: -39903 | EX135: 2385 | EY135: 3645 | EZ135: 30326 | FA135: -2000 | FB135: 57337 | FC135: 5033 | FD135: 30970 | FE135: -2499 | FF135: 180376 | FG135: 125647 | FH135: 54729 | FI135: 86 | FJ135: 208715 | FK135: 170033 | FL135: 38682 | FM135: 86 | FN135: 222603 | FO135: 181718 | FP135: 40885 | FQ135: 53 | FR135: 4985
A136: 430 | B136: Loimaa | C136: 16267 | E136: 1.056973966 | F136: 45.11347063 | G136: -3677.752505 | K136: 39.21183643 | L136: 491.1169853 | M136: 16.58949327 | N136: 10805.49579 | P136: 65627 | Q136: 163078 | R136: 3 | S136: -97448 | T136: 53725 | U136: 52058 | X136: -500 | Y136: 64 | Z136: 7899 | AA136: 8068 | AB136: 0 | AC136: 0 | AD136: -169 | AE136: -298 | AF136: 0 | AG136: 0 | AH136: 9 | AI136: -458 | AJ136: 11153 | AK136: 6997 | AM136: -2196 | AN136: -7446 | AO136: 2653 | AT136: 20.5 | AV136: 235 | AW136: 16150 | AY136: 1.208365608 | AZ136: 46.06212848 | BA136: -3668.978328 | BE136: 38.43862256 | BF136: 695.9133127 | BG136: 25.26053437 | BH136: 10055.5418 | BJ136: 68944 | BK136: 163492 | BL136: 9 | BM136: -94539 | BN136: 53515 | BO136: 50312 | BR136: -589 | BS136: 69 | BT136: 8768 | BU136: 8219 | BV136: 0 | BX136: 549 | BY136: -374 | BZ136: 0 | CA136: -201 | CB136: -11 | CC136: -37 | CD136: 11159 | CE136: 8290 | CG136: 7268 | CH136: -7154 | CI136: 633 | CN136: 20.5 | CP136: 240 | CQ136: 16032 | CS136: 0.6133561226 | CT136: 46.19125928 | CU136: -3823.290918 | CY136: 35.95977967 | CZ136: 572.6047904 | DA136: 18.44479553 | DB136: 11331.1502 | DD136: 70084 | DE136: 167122 | DF136: 6 | DG136: -97032 | DH136: 53278 | DI136: 48729 | DL136: -514 | DM136: 46 | DN136: 4507 | DO136: 8544 | DP136: -62 | DR136: -4099 | DS136: -356 | DT136: 0 | DU136: -184 | DV136: -44 | DW136: -4683 | DX136: 6476 | DY136: 3590 | EA136: 365 | EB136: -7674 | EC136: -1826 | EE136: 741 | EH136: 20.5 | EJ136: 227 | EQ136: -5459 | ER136: 30 | ES136: 1085 | ET136: -8127 | EU136: 95 | EV136: 375 | EW136: -6976 | EX136: 366 | EY136: 1194 | EZ136: -423 | FA136: 2920 | FB136: 6052 | FC136: -5220 | FD136: 5520 | FE136: 1012 | FF136: 53500 | FG136: 35942 | FH136: 17558 | FI136: 88 | FJ136: 54645 | FK136: 35281 | FL136: 19364 | FM136: 89 | FN136: 54212 | FO136: 35296 | FP136: 18916 | FQ136: 142 | FR136: 788
A137: 433 | B137: Loppi | C137: 8098 | E137: 1.152587441 | F137: 55.32412451 | G137: -4058.656458 | K137: 42.71559362 | L137: 369.2269696 | M137: 14.14325333 | N137: 9528.772536 | P137: 24289 | Q137: 63233 | R137: -47 | S137: -38991 | T137: 28572 | U137: 15986 | X137: -444 | Y137: 51 | Z137: 5174 | AA137: 3316 | AB137: 0 | AC137: 0 | AD137: 1858 | AE137: 0 | AF137: 2 | AG137: 0 | AH137: 0 | AI137: 1860 | AJ137: 12888 | AK137: 4500 | AM137: -231 | AN137: -4428 | AO137: -4047 | AT137: 21.5 | AV137: 168 | AW137: 8028 | AY137: 0.866499711 | AZ137: 52.82550345 | BA137: -3968.360737 | BE137: 44.03600344 | BF137: 359.8654709 | BG137: 16.45216401 | BH137: 7983.806677 | BJ137: 24606 | BK137: 65185 | BL137: -44 | BM137: -40623 | BN137: 29192 | BO137: 15871 | BR137: -416 | BS137: 55 | BT137: 4079 | BU137: 3061 | BV137: 163 | BX137: 1181 | BY137: 0 | BZ137: 2 | CA137: -1 | CB137: -4 | CC137: 1178 | CD137: 13651 | CE137: 4355 | CG137: 169 | CH137: -4772 | CI137: 1090 | CN137: 21.5 | CP137: 249 | CQ137: 7861 | CS137: 0.4887482419 | CT137: 54.59021903 | CU137: -4056.862995 | CY137: 43.01217144 | CZ137: 417.1225035 | DA137: 15.95886392 | DB137: 9540.134843 | DD137: 24931 | DE137: 65632 | DF137: -87 | DG137: -40788 | DH137: 28086 | DI137: 15422 | DL137: -372 | DM137: 57 | DN137: 2405 | DO137: 3060 | DP137: 0 | DR137: -655 | DS137: 0 | DT137: 1 | DU137: -1 | DV137: -28 | DW137: -683 | DX137: 12968 | DY137: 2454 | EA137: -136 | EB137: -5313 | EC137: -25 | EE137: 161 | EH137: 21.5 | EJ137: 216 | EQ137: -9038 | ER137: 139 | ES137: 352 | ET137: -6286 | EU137: 105 | EV137: 2916 | EW137: -3670 | EX137: 4 | EY137: 1187 | EZ137: 9566 | FA137: -500 | FB137: 5295 | FC137: -2025 | FD137: 4509 | FE137: 0 | FF137: 30269 | FG137: 21920 | FH137: 8349 | FI137: 48 | FJ137: 28791 | FK137: 21129 | FL137: 7662 | FM137: 43 | FN137: 27988 | FO137: 21663 | FP137: 6325 | FQ137: 39 | FR137: 314
A138: 434 | B138: Loviisa | C138: 15208 | E138: 1.939768051 | F138: 51.08309416 | G138: -3440.886376 | K138: 40.7273313 | L138: 760.0604945 | M138: 27.23996668 | N138: 10184.37664 | P138: 50698 | Q138: 137554 | R138: -3 | S138: -86859 | T138: 65884 | U138: 29758 | X138: -482 | Y138: 1538 | Z138: 9839 | AA138: 7986 | AB138: -130 | AC138: 0 | AD138: 1723 | AE138: 5 | AF138: -2 | AG138: -38 | AH138: -24 | AI138: 1664 | AJ138: 6164 | AK138: 9080 | AM138: -1077 | AN138: -4815 | AO138: -1547 | AT138: 19.75 | AV138: 165 | AW138: 15085 | AY138: 1.677058824 | AZ138: 52.45893799 | BA138: -3651.773285 | BE138: 41.80000438 | BF138: 703.8117335 | BG138: 32.07659071 | BH138: 8008.684123 | BJ138: 52563 | BK138: 136560 | BL138: -10 | BM138: -84007 | BN138: 65949 | BO138: 27852 | BR138: -419 | BS138: 1578 | BT138: 10953 | BU138: 6525 | BV138: -91 | BX138: 4337 | BY138: -140 | BZ138: 188 | CA138: -12 | CB138: -17 | CC138: 4356 | CD138: 10617 | CE138: 9850 | CG138: -212 | CH138: -6349 | CI138: -2718 | CN138: 19.75 | CP138: 166 | CQ138: 14891 | CS138: 1.972154964 | CT138: 61.54837431 | CU138: -4608.354039 | CY138: 40.94901139 | CZ138: 612.7862467 | DA138: 20.44080643 | DB138: 10942.17984 | DD138: 53875 | DE138: 141448 | DF138: 11857 | DG138: -75716 | DH138: 60000 | DI138: 27357 | DL138: -255 | DM138: 1255 | DN138: 12641 | DO138: 7341 | DP138: -5 | DR138: 5295 | DS138: -14 | DT138: -10 | DU138: -27 | DV138: -31 | DW138: 5213 | DX138: 15641 | DY138: 56 | EA138: 1919 | EB138: -6217 | EC138: -13202 | EE138: 2242 | EH138: 19.75 | EJ138: 40 | EQ138: -11798 | ER138: 549 | ES138: 622 | ET138: -22713 | EU138: 1985 | EV138: 8160 | EW138: -14632 | EX138: 176 | EY138: 1198 | EZ138: 9119 | FA138: -2943 | FB138: 7132 | FC138: 1933 | FD138: 8554 | FE138: 5987 | FF138: 54364 | FG138: 41551 | FH138: 12813 | FI138: 89 | FJ138: 57322 | FK138: 42625 | FL138: 14697 | FM138: 1 | FN138: 65431 | FO138: 44444 | FP138: 20987 | FQ138: 1 | FR138: 0
A139: 435 | B139: Luhanka | C139: 756 | E139: 1.002849003 | F139: 46.80956511 | G139: -1927.248677 | K139: 59.46087138 | L139: 2342.592593 | M139: 72.46804933 | N139: 11798.9418 | P139: 2653 | Q139: 7645 | R139: 0 | S139: -4992 | T139: 2329 | U139: 3089 | X139: -6 | Y139: -95 | Z139: 325 | AA139: 302 | AB139: 68 | AC139: 0 | AD139: 91 | AE139: 0 | AF139: 0 | AG139: -2 | AH139: 0 | AI139: 89 | AJ139: 2354 | AK139: 398 | AM139: -108 | AN139: -324 | AO139: -357 | AT139: 18.5 | AV139: 252 | AW139: 734 | AY139: 3.10701107 | AZ139: 54.39056356 | BA139: -3591.280654 | BE139: 57.06136719 | BF139: 1761.580381 | BG139: 80.82634013 | BH139: 7955.040872 | BJ139: 2813 | BK139: 7614 | BL139: 0 | BM139: -4801 | BN139: 2436 | BO139: 3144 | BR139: -8 | BS139: 43 | BT139: 814 | BU139: 307 | BV139: 0 | BX139: 507 | BY139: 0 | BZ139: 0 | CA139: 0 | CB139: 0 | CC139: 507 | CD139: 2860 | CE139: 817 | CG139: -86 | CH139: -243 | CI139: -1264 | CN139: 18.5 | CP139: 49 | CQ139: 707 | CS139: 1.419263456 | CT139: 59.4497012 | CU139: -4002.828854 | CY139: 48.45296385 | CZ139: 1991.513437 | DA139: 58.47309136 | DB139: 12431.40028 | DD139: 2621 | DE139: 7452 | DF139: 0 | DG139: -4831 | DH139: 2452 | DI139: 2959 | DL139: 6 | DM139: -99 | DN139: 487 | DO139: 357 | DP139: 69 | DR139: 199 | DS139: 0 | DT139: 0 | DU139: 0 | DV139: 0 | DW139: 199 | DX139: 2174 | DY139: 553 | EA139: 99 | EB139: -339 | EC139: -329 | EE139: 5304 | EH139: 18.5 | EJ139: 77 | EQ139: -746 | ER139: -1 | ES139: -8 | ET139: -2085 | EU139: 3 | EV139: 1 | EW139: -882 | EX139: -1 | EY139: 1 | EZ139: 391 | FA139: 53 | FB139: 1513 | FC139: -115 | FD139: 428 | FE139: 94 | FF139: 1996 | FG139: 1996 | FH139: 0 | FI139: 174 | FJ139: 3164 | FK139: 3164 | FL139: 0 | FM139: 94 | FN139: 3310 | FO139: 3310 | FP139: 0 | FQ139: 0 | FR139: 5346
A140: 436 | B140: Lumijoki | C140: 2105 | E140: 1.509803922 | F140: 61.03866906 | G140: -4309.738717 | K140: 30.14765435 | L140: 365.7957245 | M140: 15.64169635 | N140: 8535.866983 | P140: 5599 | Q140: 16644 | R140: 0 | S140: -11045 | T140: 5353 | U140: 6840 | X140: -76 | Y140: 2 | Z140: 1074 | AA140: 1032 | AB140: 0 | AC140: 0 | AD140: 42 | AE140: -8 | AF140: -1 | AG140: -2 | AH140: -13 | AI140: 18 | AJ140: 1007 | AK140: 1068 | AM140: -64 | AN140: -684 | AO140: 674 | AT140: 20.75 | AV140: 227 | AW140: 2081 | AY140: 1.213393871 | AZ140: 65.91438394 | BA140: -4305.141759 | BE140: 28.22118198 | BF140: 855.358001 | BG140: 38.40742492 | BH140: 8128.784238 | BJ140: 5422 | BK140: 16981 | BL140: 1 | BM140: -11558 | BN140: 5788 | BO140: 6824 | BR140: -69 | BS140: 13 | BT140: 998 | BU140: 996 | BV140: 0 | BX140: 2 | BY140: 0 | BZ140: -4 | CA140: -4 | CB140: -1 | CC140: -7 | CD140: 999 | CE140: 985 | CG140: -131 | CH140: -810 | CI140: 104 | CN140: 20.75 | CP140: 263 | CQ140: 2052 | CS140: 1.692037471 | CT140: 69.86207683 | CU140: -4714.424951 | CY140: 27.6375512 | CZ140: 511.6959064 | DA140: 19.92979719 | DB140: 9371.345029 | DD140: 5172 | DE140: 16090 | DF140: -18 | DG140: -10936 | DH140: 5692 | DI140: 6682 | DL140: -70 | DM140: 5 | DN140: 1373 | DO140: 1289 | DP140: 90 | DR140: 174 | DS140: 10 | DT140: -11 | DU140: -7 | DV140: -16 | DW140: 150 | DX140: 1147 | DY140: 1376 | EA140: -385 | EB140: -782 | EC140: -687 | EE140: 0 | EH140: 21 | EJ140: 84 | EQ140: -557 | ER140: 105 | ES140: 58 | ET140: -948 | EU140: 10 | EV140: 57 | EW140: -2280 | EX140: 13 | EY140: 204 | EZ140: 118 | FA140: -4 | FB140: 548 | FC140: 1377 | FD140: 1409 | FE140: -9 | FF140: 7613 | FG140: 4864 | FH140: 2749 | FI140: 5 | FJ140: 8729 | FK140: 4634 | FL140: 4095 | FM140: 1 | FN140: 9339 | FO140: 5148 | FP140: 4191 | FQ140: 1 | FR140: 1352
A141: 440 | B141: Luoto | C141: 5176 | E141: 2.54763263 | F141: 71.71940283 | G141: -3021.251932 | K141: 47.04545888 | L141: 1759.080371 | M141: 83.43773538 | N141: 7695.131376 | P141: 8975 | Q141: 33423 | R141: 0 | S141: -24448 | T141: 14899 | U141: 13703 | X141: 1 | Y141: 234 | Z141: 4389 | AA141: 1990 | AB141: 0 | AC141: 0 | AD141: 2399 | AE141: 0 | AF141: -176 | AG141: 0 | AH141: 0 | AI141: 2223 | AJ141: 15683 | AK141: 4207 | AM141: -516 | AN141: -1676 | AO141: 222 | AT141: 19.5 | AV141: 91 | AW141: 5264 | AY141: 0.5261915302 | AZ141: 104.0953835 | BA141: -4772.986322 | BE141: 39.69055326 | BF141: 2414.323708 | BG141: 155.6273694 | BH141: 5662.424012 | BJ141: 9289 | BK141: 34196 | BL141: 0 | BM141: -24907 | BN141: 14985 | BO141: 13720 | BR141: 50 | BS141: -341 | BT141: 3507 | BU141: 2130 | BV141: 18 | BX141: 1395 | BY141: 0 | BZ141: -55 | CA141: 0 | CB141: 0 | CC141: 1340 | CD141: 16753 | CE141: 3602 | CG141: -713 | CH141: -6718 | CI141: -8362 | CN141: 19.5 | CP141: 197 | CQ141: 5340 | CS141: 2.766248575 | CT141: 109.9469983 | CU141: -5279.962547 | CY141: 39.24206429 | CZ141: 2264.794007 | DA141: 103.5931193 | DB141: 7979.775281 | DD141: 9706 | DE141: 35420 | DF141: 0 | DG141: -25714 | DH141: 15056 | DI141: 13350 | DL141: 81 | DM141: -377 | DN141: 2396 | DO141: 2261 | DP141: -2 | DR141: 133 | DS141: 0 | DT141: 94 | DU141: -24 | DV141: 0 | DW141: 203 | DX141: 17505 | DY141: 2304 | EA141: -234 | EB141: -847 | EC141: -3010 | EE141: 0 | EH141: 19.5 | EJ141: 160 | EQ141: -4383 | ER141: 128 | ES141: 270 | ET141: -12878 | EU141: 412 | EV141: 502 | EW141: -5699 | EX141: 196 | EY141: 189 | EZ141: 57 | FA141: 3126 | FB141: 86 | FC141: 12593 | FD141: 257 | FE141: 2492 | FF141: 21252 | FG141: 9747 | FH141: 11505 | FI141: 0 | FJ141: 35526 | FK141: 8421 | FL141: 27105 | FM141: 0 | FN141: 41322 | FO141: 11150 | FP141: 30172 | FQ141: 0 | FR141: 7
A142: 441 | B142: Luumäki | C142: 4831 | E142: 3.63556338 | F142: 44.78230163 | G142: -726.764645 | K142: 59.42395641 | L142: 3433.864624 | M142: 106.9785336 | N142: 11716.00083 | P142: 23629 | Q142: 50849 | R142: 8 | S142: -27212 | T142: 16444 | U142: 12316 | X142: -59 | Y142: 412 | Z142: 1901 | AA142: 3056 | AB142: 0 | AC142: 0 | AD142: -1155 | AE142: 0 | AF142: -2 | AG142: -2 | AH142: -40 | AI142: -1199 | AJ142: 17497 | AK142: 1917 | AM142: -150 | AN142: -404 | AO142: -2421 | AT142: 19.75 | AV142: 258 | AW142: 4747 | AY142: 6.428571429 | AZ142: 48.78991024 | BA142: -1486.62313 | BE142: 57.21443041 | BF142: 3355.803665 | BG142: 137.6820345 | BH142: 8896.355593 | BJ142: 23202 | BK142: 49695 | BL142: -37 | BM142: -26530 | BN142: 17264 | BO142: 12340 | BR142: 81 | BS142: 699 | BT142: 3854 | BU142: 3225 | BV142: 0 | BX142: 629 | BY142: 0 | BZ142: 178 | CA142: 0 | CB142: -26 | CC142: 781 | CD142: 17898 | CE142: 4052 | CG142: 632 | CH142: -472 | CI142: -3678 | CN142: 19.75 | CP142: 125 | CQ142: 4662 | CS142: 0.3072992701 | CT142: 50.8185973 | CU142: -2106.606607 | CY142: 55.17987642 | CZ142: 2964.178464 | DA142: 87.28041184 | DB142: 12395.9674 | DD142: 23540 | DE142: 51657 | DF142: -40 | DG142: -28157 | DH142: 16301 | DI142: 12016 | DL142: -46 | DM142: 152 | DN142: 266 | DO142: 3297 | DP142: 0 | DR142: -3031 | DS142: 1 | DT142: 3 | DU142: 0 | DV142: -11 | DW142: -3038 | DX142: 15904 | DY142: 1274 | EA142: 55 | EB142: -1215 | EC142: -2688 | EE142: 2186 | EH142: 20.5 | EJ142: 279 | EQ142: -5129 | ER142: 648 | ES142: 143 | ET142: -8088 | EU142: 179 | EV142: 179 | EW142: -4337 | EX142: 36 | EY142: 339 | EZ142: 839 | FA142: 23 | FB142: 2867 | FC142: 180 | FD142: 1102 | FE142: -39 | FF142: 17273 | FG142: 16300 | FH142: 973 | FI142: 0 | FJ142: 19867 | FK142: 18690 | FL142: 1177 | FM142: 259 | FN142: 19697 | FO142: 18517 | FP142: 1180 | FQ142: 268 | FR142: 2202
A143: 475 | B143: Maalahti | C143: 5517 | E143: 1.483050847 | F143: 57.10298959 | G143: -5411.274243 | K143: 37.81911527 | L143: 318.4701831 | M143: 9.667088741 | N143: 12024.46982 | P143: 23790 | Q143: 55995 | R143: -10 | S143: -32215 | T143: 19218 | U143: 16833 | X143: -151 | Y143: 7 | Z143: 3692 | AA143: 3353 | AB143: 0 | AC143: 0 | AD143: 339 | AE143: 0 | AF143: 9 | AG143: -21 | AH143: -18 | AI143: 309 | AJ143: 5062 | AK143: 3602 | AM143: 570 | AN143: -2438 | AO143: -3172 | AT143: 21.5 | AV143: 154 | AW143: 5477 | AY143: 1.445358402 | AZ143: 61.22397113 | BA143: -5898.30199 | BE143: 37.20165162 | BF143: 234.0697462 | BG143: 9.101571618 | BH143: 9386.890634 | BJ143: 23054 | BK143: 55336 | BL143: -10 | BM143: -32292 | BN143: 19459 | BO143: 16508 | BR143: -135 | BS143: 6 | BT143: 3546 | BU143: 2832 | BV143: 76 | BX143: 790 | BY143: 0 | BZ143: -61 | CA143: -19 | CB143: -15 | CC143: 695 | CD143: 5655 | CE143: 3431 | CG143: 12 | CH143: -2409 | CI143: -2436 | CN143: 21.5 | CP143: 207 | CQ143: 5477 | CS143: 1.006387226 | CT143: 69.0898046 | CU143: -6630.272047 | CY143: 33.64188917 | CZ143: 309.6585722 | DA143: 9.310692316 | DB143: 12139.30984 | DD143: 23754 | DE143: 56751 | DF143: -9 | DG143: -33006 | DH143: 19062 | DI143: 16446 | DL143: -142 | DM143: 13 | DN143: 2373 | DO143: 2852 | DP143: 0 | DR143: -479 | DS143: 15 | DT143: 11 | DU143: -19 | DV143: 0 | DW143: -472 | DX143: 5184 | DY143: 2074 | EA143: -385 | EB143: -2357 | EC143: -4026 | EE143: 1033 | EH143: 21.5 | EJ143: 169 | EQ143: -7723 | ER143: 740 | ES143: 209 | ET143: -6513 | EU143: 394 | EV143: 252 | EW143: -7195 | EX143: 742 | EY143: 353 | EZ143: 13640 | FA143: -9036 | FB143: 110 | FC143: 3996 | FD143: 10750 | FE143: -4563 | FF143: 24064 | FG143: 18704 | FH143: 5360 | FI143: 27 | FJ143: 25761 | FK143: 16405 | FL143: 9356 | FM143: 27 | FN143: 29590 | FO143: 24797 | FP143: 4793 | FQ143: 27 | FR143: 1066
A144: 480 | B144: Marttila | C144: 2021 | E144: -25.94230769 | F144: 36.26825875 | G144: -1968.332509 | K144: 48.2038835 | L144: 595.2498763 | M144: 25.85497262 | N144: 8403.26571 | P144: 6124 | Q144: 15912 | R144: 0 | S144: -9788 | T144: 6078 | U144: 5050 | X144: -41 | Y144: 6 | Z144: 1305 | AA144: 754 | AB144: 0 | AC144: 0 | AD144: 551 | AE144: 0 | AF144: -485 | AG144: 0 | AH144: 0 | AI144: 66 | AJ144: 2086 | AK144: 1278 | AM144: -426 | AN144: 96 | AO144: 478 | AT144: 20.25 | AV144: 166 | AW144: 1988 | AY144: 2.675136116 | AZ144: 33.28471248 | BA144: -1962.77666 | BE144: 51.0543471 | BF144: 552.3138833 | BG144: 26.49193548 | BH144: 7609.657948 | BJ144: 6143 | BK144: 16365 | BL144: 0 | BM144: -10222 | BN144: 6631 | BO144: 5051 | BR144: -45 | BS144: 11 | BT144: 1426 | BU144: 758 | BV144: 0 | BX144: 668 | BY144: 0 | BZ144: -19 | CA144: 0 | CB144: 0 | CC144: 649 | CD144: 2810 | CE144: 1398 | CG144: 143 | CH144: -503 | CI144: -43 | CN144: 20.25 | CP144: 172 | CQ144: 2018 | CS144: 1.533604888 | CT144: 32.21464779 | CU144: -1893.95441 | CY144: 58.38335893 | CZ144: 404.8562934 | DA144: 17.03736502 | DB144: 8673.439049 | DD144: 6415 | DE144: 16416 | DF144: 0 | DG144: -10001 | DH144: 6243 | DI144: 4505 | DL144: -35 | DM144: 3 | DN144: 715 | DO144: 710 | DP144: 0 | DR144: 5 | DS144: 0 | DT144: 7 | DU144: 0 | DV144: 0 | DW144: 12 | DX144: 3499 | DY144: 699 | EA144: 53 | EB144: -453 | EC144: 433 | EE144: 0 | EH144: 20.75 | EJ144: 196 | EQ144: -1122 | ER144: 284 | ES144: 38 | ET144: -1789 | EU144: 232 | EV144: 116 | EW144: -595 | EX144: 281 | EY144: 48 | EZ144: 0 | FA144: 0 | FB144: 0 | FC144: 0 | FD144: 0 | FE144: 0 | FF144: 4050 | FG144: 3545 | FH144: 505 | FI144: 2 | FJ144: 3548 | FK144: 3067 | FL144: 481 | FM144: 1 | FN144: 3098 | FO144: 2784 | FP144: 314 | FQ144: 1 | FR144: 0
A145: 481 | B145: Masku | C145: 9675 | E145: 1.705465165 | F145: 62.02640922 | G145: -4480.723514 | K145: 26.99527213 | L145: 339.121447 | M145: 13.96365566 | N145: 8864.392765 | P145: 32799 | Q145: 78227 | R145: 1 | S145: -45427 | T145: 39164 | U145: 10281 | X145: -139 | Y145: -22 | Z145: 3857 | AA145: 6174 | AB145: 0 | AC145: 0 | AD145: -2317 | AE145: 1 | AF145: 23 | AG145: 0 | AH145: -33 | AI145: -2326 | AJ145: -1800 | AK145: 3078 | AM145: 421 | AN145: -2166 | AO145: -538 | AT145: 20.75 | AV145: 257 | AW145: 9656 | AY145: 1.896591235 | AZ145: 65.52284044 | BA145: -4572.597349 | BE145: 28.08819715 | BF145: 576.2220381 | BG145: 26.71692057 | BH145: 7872.203811 | BJ145: 32645 | BK145: 76611 | BL145: 3 | BM145: -43963 | BN145: 40441 | BO145: 10056 | BR145: -145 | BS145: 82 | BT145: 6471 | BU145: 3952 | BV145: 0 | BX145: 2519 | BY145: 1 | BZ145: -37 | CA145: 0 | CB145: 0 | CC145: 2483 | CD145: 614 | CE145: 6180 | CG145: -378 | CH145: -3341 | CI145: 2483 | CN145: 20.75 | CP145: 192 | CQ145: 9554 | CS145: 1.124287749 | CT145: 75.23132189 | CU145: -5518.002931 | CY145: 24.5298339 | CZ145: 506.1754239 | DA145: 19.273033 | DB145: 9586.14193 | DD145: 33154 | DE145: 79578 | DF145: 2 | DG145: -46422 | DH145: 40329 | DI145: 9194 | DL145: -170 | DM145: 55 | DN145: 2986 | DO145: 3983 | DP145: 0 | DR145: -997 | DS145: 6 | DT145: 0 | DU145: -8 | DV145: 24 | DW145: -975 | DX145: -545 | DY145: 2740 | EA145: 115 | EB145: -2637 | EC145: -5962 | EE145: 452 | EH145: 20.75 | EJ145: 211 | EQ145: -5066 | ER145: 55 | ES145: 1395 | ET145: -4129 | EU145: 27 | EV145: 405 | EW145: -9171 | EX145: 52 | EY145: 417 | EZ145: -1500 | FA145: 3000 | FB145: 2349 | FC145: 0 | FD145: 7604 | FE145: 0 | FF145: 37464 | FG145: 13707 | FH145: 23757 | FI145: 0 | FJ145: 39813 | FK145: 15795 | FL145: 24018 | FM145: 0 | FN145: 47417 | FO145: 21424 | FP145: 25993 | FQ145: 0 | FR145: 470
A146: 483 | B146: Merijärvi | C146: 1131 | E146: 1.149051491 | F146: 46.25 | G146: -1059.239611 | K146: 57.13710651 | L146: 3041.556145 | M146: 110.1693428 | N146: 10076.92308 | P146: 4214 | Q146: 10765 | R146: 0 | S146: -6551 | T146: 2484 | U146: 4342 | X146: -26 | Y146: 148 | Z146: 397 | AA146: 542 | AB146: 0 | AC146: 0 | AD146: -145 | AE146: -1 | AF146: 0 | AG146: -1 | AH146: -1 | AI146: -148 | AJ146: 2809 | AK146: 430 | AM146: -8 | AN146: -342 | AO146: 200 | AT146: 21.5 | AV146: 266 | AW146: 1119 | AY146: 0.5270092227 | AZ146: 58.2205029 | BA146: -1288.650581 | BE146: 51.01524677 | BF146: 3848.078642 | BG146: 142.0415725 | BH146: 9888.293119 | BJ146: 4465 | BK146: 11044 | BL146: 1 | BM146: -6578 | BN146: 2606 | BO146: 4303 | BR146: -23 | BS146: 68 | BT146: 376 | BU146: 510 | BV146: 0 | BX146: -134 | BY146: 0 | BZ146: 0 | CA146: 0 | CB146: -1 | CC146: -135 | CD146: 2671 | CE146: 389 | CG146: -404 | CH146: -735 | CI146: -284 | CN146: 21.5 | CP146: 281 | CQ146: 1104 | CS146: 0.4792899408 | CT146: 50.84084605 | CU146: -2074.275362 | CY146: 52.86678563 | CZ146: 2746.376812 | DA146: 82.41584748 | DB146: 12163.04348 | DD146: 4465 | DE146: 11361 | DF146: 12 | DG146: -6884 | DH146: 2578 | DI146: 4493 | DL146: -22 | DM146: 55 | DN146: 220 | DO146: 579 | DP146: 77 | DR146: -282 | DS146: 0 | DT146: -1 | DU146: 0 | DV146: -1 | DW146: -284 | DX146: 2496 | DY146: 210 | EA146: 8 | EB146: -484 | EC146: -1116 | EE146: 459 | EH146: 21.5 | EJ146: 250 | EQ146: -252 | ER146: 0 | ES146: 22 | ET146: -740 | EU146: 23 | EV146: 44 | EW146: -1423 | EX146: 4 | EY146: 93 | EZ146: 408 | FA146: -3 | FB146: 1435 | FC146: 600 | FD146: 803 | FE146: -10 | FF146: 3301 | FG146: 2163 | FH146: 1138 | FI146: 80 | FJ146: 4595 | FK146: 3226 | FL146: 1369 | FM146: 66 | FN146: 3959 | FO146: 2526 | FP146: 1433 | FQ146: 89 | FR146: 1364
A147: 484 | B147: Merikarvia | C147: 3169 | E147: 5.108024691 | F147: 21.56893228 | G147: -239.5077311 | K147: 75.13835086 | L147: 1363.521616 | M147: 48.59543984 | N147: 10241.40107 | P147: 10576 | Q147: 30552 | R147: -2 | S147: -19978 | T147: 9100 | U147: 12486 | X147: -22 | Y147: 41 | Z147: 1627 | AA147: 1515 | AB147: 0 | AC147: 0 | AD147: 112 | AE147: -10 | AF147: 0 | AG147: -4 | AH147: 0 | AI147: 98 | AJ147: 6012 | AK147: 1637 | AM147: 93 | AN147: -296 | AO147: 272 | AT147: 19.5 | AV147: 225 | AW147: 3156 | AY147: 4.191358025 | AZ147: 20.63453251 | BA147: -354.8795944 | BE147: 75.41545674 | BF147: 1191.381496 | BG147: 45.77718479 | BH147: 9499.366286 | BJ147: 10682 | BK147: 31445 | BL147: -1 | BM147: -20764 | BN147: 9756 | BO147: 12279 | BR147: -23 | BS147: 86 | BT147: 1334 | BU147: 1495 | BV147: 0 | BX147: -161 | BY147: 0 | BZ147: -14 | CA147: 4 | CB147: 1 | CC147: -170 | CD147: 5803 | CE147: 1330 | CG147: 81 | CH147: -300 | CI147: -393 | CN147: 19.5 | CP147: 270 | CQ147: 3115 | CS147: -0.475 | CT147: 21.17132594 | CU147: -931.9422151 | CY147: 73.98615232 | CZ147: 781.3804173 | DA147: 26.00655719 | DB147: 10966.61316 | DD147: 11006 | DE147: 32134 | DF147: -8 | DG147: -21136 | DH147: 9286 | DI147: 11723 | DL147: -17 | DM147: 31 | DN147: -113 | DO147: 1631 | DP147: 0 | DR147: -1744 | DS147: 0 | DT147: -28 | DU147: 0 | DV147: 0 | DW147: -1772 | DX147: 4510 | DY147: -119 | EA147: 372 | EB147: -182 | EC147: -1846 | EE147: 153 | EH147: 19.5 | EJ147: 284 | EQ147: -1578 | ER147: 59 | ES147: 154 | ET147: -1792 | EU147: 8 | EV147: 61 | EW147: -1811 | EX147: 11 | EY147: 73 | EZ147: 15 | FA147: -67 | FB147: 96 | FC147: 9 | FD147: 236 | FE147: -8 | FF147: 2584 | FG147: 2272 | FH147: 312 | FI147: 0 | FJ147: 2409 | FK147: 2089 | FL147: 320 | FM147: 0 | FN147: 2395 | FO147: 2113 | FP147: 282 | FQ147: 0 | FR147: 182
A148: 489 | B148: Miehikkälä | C148: 2034 | E148: 2.680738786 | F148: 43.00556718 | G148: -4481.317601 | K148: 54.71436199 | L148: 899.2133727 | M148: 23.23246911 | N148: 14127.3353 | P148: 14552 | Q148: 26200 | R148: 0 | S148: -11648 | T148: 5918 | U148: 7731 | X148: -57 | Y148: 19 | Z148: 1963 | AA148: 1304 | AB148: 0 | AC148: 0 | AD148: 659 | AE148: 0 | AF148: 6 | AG148: 0 | AH148: 18 | AI148: 683 | AJ148: 5252 | AK148: 1806 | AM148: -424 | AN148: -689 | AO148: 69 | AT148: 20 | AV148: 60 | AW148: 1992 | AY148: 2.677506775 | AZ148: 49.09939236 | BA148: -4707.329317 | BE148: 53.03942772 | BF148: 1437.248996 | BG148: 43.49071916 | BH148: 12062.249 | BJ148: 13743 | BK148: 25702 | BL148: 1 | BM148: -11958 | BN148: 5996 | BO148: 7909 | BR148: -46 | BS148: 18 | BT148: 1919 | BU148: 1232 | BV148: 0 | BX148: 687 | BY148: 0 | BZ148: -4 | CA148: 0 | CB148: -10 | CC148: 673 | CD148: 5817 | CE148: 1899 | CG148: -151 | CH148: -681 | CI148: -292 | CN148: 20 | CP148: 77 | CQ148: 1940 | CS148: 1.201101928 | CT148: 48.11863032 | CU148: -4860.309278 | CY148: 52.22837464 | CZ148: 1388.14433 | DA148: 33.48931893 | DB148: 15129.38144 | DD148: 14853 | DE148: 27376 | DF148: 1 | DG148: -12522 | DH148: 5617 | DI148: 7887 | DL148: -33 | DM148: -123 | DN148: 826 | DO148: 1320 | DP148: 0 | DR148: -494 | DS148: 0 | DT148: -9 | DU148: 0 | DV148: -12 | DW148: -515 | DX148: 5336 | DY148: 818 | EA148: -189 | EB148: -680 | EC148: -233 | EE148: 305 | EH148: 20 | EJ148: 172 | EQ148: -1737 | ER148: 155 | ES148: -155 | ET148: -2456 | EU148: 380 | EV148: -115 | EW148: -1109 | EX148: 72 | EY148: -14 | EZ148: 90 | FA148: -56 | FB148: 174 | FC148: 1990 | FD148: 192 | FE148: -5 | FF148: 8280 | FG148: 5582 | FH148: 2698 | FI148: 133 | FJ148: 9765 | FK148: 5076 | FL148: 4689 | FM148: 133 | FN148: 9278 | FO148: 4578 | FP148: 4700 | FQ148: 0 | FR148: 306
A149: 491 | B149: Mikkeli | C149: 54517 | E149: 1.478639427 | F149: 98.44066674 | G149: -9024.157602 | K149: 31.98791166 | L149: 713.6306106 | M149: 21.58674938 | N149: 12066.43799 | P149: 253655 | Q149: 533898 | R149: 168 | S149: -280075 | T149: 196606 | U149: 141338 | X149: -4357 | Y149: -1982 | Z149: 51530 | AA149: 41542 | AB149: 14 | AC149: 0 | AD149: 10002 | AE149: -407 | AF149: -88 | AG149: -1244 | AH149: -664 | AI149: 7599 | AJ149: 64536 | AK149: 48670 | AM149: -6254 | AN149: -33279 | AO149: -14860 | AT149: 20 | AV149: 66 | AW149: 54261 | AY149: 1.476842945 | AZ149: 99.72755118 | BA149: -9602.771788 | BE149: 31.26704414 | BF149: 672.9326772 | BG149: 27.45515335 | BH149: 8946.241315 | BJ149: 273023 | BK149: 551934 | BL149: 3714 | BM149: -275197 | BN149: 199350 | BO149: 139118 | BR149: -4130 | BS149: -987 | BT149: 58154 | BU149: 50042 | BV149: 24 | BX149: 8136 | BY149: 95 | BZ149: -73 | CA149: -1462 | CB149: -815 | CC149: 5881 | CD149: 63358 | CE149: 53674 | CG149: -1460 | CH149: -37830 | CI149: -30478 | CN149: 20.5 | CP149: 57 | CQ149: 53818 | CS149: 0.8854087089 | CT149: 106.0014247 | CU149: -10371.84585 | CY149: 29.25227593 | CZ149: 554.6099818 | DA149: 15.85107049 | DB149: 12770.91308 | DD149: 266352 | DE149: 561229 | DF149: -78 | DG149: -294955 | DH149: 197629 | DI149: 136843 | DL149: -3718 | DM149: -723 | DN149: 35076 | DO149: 46197 | DP149: 144 | DR149: -10977 | DS149: 253 | DT149: 0 | DU149: -1042 | DV149: -595 | DW149: -12361 | DX149: 47738 | DY149: 31138 | EA149: 3413 | EB149: -40176 | EC149: -37141 | EE149: 5436 | EH149: 20.5 | EJ149: 91 | EQ149: -82947 | ER149: 1822 | ES149: 17595 | ET149: -111464 | EU149: 2394 | EV149: 24918 | EW149: -79687 | EX149: 1457 | EY149: 9951 | EZ149: 81170 | FA149: -16596 | FB149: 75420 | FC149: -9300 | FD149: 77782 | FE149: -19300 | FF149: 476923 | FG149: 354484 | FH149: 122439 | FI149: 25081 | FJ149: 505223 | FK149: 389558 | FL149: 115665 | FM149: 25222 | FN149: 523530 | FO149: 423788 | FP149: 99742 | FQ149: 25301 | FR149: 4629
A150: 494 | B150: Muhos | C150: 8995 | E150: 0.9594288002 | F150: 65.49127088 | G150: -5392.773763 | K150: 34.14655436 | L150: 458.5881045 | M150: 15.51758789 | N150: 10786.77043 | P150: 34471 | Q150: 82654 | R150: 49 | S150: -48134 | T150: 29671 | U150: 25615 | X150: -462 | Y150: 11 | Z150: 6701 | AA150: 4640 | AB150: 0 | AC150: 0 | AD150: 2061 | AE150: -3 | AF150: -5 | AG150: -4 | AH150: -3 | AI150: 2046 | AJ150: 3227 | AK150: 6651 | AM150: -214 | AN150: -7005 | AO150: 604 | AT150: 20.5 | AV150: 119 | AW150: 9019 | AY150: 0.8052415211 | AZ150: 67.93391564 | BA150: -5556.380974 | BE150: 33.88009289 | BF150: 570.1297261 | BG150: 22.50395683 | BH150: 9247.144916 | BJ150: 32127 | BK150: 83488 | BL150: 34 | BM150: -51327 | BN150: 29837 | BO150: 27679 | BR150: -409 | BS150: 43 | BT150: 5823 | BU150: 5014 | BV150: 0 | BX150: 809 | BY150: -2 | BZ150: 39 | CA150: -3 | CB150: -6 | CC150: 837 | CD150: 4020 | CE150: 5671 | CG150: 516 | CH150: -7339 | CI150: -1596 | CN150: 20.5 | CP150: 208 | CQ150: 8980 | CS150: 0.4055313545 | CT150: 68.80809246 | CU150: -5587.750557 | CY150: 32.85775912 | CZ150: 684.5211581 | DA150: 22.2012171 | DB150: 11253.89755 | DD150: 32609 | DE150: 86278 | DF150: 38 | DG150: -53631 | DH150: 30082 | DI150: 27467 | DL150: -390 | DM150: 54 | DN150: 3582 | DO150: 4828 | DP150: 483 | DR150: -763 | DS150: -3 | DT150: -50 | DU150: -2 | DV150: -4 | DW150: -822 | DX150: 3132 | DY150: 3441 | EA150: -59 | EB150: -9450 | EC150: -307 | EE150: 124 | EH150: 21 | EJ150: 182 | EQ150: -6812 | ER150: 482 | ES150: 283 | ET150: -7875 | EU150: 90 | EV150: 518 | EW150: -4901 | EX150: 65 | EY150: 1088 | EZ150: 9132 | FA150: -21 | FB150: 11797 | FC150: -3000 | FD150: 10681 | FE150: -500 | FF150: 45520 | FG150: 30333 | FH150: 15187 | FI150: 80 | FJ150: 46978 | FK150: 33545 | FL150: 13433 | FM150: 56 | FN150: 47543 | FO150: 33470 | FP150: 14073 | FQ150: 54 | FR150: 294
A151: 495 | B151: Multia | C151: 1663 | E151: 2.901345291 | F151: 35.95490263 | G151: -1453.998797 | K151: 51.71102662 | L151: 1367.408298 | M151: 56.52093973 | N151: 8830.426939 | P151: 2587 | Q151: 13361 | R151: 1 | S151: -10773 | T151: 5588 | U151: 6460 | X151: -16 | Y151: 13 | Z151: 1272 | AA151: 593 | AB151: 0 | AC151: 0 | AD151: 679 | AE151: 0 | AF151: -43 | AG151: 0 | AH151: 0 | AI151: 636 | AJ151: 861 | AK151: 1251 | AM151: 416 | AN151: -424 | AO151: 489 | AT151: 21.75 | AV151: 112 | AW151: 1636 | AY151: 2.018348624 | AZ151: 37.47129736 | BA151: -1740.831296 | BE151: 55.45875959 | BF151: 1016.503667 | BG151: 49.88863319 | BH151: 7437.041565 | BJ151: 2592 | BK151: 13057 | BL151: 0 | BM151: -10465 | BN151: 5458 | BO151: 5886 | BR151: -8 | BS151: -4 | BT151: 867 | BU151: 638 | BV151: 0 | BX151: 229 | BY151: 0 | BZ151: -55 | CA151: 0 | CB151: 0 | CC151: 174 | CD151: 1159 | CE151: 839 | CG151: 413 | CH151: -423 | CI151: -439 | CN151: 21.75 | CP151: 245 | CQ151: 1584 | CS151: 1.253164557 | CT151: 35.7240559 | CU151: -2234.217172 | CY151: 48.73245813 | CZ151: 1108.585859 | DA151: 35.41104972 | DB151: 11426.76768 | DD151: 5658 | DE151: 16182 | DF151: 0 | DG151: -10524 | DH151: 5379 | DI151: 5778 | DL151: -4 | DM151: -46 | DN151: 583 | DO151: 651 | DP151: 0 | DR151: -68 | DS151: -1 | DT151: 12 | DU151: 0 | DV151: 0 | DW151: -57 | DX151: 1112 | DY151: 482 | EA151: 569 | EB151: -463 | EC151: -752 | EE151: 2826 | EH151: 22 | EJ151: 192 | EQ151: -805 | ER151: 2 | ES151: 41 | ET151: -1345 | EU151: 17 | EV151: 50 | EW151: -1387 | EX151: 28 | EY151: 125 | EZ151: 345 | FA151: 361 | FB151: 695 | FC151: -282 | FD151: 703 | FE151: 194 | FF151: 2999 | FG151: 1820 | FH151: 1179 | FI151: 80 | FJ151: 2940 | FK151: 2018 | FL151: 922 | FM151: 30 | FN151: 3356 | FO151: 2352 | FP151: 1004 | FQ151: -5 | FR151: 3099
A152: 498 | B152: Muonio | C152: 2350 | E152: 0.9736164736 | F152: 57.48565467 | G152: -5057.446809 | K152: 15.21996343 | L152: 889.3617021 | M152: 26.44010814 | N152: 12277.44681 | P152: 8628 | Q152: 25328 | R152: 0 | S152: -16700 | T152: 8540 | U152: 9670 | X152: -132 | Y152: 1 | Z152: 1379 | AA152: 1032 | AB152: 0 | AC152: 0 | AD152: 347 | AE152: 0 | AF152: 4 | AG152: 7 | AH152: 0 | AI152: 358 | AJ152: -132 | AK152: 1360 | AM152: -107 | AN152: -1420 | AO152: -429 | AT152: 21 | AV152: 193 | AW152: 2332 | AY152: 1.486600846 | AZ152: 50.29935694 | BA152: -4579.759863 | BE152: 21.10829817 | BF152: 698.9708405 | BG152: 23.36711048 | BH152: 10918.09605 | BJ152: 9266 | BK152: 24954 | BL152: 0 | BM152: -15688 | BN152: 8738 | BO152: 9054 | BR152: -102 | BS152: 0 | BT152: 2002 | BU152: 1131 | BV152: -11 | BX152: 860 | BY152: 0 | BZ152: 15 | CA152: 0 | CB152: 7 | CC152: 882 | CD152: 798 | CE152: 1990 | CG152: 155 | CH152: -1312 | CI152: 1146 | CN152: 21.5 | CP152: 107 | CQ152: 2299 | CS152: 1.164844407 | CT152: 49.80946991 | CU152: -4565.898217 | CY152: 21.27181614 | CZ152: 534.5802523 | DA152: 16.28848947 | DB152: 11979.12136 | DD152: 8627 | DE152: 25127 | DF152: 0 | DG152: -16500 | DH152: 8650 | DI152: 9228 | DL152: -77 | DM152: 4 | DN152: 1305 | DO152: 1373 | DP152: 9 | DR152: -59 | DS152: 0 | DT152: 34 | DU152: 0 | DV152: 5 | DW152: -20 | DX152: 738 | DY152: 1306 | EA152: -218 | EB152: -1109 | EC152: 241 | EE152: 0 | EH152: 21.5 | EJ152: 125 | EQ152: -1953 | ER152: 85 | ES152: 79 | ET152: -933 | EU152: 62 | EV152: 27 | EW152: -1227 | EX152: 51 | EY152: 111 | EZ152: 1511 | FA152: 22 | FB152: 0 | FC152: -397 | FD152: 19 | FE152: 389 | FF152: 11316 | FG152: 7122 | FH152: 4194 | FI152: 35 | FJ152: 9610 | FK152: 5990 | FL152: 3620 | FM152: 27 | FN152: 8900 | FO152: 4944 | FP152: 3956 | FQ152: 31 | FR152: 0
A153: 499 | B153: Mustasaari | C153: 19380 | E153: 1.915331116 | F153: 64.10585375 | G153: -4676.522188 | K153: 34.8863921 | L153: 301.0319917 | M153: 12.54342819 | N153: 8759.700722 | P153: 56883 | Q153: 150521 | R153: 66 | S153: -93572 | T153: 75915 | U153: 30106 | X153: -632 | Y153: 207 | Z153: 12024 | AA153: 9033 | AB153: 0 | AC153: 0 | AD153: 2991 | AE153: 17 | AF153: 21 | AG153: 0 | AH153: 8 | AI153: 3037 | AJ153: 8892 | AK153: 11493 | AM153: 254 | AN153: -5970 | AO153: -176 | AT153: 20.75 | AV153: 178 | AW153: 19384 | AY153: 1.58680203 | AZ153: 64.36823834 | BA153: -4766.611638 | BE153: 35.72458867 | BF153: 285.8543128 | BG153: 14.1434086 | BH153: 7377.063558 | BJ153: 55054 | BK153: 149557 | BL153: 198 | BM153: -94305 | BN153: 76796 | BO153: 31479 | BR153: -575 | BS153: 94 | BT153: 13489 | BU153: 11022 | BV153: 168 | BX153: 2635 | BY153: 1 | BZ153: -136 | CA153: -8 | CB153: -31 | CC153: 2461 | CD153: 11345 | CE153: 12971 | CG153: 771 | CH153: -8287 | CI153: -1454 | CN153: 20.75 | CP153: 178 | CQ153: 19444 | CS153: 0.6225991743 | CT153: 78.76591672 | CU153: -5790.372351 | CY153: 30.08933845 | CZ153: 395.3918947 | DA153: 14.25251161 | DB153: 10125.79716 | DD153: 56879 | DE153: 157487 | DF153: 272 | DG153: -100336 | DH153: 75323 | DI153: 31855 | DL153: -522 | DM153: 92 | DN153: 6412 | DO153: 9524 | DP153: 0 | DR153: -3112 | DS153: 16 | DT153: 24 | DU153: -31 | DV153: -32 | DW153: -3135 | DX153: 8212 | DY153: 5009 | EA153: -1750 | EB153: -10617 | EC153: -20730 | EE153: 70 | EH153: 20.75 | EJ153: 204 | EQ153: -12552 | ER153: 197 | ES153: 686 | ET153: -15485 | EU153: 284 | EV153: 776 | EW153: -28191 | EX153: 1017 | EY153: 1435 | EZ153: 11646 | FA153: -5103 | FB153: 10204 | FC153: -2859 | FD153: 3776 | FE153: 25332 | FF153: 77432 | FG153: 45768 | FH153: 31664 | FI153: 44 | FJ153: 76742 | FK153: 45940 | FL153: 30802 | FM153: 36 | FN153: 95233 | FO153: 39099 | FP153: 56134 | FQ153: 29 | FR153: 91
A154: 500 | B154: Muurame | C154: 9941 | E154: 1.676117251 | F154: 84.86777603 | G154: -5683.43225 | K154: 27.7717305 | L154: 231.0632733 | M154: 10.75816096 | N154: 7839.452771 | P154: 24022 | Q154: 67618 | R154: 18 | S154: -43578 | T154: 37688 | U154: 12747 | X154: -454 | Y154: 113 | Z154: 6516 | AA154: 5967 | AB154: 0 | AC154: 0 | AD154: 549 | AE154: 2 | AF154: 9 | AG154: 0 | AH154: -32 | AI154: 528 | AJ154: 3585 | AK154: 5638 | AM154: 1318 | AN154: -3702 | AO154: 590 | AT154: 19.5 | AV154: 162 | AW154: 10097 | AY154: 1.924324324 | AZ154: 85.72359323 | BA154: -5509.458255 | BE154: 28.79101616 | BF154: 346.2414579 | BG154: 19.87848953 | BH154: 6357.53194 | BJ154: 23809 | BK154: 67183 | BL154: 30 | BM154: -43344 | BN154: 38655 | BO154: 12744 | BR154: -384 | BS154: 116 | BT154: 7787 | BU154: 5734 | BV154: 0 | BX154: 2053 | BY154: 0 | BZ154: 12 | CA154: -9 | CB154: -53 | CC154: 2003 | CD154: 4693 | CE154: 6852 | CG154: -553 | CH154: -3854 | CI154: 935 | CN154: 19.5 | CP154: 145 | CQ154: 10170 | CS154: 1.466294643 | CT154: 83.62632497 | CU154: -5502.851524 | CY154: 28.87710515 | CZ154: 222.6155359 | DA154: 10.06896552 | DB154: 8069.813176 | DD154: 24135 | DE154: 70576 | DF154: -52 | DG154: -46493 | DH154: 39403 | DI154: 13256 | DL154: -317 | DM154: 365 | DN154: 6214 | DO154: 6128 | DP154: 0 | DR154: 86 | DS154: 0 | DT154: -1 | DU154: -34 | DV154: -43 | DW154: 8 | DX154: 4734 | DY154: 5419 | EA154: 332 | EB154: -4125 | EC154: -292 | EE154: 3798 | EH154: 19.5 | EJ154: 107 | EQ154: -6132 | ER154: 80 | ES154: 1004 | ET154: -7339 | EU154: 131 | EV154: 1291 | EW154: -6994 | EX154: 185 | EY154: 1098 | EZ154: 1881 | FA154: 89 | FB154: 7177 | FC154: -3342 | FD154: 1816 | FE154: 605 | FF154: 49454 | FG154: 28583 | FH154: 20871 | FI154: 0 | FJ154: 49795 | FK154: 33003 | FL154: 16792 | FM154: 36 | FN154: 48713 | FO154: 31490 | FP154: 17223 | FQ154: 0 | FR154: 4096
A155: 503 | B155: Mynämäki | C155: 7842 | E155: 1.709210526 | F155: 43.37174208 | G155: -3413.414945 | K155: 40.51469665 | L155: 519.000255 | M155: 18.00470252 | N155: 10521.42311 | P155: 36048 | Q155: 78080 | R155: -26 | S155: -42058 | T155: 27071 | U155: 18720 | X155: -117 | Y155: 142 | Z155: 3758 | AA155: 3386 | AB155: 0 | AC155: 0 | AD155: 372 | AE155: 17 | AF155: 0 | AG155: 0 | AH155: 0 | AI155: 389 | AJ155: 2484 | AK155: 3706 | AM155: -460 | AN155: -2141 | AO155: 1815 | AT155: 21 | AV155: 238 | AW155: 7838 | AY155: 1.802079168 | AZ155: 42.42149166 | BA155: -3139.576423 | BE155: 41.25797914 | BF155: 727.9918347 | BG155: 36.65868727 | BH155: 7248.405205 | BJ155: 36158 | BK155: 77091 | BL155: 26 | BM155: -40907 | BN155: 27861 | BO155: 17501 | BR155: -154 | BS155: 44 | BT155: 4345 | BU155: 3436 | BV155: 10064 | BX155: 909 | BY155: 19 | BZ155: -19 | CA155: -22 | CB155: 0 | CC155: 887 | CD155: 3282 | CE155: 4311 | CG155: 249 | CH155: -2339 | CI155: -10544 | CN155: 21 | CP155: 234 | CQ155: 7766 | CS155: 0.03986461076 | CT155: 47.69634023 | CU155: -3676.925058 | CY155: 35.67116151 | CZ155: 754.5712078 | DA155: 24.31175976 | DB155: 11328.6119 | DD155: 36947 | DE155: 81233 | DF155: 26 | DG155: -44260 | DH155: 27296 | DI155: 17019 | DL155: -157 | DM155: 35 | DN155: -67 | DO155: 3180 | DP155: 0 | DR155: -3247 | DS155: 7 | DT155: 53 | DU155: -11 | DV155: 0 | DW155: -3198 | DX155: 23 | DY155: -169 | EA155: -61 | EB155: -2486 | EC155: -3960 | EE155: 830 | EH155: 21 | EJ155: 283 | EQ155: -2133 | ER155: 175 | ES155: 67 | ET155: -22794 | EU155: 45 | EV155: 7894 | EW155: -4072 | EX155: 97 | EY155: 184 | EZ155: 2081 | FA155: -309 | FB155: 5902 | FC155: -2330 | FD155: 4695 | FE155: 991 | FF155: 23169 | FG155: 13473 | FH155: 9696 | FI155: 0 | FJ155: 21853 | FK155: 14361 | FL155: 7492 | FM155: 0 | FN155: 25039 | FO155: 16774 | FP155: 8265 | FQ155: 0 | FR155: 836
A156: 504 | B156: Myrskylä | C156: 1986 | E156: 6.416666667 | F156: 39.58190328 | G156: -1807.15005 | K156: 54.902219 | L156: 1140.986908 | M156: 51.22251811 | N156: 8130.41289 | P156: 5025 | Q156: 15851 | R156: 7 | S156: -10819 | T156: 6374 | U156: 4626 | X156: -34 | Y156: 279 | Z156: 426 | AA156: 688 | AB156: 0 | AC156: 0 | AD156: -262 | AE156: 0 | AF156: 0 | AG156: 0 | AH156: 0 | AI156: -262 | AJ156: 1680 | AK156: 425 | AM156: 268 | AN156: -36 | AO156: 308 | AT156: 21.5 | AV156: 283 | AW156: 1969 | AY156: 4.052631579 | AZ156: 31.91765194 | BA156: -1725.749111 | BE156: 54.66530055 | BF156: 1019.299137 | BG156: 38.23156411 | BH156: 9731.335703 | BJ156: 8337 | BK156: 19199 | BL156: 5 | BM156: -10857 | BN156: 6378 | BO156: 4569 | BR156: -39 | BS156: 295 | BT156: 346 | BU156: 681 | BV156: 0 | BX156: -335 | BY156: 0 | BZ156: 1 | CA156: 0 | CB156: 0 | CC156: -334 | CD156: 1346 | CE156: 337 | CG156: -261 | CH156: -56 | CI156: 225 | CN156: 21.5 | CP156: 292 | CQ156: 1922 | CS156: 8.546391753 | CT156: 25.43712939 | CU156: -1254.942768 | CY156: 59.75139929 | CZ156: 766.9094693 | DA156: 27.24791086 | DB156: 10273.15297 | DD156: 8544 | DE156: 19194 | DF156: 4 | DG156: -10646 | DH156: 6417 | DI156: 4770 | DL156: -33 | DM156: 288 | DN156: 796 | DO156: 659 | DP156: 18 | DR156: 155 | DS156: 5 | DT156: -1 | DU156: 0 | DV156: -1 | DW156: 158 | DX156: 1519 | DY156: 872 | EA156: -430 | EB156: -64 | EC156: 740 | EE156: 730 | EH156: 21.5 | EJ156: 177 | EQ156: -220 | ER156: 90 | ES156: 13 | ET156: -142 | EU156: 0 | EV156: 30 | EW156: -450 | EX156: 65 | EY156: 253 | EZ156: 1118 | FA156: -1198 | FB156: 0 | FC156: -1022 | FD156: 0 | FE156: 0 | FF156: 3525 | FG156: 2379 | FH156: 1146 | FI156: 2 | FJ156: 2447 | FK156: 2303 | FL156: 144 | FM156: 8 | FN156: 2216 | FO156: 2149 | FP156: 67 | FQ156: 8 | FR156: 795
